Workbook

Sheet GRÁFICOS - Biv - resid

Sheet GRÁFICOS - Biv - proced

Sheet GRÁFICOS - Monov - resid

Sheet GRÁFICOS - Monov - proc

Sheet Bivalente - resid
A1: REGIONAL | B1: MUNICÍPIO | C1: 12 A 17 ANOS | H1: 18 A 19 ANOS | M1: 20 A 24 ANOS | R1: 25 A 29 ANOS | W1: 30 A 34 ANOS | AB1: 35 A 39 ANOS | AG1: 40 A 44 ANOS | AL1: 45 A 49 ANOS | AQ1: 50 A 54 ANOS | AV1: 55 A 59 ANOS | BA1: 60 A 64 ANOS | BF1: 65 A 69 ANOS | BK1: 70 A 74 ANOS | BP1: 75 A 79 ANOS | BU1: 80 ANOS OU MAIS | CA1: MUNICÍPIO | CB1: GERAL
C2: ESTIMATIVA POPULACIONAL | D2: REFORÇO BIVALENTE (1 dose) | E2: COBERTURA VACINAL REFORÇO BIVALENTE | F2: 2º REFORÇO BIVALENTE (2 doses) | G2: 2º COBERTURA VACINAL REFORÇO BIVALENTE | H2: ESTIMATIVA POPULACIONAL | I2: REFORÇO BIVALENTE (1 dose) | J2: COBERTURA VACINAL REFORÇO BIVALENTE | K2: 2º REFORÇO BIVALENTE (2 doses) | L2: 2º COBERTURA VACINAL REFORÇO BIVALENTE | M2: ESTIMATIVA POPULACIONAL | N2: REFORÇO BIVALENTE (1 dose) | O2: COBERTURA VACINAL REFORÇO BIVALENTE | P2: 2º REFORÇO BIVALENTE (2 doses) | Q2: 2º COBERTURA VACINAL REFORÇO BIVALENTE | R2: ESTIMATIVA POPULACIONAL | S2: REFORÇO BIVALENTE (1 dose) | T2: COBERTURA VACINAL REFORÇO BIVALENTE | U2: 2º REFORÇO BIVALENTE (2 doses) | V2: 2º COBERTURA VACINAL REFORÇO BIVALENTE | W2: ESTIMATIVA POPULACIONAL | X2: REFORÇO BIVALENTE (1 dose) | Y2: COBERTURA VACINAL REFORÇO BIVALENTE | Z2: 2º REFORÇO BIVALENTE (2 doses) | AA2: 2º COBERTURA VACINAL REFORÇO BIVALENTE | AB2: ESTIMATIVA POPULACIONAL | AC2: REFORÇO BIVALENTE (1 dose) | AD2: COBERTURA VACINAL REFORÇO BIVALENTE | AE2: 2º REFORÇO BIVALENTE (2 doses) | AF2: 2º COBERTURA VACINAL REFORÇO BIVALENTE | AG2: ESTIMATIVA POPULACIONAL | AH2: REFORÇO BIVALENTE (1 dose) | AI2: COBERTURA VACINAL REFORÇO BIVALENTE | AJ2: 2º REFORÇO BIVALENTE (2 doses) | AK2: 2º COBERTURA VACINAL REFORÇO BIVALENTE | AL2: ESTIMATIVA POPULACIONAL | AM2: REFORÇO BIVALENTE (1 dose) | AN2: COBERTURA VACINAL REFORÇO BIVALENTE | AO2: 2º REFORÇO BIVALENTE (2 doses) | AP2: 2º COBERTURA VACINAL REFORÇO BIVALENTE | AQ2: ESTIMATIVA POPULACIONAL | AR2: REFORÇO BIVALENTE (1 dose) | AS2: COBERTURA VACINAL REFORÇO BIVALENTE | AT2: 2º REFORÇO BIVALENTE (2 doses) | AU2: 2º COBERTURA VACINAL REFORÇO BIVALENTE | AV2: ESTIMATIVA POPULACIONAL | AW2: REFORÇO BIVALENTE (1 dose) | AX2: COBERTURA VACINAL REFORÇO BIVALENTE | AY2: 2º REFORÇO BIVALENTE (2 doses) | AZ2: 2º COBERTURA VACINAL REFORÇO BIVALENTE | BA2: ESTIMATIVA POPULACIONAL | BB2: REFORÇO BIVALENTE (1 dose) | BC2: COBERTURA VACINAL REFORÇO BIVALENTE | BD2: 2º REFORÇO BIVALENTE (2 doses) | BE2: 2º COBERTURA VACINAL REFORÇO BIVALENTE | BF2: ESTIMATIVA POPULACIONAL | BG2: REFORÇO BIVALENTE (1 dose) | BH2: COBERTURA VACINAL REFORÇO BIVALENTE | BI2: 2º REFORÇO BIVALENTE (2 doses) | BJ2: 2º COBERTURA VACINAL REFORÇO BIVALENTE | BK2: ESTIMATIVA POPULACIONAL | BL2: REFORÇO BIVALENTE (1 dose) | BM2: COBERTURA VACINAL REFORÇO BIVALENTE | BN2: 2º REFORÇO BIVALENTE (2 doses) | BO2: 2º COBERTURA VACINAL REFORÇO BIVALENTE | BP2: ESTIMATIVA POPULACIONAL | BQ2: REFORÇO BIVALENTE (1 dose) | BR2: COBERTURA VACINAL REFORÇO BIVALENTE | BS2: 2º REFORÇO BIVALENTE (2 doses) | BT2: 2º COBERTURA VACINAL REFORÇO BIVALENTE | BU2: ESTIMATIVA POPULACIONAL | BV2: REFORÇO BIVALENTE (1 dose) | BW2: COBERTURA VACINAL REFORÇO BIVALENTE | BX2: 2º REFORÇO BIVALENTE (2 doses) | BY2: 2º COBERTURA VACINAL REFORÇO BIVALENTE | CB2: ESTIMATIVA POPULACIONAL | CC2: REFORÇO BIVALENTE (1 dose) | CD2: COBERTURA VACINAL REFORÇO BIVALENTE | CE2: 2º REFORÇO BIVALENTE (2 doses) | CF2: 2º COBERTURA VACINAL REFORÇO BIVALENTE
A3: Regional Metropolitana | B3: Afonso Cláudio | C3: 2476 | D3: 15 | E3: 0.61% | F3: 0 | G3: 0.00% | H3: 799 | I3: 55 | J3: 6.88% | K3: 0 | L3: 0.00% | M3: 1946 | N3: 149 | O3: 7.66% | P3: 1 | Q3: 0.05% | R3: 1960 | S3: 160 | T3: 8.16% | U3: 1 | V3: 0.05% | W3: 2107 | X3: 176 | Y3: 8.35% | Z3: 3 | AA3: 0.14% | AB3: 2257 | AC3: 192 | AD3: 8.51% | AE3: 1 | AF3: 0.04% | AG3: 2550 | AH3: 266 | AI3: 10.43% | AJ3: 2 | AK3: 0.08% | AL3: 2210 | AM3: 273 | AN3: 12.35% | AO3: 0 | AP3: 0.00% | AQ3: 1972 | AR3: 278 | AS3: 14.10% | AT3: 2 | AU3: 0.10% | AV3: 1928 | AW3: 328 | AX3: 17.01% | AY3: 1 | AZ3: 0.05% | BA3: 1679 | BB3: 491 | BC3: 29.24% | BD3: 21 | BE3: 1.25% | BF3: 1450 | BG3: 534 | BH3: 36.83% | BI3: 29 | BJ3: 2.00% | BK3: 1113 | BL3: 490 | BM3: 44.03% | BN3: 17 | BO3: 1.53% | BP3: 726 | BQ3: 320 | BR3: 44.08% | BS3: 13 | BT3: 1.79% | BU3: 937 | BV3: 428 | BW3: 45.68% | BX3: 8 | BY3: 0.85% | CA3: Afonso Cláudio | CB3: =SUM(C3,H3,M3,R3,W3,AB3,AG3,AL3,AQ3,AV3,BA3,BF3,BK3,BP3,BU3) -> 26110 | CC3: =SUM(D3,I3,N3,S3,X3,AC3,AH3,AM3,AR3,AW3,BB3,BG3,BL3,BQ3,BV3) -> 4155 | CD3: =CC3/CB3 -> 0.1591344313 | CE3: =SUM(F3,K3,P3,U3,Z3,AE3,AJ3,AO3,AT3,AY3,BD3,BI3,BN3,BS3,BX3) -> 99 | CF3: =CE3/CB3 -> 0.003791650709
A4: Regional Norte | B4: Água Doce do Norte | C4: 1021 | D4: 4 | E4: 0.39% | F4: 0 | G4: 0.00% | H4: 315 | I4: 34 | J4: 10.79% | K4: 0 | L4: 0.00% | M4: 785 | N4: 88 | O4: 11.21% | P4: 0 | Q4: 0.00% | R4: 750 | S4: 99 | T4: 13.20% | U4: 1 | V4: 0.13% | W4: 713 | X4: 96 | Y4: 13.46% | Z4: 0 | AA4: 0.00% | AB4: 836 | AC4: 105 | AD4: 12.56% | AE4: 0 | AF4: 0.00% | AG4: 913 | AH4: 129 | AI4: 14.13% | AJ4: 3 | AK4: 0.33% | AL4: 883 | AM4: 148 | AN4: 16.76% | AO4: 2 | AP4: 0.23% | AQ4: 833 | AR4: 162 | AS4: 19.45% | AT4: 3 | AU4: 0.36% | AV4: 774 | AW4: 166 | AX4: 21.45% | AY4: 3 | AZ4: 0.39% | BA4: 696 | BB4: 198 | BC4: 28.45% | BD4: 10 | BE4: 1.44% | BF4: 601 | BG4: 214 | BH4: 35.61% | BI4: 15 | BJ4: 2.50% | BK4: 397 | BL4: 175 | BM4: 44.08% | BN4: 13 | BO4: 3.27% | BP4: 281 | BQ4: 111 | BR4: 39.50% | BS4: 7 | BT4: 2.49% | BU4: 382 | BV4: 173 | BW4: 45.29% | BX4: 9 | BY4: 2.36% | CA4: Água Doce do Norte | CB4: =SUM(C4,H4,M4,R4,W4,AB4,AG4,AL4,AQ4,AV4,BA4,BF4,BK4,BP4,BU4) -> 10180 | CC4: 1902 | CD4: =CC4/CB4 -> 0.1868369352 | CE4: =SUM(F4,K4,P4,U4,Z4,AE4,AJ4,AO4,AT4,AY4,BD4,BI4,BN4,BS4,BX4) -> 66 | CF4: =CE4/CB4 -> 0.006483300589
A5: Regional Central | B5: Águia Branca | C5: 787 | D5: 3 | E5: 0.38% | F5: 0 | G5: 0.00% | H5: 271 | I5: 14 | J5: 5.17% | K5: 0 | L5: 0.00% | M5: 631 | N5: 35 | O5: 5.55% | P5: 0 | Q5: 0.00% | R5: 653 | S5: 51 | T5: 7.81% | U5: 1 | V5: 0.15% | W5: 682 | X5: 50 | Y5: 7.33% | Z5: 0 | AA5: 0.00% | AB5: 702 | AC5: 77 | AD5: 10.97% | AE5: 1 | AF5: 0.14% | AG5: 713 | AH5: 80 | AI5: 11.22% | AJ5: 0 | AK5: 0.00% | AL5: 683 | AM5: 70 | AN5: 10.25% | AO5: 1 | AP5: 0.15% | AQ5: 742 | AR5: 91 | AS5: 12.26% | AT5: 3 | AU5: 0.40% | AV5: 608 | AW5: 106 | AX5: 17.43% | AY5: 0 | AZ5: 0.00% | BA5: 572 | BB5: 195 | BC5: 34.09% | BD5: 18 | BE5: 3.15% | BF5: 432 | BG5: 218 | BH5: 50.46% | BI5: 14 | BJ5: 3.24% | BK5: 331 | BL5: 161 | BM5: 48.64% | BN5: 16 | BO5: 4.83% | BP5: 206 | BQ5: 98 | BR5: 47.57% | BS5: 9 | BT5: 4.37% | BU5: 234 | BV5: 127 | BW5: 54.27% | BX5: 9 | BY5: 3.85% | CA5: Águia Branca | CB5: 8247 | CC5: 1376 | CD5: 0.166848551 | CE5: 72 | CF5: 0.008730447435
A6: Regional Sul | B6: Alegre | C6: 2030 | D6: 11 | E6: 0.54% | F6: 0 | G6: 0.00% | H6: 819 | I6: 68 | J6: 8.30% | K6: 0 | L6: 0.00% | M6: 2206 | N6: 273 | O6: 12.38% | P6: 2 | Q6: 0.09% | R6: 2017 | S6: 319 | T6: 15.82% | U6: 3 | V6: 0.15% | W6: 2063 | X6: 265 | Y6: 12.85% | Z6: 1 | AA6: 0.05% | AB6: 2096 | AC6: 289 | AD6: 13.79% | AE6: 1 | AF6: 0.05% | AG6: 2244 | AH6: 304 | AI6: 13.55% | AJ6: 1 | AK6: 0.04% | AL6: 1867 | AM6: 324 | AN6: 17.35% | AO6: 1 | AP6: 0.05% | AQ6: 1917 | AR6: 309 | AS6: 16.12% | AT6: 3 | AU6: 0.16% | AV6: 1843 | AW6: 371 | AX6: 20.13% | AY6: 1 | AZ6: 0.05% | BA6: 1719 | BB6: 662 | BC6: 38.51% | BD6: 27 | BE6: 1.57% | BF6: 1457 | BG6: 750 | BH6: 51.48% | BI6: 43 | BJ6: 2.95% | BK6: 1093 | BL6: 652 | BM6: 59.65% | BN6: 34 | BO6: 3.11% | BP6: 694 | BQ6: 456 | BR6: 65.71% | BS6: 20 | BT6: 2.88% | BU6: 986 | BV6: 668 | BW6: 67.75% | BX6: 43 | BY6: 4.36% | CA6: Alegre | CB6: 25051 | CC6: 5721 | CD6: 0.2283741168 | CE6: 180 | CF6: 0.007185341903
A7: Regional Sul | B7: Alfredo Chaves | C7: 1022 | D7: 0 | E7: 0.00% | F7: 0 | G7: 0.00% | H7: 298 | I7: 28 | J7: 9.40% | K7: 0 | L7: 0.00% | M7: 806 | N7: 78 | O7: 9.68% | P7: 1 | Q7: 0.12% | R7: 857 | S7: 73 | T7: 8.52% | U7: 2 | V7: 0.23% | W7: 898 | X7: 93 | Y7: 10.36% | Z7: 2 | AA7: 0.22% | AB7: 1058 | AC7: 97 | AD7: 9.17% | AE7: 1 | AF7: 0.09% | AG7: 1111 | AH7: 115 | AI7: 10.35% | AJ7: 1 | AK7: 0.09% | AL7: 1046 | AM7: 113 | AN7: 10.80% | AO7: 1 | AP7: 0.10% | AQ7: 945 | AR7: 117 | AS7: 12.38% | AT7: 0 | AU7: 0.00% | AV7: 963 | AW7: 132 | AX7: 13.71% | AY7: 3 | AZ7: 0.31% | BA7: 882 | BB7: 283 | BC7: 32.09% | BD7: 15 | BE7: 1.70% | BF7: 727 | BG7: 331 | BH7: 45.53% | BI7: 33 | BJ7: 4.54% | BK7: 548 | BL7: 275 | BM7: 50.18% | BN7: 34 | BO7: 6.20% | BP7: 368 | BQ7: 195 | BR7: 52.99% | BS7: 25 | BT7: 6.79% | BU7: 515 | BV7: 258 | BW7: 50.10% | BX7: 26 | BY7: 5.05% | CA7: Alfredo Chaves | CB7: 12044 | CC7: 2188 | CD7: 0.1816672202 | CE7: 144 | CF7: 0.01195616074
A8: Regional Central | B8: Alto Rio Novo | C8: 634 | D8: 0 | E8: 0.00% | F8: 0 | G8: 0.00% | H8: 204 | I8: 15 | J8: 7.35% | K8: 0 | L8: 0.00% | M8: 453 | N8: 44 | O8: 9.71% | P8: 0 | Q8: 0.00% | R8: 408 | S8: 37 | T8: 9.07% | U8: 1 | V8: 0.25% | W8: 477 | X8: 45 | Y8: 9.43% | Z8: 0 | AA8: 0.00% | AB8: 557 | AC8: 71 | AD8: 12.75% | AE8: 0 | AF8: 0.00% | AG8: 595 | AH8: 62 | AI8: 10.42% | AJ8: 1 | AK8: 0.17% | AL8: 553 | AM8: 88 | AN8: 15.91% | AO8: 3 | AP8: 0.54% | AQ8: 527 | AR8: 82 | AS8: 15.56% | AT8: 3 | AU8: 0.57% | AV8: 474 | AW8: 94 | AX8: 19.83% | AY8: 0 | AZ8: 0.00% | BA8: 435 | BB8: 143 | BC8: 32.87% | BD8: 19 | BE8: 4.37% | BF8: 366 | BG8: 145 | BH8: 39.62% | BI8: 17 | BJ8: 4.64% | BK8: 246 | BL8: 136 | BM8: 55.28% | BN8: 14 | BO8: 5.69% | BP8: 171 | BQ8: 82 | BR8: 47.95% | BS8: 5 | BT8: 2.92% | BU8: 199 | BV8: 82 | BW8: 41.21% | BX8: 9 | BY8: 4.52% | CA8: Alto Rio Novo | CB8: 6299 | CC8: 1126 | CD8: 0.1787585331 | CE8: 72 | CF8: 0.01143038578
A9: Regional Sul | B9: Anchieta | C9: 2371 | D9: 17 | E9: 0.72% | F9: 2 | G9: 0.08% | H9: 812 | I9: 109 | J9: 13.42% | K9: 0 | L9: 0.00% | M9: 1886 | N9: 330 | O9: 17.50% | P9: 1 | Q9: 0.05% | R9: 1990 | S9: 315 | T9: 15.83% | U9: 4 | V9: 0.20% | W9: 2260 | X9: 339 | Y9: 15.00% | Z9: 2 | AA9: 0.09% | AB9: 2624 | AC9: 466 | AD9: 17.76% | AE9: 6 | AF9: 0.23% | AG9: 2607 | AH9: 532 | AI9: 20.41% | AJ9: 9 | AK9: 0.35% | AL9: 2035 | AM9: 460 | AN9: 22.60% | AO9: 8 | AP9: 0.39% | AQ9: 1869 | AR9: 419 | AS9: 22.42% | AT9: 6 | AU9: 0.32% | AV9: 1719 | AW9: 409 | AX9: 23.79% | AY9: 12 | AZ9: 0.70% | BA9: 1608 | BB9: 562 | BC9: 34.95% | BD9: 42 | BE9: 2.61% | BF9: 1331 | BG9: 649 | BH9: 48.76% | BI9: 58 | BJ9: 4.36% | BK9: 874 | BL9: 501 | BM9: 57.32% | BN9: 68 | BO9: 7.78% | BP9: 569 | BQ9: 363 | BR9: 63.80% | BS9: 44 | BT9: 7.73% | BU9: 698 | BV9: 454 | BW9: 65.04% | BX9: 49 | BY9: 7.02% | CA9: Anchieta | CB9: 25253 | CC9: 5925 | CD9: 0.234625589 | CE9: 311 | CF9: 0.01231536847
A10: Regional Sul | B10: Apiacá | C10: 568 | D10: 1 | E10: 0.18% | F10: 0 | G10: 0.00% | H10: 183 | I10: 9 | J10: 4.92% | K10: 0 | L10: 0.00% | M10: 468 | N10: 31 | O10: 6.62% | P10: 1 | Q10: 0.21% | R10: 498 | S10: 36 | T10: 7.23% | U10: 1 | V10: 0.20% | W10: 467 | X10: 32 | Y10: 6.85% | Z10: 1 | AA10: 0.21% | AB10: 537 | AC10: 34 | AD10: 6.33% | AE10: 1 | AF10: 0.19% | AG10: 533 | AH10: 48 | AI10: 9.01% | AJ10: 2 | AK10: 0.38% | AL10: 471 | AM10: 67 | AN10: 14.23% | AO10: 1 | AP10: 0.21% | AQ10: 495 | AR10: 54 | AS10: 10.91% | AT10: 0 | AU10: 0.00% | AV10: 466 | AW10: 60 | AX10: 12.88% | AY10: 0 | AZ10: 0.00% | BA10: 422 | BB10: 115 | BC10: 27.25% | BD10: 1 | BE10: 0.24% | BF10: 396 | BG10: 150 | BH10: 37.88% | BI10: 2 | BJ10: 0.51% | BK10: 282 | BL10: 130 | BM10: 46.10% | BN10: 8 | BO10: 2.84% | BP10: 184 | BQ10: 94 | BR10: 51.09% | BS10: 2 | BT10: 1.09% | BU10: 252 | BV10: 119 | BW10: 47.22% | BX10: 4 | BY10: 1.59% | CA10: Apiacá | CB10: 6222 | CC10: 980 | CD10: 0.1575056252 | CE10: 24 | CF10: 0.003857280617
A11: Regional Metropolitana | B11: Aracruz | C11: 8266 | D11: 315 | E11: 3.81% | F11: 24 | G11: 0.29% | H11: 2607 | I11: 429 | J11: 16.46% | K11: 18 | L11: 0.69% | M11: 6996 | N11: 1268 | O11: 18.12% | P11: 58 | Q11: 0.83% | R11: 7010 | S11: 1329 | T11: 18.96% | U11: 50 | V11: 0.71% | W11: 7439 | X11: 1373 | Y11: 18.46% | Z11: 66 | AA11: 0.89% | AB11: 8029 | AC11: 1446 | AD11: 18.01% | AE11: 65 | AF11: 0.81% | AG11: 7786 | AH11: 1415 | AI11: 18.17% | AJ11: 59 | AK11: 0.76% | AL11: 6548 | AM11: 1403 | AN11: 21.43% | AO11: 49 | AP11: 0.75% | AQ11: 5631 | AR11: 1295 | AS11: 23.00% | AT11: 70 | AU11: 1.24% | AV11: 4949 | AW11: 1288 | AX11: 26.03% | AY11: 71 | AZ11: 1.43% | BA11: 4417 | BB11: 1621 | BC11: 36.70% | BD11: 269 | BE11: 6.09% | BF11: 3470 | BG11: 1672 | BH11: 48.18% | BI11: 359 | BJ11: 10.35% | BK11: 2261 | BL11: 1316 | BM11: 58.20% | BN11: 277 | BO11: 12.25% | BP11: 1325 | BQ11: 784 | BR11: 59.17% | BS11: 143 | BT11: 10.79% | BU11: 1574 | BV11: 1026 | BW11: 65.18% | BX11: 164 | BY11: 10.42% | CA11: Aracruz | CB11: 78308 | CC11: 17980 | CD11: 0.2296061705 | CE11: 1742 | CF11: 0.02224549216
A12: Regional Sul | B12: Atílio Vivacqua | C12: 856 | D12: 5 | E12: 0.58% | F12: 0 | G12: 0.00% | H12: 278 | I12: 30 | J12: 10.79% | K12: 0 | L12: 0.00% | M12: 688 | N12: 76 | O12: 11.05% | P12: 1 | Q12: 0.15% | R12: 696 | S12: 93 | T12: 13.36% | U12: 1 | V12: 0.14% | W12: 798 | X12: 98 | Y12: 12.28% | Z12: 0 | AA12: 0.00% | AB12: 830 | AC12: 135 | AD12: 16.27% | AE12: 0 | AF12: 0.00% | AG12: 836 | AH12: 140 | AI12: 16.75% | AJ12: 1 | AK12: 0.12% | AL12: 684 | AM12: 130 | AN12: 19.01% | AO12: 2 | AP12: 0.29% | AQ12: 684 | AR12: 135 | AS12: 19.74% | AT12: 2 | AU12: 0.29% | AV12: 627 | AW12: 166 | AX12: 26.48% | AY12: 2 | AZ12: 0.32% | BA12: 590 | BB12: 269 | BC12: 45.59% | BD12: 14 | BE12: 2.37% | BF12: 454 | BG12: 239 | BH12: 52.64% | BI12: 18 | BJ12: 3.96% | BK12: 351 | BL12: 210 | BM12: 59.83% | BN12: 22 | BO12: 6.27% | BP12: 212 | BQ12: 140 | BR12: 66.04% | BS12: 10 | BT12: 4.72% | BU12: 236 | BV12: 161 | BW12: 68.22% | BX12: 10 | BY12: 4.24% | CA12: Atílio Vivacqua | CB12: 8820 | CC12: 2027 | CD12: 0.2298185941 | CE12: 83 | CF12: 0.009410430839
A13: Regional Central | B13: Baixo Guandu | C13: 2426 | D13: 11 | E13: 0.45% | F13: 1 | G13: 0.04% | H13: 807 | I13: 45 | J13: 5.58% | K13: 0 | L13: 0.00% | M13: 2105 | N13: 139 | O13: 6.60% | P13: 2 | Q13: 0.10% | R13: 2024 | S13: 159 | T13: 7.86% | U13: 0 | V13: 0.00% | W13: 2152 | X13: 183 | Y13: 8.50% | Z13: 0 | AA13: 0.00% | AB13: 2159 | AC13: 199 | AD13: 9.22% | AE13: 2 | AF13: 0.09% | AG13: 2327 | AH13: 226 | AI13: 9.71% | AJ13: 4 | AK13: 0.17% | AL13: 2122 | AM13: 243 | AN13: 11.45% | AO13: 4 | AP13: 0.19% | AQ13: 2020 | AR13: 306 | AS13: 15.15% | AT13: 3 | AU13: 0.15% | AV13: 2007 | AW13: 321 | AX13: 15.99% | AY13: 3 | AZ13: 0.15% | BA13: 1714 | BB13: 416 | BC13: 24.27% | BD13: 30 | BE13: 1.75% | BF13: 1361 | BG13: 400 | BH13: 29.39% | BI13: 29 | BJ13: 2.13% | BK13: 967 | BL13: 376 | BM13: 38.88% | BN13: 16 | BO13: 1.65% | BP13: 697 | BQ13: 258 | BR13: 37.02% | BS13: 17 | BT13: 2.44% | BU13: 967 | BV13: 360 | BW13: 37.23% | BX13: 11 | BY13: 1.14% | CA13: Baixo Guandu | CB13: 25855 | CC13: 3642 | CD13: 0.1408625024 | CE13: 122 | CF13: 0.00471862309
A14: Regional Norte | B14: Barra de São Francisco | C14: 3499 | D14: 8 | E14: 0.23% | F14: 0 | G14: 0.00% | H14: 1126 | I14: 43 | J14: 3.82% | K14: 0 | L14: 0.00% | M14: 2926 | N14: 158 | O14: 5.40% | P14: 0 | Q14: 0.00% | R14: 2931 | S14: 215 | T14: 7.34% | U14: 3 | V14: 0.10% | W14: 2959 | X14: 159 | Y14: 5.37% | Z14: 0 | AA14: 0.00% | AB14: 3237 | AC14: 211 | AD14: 6.52% | AE14: 1 | AF14: 0.03% | AG14: 3253 | AH14: 223 | AI14: 6.86% | AJ14: 1 | AK14: 0.03% | AL14: 2908 | AM14: 248 | AN14: 8.53% | AO14: 3 | AP14: 0.10% | AQ14: 2875 | AR14: 258 | AS14: 8.97% | AT14: 3 | AU14: 0.10% | AV14: 2624 | AW14: 283 | AX14: 10.79% | AY14: 2 | AZ14: 0.08% | BA14: 2221 | BB14: 427 | BC14: 19.23% | BD14: 38 | BE14: 1.71% | BF14: 1761 | BG14: 497 | BH14: 28.22% | BI14: 56 | BJ14: 3.18% | BK14: 1284 | BL14: 427 | BM14: 33.26% | BN14: 52 | BO14: 4.05% | BP14: 878 | BQ14: 270 | BR14: 30.75% | BS14: 27 | BT14: 3.08% | BU14: 1082 | BV14: 330 | BW14: 30.50% | BX14: 22 | BY14: 2.03% | CA14: Barra de São Francisco | CB14: 35564 | CC14: 3757 | CD14: 0.1056405354 | CE14: 208 | CF14: 0.005848610955
A15: Regional Norte | B15: Boa Esperança | C15: 1154 | D15: 6 | E15: 0.52% | F15: 0 | G15: 0.00% | H15: 416 | I15: 29 | J15: 6.97% | K15: 0 | L15: 0.00% | M15: 927 | N15: 118 | O15: 12.73% | P15: 0 | Q15: 0.00% | R15: 936 | S15: 125 | T15: 13.35% | U15: 1 | V15: 0.11% | W15: 944 | X15: 133 | Y15: 14.09% | Z15: 0 | AA15: 0.00% | AB15: 1025 | AC15: 137 | AD15: 13.37% | AE15: 0 | AF15: 0.00% | AG15: 1043 | AH15: 171 | AI15: 16.40% | AJ15: 2 | AK15: 0.19% | AL15: 964 | AM15: 168 | AN15: 17.43% | AO15: 2 | AP15: 0.21% | AQ15: 878 | AR15: 164 | AS15: 18.68% | AT15: 1 | AU15: 0.11% | AV15: 832 | AW15: 199 | AX15: 23.92% | AY15: 1 | AZ15: 0.12% | BA15: 705 | BB15: 293 | BC15: 41.56% | BD15: 13 | BE15: 1.84% | BF15: 592 | BG15: 284 | BH15: 47.97% | BI15: 16 | BJ15: 2.70% | BK15: 402 | BL15: 237 | BM15: 58.96% | BN15: 27 | BO15: 6.72% | BP15: 287 | BQ15: 149 | BR15: 51.92% | BS15: 5 | BT15: 1.74% | BU15: 331 | BV15: 225 | BW15: 67.98% | BX15: 10 | BY15: 3.02% | CA15: Boa Esperança | CB15: 11436 | CC15: 2438 | CD15: 0.2131864288 | CE15: 78 | CF15: 0.006820566632
A16: Regional Sul | B16: Bom Jesus do Norte | C16: 806 | D16: 2 | E16: 0.25% | F16: 0 | G16: 0.00% | H16: 248 | I16: 15 | J16: 6.05% | K16: 0 | L16: 0.00% | M16: 745 | N16: 48 | O16: 6.44% | P16: 1 | Q16: 0.13% | R16: 686 | S16: 59 | T16: 8.60% | U16: 0 | V16: 0.00% | W16: 763 | X16: 57 | Y16: 7.47% | Z16: 0 | AA16: 0.00% | AB16: 738 | AC16: 42 | AD16: 5.69% | AE16: 1 | AF16: 0.14% | AG16: 858 | AH16: 71 | AI16: 8.28% | AJ16: 2 | AK16: 0.23% | AL16: 692 | AM16: 62 | AN16: 8.96% | AO16: 0 | AP16: 0.00% | AQ16: 668 | AR16: 68 | AS16: 10.18% | AT16: 2 | AU16: 0.30% | AV16: 599 | AW16: 95 | AX16: 15.86% | AY16: 2 | AZ16: 0.33% | BA16: 576 | BB16: 126 | BC16: 21.88% | BD16: 19 | BE16: 3.30% | BF16: 534 | BG16: 192 | BH16: 35.96% | BI16: 28 | BJ16: 5.24% | BK16: 342 | BL16: 141 | BM16: 41.23% | BN16: 18 | BO16: 5.26% | BP16: 199 | BQ16: 85 | BR16: 42.71% | BS16: 9 | BT16: 4.52% | BU16: 340 | BV16: 153 | BW16: 45.00% | BX16: 17 | BY16: 5.00% | CA16: Bom Jesus do Norte | CB16: 8794 | CC16: 1216 | CD16: 0.1382760973 | CE16: 99 | CF16: 0.01125767569
A17: Regional Metropolitana | B17: Brejetuba | C17: 1189 | D17: 0 | E17: 0.00% | F17: 0 | G17: 0.00% | H17: 405 | I17: 37 | J17: 9.14% | K17: 0 | L17: 0.00% | M17: 1043 | N17: 69 | O17: 6.62% | P17: 0 | Q17: 0.00% | R17: 928 | S17: 85 | T17: 9.16% | U17: 0 | V17: 0.00% | W17: 944 | X17: 83 | Y17: 8.79% | Z17: 1 | AA17: 0.11% | AB17: 1105 | AC17: 111 | AD17: 10.05% | AE17: 0 | AF17: 0.00% | AG17: 1109 | AH17: 122 | AI17: 11.00% | AJ17: 0 | AK17: 0.00% | AL17: 869 | AM17: 117 | AN17: 13.46% | AO17: 2 | AP17: 0.23% | AQ17: 781 | AR17: 107 | AS17: 13.70% | AT17: 1 | AU17: 0.13% | AV17: 660 | AW17: 118 | AX17: 17.88% | AY17: 0 | AZ17: 0.00% | BA17: 571 | BB17: 161 | BC17: 28.20% | BD17: 6 | BE17: 1.05% | BF17: 433 | BG17: 157 | BH17: 36.26% | BI17: 3 | BJ17: 0.69% | BK17: 279 | BL17: 133 | BM17: 47.67% | BN17: 3 | BO17: 1.08% | BP17: 165 | BQ17: 72 | BR17: 43.64% | BS17: 3 | BT17: 1.82% | BU17: 189 | BV17: 84 | BW17: 44.44% | BX17: 3 | BY17: 1.59% | CA17: Brejetuba | CB17: 10670 | CC17: 1456 | CD17: 0.1364573571 | CE17: 22 | CF17: 0.00206185567
A18: Regional Sul | B18: Cachoeiro de Itapemirim | C18: 13632 | D18: 122 | E18: 0.89% | F18: 5 | G18: 0.04% | H18: 4626 | I18: 501 | J18: 10.83% | K18: 2 | L18: 0.04% | M18: 12452 | N18: 1457 | O18: 11.70% | P18: 10 | Q18: 0.08% | R18: 13666 | S18: 1685 | T18: 12.33% | U18: 7 | V18: 0.05% | W18: 14562 | X18: 1828 | Y18: 12.55% | Z18: 13 | AA18: 0.09% | AB18: 14793 | AC18: 2073 | AD18: 14.01% | AE18: 15 | AF18: 0.10% | AG18: 15106 | AH18: 2351 | AI18: 15.56% | AJ18: 17 | AK18: 0.11% | AL18: 12366 | AM18: 2212 | AN18: 17.89% | AO18: 16 | AP18: 0.13% | AQ18: 12351 | AR18: 2196 | AS18: 17.78% | AT18: 14 | AU18: 0.11% | AV18: 11848 | AW18: 2778 | AX18: 23.45% | AY18: 28 | AZ18: 0.24% | BA18: 10478 | BB18: 3582 | BC18: 34.19% | BD18: 289 | BE18: 2.76% | BF18: 8383 | BG18: 3753 | BH18: 44.77% | BI18: 360 | BJ18: 4.29% | BK18: 5765 | BL18: 3006 | BM18: 52.14% | BN18: 309 | BO18: 5.36% | BP18: 3534 | BQ18: 1928 | BR18: 54.56% | BS18: 185 | BT18: 5.23% | BU18: 4746 | BV18: 2691 | BW18: 56.70% | BX18: 238 | BY18: 5.01% | CA18: Cachoeiro de Itapemirim | CB18: 158308 | CC18: 32163 | CD18: 0.2031672436 | CE18: 1508 | CF18: 0.009525734644
A19: Regional Metropolitana | B19: Cariacica | C19: 29716 | D19: 308 | E19: 1.04% | F19: 7 | G19: 0.02% | H19: 9902 | I19: 1335 | J19: 13.48% | K19: 6 | L19: 0.06% | M19: 26053 | N19: 4258 | O19: 16.34% | P19: 65 | Q19: 0.25% | R19: 25148 | S19: 4881 | T19: 19.41% | U19: 90 | V19: 0.36% | W19: 26548 | X19: 4851 | Y19: 18.27% | Z19: 74 | AA19: 0.28% | AB19: 28348 | AC19: 5396 | AD19: 19.03% | AE19: 97 | AF19: 0.34% | AG19: 28814 | AH19: 5658 | AI19: 19.64% | AJ19: 118 | AK19: 0.41% | AL19: 24129 | AM19: 5095 | AN19: 21.12% | AO19: 113 | AP19: 0.47% | AQ19: 22496 | AR19: 4953 | AS19: 22.02% | AT19: 102 | AU19: 0.45% | AV19: 20080 | AW19: 5221 | AX19: 26.00% | AY19: 94 | AZ19: 0.47% | BA19: 17848 | BB19: 6740 | BC19: 37.76% | BD19: 952 | BE19: 5.33% | BF19: 14188 | BG19: 7084 | BH19: 49.93% | BI19: 1192 | BJ19: 8.40% | BK19: 9488 | BL19: 5454 | BM19: 57.48% | BN19: 1002 | BO19: 10.56% | BP19: 5811 | BQ19: 3400 | BR19: 58.51% | BS19: 615 | BT19: 10.58% | BU19: 6670 | BV19: 3658 | BW19: 54.84% | BX19: 476 | BY19: 7.14% | CA19: Cariacica | CB19: 295239 | CC19: 68292 | CD19: 0.231310904 | CE19: 5003 | CF19: 0.01694559323
A20: Regional Sul | B20: Castelo | C20: 2533 | D20: 8 | E20: 0.32% | F20: 0 | G20: 0.00% | H20: 907 | I20: 70 | J20: 7.72% | K20: 0 | L20: 0.00% | M20: 2489 | N20: 247 | O20: 9.92% | P20: 2 | Q20: 0.08% | R20: 2494 | S20: 268 | T20: 10.75% | U20: 1 | V20: 0.04% | W20: 2747 | X20: 269 | Y20: 9.79% | Z20: 1 | AA20: 0.04% | AB20: 2993 | AC20: 340 | AD20: 11.36% | AE20: 2 | AF20: 0.07% | AG20: 3061 | AH20: 400 | AI20: 13.07% | AJ20: 2 | AK20: 0.07% | AL20: 2517 | AM20: 350 | AN20: 13.91% | AO20: 1 | AP20: 0.04% | AQ20: 2497 | AR20: 387 | AS20: 15.50% | AT20: 5 | AU20: 0.20% | AV20: 2463 | AW20: 484 | AX20: 19.65% | AY20: 1 | AZ20: 0.04% | BA20: 2183 | BB20: 714 | BC20: 32.71% | BD20: 36 | BE20: 1.65% | BF20: 1707 | BG20: 765 | BH20: 44.82% | BI20: 53 | BJ20: 3.10% | BK20: 1240 | BL20: 641 | BM20: 51.69% | BN20: 37 | BO20: 2.98% | BP20: 864 | BQ20: 488 | BR20: 56.48% | BS20: 37 | BT20: 4.28% | BU20: 1177 | BV20: 662 | BW20: 56.24% | BX20: 34 | BY20: 2.89% | CA20: Castelo | CB20: 31872 | CC20: 6093 | CD20: 0.1911709337 | CE20: 212 | CF20: 0.006651606426
A21: Regional Central | B21: Colatina | C21: 8293 | D21: 33 | E21: 0.40% | F21: 0 | G21: 0.00% | H21: 3034 | I21: 200 | J21: 6.59% | K21: 1 | L21: 0.03% | M21: 8455 | N21: 734 | O21: 8.68% | P21: 5 | Q21: 0.06% | R21: 8813 | S21: 906 | T21: 10.28% | U21: 8 | V21: 0.09% | W21: 9183 | X21: 930 | Y21: 10.13% | Z21: 8 | AA21: 0.09% | AB21: 9662 | AC21: 1108 | AD21: 11.47% | AE21: 6 | AF21: 0.06% | AG21: 9799 | AH21: 1186 | AI21: 12.10% | AJ21: 9 | AK21: 0.09% | AL21: 8251 | AM21: 1088 | AN21: 13.19% | AO21: 8 | AP21: 0.10% | AQ21: 8261 | AR21: 1224 | AS21: 14.82% | AT21: 5 | AU21: 0.06% | AV21: 7584 | AW21: 1465 | AX21: 19.32% | AY21: 11 | AZ21: 0.15% | BA21: 6687 | BB21: 2010 | BC21: 30.06% | BD21: 87 | BE21: 1.30% | BF21: 5306 | BG21: 2265 | BH21: 42.69% | BI21: 99 | BJ21: 1.87% | BK21: 3744 | BL21: 1846 | BM21: 49.31% | BN21: 76 | BO21: 2.03% | BP21: 2455 | BQ21: 1255 | BR21: 51.12% | BS21: 71 | BT21: 2.89% | BU21: 3299 | BV21: 1567 | BW21: 47.50% | BX21: 71 | BY21: 2.15% | CA21: Colatina | CB21: 102826 | CC21: 17817 | CD21: 0.1732732966 | CE21: 465 | CF21: 0.004522202556
A22: Regional Norte | B22: Conceição da Barra | C22: 2506 | D22: 68 | E22: 2.71% | F22: 0 | G22: 0.00% | H22: 832 | I22: 52 | J22: 6.25% | K22: 0 | L22: 0.00% | M22: 1816 | N22: 222 | O22: 12.22% | P22: 2 | Q22: 0.11% | R22: 1859 | S22: 282 | T22: 15.17% | U22: 2 | V22: 0.11% | W22: 1794 | X22: 229 | Y22: 12.76% | Z22: 4 | AA22: 0.22% | AB22: 2107 | AC22: 269 | AD22: 12.77% | AE22: 1 | AF22: 0.05% | AG22: 2191 | AH22: 321 | AI22: 14.65% | AJ22: 3 | AK22: 0.14% | AL22: 1817 | AM22: 267 | AN22: 14.69% | AO22: 2 | AP22: 0.11% | AQ22: 1721 | AR22: 280 | AS22: 16.27% | AT22: 4 | AU22: 0.23% | AV22: 1585 | AW22: 318 | AX22: 20.06% | AY22: 11 | AZ22: 0.69% | BA22: 1458 | BB22: 445 | BC22: 30.52% | BD22: 51 | BE22: 3.50% | BF22: 1137 | BG22: 417 | BH22: 36.68% | BI22: 46 | BJ22: 4.05% | BK22: 801 | BL22: 328 | BM22: 40.95% | BN22: 46 | BO22: 5.74% | BP22: 495 | BQ22: 259 | BR22: 52.32% | BS22: 32 | BT22: 6.46% | BU22: 577 | BV22: 295 | BW22: 51.13% | BX22: 21 | BY22: 3.64% | CA22: Conceição da Barra | CB22: 22696 | CC22: 4052 | CD22: 0.1785336623 | CE22: 225 | CF22: 0.00991364117
A23: Regional Metropolitana | B23: Conceição do Castelo | C23: 956 | D23: 2 | E23: 0.21% | F23: 0 | G23: 0.00% | H23: 335 | I23: 18 | J23: 5.37% | K23: 0 | L23: 0.00% | M23: 812 | N23: 40 | O23: 4.93% | P23: 0 | Q23: 0.00% | R23: 801 | S23: 37 | T23: 4.62% | U23: 1 | V23: 0.12% | W23: 883 | X23: 33 | Y23: 3.74% | Z23: 0 | AA23: 0.00% | AB23: 965 | AC23: 66 | AD23: 6.84% | AE23: 0 | AF23: 0.00% | AG23: 979 | AH23: 79 | AI23: 8.07% | AJ23: 0 | AK23: 0.00% | AL23: 818 | AM23: 67 | AN23: 8.19% | AO23: 1 | AP23: 0.12% | AQ23: 731 | AR23: 69 | AS23: 9.44% | AT23: 0 | AU23: 0.00% | AV23: 659 | AW23: 83 | AX23: 12.59% | AY23: 0 | AZ23: 0.00% | BA23: 663 | BB23: 162 | BC23: 24.43% | BD23: 8 | BE23: 1.21% | BF23: 527 | BG23: 181 | BH23: 34.35% | BI23: 14 | BJ23: 2.66% | BK23: 400 | BL23: 143 | BM23: 35.75% | BN23: 13 | BO23: 3.25% | BP23: 248 | BQ23: 106 | BR23: 42.74% | BS23: 9 | BT23: 3.63% | BU23: 338 | BV23: 130 | BW23: 38.46% | BX23: 7 | BY23: 2.07% | CA23: Conceição do Castelo | CB23: 10115 | CC23: 1216 | CD23: 0.1202174988 | CE23: 53 | CF23: 0.005239742956
A24: Regional Sul | B24: Divino de São Lourenço | C24: 417 | D24: 2 | E24: 0.48% | F24: 0 | G24: 0.00% | H24: 153 | I24: 17 | J24: 11.11% | K24: 0 | L24: 0.00% | M24: 368 | N24: 42 | O24: 11.41% | P24: 0 | Q24: 0.00% | R24: 359 | S24: 47 | T24: 13.09% | U24: 0 | V24: 0.00% | W24: 384 | X24: 64 | Y24: 16.67% | Z24: 0 | AA24: 0.00% | AB24: 429 | AC24: 81 | AD24: 18.88% | AE24: 0 | AF24: 0.00% | AG24: 346 | AH24: 80 | AI24: 23.12% | AJ24: 0 | AK24: 0.00% | AL24: 338 | AM24: 58 | AN24: 17.16% | AO24: 0 | AP24: 0.00% | AQ24: 327 | AR24: 67 | AS24: 20.49% | AT24: 0 | AU24: 0.00% | AV24: 327 | AW24: 77 | AX24: 23.55% | AY24: 2 | AZ24: 0.61% | BA24: 280 | BB24: 126 | BC24: 45.00% | BD24: 23 | BE24: 8.21% | BF24: 227 | BG24: 99 | BH24: 43.61% | BI24: 19 | BJ24: 8.37% | BK24: 150 | BL24: 94 | BM24: 62.67% | BN24: 20 | BO24: 13.33% | BP24: 90 | BQ24: 58 | BR24: 64.44% | BS24: 19 | BT24: 21.11% | BU24: 100 | BV24: 61 | BW24: 61.00% | BX24: 19 | BY24: 19.00% | CA24: Divino de São Lourenço | CB24: 4295 | CC24: 973 | CD24: 0.2265424913 | CE24: 102 | CF24: 0.02374854482
A25: Regional Metropolitana | B25: Domingos Martins | C25: 2643 | D25: 19 | E25: 0.72% | F25: 2 | G25: 0.08% | H25: 903 | I25: 98 | J25: 10.85% | K25: 1 | L25: 0.11% | M25: 2261 | N25: 276 | O25: 12.21% | P25: 0 | Q25: 0.00% | R25: 2426 | S25: 335 | T25: 13.81% | U25: 5 | V25: 0.21% | W25: 2544 | X25: 346 | Y25: 13.60% | Z25: 3 | AA25: 0.12% | AB25: 2821 | AC25: 444 | AD25: 15.74% | AE25: 3 | AF25: 0.11% | AG25: 3050 | AH25: 495 | AI25: 16.23% | AJ25: 8 | AK25: 0.26% | AL25: 2600 | AM25: 497 | AN25: 19.12% | AO25: 6 | AP25: 0.23% | AQ25: 2446 | AR25: 496 | AS25: 20.28% | AT25: 5 | AU25: 0.20% | AV25: 2318 | AW25: 548 | AX25: 23.64% | AY25: 5 | AZ25: 0.22% | BA25: 2066 | BB25: 848 | BC25: 41.05% | BD25: 113 | BE25: 5.47% | BF25: 1522 | BG25: 816 | BH25: 53.61% | BI25: 132 | BJ25: 8.67% | BK25: 1143 | BL25: 665 | BM25: 58.18% | BN25: 101 | BO25: 8.84% | BP25: 711 | BQ25: 478 | BR25: 67.23% | BS25: 79 | BT25: 11.11% | BU25: 916 | BV25: 602 | BW25: 65.72% | BX25: 78 | BY25: 8.52% | CA25: Domingos Martins | CB25: 30370 | CC25: 6963 | CD25: 0.2292723082 | CE25: 541 | CF25: 0.01781363187
A26: Regional Sul | B26: Dores do Rio Preto | C26: 545 | D26: 2 | E26: 0.37% | F26: 0 | G26: 0.00% | H26: 206 | I26: 17 | J26: 8.25% | K26: 0 | L26: 0.00% | M26: 489 | N26: 50 | O26: 10.22% | P26: 1 | Q26: 0.20% | R26: 432 | S26: 44 | T26: 10.19% | U26: 0 | V26: 0.00% | W26: 479 | X26: 66 | Y26: 13.78% | Z26: 0 | AA26: 0.00% | AB26: 512 | AC26: 55 | AD26: 10.74% | AE26: 1 | AF26: 0.20% | AG26: 492 | AH26: 82 | AI26: 16.67% | AJ26: 0 | AK26: 0.00% | AL26: 482 | AM26: 82 | AN26: 17.01% | AO26: 3 | AP26: 0.62% | AQ26: 425 | AR26: 55 | AS26: 12.94% | AT26: 2 | AU26: 0.47% | AV26: 405 | AW26: 85 | AX26: 20.99% | AY26: 6 | AZ26: 1.48% | BA26: 367 | BB26: 115 | BC26: 31.34% | BD26: 19 | BE26: 5.18% | BF26: 278 | BG26: 117 | BH26: 42.09% | BI26: 20 | BJ26: 7.19% | BK26: 214 | BL26: 105 | BM26: 49.07% | BN26: 18 | BO26: 8.41% | BP26: 116 | BQ26: 68 | BR26: 58.62% | BS26: 14 | BT26: 12.07% | BU26: 170 | BV26: 82 | BW26: 48.24% | BX26: 14 | BY26: 8.24% | CA26: Dores do Rio Preto | CB26: 5612 | CC26: 1025 | CD26: 0.1826443336 | CE26: 98 | CF26: 0.01746258019
A27: Regional Norte | B27: Ecoporanga | C27: 1788 | D27: 12 | E27: 0.67% | F27: 0 | G27: 0.00% | H27: 575 | I27: 76 | J27: 13.22% | K27: 0 | L27: 0.00% | M27: 1434 | N27: 191 | O27: 13.32% | P27: 7 | Q27: 0.49% | R27: 1306 | S27: 176 | T27: 13.48% | U27: 1 | V27: 0.08% | W27: 1379 | X27: 213 | Y27: 15.45% | Z27: 2 | AA27: 0.15% | AB27: 1646 | AC27: 237 | AD27: 14.40% | AE27: 6 | AF27: 0.36% | AG27: 1773 | AH27: 288 | AI27: 16.24% | AJ27: 7 | AK27: 0.39% | AL27: 1586 | AM27: 329 | AN27: 20.74% | AO27: 8 | AP27: 0.50% | AQ27: 1536 | AR27: 304 | AS27: 19.79% | AT27: 11 | AU27: 0.72% | AV27: 1426 | AW27: 337 | AX27: 23.63% | AY27: 9 | AZ27: 0.63% | BA27: 1291 | BB27: 434 | BC27: 33.62% | BD27: 37 | BE27: 2.87% | BF27: 1094 | BG27: 401 | BH27: 36.65% | BI27: 31 | BJ27: 2.83% | BK27: 770 | BL27: 329 | BM27: 42.73% | BN27: 32 | BO27: 4.16% | BP27: 490 | BQ27: 229 | BR27: 46.73% | BS27: 18 | BT27: 3.67% | BU27: 629 | BV27: 307 | BW27: 48.81% | BX27: 17 | BY27: 2.70% | CA27: Ecoporanga | CB27: 18723 | CC27: 3863 | CD27: 0.2063237729 | CE27: 186 | CF27: 0.0099343054
A28: Regional Metropolitana | B28: Fundão | C28: 1417 | D28: 7 | E28: 0.49% | F28: 0 | G28: 0.00% | H28: 450 | I28: 66 | J28: 14.67% | K28: 0 | L28: 0.00% | M28: 1205 | N28: 209 | O28: 17.34% | P28: 1 | Q28: 0.08% | R28: 1151 | S28: 198 | T28: 17.20% | U28: 3 | V28: 0.26% | W28: 1307 | X28: 199 | Y28: 15.23% | Z28: 0 | AA28: 0.00% | AB28: 1278 | AC28: 226 | AD28: 17.68% | AE28: 0 | AF28: 0.00% | AG28: 1387 | AH28: 237 | AI28: 17.09% | AJ28: 1 | AK28: 0.07% | AL28: 1238 | AM28: 227 | AN28: 18.34% | AO28: 1 | AP28: 0.08% | AQ28: 1237 | AR28: 222 | AS28: 17.95% | AT28: 2 | AU28: 0.16% | AV28: 1187 | AW28: 231 | AX28: 19.46% | AY28: 8 | AZ28: 0.67% | BA28: 1103 | BB28: 329 | BC28: 29.83% | BD28: 23 | BE28: 2.09% | BF28: 865 | BG28: 352 | BH28: 40.69% | BI28: 43 | BJ28: 4.97% | BK28: 594 | BL28: 265 | BM28: 44.61% | BN28: 26 | BO28: 4.38% | BP28: 333 | BQ28: 173 | BR28: 51.95% | BS28: 14 | BT28: 4.20% | BU28: 537 | BV28: 278 | BW28: 51.77% | BX28: 25 | BY28: 4.66% | CA28: Fundão | CB28: 15289 | CC28: 3219 | CD28: 0.210543528 | CE28: 147 | CF28: 0.009614755707
A29: Regional Central | B29: Governador Lindenberg | C29: 875 | D29: 1 | E29: 0.11% | F29: 0 | G29: 0.00% | H29: 292 | I29: 23 | J29: 7.88% | K29: 0 | L29: 0.00% | M29: 755 | N29: 74 | O29: 9.80% | P29: 0 | Q29: 0.00% | R29: 740 | S29: 88 | T29: 11.89% | U29: 1 | V29: 0.14% | W29: 787 | X29: 105 | Y29: 13.34% | Z29: 0 | AA29: 0.00% | AB29: 871 | AC29: 84 | AD29: 9.64% | AE29: 1 | AF29: 0.11% | AG29: 862 | AH29: 133 | AI29: 15.43% | AJ29: 2 | AK29: 0.23% | AL29: 727 | AM29: 121 | AN29: 16.64% | AO29: 1 | AP29: 0.14% | AQ29: 771 | AR29: 114 | AS29: 14.79% | AT29: 1 | AU29: 0.13% | AV29: 717 | AW29: 155 | AX29: 21.62% | AY29: 1 | AZ29: 0.14% | BA29: 650 | BB29: 248 | BC29: 38.15% | BD29: 8 | BE29: 1.23% | BF29: 476 | BG29: 255 | BH29: 53.57% | BI29: 9 | BJ29: 1.89% | BK29: 319 | BL29: 239 | BM29: 74.92% | BN29: 12 | BO29: 3.76% | BP29: 238 | BQ29: 165 | BR29: 69.33% | BS29: 10 | BT29: 4.20% | BU29: 304 | BV29: 215 | BW29: 70.72% | BX29: 6 | BY29: 1.97% | CA29: Governador Lindenberg | CB29: 9384 | CC29: 2020 | CD29: 0.2152600171 | CE29: 52 | CF29: 0.005541346974
A30: Regional Sul | B30: Guaçuí | C30: 2243 | D30: 16 | E30: 0.71% | F30: 0 | G30: 0.00% | H30: 820 | I30: 65 | J30: 7.93% | K30: 0 | L30: 0.00% | M30: 2146 | N30: 186 | O30: 8.67% | P30: 0 | Q30: 0.00% | R30: 2100 | S30: 172 | T30: 8.19% | U30: 0 | V30: 0.00% | W30: 2097 | X30: 190 | Y30: 9.06% | Z30: 0 | AA30: 0.00% | AB30: 2164 | AC30: 214 | AD30: 9.89% | AE30: 0 | AF30: 0.00% | AG30: 2126 | AH30: 240 | AI30: 11.29% | AJ30: 2 | AK30: 0.09% | AL30: 1896 | AM30: 266 | AN30: 14.03% | AO30: 2 | AP30: 0.11% | AQ30: 1744 | AR30: 290 | AS30: 16.63% | AT30: 2 | AU30: 0.11% | AV30: 1748 | AW30: 305 | AX30: 17.45% | AY30: 3 | AZ30: 0.17% | BA30: 1571 | BB30: 484 | BC30: 30.81% | BD30: 29 | BE30: 1.85% | BF30: 1438 | BG30: 508 | BH30: 35.33% | BI30: 36 | BJ30: 2.50% | BK30: 1029 | BL30: 491 | BM30: 47.72% | BN30: 43 | BO30: 4.18% | BP30: 600 | BQ30: 310 | BR30: 51.67% | BS30: 19 | BT30: 3.17% | BU30: 866 | BV30: 440 | BW30: 50.81% | BX30: 25 | BY30: 2.89% | CA30: Guaçuí | CB30: 24588 | CC30: 4177 | CD30: 0.1698796161 | CE30: 161 | CF30: 0.006547909549
A31: Regional Metropolitana | B31: Guarapari | C31: 9825 | D31: 29 | E31: 0.30% | F31: 0 | G31: 0.00% | H31: 3349 | I31: 161 | J31: 4.81% | K31: 0 | L31: 0.00% | M31: 8558 | N31: 667 | O31: 7.79% | P31: 3 | Q31: 0.04% | R31: 8664 | S31: 787 | T31: 9.08% | U31: 12 | V31: 0.14% | W31: 8786 | X31: 738 | Y31: 8.40% | Z31: 13 | AA31: 0.15% | AB31: 9693 | AC31: 816 | AD31: 8.42% | AE31: 7 | AF31: 0.07% | AG31: 10536 | AH31: 957 | AI31: 9.08% | AJ31: 9 | AK31: 0.09% | AL31: 8546 | AM31: 810 | AN31: 9.48% | AO31: 13 | AP31: 0.15% | AQ31: 8314 | AR31: 954 | AS31: 11.47% | AT31: 3 | AU31: 0.04% | AV31: 7624 | AW31: 1073 | AX31: 14.07% | AY31: 20 | AZ31: 0.26% | BA31: 7167 | BB31: 1526 | BC31: 21.29% | BD31: 114 | BE31: 1.59% | BF31: 5657 | BG31: 1584 | BH31: 28.00% | BI31: 142 | BJ31: 2.51% | BK31: 3910 | BL31: 1440 | BM31: 36.83% | BN31: 152 | BO31: 3.89% | BP31: 2336 | BQ31: 930 | BR31: 39.81% | BS31: 69 | BT31: 2.95% | BU31: 2685 | BV31: 1043 | BW31: 38.85% | BX31: 83 | BY31: 3.09% | CA31: Guarapari | CB31: 105650 | CC31: 13515 | CD31: 0.1279223852 | CE31: 640 | CF31: 0.006057737814
A32: Regional Metropolitana | B32: Ibatiba | C32: 2143 | D32: 6 | E32: 0.28% | F32: 0 | G32: 0.00% | H32: 765 | I32: 58 | J32: 7.58% | K32: 0 | L32: 0.00% | M32: 1971 | N32: 177 | O32: 8.98% | P32: 1 | Q32: 0.05% | R32: 1898 | S32: 222 | T32: 11.70% | U32: 1 | V32: 0.05% | W32: 1912 | X32: 186 | Y32: 9.73% | Z32: 0 | AA32: 0.00% | AB32: 1953 | AC32: 255 | AD32: 13.06% | AE32: 1 | AF32: 0.05% | AG32: 2106 | AH32: 282 | AI32: 13.39% | AJ32: 1 | AK32: 0.05% | AL32: 1732 | AM32: 260 | AN32: 15.01% | AO32: 1 | AP32: 0.06% | AQ32: 1562 | AR32: 250 | AS32: 16.01% | AT32: 3 | AU32: 0.19% | AV32: 1288 | AW32: 262 | AX32: 20.34% | AY32: 1 | AZ32: 0.08% | BA32: 1140 | BB32: 384 | BC32: 33.68% | BD32: 5 | BE32: 0.44% | BF32: 981 | BG32: 413 | BH32: 42.10% | BI32: 15 | BJ32: 1.53% | BK32: 724 | BL32: 341 | BM32: 47.10% | BN32: 7 | BO32: 0.97% | BP32: 444 | BQ32: 231 | BR32: 52.03% | BS32: 11 | BT32: 2.48% | BU32: 563 | BV32: 345 | BW32: 61.28% | BX32: 7 | BY32: 1.24% | CA32: Ibatiba | CB32: 21182 | CC32: 3672 | CD32: 0.1733547352 | CE32: 54 | CF32: 0.00254933434
A33: Regional Metropolitana | B33: Ibiraçu | C33: 835 | D33: 45 | E33: 5.39% | F33: 0 | G33: 0.00% | H33: 312 | I33: 75 | J33: 24.04% | K33: 0 | L33: 0.00% | M33: 794 | N33: 183 | O33: 23.05% | P33: 1 | Q33: 0.13% | R33: 803 | S33: 173 | T33: 21.54% | U33: 1 | V33: 0.12% | W33: 893 | X33: 223 | Y33: 24.97% | Z33: 3 | AA33: 0.34% | AB33: 905 | AC33: 233 | AD33: 25.75% | AE33: 2 | AF33: 0.22% | AG33: 952 | AH33: 240 | AI33: 25.21% | AJ33: 7 | AK33: 0.74% | AL33: 763 | AM33: 239 | AN33: 31.32% | AO33: 2 | AP33: 0.26% | AQ33: 771 | AR33: 225 | AS33: 29.18% | AT33: 3 | AU33: 0.39% | AV33: 734 | AW33: 219 | AX33: 29.84% | AY33: 2 | AZ33: 0.27% | BA33: 637 | BB33: 265 | BC33: 41.60% | BD33: 11 | BE33: 1.73% | BF33: 549 | BG33: 297 | BH33: 54.10% | BI33: 6 | BJ33: 1.09% | BK33: 375 | BL33: 217 | BM33: 57.87% | BN33: 10 | BO33: 2.67% | BP33: 229 | BQ33: 194 | BR33: 84.72% | BS33: 6 | BT33: 2.62% | BU33: 331 | BV33: 243 | BW33: 73.41% | BX33: 5 | BY33: 1.51% | CA33: Ibiraçu | CB33: 9883 | CC33: 3071 | CD33: 0.3107356066 | CE33: 59 | CF33: 0.005969847212
A34: Regional Sul | B34: Ibitirama | C34: 848 | D34: 3 | E34: 0.35% | F34: 0 | G34: 0.00% | H34: 310 | I34: 15 | J34: 4.84% | K34: 0 | L34: 0.00% | M34: 747 | N34: 49 | O34: 6.56% | P34: 0 | Q34: 0.00% | R34: 641 | S34: 44 | T34: 6.86% | U34: 0 | V34: 0.00% | W34: 694 | X34: 55 | Y34: 7.93% | Z34: 1 | AA34: 0.14% | AB34: 728 | AC34: 66 | AD34: 9.07% | AE34: 1 | AF34: 0.14% | AG34: 736 | AH34: 67 | AI34: 9.10% | AJ34: 1 | AK34: 0.14% | AL34: 598 | AM34: 50 | AN34: 8.36% | AO34: 1 | AP34: 0.17% | AQ34: 540 | AR34: 56 | AS34: 10.37% | AT34: 0 | AU34: 0.00% | AV34: 555 | AW34: 55 | AX34: 9.91% | AY34: 1 | AZ34: 0.18% | BA34: 471 | BB34: 98 | BC34: 20.81% | BD34: 4 | BE34: 0.85% | BF34: 372 | BG34: 137 | BH34: 36.83% | BI34: 9 | BJ34: 2.42% | BK34: 222 | BL34: 85 | BM34: 38.29% | BN34: 1 | BO34: 0.45% | BP34: 156 | BQ34: 45 | BR34: 28.85% | BS34: 0 | BT34: 0.00% | BU34: 179 | BV34: 55 | BW34: 30.73% | BX34: 0 | BY34: 0.00% | CA34: Ibitirama | CB34: 7797 | CC34: 880 | CD34: 0.112863922 | CE34: 19 | CF34: 0.00243683468
A35: Regional Sul | B35: Iconha | C35: 802 | D35: 7 | E35: 0.87% | F35: 0 | G35: 0.00% | H35: 271 | I35: 45 | J35: 16.61% | K35: 0 | L35: 0.00% | M35: 752 | N35: 162 | O35: 21.54% | P35: 0 | Q35: 0.00% | R35: 804 | S35: 134 | T35: 16.67% | U35: 1 | V35: 0.12% | W35: 865 | X35: 171 | Y35: 19.77% | Z35: 4 | AA35: 0.46% | AB35: 1061 | AC35: 241 | AD35: 22.71% | AE35: 1 | AF35: 0.09% | AG35: 1046 | AH35: 257 | AI35: 24.57% | AJ35: 2 | AK35: 0.19% | AL35: 860 | AM35: 234 | AN35: 27.21% | AO35: 2 | AP35: 0.23% | AQ35: 856 | AR35: 200 | AS35: 23.36% | AT35: 1 | AU35: 0.12% | AV35: 886 | AW35: 249 | AX35: 28.10% | AY35: 3 | AZ35: 0.34% | BA35: 791 | BB35: 338 | BC35: 42.73% | BD35: 43 | BE35: 5.44% | BF35: 673 | BG35: 368 | BH35: 54.68% | BI35: 50 | BJ35: 7.43% | BK35: 413 | BL35: 294 | BM35: 71.19% | BN35: 42 | BO35: 10.17% | BP35: 267 | BQ35: 196 | BR35: 73.41% | BS35: 19 | BT35: 7.12% | BU35: 416 | BV35: 322 | BW35: 77.40% | BX35: 29 | BY35: 6.97% | CA35: Iconha | CB35: 10763 | CC35: 3218 | CD35: 0.2989872712 | CE35: 197 | CF35: 0.01830344699
A36: Regional Sul | B36: Irupi | C36: 1198 | D36: 43 | E36: 3.59% | F36: 0 | G36: 0.00% | H36: 441 | I36: 60 | J36: 13.61% | K36: 2 | L36: 0.45% | M36: 1044 | N36: 136 | O36: 13.03% | P36: 2 | Q36: 0.19% | R36: 952 | S36: 133 | T36: 13.97% | U36: 3 | V36: 0.32% | W36: 990 | X36: 123 | Y36: 12.42% | Z36: 1 | AA36: 0.10% | AB36: 1143 | AC36: 158 | AD36: 13.82% | AE36: 1 | AF36: 0.09% | AG36: 1115 | AH36: 153 | AI36: 13.72% | AJ36: 8 | AK36: 0.72% | AL36: 940 | AM36: 147 | AN36: 15.64% | AO36: 6 | AP36: 0.64% | AQ36: 846 | AR36: 155 | AS36: 18.32% | AT36: 3 | AU36: 0.35% | AV36: 731 | AW36: 155 | AX36: 21.20% | AY36: 6 | AZ36: 0.82% | BA36: 595 | BB36: 211 | BC36: 35.46% | BD36: 21 | BE36: 3.53% | BF36: 495 | BG36: 193 | BH36: 38.99% | BI36: 24 | BJ36: 4.85% | BK36: 382 | BL36: 159 | BM36: 41.62% | BN36: 16 | BO36: 4.19% | BP36: 250 | BQ36: 102 | BR36: 40.80% | BS36: 8 | BT36: 3.20% | BU36: 284 | BV36: 139 | BW36: 48.94% | BX36: 11 | BY36: 3.87% | CA36: Irupi | CB36: 11406 | CC36: 2067 | CD36: 0.1812204103 | CE36: 112 | CF36: 0.009819393302
A37: Regional Metropolitana | B37: Itaguaçu | C37: 913 | D37: 5 | E37: 0.55% | F37: 0 | G37: 0.00% | H37: 352 | I37: 39 | J37: 11.08% | K37: 0 | L37: 0.00% | M37: 836 | N37: 101 | O37: 12.08% | P37: 1 | Q37: 0.12% | R37: 735 | S37: 130 | T37: 17.69% | U37: 0 | V37: 0.00% | W37: 887 | X37: 123 | Y37: 13.87% | Z37: 2 | AA37: 0.23% | AB37: 990 | AC37: 157 | AD37: 15.86% | AE37: 3 | AF37: 0.30% | AG37: 1036 | AH37: 183 | AI37: 17.66% | AJ37: 2 | AK37: 0.19% | AL37: 959 | AM37: 177 | AN37: 18.46% | AO37: 1 | AP37: 0.10% | AQ37: 979 | AR37: 183 | AS37: 18.69% | AT37: 5 | AU37: 0.51% | AV37: 945 | AW37: 241 | AX37: 25.50% | AY37: 3 | AZ37: 0.32% | BA37: 907 | BB37: 376 | BC37: 41.46% | BD37: 30 | BE37: 3.31% | BF37: 787 | BG37: 450 | BH37: 57.18% | BI37: 46 | BJ37: 5.84% | BK37: 558 | BL37: 398 | BM37: 71.33% | BN37: 36 | BO37: 6.45% | BP37: 376 | BQ37: 242 | BR37: 64.36% | BS37: 25 | BT37: 6.65% | BU37: 586 | BV37: 410 | BW37: 69.97% | BX37: 35 | BY37: 5.97% | CA37: Itaguaçu | CB37: 11846 | CC37: 3215 | CD37: 0.2713996286 | CE37: 189 | CF37: 0.01595475266
A38: Regional Sul | B38: Itapemirim | C38: 3500 | D38: 32 | E38: 0.91% | F38: 1 | G38: 0.03% | H38: 1159 | I38: 53 | J38: 4.57% | K38: 0 | L38: 0.00% | M38: 2820 | N38: 173 | O38: 6.13% | P38: 2 | Q38: 0.07% | R38: 2672 | S38: 224 | T38: 8.38% | U38: 3 | V38: 0.11% | W38: 2808 | X38: 198 | Y38: 7.05% | Z38: 3 | AA38: 0.11% | AB38: 3046 | AC38: 235 | AD38: 7.72% | AE38: 4 | AF38: 0.13% | AG38: 3139 | AH38: 260 | AI38: 8.28% | AJ38: 3 | AK38: 0.10% | AL38: 2668 | AM38: 247 | AN38: 9.26% | AO38: 4 | AP38: 0.15% | AQ38: 2404 | AR38: 226 | AS38: 9.40% | AT38: 5 | AU38: 0.21% | AV38: 2353 | AW38: 276 | AX38: 11.73% | AY38: 4 | AZ38: 0.17% | BA38: 2101 | BB38: 410 | BC38: 19.51% | BD38: 17 | BE38: 0.81% | BF38: 1709 | BG38: 474 | BH38: 27.74% | BI38: 40 | BJ38: 2.34% | BK38: 1215 | BL38: 330 | BM38: 27.16% | BN38: 26 | BO38: 2.14% | BP38: 702 | BQ38: 264 | BR38: 37.61% | BS38: 18 | BT38: 2.56% | BU38: 822 | BV38: 277 | BW38: 33.70% | BX38: 21 | BY38: 2.55% | CA38: Itapemirim | CB38: 33118 | CC38: 3679 | CD38: 0.1110876261 | CE38: 151 | CF38: 0.004559454073
A39: Regional Metropolitana | B39: Itarana | C39: 658 | D39: 5 | E39: 0.76% | F39: 0 | G39: 0.00% | H39: 261 | I39: 15 | J39: 5.75% | K39: 0 | L39: 0.00% | M39: 722 | N39: 63 | O39: 8.73% | P39: 2 | Q39: 0.28% | R39: 686 | S39: 81 | T39: 11.81% | U39: 2 | V39: 0.29% | W39: 685 | X39: 62 | Y39: 9.05% | Z39: 0 | AA39: 0.00% | AB39: 794 | AC39: 79 | AD39: 9.95% | AE39: 0 | AF39: 0.00% | AG39: 849 | AH39: 99 | AI39: 11.66% | AJ39: 2 | AK39: 0.24% | AL39: 730 | AM39: 98 | AN39: 13.42% | AO39: 1 | AP39: 0.14% | AQ39: 752 | AR39: 134 | AS39: 17.82% | AT39: 0 | AU39: 0.00% | AV39: 724 | AW39: 143 | AX39: 19.75% | AY39: 0 | AZ39: 0.00% | BA39: 640 | BB39: 225 | BC39: 35.16% | BD39: 56 | BE39: 8.75% | BF39: 580 | BG39: 267 | BH39: 46.03% | BI39: 66 | BJ39: 11.38% | BK39: 434 | BL39: 251 | BM39: 57.83% | BN39: 91 | BO39: 20.97% | BP39: 306 | BQ39: 178 | BR39: 58.17% | BS39: 44 | BT39: 14.38% | BU39: 429 | BV39: 263 | BW39: 61.31% | BX39: 59 | BY39: 13.75% | CA39: Itarana | CB39: 9250 | CC39: 1963 | CD39: 0.2122162162 | CE39: 323 | CF39: 0.03491891892
A40: Regional Sul | B40: Iúna | C40: 2413 | D40: 31 | E40: 1.28% | F40: 0 | G40: 0.00% | H40: 806 | I40: 47 | J40: 5.83% | K40: 1 | L40: 0.12% | M40: 2163 | N40: 171 | O40: 7.91% | P40: 1 | Q40: 0.05% | R40: 2049 | S40: 191 | T40: 9.32% | U40: 2 | V40: 0.10% | W40: 2147 | X40: 213 | Y40: 9.92% | Z40: 2 | AA40: 0.09% | AB40: 2283 | AC40: 253 | AD40: 11.08% | AE40: 4 | AF40: 0.18% | AG40: 2274 | AH40: 265 | AI40: 11.65% | AJ40: 0 | AK40: 0.00% | AL40: 1879 | AM40: 279 | AN40: 14.85% | AO40: 3 | AP40: 0.16% | AQ40: 1691 | AR40: 285 | AS40: 16.85% | AT40: 5 | AU40: 0.30% | AV40: 1644 | AW40: 325 | AX40: 19.77% | AY40: 5 | AZ40: 0.30% | BA40: 1415 | BB40: 427 | BC40: 30.18% | BD40: 15 | BE40: 1.06% | BF40: 1117 | BG40: 444 | BH40: 39.75% | BI40: 19 | BJ40: 1.70% | BK40: 767 | BL40: 326 | BM40: 42.50% | BN40: 8 | BO40: 1.04% | BP40: 524 | BQ40: 231 | BR40: 44.08% | BS40: 5 | BT40: 0.95% | BU40: 594 | BV40: 280 | BW40: 47.14% | BX40: 8 | BY40: 1.35% | CA40: Iúna | CB40: 23766 | CC40: 3768 | CD40: 0.1585458218 | CE40: 78 | CF40: 0.003281999495
A41: Regional Norte | B41: Jaguaré | C41: 2688 | D41: 17 | E41: 0.63% | F41: 0 | G41: 0.00% | H41: 873 | I41: 62 | J41: 7.10% | K41: 1 | L41: 0.11% | M41: 2202 | N41: 212 | O41: 9.63% | P41: 0 | Q41: 0.00% | R41: 2164 | S41: 217 | T41: 10.03% | U41: 2 | V41: 0.09% | W41: 2244 | X41: 214 | Y41: 9.54% | Z41: 4 | AA41: 0.18% | AB41: 2391 | AC41: 307 | AD41: 12.84% | AE41: 3 | AF41: 0.13% | AG41: 2307 | AH41: 316 | AI41: 13.70% | AJ41: 0 | AK41: 0.00% | AL41: 1862 | AM41: 266 | AN41: 14.29% | AO41: 1 | AP41: 0.05% | AQ41: 1649 | AR41: 294 | AS41: 17.83% | AT41: 4 | AU41: 0.24% | AV41: 1482 | AW41: 253 | AX41: 17.07% | AY41: 4 | AZ41: 0.27% | BA41: 1202 | BB41: 476 | BC41: 39.60% | BD41: 51 | BE41: 4.24% | BF41: 986 | BG41: 506 | BH41: 51.32% | BI41: 66 | BJ41: 6.69% | BK41: 653 | BL41: 411 | BM41: 62.94% | BN41: 65 | BO41: 9.95% | BP41: 405 | BQ41: 252 | BR41: 62.22% | BS41: 35 | BT41: 8.64% | BU41: 488 | BV41: 342 | BW41: 70.08% | BX41: 60 | BY41: 12.30% | CA41: Jaguaré | CB41: 23596 | CC41: 4145 | CD41: 0.175665367 | CE41: 296 | CF41: 0.01254449907
A42: Regional Sul | B42: Jerônimo Monteiro | C42: 856 | D42: 8 | E42: 0.93% | F42: 0 | G42: 0.00% | H42: 314 | I42: 44 | J42: 14.01% | K42: 1 | L42: 0.32% | M42: 809 | N42: 134 | O42: 16.56% | P42: 1 | Q42: 0.12% | R42: 781 | S42: 131 | T42: 16.77% | U42: 1 | V42: 0.13% | W42: 827 | X42: 163 | Y42: 19.71% | Z42: 0 | AA42: 0.00% | AB42: 792 | AC42: 135 | AD42: 17.05% | AE42: 3 | AF42: 0.38% | AG42: 816 | AH42: 175 | AI42: 21.45% | AJ42: 1 | AK42: 0.12% | AL42: 762 | AM42: 187 | AN42: 24.54% | AO42: 2 | AP42: 0.26% | AQ42: 762 | AR42: 159 | AS42: 20.87% | AT42: 0 | AU42: 0.00% | AV42: 787 | AW42: 189 | AX42: 24.02% | AY42: 4 | AZ42: 0.51% | BA42: 648 | BB42: 229 | BC42: 35.34% | BD42: 39 | BE42: 6.02% | BF42: 560 | BG42: 243 | BH42: 43.39% | BI42: 25 | BJ42: 4.46% | BK42: 404 | BL42: 227 | BM42: 56.19% | BN42: 22 | BO42: 5.45% | BP42: 318 | BQ42: 165 | BR42: 51.89% | BS42: 20 | BT42: 6.29% | BU42: 426 | BV42: 274 | BW42: 64.32% | BX42: 14 | BY42: 3.29% | CA42: Jerônimo Monteiro | CB42: 9862 | CC42: 2463 | CD42: 0.2497465017 | CE42: 133 | CF42: 0.01348610829
A43: Regional Metropolitana | B43: João Neiva | C43: 1004 | D43: 3 | E43: 0.30% | F43: 0 | G43: 0.00% | H43: 317 | I43: 48 | J43: 15.14% | K43: 0 | L43: 0.00% | M43: 896 | N43: 125 | O43: 13.95% | P43: 0 | Q43: 0.00% | R43: 866 | S43: 132 | T43: 15.24% | U43: 1 | V43: 0.12% | W43: 939 | X43: 116 | Y43: 12.35% | Z43: 1 | AA43: 0.11% | AB43: 994 | AC43: 156 | AD43: 15.69% | AE43: 0 | AF43: 0.00% | AG43: 1133 | AH43: 203 | AI43: 17.92% | AJ43: 1 | AK43: 0.09% | AL43: 1044 | AM43: 227 | AN43: 21.74% | AO43: 1 | AP43: 0.10% | AQ43: 922 | AR43: 178 | AS43: 19.31% | AT43: 2 | AU43: 0.22% | AV43: 998 | AW43: 225 | AX43: 22.55% | AY43: 3 | AZ43: 0.30% | BA43: 877 | BB43: 382 | BC43: 43.56% | BD43: 7 | BE43: 0.80% | BF43: 739 | BG43: 427 | BH43: 57.78% | BI43: 21 | BJ43: 2.84% | BK43: 515 | BL43: 335 | BM43: 65.05% | BN43: 14 | BO43: 2.72% | BP43: 366 | BQ43: 232 | BR43: 63.39% | BS43: 6 | BT43: 1.64% | BU43: 515 | BV43: 310 | BW43: 60.19% | BX43: 5 | BY43: 0.97% | CA43: João Neiva | CB43: 12125 | CC43: 3099 | CD43: 0.2555876289 | CE43: 62 | CF43: 0.005113402062
A44: Regional Metropolitana | B44: Laranja da Terra | C44: 699 | D44: 24 | E44: 3.43% | F44: 1 | G44: 0.14% | H44: 248 | I44: 31 | J44: 12.50% | K44: 2 | L44: 0.81% | M44: 651 | N44: 75 | O44: 11.52% | P44: 2 | Q44: 0.31% | R44: 689 | S44: 95 | T44: 13.79% | U44: 3 | V44: 0.44% | W44: 746 | X44: 123 | Y44: 16.49% | Z44: 4 | AA44: 0.54% | AB44: 789 | AC44: 148 | AD44: 18.76% | AE44: 4 | AF44: 0.51% | AG44: 871 | AH44: 145 | AI44: 16.65% | AJ44: 5 | AK44: 0.57% | AL44: 805 | AM44: 161 | AN44: 20.00% | AO44: 4 | AP44: 0.50% | AQ44: 902 | AR44: 157 | AS44: 17.41% | AT44: 12 | AU44: 1.33% | AV44: 824 | AW44: 191 | AX44: 23.18% | AY44: 15 | AZ44: 1.82% | BA44: 676 | BB44: 241 | BC44: 35.65% | BD44: 37 | BE44: 5.47% | BF44: 600 | BG44: 266 | BH44: 44.33% | BI44: 47 | BJ44: 7.83% | BK44: 457 | BL44: 232 | BM44: 50.77% | BN44: 42 | BO44: 9.19% | BP44: 371 | BQ44: 188 | BR44: 50.67% | BS44: 35 | BT44: 9.43% | BU44: 367 | BV44: 232 | BW44: 63.22% | BX44: 31 | BY44: 8.45% | CA44: Laranja da Terra | CB44: 9695 | CC44: 2309 | CD44: 0.2381640021 | CE44: 244 | CF44: 0.02516761217
A45: Regional Central | B45: Linhares | C45: 14437 | D45: 51 | E45: 0.35% | F45: 0 | G45: 0.00% | H45: 4933 | I45: 279 | J45: 5.66% | K45: 4 | L45: 0.08% | M45: 13238 | N45: 959 | O45: 7.24% | P45: 5 | Q45: 0.04% | R45: 13493 | S45: 1070 | T45: 7.93% | U45: 7 | V45: 0.05% | W45: 13785 | X45: 1024 | Y45: 7.43% | Z45: 8 | AA45: 0.06% | AB45: 14112 | AC45: 1132 | AD45: 8.02% | AE45: 14 | AF45: 0.10% | AG45: 14130 | AH45: 1189 | AI45: 8.41% | AJ45: 16 | AK45: 0.11% | AL45: 10688 | AM45: 1130 | AN45: 10.57% | AO45: 10 | AP45: 0.09% | AQ45: 9616 | AR45: 1121 | AS45: 11.66% | AT45: 11 | AU45: 0.11% | AV45: 8135 | AW45: 1330 | AX45: 16.35% | AY45: 16 | AZ45: 0.20% | BA45: 7008 | BB45: 1816 | BC45: 25.91% | BD45: 92 | BE45: 1.31% | BF45: 5664 | BG45: 2081 | BH45: 36.74% | BI45: 109 | BJ45: 1.92% | BK45: 3728 | BL45: 1707 | BM45: 45.79% | BN45: 101 | BO45: 2.71% | BP45: 2414 | BQ45: 1171 | BR45: 48.51% | BS45: 44 | BT45: 1.82% | BU45: 2926 | BV45: 1346 | BW45: 46.00% | BX45: 57 | BY45: 1.95% | CA45: Linhares | CB45: 138307 | CC45: 17406 | CD45: 0.1258504631 | CE45: 494 | CF45: 0.003571764264
A46: Regional Central | B46: Mantenópolis | C46: 1020 | D46: 3 | E46: 0.29% | F46: 0 | G46: 0.00% | H46: 339 | I46: 17 | J46: 5.01% | K46: 0 | L46: 0.00% | M46: 751 | N46: 42 | O46: 5.59% | P46: 0 | Q46: 0.00% | R46: 758 | S46: 63 | T46: 8.31% | U46: 0 | V46: 0.00% | W46: 780 | X46: 48 | Y46: 6.15% | Z46: 0 | AA46: 0.00% | AB46: 912 | AC46: 57 | AD46: 6.25% | AE46: 1 | AF46: 0.11% | AG46: 965 | AH46: 84 | AI46: 8.70% | AJ46: 0 | AK46: 0.00% | AL46: 901 | AM46: 87 | AN46: 9.66% | AO46: 0 | AP46: 0.00% | AQ46: 906 | AR46: 106 | AS46: 11.70% | AT46: 0 | AU46: 0.00% | AV46: 908 | AW46: 132 | AX46: 14.54% | AY46: 1 | AZ46: 0.11% | BA46: 782 | BB46: 177 | BC46: 22.63% | BD46: 2 | BE46: 0.26% | BF46: 629 | BG46: 223 | BH46: 35.45% | BI46: 2 | BJ46: 0.32% | BK46: 419 | BL46: 164 | BM46: 39.14% | BN46: 0 | BO46: 0.00% | BP46: 295 | BQ46: 132 | BR46: 44.75% | BS46: 0 | BT46: 0.00% | BU46: 399 | BV46: 165 | BW46: 41.35% | BX46: 1 | BY46: 0.25% | CA46: Mantenópolis | CB46: 10764 | CC46: 1500 | CD46: 0.1393534002 | CE46: 7 | CF46: 0.0006503158677
A47: Regional Sul | B47: Marataízes | C47: 3459 | D47: 9 | E47: 0.26% | F47: 0 | G47: 0.00% | H47: 1235 | I47: 70 | J47: 5.67% | K47: 1 | L47: 0.08% | M47: 2948 | N47: 204 | O47: 6.92% | P47: 6 | Q47: 0.20% | R47: 2813 | S47: 229 | T47: 8.14% | U47: 6 | V47: 0.21% | W47: 2934 | X47: 203 | Y47: 6.92% | Z47: 4 | AA47: 0.14% | AB47: 3085 | AC47: 263 | AD47: 8.53% | AE47: 7 | AF47: 0.23% | AG47: 3342 | AH47: 267 | AI47: 7.99% | AJ47: 8 | AK47: 0.24% | AL47: 2847 | AM47: 313 | AN47: 10.99% | AO47: 7 | AP47: 0.25% | AQ47: 2582 | AR47: 301 | AS47: 11.66% | AT47: 6 | AU47: 0.23% | AV47: 2455 | AW47: 335 | AX47: 13.65% | AY47: 14 | AZ47: 0.57% | BA47: 2375 | BB47: 516 | BC47: 21.73% | BD47: 66 | BE47: 2.78% | BF47: 2022 | BG47: 594 | BH47: 29.38% | BI47: 72 | BJ47: 3.56% | BK47: 1407 | BL47: 461 | BM47: 32.76% | BN47: 66 | BO47: 4.69% | BP47: 863 | BQ47: 328 | BR47: 38.01% | BS47: 45 | BT47: 5.21% | BU47: 944 | BV47: 381 | BW47: 40.36% | BX47: 47 | BY47: 4.98% | CA47: Marataízes | CB47: 35311 | CC47: 4474 | CD47: 0.1267027272 | CE47: 355 | CF47: 0.0100535244
A48: Regional Metropolitana | B48: Marechal Floriano | C48: 1421 | D48: 6 | E48: 0.42% | F48: 0 | G48: 0.00% | H48: 439 | I48: 46 | J48: 10.48% | K48: 0 | L48: 0.00% | M48: 1245 | N48: 134 | O48: 10.76% | P48: 1 | Q48: 0.08% | R48: 1297 | S48: 140 | T48: 10.79% | U48: 2 | V48: 0.15% | W48: 1260 | X48: 175 | Y48: 13.89% | Z48: 2 | AA48: 0.16% | AB48: 1471 | AC48: 213 | AD48: 14.48% | AE48: 5 | AF48: 0.34% | AG48: 1446 | AH48: 241 | AI48: 16.67% | AJ48: 2 | AK48: 0.14% | AL48: 1320 | AM48: 241 | AN48: 18.26% | AO48: 4 | AP48: 0.30% | AQ48: 1133 | AR48: 247 | AS48: 21.80% | AT48: 5 | AU48: 0.44% | AV48: 987 | AW48: 249 | AX48: 25.23% | AY48: 3 | AZ48: 0.30% | BA48: 893 | BB48: 334 | BC48: 37.40% | BD48: 44 | BE48: 4.93% | BF48: 743 | BG48: 351 | BH48: 47.24% | BI48: 51 | BJ48: 6.86% | BK48: 511 | BL48: 316 | BM48: 61.84% | BN48: 59 | BO48: 11.55% | BP48: 318 | BQ48: 232 | BR48: 72.96% | BS48: 40 | BT48: 12.58% | BU48: 414 | BV48: 311 | BW48: 75.12% | BX48: 67 | BY48: 16.18% | CA48: Marechal Floriano | CB48: 14898 | CC48: 3236 | CD48: 0.2172103638 | CE48: 285 | CF48: 0.01913008458
A49: Regional Central | B49: Marilândia | C49: 847 | D49: 6 | E49: 0.71% | F49: 0 | G49: 0.00% | H49: 317 | I49: 31 | J49: 9.78% | K49: 0 | L49: 0.00% | M49: 834 | N49: 71 | O49: 8.51% | P49: 0 | Q49: 0.00% | R49: 842 | S49: 98 | T49: 11.64% | U49: 0 | V49: 0.00% | W49: 869 | X49: 63 | Y49: 7.25% | Z49: 1 | AA49: 0.12% | AB49: 956 | AC49: 61 | AD49: 6.38% | AE49: 0 | AF49: 0.00% | AG49: 981 | AH49: 78 | AI49: 7.95% | AJ49: 0 | AK49: 0.00% | AL49: 851 | AM49: 75 | AN49: 8.81% | AO49: 0 | AP49: 0.00% | AQ49: 912 | AR49: 81 | AS49: 8.88% | AT49: 1 | AU49: 0.11% | AV49: 846 | AW49: 98 | AX49: 11.58% | AY49: 1 | AZ49: 0.12% | BA49: 735 | BB49: 181 | BC49: 24.63% | BD49: 4 | BE49: 0.54% | BF49: 584 | BG49: 208 | BH49: 35.62% | BI49: 10 | BJ49: 1.71% | BK49: 403 | BL49: 180 | BM49: 44.67% | BN49: 4 | BO49: 0.99% | BP49: 339 | BQ49: 149 | BR49: 43.95% | BS49: 2 | BT49: 0.59% | BU49: 415 | BV49: 204 | BW49: 49.16% | BX49: 1 | BY49: 0.24% | CA49: Marilândia | CB49: 10731 | CC49: 1584 | CD49: 0.1476097288 | CE49: 24 | CF49: 0.002236511043
A50: Regional Sul | B50: Mimoso do Sul | C50: 1828 | D50: 10 | E50: 0.55% | F50: 0 | G50: 0.00% | H50: 600 | I50: 49 | J50: 8.17% | K50: 0 | L50: 0.00% | M50: 1550 | N50: 148 | O50: 9.55% | P50: 0 | Q50: 0.00% | R50: 1579 | S50: 174 | T50: 11.02% | U50: 1 | V50: 0.06% | W50: 1698 | X50: 151 | Y50: 8.89% | Z50: 1 | AA50: 0.06% | AB50: 1863 | AC50: 195 | AD50: 10.47% | AE50: 1 | AF50: 0.05% | AG50: 1837 | AH50: 205 | AI50: 11.16% | AJ50: 1 | AK50: 0.05% | AL50: 1753 | AM50: 215 | AN50: 12.26% | AO50: 1 | AP50: 0.06% | AQ50: 1598 | AR50: 244 | AS50: 15.27% | AT50: 2 | AU50: 0.13% | AV50: 1789 | AW50: 289 | AX50: 16.15% | AY50: 2 | AZ50: 0.11% | BA50: 1576 | BB50: 481 | BC50: 30.52% | BD50: 11 | BE50: 0.70% | BF50: 1280 | BG50: 586 | BH50: 45.78% | BI50: 14 | BJ50: 1.09% | BK50: 925 | BL50: 454 | BM50: 49.08% | BN50: 20 | BO50: 2.16% | BP50: 554 | BQ50: 340 | BR50: 61.37% | BS50: 11 | BT50: 1.99% | BU50: 742 | BV50: 406 | BW50: 54.72% | BX50: 8 | BY50: 1.08% | CA50: Mimoso do Sul | CB50: 21172 | CC50: 3947 | CD50: 0.1864254676 | CE50: 73 | CF50: 0.003447950123
A51: Regional Norte | B51: Montanha | C51: 1593 | D51: 8 | E51: 0.50% | F51: 0 | G51: 0.00% | H51: 567 | I51: 40 | J51: 7.05% | K51: 0 | L51: 0.00% | M51: 1241 | N51: 121 | O51: 9.75% | P51: 0 | Q51: 0.00% | R51: 1305 | S51: 153 | T51: 11.72% | U51: 0 | V51: 0.00% | W51: 1299 | X51: 150 | Y51: 11.55% | Z51: 2 | AA51: 0.15% | AB51: 1461 | AC51: 162 | AD51: 11.09% | AE51: 1 | AF51: 0.07% | AG51: 1401 | AH51: 196 | AI51: 13.99% | AJ51: 6 | AK51: 0.43% | AL51: 1304 | AM51: 213 | AN51: 16.33% | AO51: 3 | AP51: 0.23% | AQ51: 1185 | AR51: 193 | AS51: 16.29% | AT51: 5 | AU51: 0.42% | AV51: 1132 | AW51: 219 | AX51: 19.35% | AY51: 3 | AZ51: 0.27% | BA51: 966 | BB51: 300 | BC51: 31.06% | BD51: 40 | BE51: 4.14% | BF51: 763 | BG51: 292 | BH51: 38.27% | BI51: 46 | BJ51: 6.03% | BK51: 575 | BL51: 253 | BM51: 44.00% | BN51: 33 | BO51: 5.74% | BP51: 412 | BQ51: 224 | BR51: 54.37% | BS51: 28 | BT51: 6.80% | BU51: 588 | BV51: 302 | BW51: 51.36% | BX51: 52 | BY51: 8.84% | CA51: Montanha | CB51: 15792 | CC51: 2826 | CD51: 0.1789513678 | CE51: 219 | CF51: 0.01386778116
A52: Regional Norte | B52: Mucurici | C52: 410 | D52: 0 | E52: 0.00% | F52: 0 | G52: 0.00% | H52: 154 | I52: 11 | J52: 7.14% | K52: 0 | L52: 0.00% | M52: 333 | N52: 25 | O52: 7.51% | P52: 0 | Q52: 0.00% | R52: 325 | S52: 36 | T52: 11.08% | U52: 0 | V52: 0.00% | W52: 368 | X52: 52 | Y52: 14.13% | Z52: 0 | AA52: 0.00% | AB52: 389 | AC52: 53 | AD52: 13.62% | AE52: 0 | AF52: 0.00% | AG52: 431 | AH52: 61 | AI52: 14.15% | AJ52: 1 | AK52: 0.23% | AL52: 369 | AM52: 55 | AN52: 14.91% | AO52: 0 | AP52: 0.00% | AQ52: 395 | AR52: 71 | AS52: 17.97% | AT52: 0 | AU52: 0.00% | AV52: 379 | AW52: 76 | AX52: 20.05% | AY52: 0 | AZ52: 0.00% | BA52: 330 | BB52: 103 | BC52: 31.21% | BD52: 8 | BE52: 2.42% | BF52: 261 | BG52: 115 | BH52: 44.06% | BI52: 8 | BJ52: 3.07% | BK52: 171 | BL52: 92 | BM52: 53.80% | BN52: 7 | BO52: 4.09% | BP52: 145 | BQ52: 83 | BR52: 57.24% | BS52: 6 | BT52: 4.14% | BU52: 183 | BV52: 107 | BW52: 58.47% | BX52: 9 | BY52: 4.92% | CA52: Mucurici | CB52: 4643 | CC52: 940 | CD52: 0.2024553091 | CE52: 39 | CF52: 0.008399741546
A53: Regional Sul | B53: Muniz Freire | C53: 1468 | D53: 11 | E53: 0.75% | F53: 0 | G53: 0.00% | H53: 509 | I53: 47 | J53: 9.23% | K53: 0 | L53: 0.00% | M53: 1219 | N53: 122 | O53: 10.01% | P53: 0 | Q53: 0.00% | R53: 1253 | S53: 163 | T53: 13.01% | U53: 0 | V53: 0.00% | W53: 1268 | X53: 200 | Y53: 15.77% | Z53: 2 | AA53: 0.16% | AB53: 1348 | AC53: 241 | AD53: 17.88% | AE53: 0 | AF53: 0.00% | AG53: 1388 | AH53: 246 | AI53: 17.72% | AJ53: 1 | AK53: 0.07% | AL53: 1213 | AM53: 290 | AN53: 23.91% | AO53: 0 | AP53: 0.00% | AQ53: 1226 | AR53: 287 | AS53: 23.41% | AT53: 2 | AU53: 0.16% | AV53: 1098 | AW53: 353 | AX53: 32.15% | AY53: 2 | AZ53: 0.18% | BA53: 985 | BB53: 444 | BC53: 45.08% | BD53: 13 | BE53: 1.32% | BF53: 824 | BG53: 441 | BH53: 53.52% | BI53: 10 | BJ53: 1.21% | BK53: 559 | BL53: 338 | BM53: 60.47% | BN53: 6 | BO53: 1.07% | BP53: 404 | BQ53: 257 | BR53: 63.61% | BS53: 7 | BT53: 1.73% | BU53: 537 | BV53: 355 | BW53: 66.11% | BX53: 7 | BY53: 1.30% | CA53: Muniz Freire | CB53: 15299 | CC53: 3795 | CD53: 0.2480554285 | CE53: 50 | CF53: 0.003268187463
A54: Regional Sul | B54: Muqui | C54: 1019 | D54: 6 | E54: 0.59% | F54: 0 | G54: 0.00% | H54: 358 | I54: 49 | J54: 13.69% | K54: 0 | L54: 0.00% | M54: 856 | N54: 146 | O54: 17.06% | P54: 1 | Q54: 0.12% | R54: 893 | S54: 142 | T54: 15.90% | U54: 1 | V54: 0.11% | W54: 998 | X54: 173 | Y54: 17.33% | Z54: 0 | AA54: 0.00% | AB54: 1062 | AC54: 178 | AD54: 16.76% | AE54: 0 | AF54: 0.00% | AG54: 1016 | AH54: 197 | AI54: 19.39% | AJ54: 0 | AK54: 0.00% | AL54: 929 | AM54: 223 | AN54: 24.00% | AO54: 0 | AP54: 0.00% | AQ54: 921 | AR54: 222 | AS54: 24.10% | AT54: 4 | AU54: 0.43% | AV54: 911 | AW54: 255 | AX54: 27.99% | AY54: 3 | AZ54: 0.33% | BA54: 838 | BB54: 354 | BC54: 42.24% | BD54: 27 | BE54: 3.22% | BF54: 655 | BG54: 341 | BH54: 52.06% | BI54: 34 | BJ54: 5.19% | BK54: 496 | BL54: 265 | BM54: 53.43% | BN54: 31 | BO54: 6.25% | BP54: 302 | BQ54: 213 | BR54: 70.53% | BS54: 19 | BT54: 6.29% | BU54: 489 | BV54: 307 | BW54: 62.78% | BX54: 13 | BY54: 2.66% | CA54: Muqui | CB54: 11743 | CC54: 3071 | CD54: 0.2615174998 | CE54: 133 | CF54: 0.01132589628
A55: Regional Norte | B55: Nova Venécia | C55: 3770 | D55: 5 | E55: 0.13% | F55: 0 | G55: 0.00% | H55: 1298 | I55: 69 | J55: 5.32% | K55: 0 | L55: 0.00% | M55: 3500 | N55: 237 | O55: 6.77% | P55: 2 | Q55: 0.06% | R55: 3760 | S55: 338 | T55: 8.99% | U55: 1 | V55: 0.03% | W55: 3710 | X55: 390 | Y55: 10.51% | Z55: 3 | AA55: 0.08% | AB55: 3758 | AC55: 422 | AD55: 11.23% | AE55: 1 | AF55: 0.03% | AG55: 3780 | AH55: 459 | AI55: 12.14% | AJ55: 3 | AK55: 0.08% | AL55: 3387 | AM55: 450 | AN55: 13.29% | AO55: 1 | AP55: 0.03% | AQ55: 3303 | AR55: 463 | AS55: 14.02% | AT55: 2 | AU55: 0.06% | AV55: 3043 | AW55: 537 | AX55: 17.65% | AY55: 6 | AZ55: 0.20% | BA55: 2686 | BB55: 788 | BC55: 29.34% | BD55: 61 | BE55: 2.27% | BF55: 2115 | BG55: 861 | BH55: 40.71% | BI55: 61 | BJ55: 2.88% | BK55: 1415 | BL55: 654 | BM55: 46.22% | BN55: 46 | BO55: 3.25% | BP55: 890 | BQ55: 428 | BR55: 48.09% | BS55: 36 | BT55: 4.04% | BU55: 1246 | BV55: 599 | BW55: 48.07% | BX55: 38 | BY55: 3.05% | CA55: Nova Venécia | CB55: 41661 | CC55: 6700 | CD55: 0.1608218718 | CE55: 261 | CF55: 0.00626485202
A56: Regional Central | B56: Pancas | C56: 1487 | D56: 8 | E56: 0.54% | F56: 0 | G56: 0.00% | H56: 543 | I56: 64 | J56: 11.79% | K56: 0 | L56: 0.00% | M56: 1171 | N56: 159 | O56: 13.58% | P56: 1 | Q56: 0.09% | R56: 1202 | S56: 179 | T56: 14.89% | U56: 2 | V56: 0.17% | W56: 1275 | X56: 176 | Y56: 13.80% | Z56: 4 | AA56: 0.31% | AB56: 1368 | AC56: 174 | AD56: 12.72% | AE56: 1 | AF56: 0.07% | AG56: 1462 | AH56: 201 | AI56: 13.75% | AJ56: 0 | AK56: 0.00% | AL56: 1341 | AM56: 199 | AN56: 14.84% | AO56: 2 | AP56: 0.15% | AQ56: 1335 | AR56: 234 | AS56: 17.53% | AT56: 0 | AU56: 0.00% | AV56: 1245 | AW56: 263 | AX56: 21.12% | AY56: 1 | AZ56: 0.08% | BA56: 1120 | BB56: 392 | BC56: 35.00% | BD56: 16 | BE56: 1.43% | BF56: 903 | BG56: 429 | BH56: 47.51% | BI56: 25 | BJ56: 2.77% | BK56: 672 | BL56: 347 | BM56: 51.64% | BN56: 9 | BO56: 1.34% | BP56: 454 | BQ56: 287 | BR56: 63.22% | BS56: 18 | BT56: 3.96% | BU56: 538 | BV56: 333 | BW56: 61.90% | BX56: 6 | BY56: 1.12% | CA56: Pancas | CB56: 16116 | CC56: 3445 | CD56: 0.2137627203 | CE56: 85 | CF56: 0.005274261603
A57: Regional Norte | B57: Pedro Canário | C57: 2005 | D57: 28 | E57: 1.40% | F57: 1 | G57: 0.05% | H57: 606 | I57: 64 | J57: 10.56% | K57: 0 | L57: 0.00% | M57: 1501 | N57: 231 | O57: 15.39% | P57: 1 | Q57: 0.07% | R57: 1510 | S57: 249 | T57: 16.49% | U57: 2 | V57: 0.13% | W57: 1449 | X57: 214 | Y57: 14.77% | Z57: 1 | AA57: 0.07% | AB57: 1644 | AC57: 248 | AD57: 15.09% | AE57: 0 | AF57: 0.00% | AG57: 1702 | AH57: 230 | AI57: 13.51% | AJ57: 2 | AK57: 0.12% | AL57: 1493 | AM57: 222 | AN57: 14.87% | AO57: 0 | AP57: 0.00% | AQ57: 1276 | AR57: 199 | AS57: 15.60% | AT57: 0 | AU57: 0.00% | AV57: 1216 | AW57: 198 | AX57: 16.28% | AY57: 2 | AZ57: 0.16% | BA57: 1065 | BB57: 322 | BC57: 30.23% | BD57: 18 | BE57: 1.69% | BF57: 799 | BG57: 347 | BH57: 43.43% | BI57: 21 | BJ57: 2.63% | BK57: 563 | BL57: 232 | BM57: 41.21% | BN57: 15 | BO57: 2.66% | BP57: 390 | BQ57: 186 | BR57: 47.69% | BS57: 8 | BT57: 2.05% | BU57: 436 | BV57: 200 | BW57: 45.87% | BX57: 13 | BY57: 2.98% | CA57: Pedro Canário | CB57: 17655 | CC57: 3170 | CD57: 0.1795525347 | CE57: 84 | CF57: 0.004757858963
A58: Regional Norte | B58: Pinheiros | C58: 2185 | D58: 5 | E58: 0.23% | F58: 0 | G58: 0.00% | H58: 706 | I58: 36 | J58: 5.10% | K58: 0 | L58: 0.00% | M58: 1744 | N58: 155 | O58: 8.89% | P58: 2 | Q58: 0.11% | R58: 1606 | S58: 167 | T58: 10.40% | U58: 2 | V58: 0.12% | W58: 1614 | X58: 144 | Y58: 8.92% | Z58: 2 | AA58: 0.12% | AB58: 1852 | AC58: 216 | AD58: 11.66% | AE58: 3 | AF58: 0.16% | AG58: 1920 | AH58: 270 | AI58: 14.06% | AJ58: 1 | AK58: 0.05% | AL58: 1649 | AM58: 245 | AN58: 14.86% | AO58: 1 | AP58: 0.06% | AQ58: 1445 | AR58: 210 | AS58: 14.53% | AT58: 4 | AU58: 0.28% | AV58: 1350 | AW58: 221 | AX58: 16.37% | AY58: 2 | AZ58: 0.15% | BA58: 1127 | BB58: 323 | BC58: 28.66% | BD58: 20 | BE58: 1.77% | BF58: 922 | BG58: 359 | BH58: 38.94% | BI58: 30 | BJ58: 3.25% | BK58: 652 | BL58: 316 | BM58: 48.47% | BN58: 31 | BO58: 4.75% | BP58: 480 | BQ58: 231 | BR58: 48.12% | BS58: 17 | BT58: 3.54% | BU58: 581 | BV58: 299 | BW58: 51.46% | BX58: 21 | BY58: 3.61% | CA58: Pinheiros | CB58: 19833 | CC58: 3197 | CD58: 0.1611959865 | CE58: 136 | CF58: 0.006857258105
A59: Regional Sul | B59: Piúma | C59: 1660 | D59: 5 | E59: 0.30% | F59: 0 | G59: 0.00% | H59: 593 | I59: 41 | J59: 6.91% | K59: 0 | L59: 0.00% | M59: 1504 | N59: 124 | O59: 8.24% | P59: 0 | Q59: 0.00% | R59: 1610 | S59: 158 | T59: 9.81% | U59: 4 | V59: 0.25% | W59: 1562 | X59: 149 | Y59: 9.54% | Z59: 2 | AA59: 0.13% | AB59: 1698 | AC59: 167 | AD59: 9.84% | AE59: 0 | AF59: 0.00% | AG59: 1851 | AH59: 186 | AI59: 10.05% | AJ59: 2 | AK59: 0.11% | AL59: 1503 | AM59: 196 | AN59: 13.04% | AO59: 0 | AP59: 0.00% | AQ59: 1491 | AR59: 202 | AS59: 13.55% | AT59: 1 | AU59: 0.07% | AV59: 1316 | AW59: 200 | AX59: 15.20% | AY59: 4 | AZ59: 0.30% | BA59: 1262 | BB59: 327 | BC59: 25.91% | BD59: 34 | BE59: 2.69% | BF59: 1045 | BG59: 356 | BH59: 34.07% | BI59: 48 | BJ59: 4.59% | BK59: 664 | BL59: 273 | BM59: 41.11% | BN59: 40 | BO59: 6.02% | BP59: 423 | BQ59: 209 | BR59: 49.41% | BS59: 23 | BT59: 5.44% | BU59: 492 | BV59: 232 | BW59: 47.15% | BX59: 21 | BY59: 4.27% | CA59: Piúma | CB59: 18674 | CC59: 2825 | CD59: 0.1512798543 | CE59: 179 | CF59: 0.009585519974
A60: Regional Norte | B60: Ponto Belo | C60: 548 | D60: 3 | E60: 0.55% | F60: 0 | G60: 0.00% | H60: 187 | I60: 16 | J60: 8.56% | K60: 0 | L60: 0.00% | M60: 400 | N60: 25 | O60: 6.25% | P60: 0 | Q60: 0.00% | R60: 385 | S60: 34 | T60: 8.83% | U60: 1 | V60: 0.26% | W60: 390 | X60: 43 | Y60: 11.03% | Z60: 0 | AA60: 0.00% | AB60: 380 | AC60: 38 | AD60: 10.00% | AE60: 0 | AF60: 0.00% | AG60: 492 | AH60: 58 | AI60: 11.79% | AJ60: 0 | AK60: 0.00% | AL60: 443 | AM60: 62 | AN60: 14.00% | AO60: 0 | AP60: 0.00% | AQ60: 470 | AR60: 54 | AS60: 11.49% | AT60: 0 | AU60: 0.00% | AV60: 436 | AW60: 69 | AX60: 15.83% | AY60: 1 | AZ60: 0.23% | BA60: 349 | BB60: 102 | BC60: 29.23% | BD60: 0 | BE60: 0.00% | BF60: 325 | BG60: 111 | BH60: 34.15% | BI60: 2 | BJ60: 0.62% | BK60: 240 | BL60: 119 | BM60: 49.58% | BN60: 2 | BO60: 0.83% | BP60: 182 | BQ60: 83 | BR60: 45.60% | BS60: 0 | BT60: 0.00% | BU60: 234 | BV60: 125 | BW60: 53.42% | BX60: 1 | BY60: 0.43% | CA60: Ponto Belo | CB60: 5461 | CC60: 942 | CD60: 0.1724958799 | CE60: 7 | CF60: 0.001281816517
A61: Regional Sul | B61: Presidente Kennedy | C61: 1153 | D61: 33 | E61: 2.86% | F61: 0 | G61: 0.00% | H61: 392 | I61: 36 | J61: 9.18% | K61: 0 | L61: 0.00% | M61: 955 | N61: 98 | O61: 10.26% | P61: 0 | Q61: 0.00% | R61: 997 | S61: 136 | T61: 13.64% | U61: 0 | V61: 0.00% | W61: 984 | X61: 141 | Y61: 14.33% | Z61: 0 | AA61: 0.00% | AB61: 1083 | AC61: 154 | AD61: 14.22% | AE61: 0 | AF61: 0.00% | AG61: 1052 | AH61: 186 | AI61: 17.68% | AJ61: 0 | AK61: 0.00% | AL61: 893 | AM61: 173 | AN61: 19.37% | AO61: 1 | AP61: 0.11% | AQ61: 786 | AR61: 153 | AS61: 19.47% | AT61: 0 | AU61: 0.00% | AV61: 755 | AW61: 179 | AX61: 23.71% | AY61: 0 | AZ61: 0.00% | BA61: 677 | BB61: 202 | BC61: 29.84% | BD61: 3 | BE61: 0.44% | BF61: 575 | BG61: 200 | BH61: 34.78% | BI61: 7 | BJ61: 1.22% | BK61: 399 | BL61: 175 | BM61: 43.86% | BN61: 2 | BO61: 0.50% | BP61: 283 | BQ61: 101 | BR61: 35.69% | BS61: 4 | BT61: 1.41% | BU61: 280 | BV61: 117 | BW61: 41.79% | BX61: 2 | BY61: 0.71% | CA61: Presidente Kennedy | CB61: 11264 | CC61: 2084 | CD61: 0.1850142045 | CE61: 19 | CF61: 0.001686789773
A62: Regional Central | B62: Rio Bananal | C62: 1482 | D62: 9 | E62: 0.61% | F62: 0 | G62: 0.00% | H62: 536 | I62: 44 | J62: 8.21% | K62: 0 | L62: 0.00% | M62: 1366 | N62: 119 | O62: 8.71% | P62: 0 | Q62: 0.00% | R62: 1401 | S62: 151 | T62: 10.78% | U62: 1 | V62: 0.07% | W62: 1456 | X62: 148 | Y62: 10.16% | Z62: 0 | AA62: 0.00% | AB62: 1564 | AC62: 207 | AD62: 13.24% | AE62: 3 | AF62: 0.19% | AG62: 1557 | AH62: 203 | AI62: 13.04% | AJ62: 2 | AK62: 0.13% | AL62: 1306 | AM62: 185 | AN62: 14.17% | AO62: 2 | AP62: 0.15% | AQ62: 1228 | AR62: 208 | AS62: 16.94% | AT62: 2 | AU62: 0.16% | AV62: 1179 | AW62: 221 | AX62: 18.74% | AY62: 1 | AZ62: 0.08% | BA62: 944 | BB62: 324 | BC62: 34.32% | BD62: 25 | BE62: 2.65% | BF62: 790 | BG62: 354 | BH62: 44.81% | BI62: 29 | BJ62: 3.67% | BK62: 537 | BL62: 288 | BM62: 53.63% | BN62: 25 | BO62: 4.66% | BP62: 357 | BQ62: 231 | BR62: 64.71% | BS62: 20 | BT62: 5.60% | BU62: 443 | BV62: 305 | BW62: 68.85% | BX62: 40 | BY62: 9.03% | CA62: Rio Bananal | CB62: 16146 | CC62: 2997 | CD62: 0.1856187291 | CE62: 150 | CF62: 0.009290226682
A63: Regional Sul | B63: Rio Novo do Sul | C63: 786 | D63: 2 | E63: 0.25% | F63: 0 | G63: 0.00% | H63: 271 | I63: 30 | J63: 11.07% | K63: 0 | L63: 0.00% | M63: 708 | N63: 76 | O63: 10.73% | P63: 1 | Q63: 0.14% | R63: 695 | S63: 100 | T63: 14.39% | U63: 1 | V63: 0.14% | W63: 788 | X63: 96 | Y63: 12.18% | Z63: 0 | AA63: 0.00% | AB63: 890 | AC63: 101 | AD63: 11.35% | AE63: 4 | AF63: 0.45% | AG63: 882 | AH63: 115 | AI63: 13.04% | AJ63: 1 | AK63: 0.11% | AL63: 730 | AM63: 109 | AN63: 14.93% | AO63: 0 | AP63: 0.00% | AQ63: 736 | AR63: 112 | AS63: 15.22% | AT63: 1 | AU63: 0.14% | AV63: 718 | AW63: 147 | AX63: 20.47% | AY63: 0 | AZ63: 0.00% | BA63: 662 | BB63: 211 | BC63: 31.87% | BD63: 14 | BE63: 2.11% | BF63: 577 | BG63: 243 | BH63: 42.11% | BI63: 17 | BJ63: 2.95% | BK63: 396 | BL63: 194 | BM63: 48.99% | BN63: 21 | BO63: 5.30% | BP63: 249 | BQ63: 128 | BR63: 51.41% | BS63: 17 | BT63: 6.83% | BU63: 348 | BV63: 184 | BW63: 52.87% | BX63: 8 | BY63: 2.30% | CA63: Rio Novo do Sul | CB63: 9436 | CC63: 1848 | CD63: 0.1958456973 | CE63: 85 | CF63: 0.00900805426
A64: Regional Metropolitana | B64: Santa Leopoldina | C64: 997 | D64: 12 | E64: 1.20% | F64: 0 | G64: 0.00% | H64: 331 | I64: 33 | J64: 9.97% | K64: 0 | L64: 0.00% | M64: 825 | N64: 93 | O64: 11.27% | P64: 0 | Q64: 0.00% | R64: 801 | S64: 108 | T64: 13.48% | U64: 1 | V64: 0.12% | W64: 864 | X64: 125 | Y64: 14.47% | Z64: 2 | AA64: 0.23% | AB64: 941 | AC64: 152 | AD64: 16.15% | AE64: 1 | AF64: 0.11% | AG64: 1013 | AH64: 160 | AI64: 15.79% | AJ64: 0 | AK64: 0.00% | AL64: 931 | AM64: 166 | AN64: 17.83% | AO64: 1 | AP64: 0.11% | AQ64: 972 | AR64: 198 | AS64: 20.37% | AT64: 1 | AU64: 0.10% | AV64: 920 | AW64: 217 | AX64: 23.59% | AY64: 2 | AZ64: 0.22% | BA64: 846 | BB64: 309 | BC64: 36.52% | BD64: 30 | BE64: 3.55% | BF64: 646 | BG64: 314 | BH64: 48.61% | BI64: 36 | BJ64: 5.57% | BK64: 488 | BL64: 265 | BM64: 54.30% | BN64: 27 | BO64: 5.53% | BP64: 276 | BQ64: 147 | BR64: 53.26% | BS64: 17 | BT64: 6.16% | BU64: 378 | BV64: 209 | BW64: 55.29% | BX64: 20 | BY64: 5.29% | CA64: Santa Leopoldina | CB64: 11229 | CC64: 2508 | CD64: 0.2233502538 | CE64: 138 | CF64: 0.01228960727
A65: Regional Metropolitana | B65: Santa Maria de Jetibá | C65: 3202 | D65: 298 | E65: 9.31% | F65: 1 | G65: 0.03% | H65: 1199 | I65: 106 | J65: 8.84% | K65: 1 | L65: 0.08% | M65: 3375 | N65: 180 | O65: 5.33% | P65: 1 | Q65: 0.03% | R65: 3413 | S65: 217 | T65: 6.36% | U65: 2 | V65: 0.06% | W65: 3529 | X65: 243 | Y65: 6.89% | Z65: 2 | AA65: 0.06% | AB65: 3680 | AC65: 319 | AD65: 8.67% | AE65: 3 | AF65: 0.08% | AG65: 3496 | AH65: 339 | AI65: 9.70% | AJ65: 6 | AK65: 0.17% | AL65: 2809 | AM65: 325 | AN65: 11.57% | AO65: 7 | AP65: 0.25% | AQ65: 2501 | AR65: 247 | AS65: 9.88% | AT65: 3 | AU65: 0.12% | AV65: 2085 | AW65: 303 | AX65: 14.53% | AY65: 8 | AZ65: 0.38% | BA65: 1731 | BB65: 401 | BC65: 23.17% | BD65: 52 | BE65: 3.00% | BF65: 1496 | BG65: 386 | BH65: 25.80% | BI65: 35 | BJ65: 2.34% | BK65: 977 | BL65: 328 | BM65: 33.57% | BN65: 40 | BO65: 4.09% | BP65: 695 | BQ65: 253 | BR65: 36.40% | BS65: 22 | BT65: 3.17% | BU65: 653 | BV65: 259 | BW65: 39.66% | BX65: 14 | BY65: 2.14% | CA65: Santa Maria de Jetibá | CB65: 34841 | CC65: 4204 | CD65: 0.1206624379 | CE65: 197 | CF65: 0.005654257915
A66: Regional Metropolitana | B66: Santa Teresa | C66: 1606 | D66: 14 | E66: 0.87% | F66: 0 | G66: 0.00% | H66: 563 | I66: 82 | J66: 14.56% | K66: 1 | L66: 0.18% | M66: 1397 | N66: 213 | O66: 15.25% | P66: 0 | Q66: 0.00% | R66: 1464 | S66: 224 | T66: 15.30% | U66: 4 | V66: 0.27% | W66: 1661 | X66: 247 | Y66: 14.87% | Z66: 3 | AA66: 0.18% | AB66: 1830 | AC66: 295 | AD66: 16.12% | AE66: 2 | AF66: 0.11% | AG66: 1799 | AH66: 345 | AI66: 19.18% | AJ66: 4 | AK66: 0.22% | AL66: 1559 | AM66: 323 | AN66: 20.72% | AO66: 2 | AP66: 0.13% | AQ66: 1591 | AR66: 313 | AS66: 19.67% | AT66: 7 | AU66: 0.44% | AV66: 1560 | AW66: 360 | AX66: 23.08% | AY66: 4 | AZ66: 0.26% | BA66: 1375 | BB66: 523 | BC66: 38.04% | BD66: 51 | BE66: 3.71% | BF66: 1131 | BG66: 560 | BH66: 49.51% | BI66: 87 | BJ66: 7.69% | BK66: 871 | BL66: 471 | BM66: 54.08% | BN66: 67 | BO66: 7.69% | BP66: 606 | BQ66: 355 | BR66: 58.58% | BS66: 52 | BT66: 8.58% | BU66: 784 | BV66: 526 | BW66: 67.09% | BX66: 77 | BY66: 9.82% | CA66: Santa Teresa | CB66: 19797 | CC66: 4851 | CD66: 0.2450371268 | CE66: 361 | CF66: 0.01823508612
A67: Regional Central | B67: São Domingos do Norte | C67: 619 | D67: 2 | E67: 0.32% | F67: 0 | G67: 0.00% | H67: 224 | I67: 17 | J67: 7.59% | K67: 0 | L67: 0.00% | M67: 661 | N67: 105 | O67: 15.89% | P67: 1 | Q67: 0.15% | R67: 634 | S67: 96 | T67: 15.14% | U67: 1 | V67: 0.16% | W67: 641 | X67: 98 | Y67: 15.29% | Z67: 1 | AA67: 0.16% | AB67: 668 | AC67: 93 | AD67: 13.92% | AE67: 0 | AF67: 0.00% | AG67: 689 | AH67: 93 | AI67: 13.50% | AJ67: 0 | AK67: 0.00% | AL67: 590 | AM67: 62 | AN67: 10.51% | AO67: 0 | AP67: 0.00% | AQ67: 579 | AR67: 68 | AS67: 11.74% | AT67: 1 | AU67: 0.17% | AV67: 527 | AW67: 82 | AX67: 15.56% | AY67: 0 | AZ67: 0.00% | BA67: 469 | BB67: 152 | BC67: 32.41% | BD67: 24 | BE67: 5.12% | BF67: 409 | BG67: 133 | BH67: 32.52% | BI67: 16 | BJ67: 3.91% | BK67: 244 | BL67: 95 | BM67: 38.93% | BN67: 13 | BO67: 5.33% | BP67: 182 | BQ67: 79 | BR67: 43.41% | BS67: 9 | BT67: 4.95% | BU67: 216 | BV67: 96 | BW67: 44.44% | BX67: 12 | BY67: 5.56% | CA67: São Domingos do Norte | CB67: 7352 | CC67: 1271 | CD67: 0.1728781284 | CE67: 78 | CF67: 0.010609358
A68: Regional Central | B68: São Gabriel da Palha | C68: 2474 | D68: 13 | E68: 0.53% | F68: 0 | G68: 0.00% | H68: 807 | I68: 17 | J68: 2.11% | K68: 0 | L68: 0.00% | M68: 2139 | N68: 99 | O68: 4.63% | P68: 1 | Q68: 0.05% | R68: 2379 | S68: 95 | T68: 3.99% | U68: 0 | V68: 0.00% | W68: 2433 | X68: 108 | Y68: 4.44% | Z68: 3 | AA68: 0.12% | AB68: 2731 | AC68: 140 | AD68: 5.13% | AE68: 3 | AF68: 0.11% | AG68: 2843 | AH68: 153 | AI68: 5.38% | AJ68: 1 | AK68: 0.04% | AL68: 2248 | AM68: 154 | AN68: 6.85% | AO68: 0 | AP68: 0.00% | AQ68: 2076 | AR68: 158 | AS68: 7.61% | AT68: 4 | AU68: 0.19% | AV68: 1921 | AW68: 191 | AX68: 9.94% | AY68: 2 | AZ68: 0.10% | BA68: 1693 | BB68: 397 | BC68: 23.45% | BD68: 10 | BE68: 0.59% | BF68: 1404 | BG68: 453 | BH68: 32.26% | BI68: 20 | BJ68: 1.42% | BK68: 927 | BL68: 431 | BM68: 46.49% | BN68: 18 | BO68: 1.94% | BP68: 626 | BQ68: 285 | BR68: 45.53% | BS68: 12 | BT68: 1.92% | BU68: 806 | BV68: 357 | BW68: 44.29% | BX68: 12 | BY68: 1.49% | CA68: São Gabriel da Palha | CB68: =SUM(C68,H68,M68,R68,W68,AB68,AG68,AL68,AQ68,AV68,BA68,BF68,BK68,BP68,BU68) -> 27507 | CC68: 3051 | CD68: =CC68/CB68 -> 0.1109172211 | CE68: =SUM(F68,K68,P68,U68,Z68,AE68,AJ68,AO68,AT68,AY68,BD68,BI68,BN68,BS68,BX68) -> 86 | CF68: =CE68/CB68 -> 0.003126476897
A69: Regional Sul | B69: São José do Calçado | C69: 798 | D69: 1 | E69: 0.13% | F69: 0 | G69: 0.00% | H69: 288 | I69: 9 | J69: 3.12% | K69: 0 | L69: 0.00% | M69: 707 | N69: 37 | O69: 5.23% | P69: 0 | Q69: 0.00% | R69: 742 | S69: 57 | T69: 7.68% | U69: 0 | V69: 0.00% | W69: 699 | X69: 57 | Y69: 8.15% | Z69: 0 | AA69: 0.00% | AB69: 695 | AC69: 77 | AD69: 11.08% | AE69: 0 | AF69: 0.00% | AG69: 735 | AH69: 59 | AI69: 8.03% | AJ69: 0 | AK69: 0.00% | AL69: 663 | AM69: 72 | AN69: 10.86% | AO69: 0 | AP69: 0.00% | AQ69: 755 | AR69: 89 | AS69: 11.79% | AT69: 0 | AU69: 0.00% | AV69: 757 | AW69: 113 | AX69: 14.93% | AY69: 0 | AZ69: 0.00% | BA69: 692 | BB69: 198 | BC69: 28.61% | BD69: 7 | BE69: 1.01% | BF69: 596 | BG69: 233 | BH69: 39.09% | BI69: 15 | BJ69: 2.52% | BK69: 466 | BL69: 216 | BM69: 46.35% | BN69: 18 | BO69: 3.86% | BP69: 312 | BQ69: 133 | BR69: 42.63% | BS69: 9 | BT69: 2.88% | BU69: 390 | BV69: 177 | BW69: 45.38% | BX69: 11 | BY69: 2.82% | CA69: São José do Calçado | CB69: 9295 | CC69: 1528 | CD69: 0.1643894567 | CE69: 60 | CF69: 0.006455083378
A70: Regional Norte | B70: São Mateus | C70: 10454 | D70: 129 | E70: 1.23% | F70: 2 | G70: 0.02% | H70: 3870 | I70: 280 | J70: 7.24% | K70: 1 | L70: 0.03% | M70: 9749 | N70: 937 | O70: 9.61% | P70: 5 | Q70: 0.05% | R70: 9496 | S70: 1073 | T70: 11.30% | U70: 12 | V70: 0.13% | W70: 9200 | X70: 937 | Y70: 10.18% | Z70: 7 | AA70: 0.08% | AB70: 10015 | AC70: 1161 | AD70: 11.59% | AE70: 7 | AF70: 0.07% | AG70: 9939 | AH70: 1249 | AI70: 12.57% | AJ70: 5 | AK70: 0.05% | AL70: 8604 | AM70: 1173 | AN70: 13.63% | AO70: 11 | AP70: 0.13% | AQ70: 7593 | AR70: 1150 | AS70: 15.15% | AT70: 13 | AU70: 0.17% | AV70: 6871 | AW70: 1138 | AX70: 16.56% | AY70: 19 | AZ70: 0.28% | BA70: 5876 | BB70: 1676 | BC70: 28.52% | BD70: 144 | BE70: 2.45% | BF70: 4566 | BG70: 1690 | BH70: 37.01% | BI70: 170 | BJ70: 3.72% | BK70: 3125 | BL70: 1344 | BM70: 43.01% | BN70: 155 | BO70: 4.96% | BP70: 1788 | BQ70: 878 | BR70: 49.11% | BS70: 91 | BT70: 5.09% | BU70: 2294 | BV70: 1065 | BW70: 46.43% | BX70: 68 | BY70: 2.96% | CA70: São Mateus | CB70: 103440 | CC70: 15880 | CD70: 0.1535189482 | CE70: 710 | CF70: 0.006863882444
A71: Regional Central | B71: São Roque do Canaã | C71: 783 | D71: 4 | E71: 0.51% | F71: 0 | G71: 0.00% | H71: 271 | I71: 35 | J71: 12.92% | K71: 0 | L71: 0.00% | M71: 718 | N71: 94 | O71: 13.09% | P71: 0 | Q71: 0.00% | R71: 691 | S71: 115 | T71: 16.64% | U71: 1 | V71: 0.14% | W71: 700 | X71: 97 | Y71: 13.86% | Z71: 0 | AA71: 0.00% | AB71: 774 | AC71: 108 | AD71: 13.95% | AE71: 2 | AF71: 0.26% | AG71: 828 | AH71: 125 | AI71: 15.10% | AJ71: 3 | AK71: 0.36% | AL71: 817 | AM71: 123 | AN71: 15.06% | AO71: 2 | AP71: 0.24% | AQ71: 861 | AR71: 122 | AS71: 14.17% | AT71: 5 | AU71: 0.58% | AV71: 766 | AW71: 145 | AX71: 18.93% | AY71: 3 | AZ71: 0.39% | BA71: 672 | BB71: 228 | BC71: 33.93% | BD71: 25 | BE71: 3.72% | BF71: 571 | BG71: 260 | BH71: 45.53% | BI71: 39 | BJ71: 6.83% | BK71: 412 | BL71: 222 | BM71: 53.88% | BN71: 29 | BO71: 7.04% | BP71: 283 | BQ71: 155 | BR71: 54.77% | BS71: 20 | BT71: 7.07% | BU71: 432 | BV71: 209 | BW71: 48.38% | BX71: 18 | BY71: 4.17% | CA71: São Roque do Canaã | CB71: 9579 | CC71: 2042 | CD71: 0.2131746529 | CE71: 147 | CF71: 0.01534606953
A72: Regional Metropolitana | B72: Serra | C72: 43428 | D72: 448 | E72: 1.03% | F72: 7 | G72: 0.02% | H72: 14664 | I72: 1182 | J72: 8.06% | K72: 9 | L72: 0.06% | M72: 39738 | N72: 4250 | O72: 10.70% | P72: 26 | Q72: 0.07% | R72: 40291 | S72: 4979 | T72: 12.36% | U72: 43 | V72: 0.11% | W72: 43267 | X72: 4873 | Y72: 11.26% | Z72: 39 | AA72: 0.09% | AB72: 47524 | AC72: 5829 | AD72: 12.27% | AE72: 46 | AF72: 0.10% | AG72: 45103 | AH72: 6415 | AI72: 14.22% | AJ72: 78 | AK72: 0.17% | AL72: 35226 | AM72: 5688 | AN72: 16.15% | AO72: 54 | AP72: 0.15% | AQ72: 30278 | AR72: 5127 | AS72: 16.93% | AT72: 68 | AU72: 0.22% | AV72: 26431 | AW72: 5422 | AX72: 20.51% | AY72: 71 | AZ72: 0.27% | BA72: 23125 | BB72: 7367 | BC72: 31.86% | BD72: 819 | BE72: 3.54% | BF72: 18306 | BG72: 7613 | BH72: 41.59% | BI72: 1068 | BJ72: 5.83% | BK72: 11385 | BL72: 5807 | BM72: 51.01% | BN72: 850 | BO72: 7.47% | BP72: 6462 | BQ72: 3358 | BR72: 51.97% | BS72: 466 | BT72: 7.21% | BU72: 7203 | BV72: 3671 | BW72: 50.96% | BX72: 398 | BY72: 5.53% | CA72: Serra | CB72: 432431 | CC72: 72029 | CD72: 0.1665676143 | CE72: 4042 | CF72: 0.009347155962
A73: Regional Central | B73: Sooretama | C73: 2601 | D73: 9 | E73: 0.35% | F73: 0 | G73: 0.00% | H73: 875 | I73: 56 | J73: 6.40% | K73: 0 | L73: 0.00% | M73: 2216 | N73: 166 | O73: 7.49% | P73: 3 | Q73: 0.14% | R73: 2086 | S73: 182 | T73: 8.72% | U73: 1 | V73: 0.05% | W73: 1984 | X73: 157 | Y73: 7.91% | Z73: 0 | AA73: 0.00% | AB73: 2117 | AC73: 186 | AD73: 8.79% | AE73: 0 | AF73: 0.00% | AG73: 2040 | AH73: 198 | AI73: 9.71% | AJ73: 0 | AK73: 0.00% | AL73: 1736 | AM73: 174 | AN73: 10.02% | AO73: 0 | AP73: 0.00% | AQ73: 1410 | AR73: 187 | AS73: 13.26% | AT73: 0 | AU73: 0.00% | AV73: 1222 | AW73: 211 | AX73: 17.27% | AY73: 2 | AZ73: 0.16% | BA73: 1020 | BB73: 297 | BC73: 29.12% | BD73: 11 | BE73: 1.08% | BF73: 811 | BG73: 334 | BH73: 41.18% | BI73: 11 | BJ73: 1.36% | BK73: 557 | BL73: 264 | BM73: 47.40% | BN73: 10 | BO73: 1.80% | BP73: 343 | BQ73: 177 | BR73: 51.60% | BS73: 3 | BT73: 0.87% | BU73: 366 | BV73: 167 | BW73: 45.63% | BX73: 4 | BY73: 1.09% | CA73: Sooretama | CB73: 21384 | CC73: 2765 | CD73: 0.1293022821 | CE73: 45 | CF73: 0.002104377104
A74: Regional Sul | B74: Vargem Alta | C74: 1601 | D74: 21 | E74: 1.31% | F74: 0 | G74: 0.00% | H74: 499 | I74: 51 | J74: 10.22% | K74: 1 | L74: 0.20% | M74: 1455 | N74: 173 | O74: 11.89% | P74: 1 | Q74: 0.07% | R74: 1391 | S74: 169 | T74: 12.15% | U74: 2 | V74: 0.14% | W74: 1376 | X74: 170 | Y74: 12.35% | Z74: 1 | AA74: 0.07% | AB74: 1517 | AC74: 217 | AD74: 14.30% | AE74: 2 | AF74: 0.13% | AG74: 1582 | AH74: 246 | AI74: 15.55% | AJ74: 0 | AK74: 0.00% | AL74: 1243 | AM74: 194 | AN74: 15.61% | AO74: 1 | AP74: 0.08% | AQ74: 1299 | AR74: 202 | AS74: 15.55% | AT74: 5 | AU74: 0.38% | AV74: 1289 | AW74: 312 | AX74: 24.20% | AY74: 3 | AZ74: 0.23% | BA74: 1073 | BB74: 386 | BC74: 35.97% | BD74: 25 | BE74: 2.33% | BF74: 806 | BG74: 413 | BH74: 51.24% | BI74: 45 | BJ74: 5.58% | BK74: 607 | BL74: 343 | BM74: 56.51% | BN74: 43 | BO74: 7.08% | BP74: 347 | BQ74: 214 | BR74: 61.67% | BS74: 22 | BT74: 6.34% | BU74: 532 | BV74: 325 | BW74: 61.09% | BX74: 28 | BY74: 5.26% | CA74: Vargem Alta | CB74: 16617 | CC74: 3436 | CD74: 0.2067761931 | CE74: 179 | CF74: 0.01077210086
A75: Regional Metropolitana | B75: Venda Nova do Imigrante | C75: 1772 | D75: 10 | E75: 0.56% | F75: 0 | G75: 0.00% | H75: 636 | I75: 64 | J75: 10.06% | K75: 0 | L75: 0.00% | M75: 1745 | N75: 190 | O75: 10.89% | P75: 1 | Q75: 0.06% | R75: 1826 | S75: 201 | T75: 11.01% | U75: 3 | V75: 0.16% | W75: 1922 | X75: 239 | Y75: 12.43% | Z75: 0 | AA75: 0.00% | AB75: 2063 | AC75: 270 | AD75: 13.09% | AE75: 3 | AF75: 0.15% | AG75: 1925 | AH75: 263 | AI75: 13.66% | AJ75: 0 | AK75: 0.00% | AL75: 1698 | AM75: 298 | AN75: 17.55% | AO75: 3 | AP75: 0.18% | AQ75: 1582 | AR75: 274 | AS75: 17.32% | AT75: 6 | AU75: 0.38% | AV75: 1448 | AW75: 293 | AX75: 20.23% | AY75: 6 | AZ75: 0.41% | BA75: 1148 | BB75: 447 | BC75: 38.94% | BD75: 53 | BE75: 4.62% | BF75: 910 | BG75: 446 | BH75: 49.01% | BI75: 67 | BJ75: 7.36% | BK75: 670 | BL75: 350 | BM75: 52.24% | BN75: 62 | BO75: 9.25% | BP75: 446 | BQ75: 240 | BR75: 53.81% | BS75: 55 | BT75: 12.33% | BU75: 592 | BV75: 349 | BW75: 58.95% | BX75: 80 | BY75: 13.51% | CA75: Venda Nova do Imigrante | CB75: 20383 | CC75: 3934 | CD75: 0.1930039739 | CE75: 339 | CF75: 0.01663150665
A76: Regional Metropolitana | B76: Viana | C76: 6087 | D76: 39 | E76: 0.64% | F76: 0 | G76: 0.00% | H76: 2053 | I76: 203 | J76: 9.89% | K76: 0 | L76: 0.00% | M76: 5629 | N76: 825 | O76: 14.66% | P76: 10 | Q76: 0.18% | R76: 5867 | S76: 962 | T76: 16.40% | U76: 10 | V76: 0.17% | W76: 6074 | X76: 907 | Y76: 14.93% | Z76: 6 | AA76: 0.10% | AB76: 6403 | AC76: 1072 | AD76: 16.74% | AE76: 14 | AF76: 0.22% | AG76: 6300 | AH76: 1075 | AI76: 17.06% | AJ76: 17 | AK76: 0.27% | AL76: 5006 | AM76: 1052 | AN76: 21.01% | AO76: 14 | AP76: 0.28% | AQ76: 4349 | AR76: 846 | AS76: 19.45% | AT76: 13 | AU76: 0.30% | AV76: 3856 | AW76: 861 | AX76: 22.33% | AY76: 12 | AZ76: 0.31% | BA76: 3453 | BB76: 1273 | BC76: 36.87% | BD76: 110 | BE76: 3.19% | BF76: 2598 | BG76: 1304 | BH76: 50.19% | BI76: 126 | BJ76: 4.85% | BK76: 1712 | BL76: 983 | BM76: 57.42% | BN76: 97 | BO76: 5.67% | BP76: 919 | BQ76: 596 | BR76: 64.85% | BS76: 57 | BT76: 6.20% | BU76: 1076 | BV76: 692 | BW76: 64.31% | BX76: 33 | BY76: 3.07% | CA76: Viana | CB76: 61382 | CC76: 12690 | CD76: 0.2067381317 | CE76: 519 | CF76: 0.008455247467
A77: Regional Norte | B77: Vila Pavão | C77: 661 | D77: 7 | E77: 1.06% | F77: 0 | G77: 0.00% | H77: 250 | I77: 22 | J77: 8.80% | K77: 0 | L77: 0.00% | M77: 528 | N77: 63 | O77: 11.93% | P77: 1 | Q77: 0.19% | R77: 650 | S77: 72 | T77: 11.08% | U77: 2 | V77: 0.31% | W77: 632 | X77: 93 | Y77: 14.72% | Z77: 0 | AA77: 0.00% | AB77: 703 | AC77: 111 | AD77: 15.79% | AE77: 2 | AF77: 0.28% | AG77: 710 | AH77: 123 | AI77: 17.32% | AJ77: 0 | AK77: 0.00% | AL77: 685 | AM77: 113 | AN77: 16.50% | AO77: 3 | AP77: 0.44% | AQ77: 649 | AR77: 105 | AS77: 16.18% | AT77: 3 | AU77: 0.46% | AV77: 574 | AW77: 128 | AX77: 22.30% | AY77: 8 | AZ77: 1.39% | BA77: 500 | BB77: 179 | BC77: 35.80% | BD77: 18 | BE77: 3.60% | BF77: 373 | BG77: 185 | BH77: 49.60% | BI77: 22 | BJ77: 5.90% | BK77: 249 | BL77: 155 | BM77: 62.25% | BN77: 22 | BO77: 8.84% | BP77: 185 | BQ77: 105 | BR77: 56.76% | BS77: 10 | BT77: 5.41% | BU77: 203 | BV77: 118 | BW77: 58.13% | BX77: 8 | BY77: 3.94% | CA77: Vila Pavão | CB77: 7552 | CC77: 1579 | CD77: 0.2090836864 | CE77: 99 | CF77: 0.01310911017
A78: Regional Central | B78: Vila Valério | C78: 1091 | D78: 2 | E78: 0.18% | F78: 0 | G78: 0.00% | H78: 352 | I78: 17 | J78: 4.83% | K78: 0 | L78: 0.00% | M78: 993 | N78: 65 | O78: 6.55% | P78: 0 | Q78: 0.00% | R78: 1036 | S78: 83 | T78: 8.01% | U78: 0 | V78: 0.00% | W78: 1042 | X78: 75 | Y78: 7.20% | Z78: 0 | AA78: 0.00% | AB78: 1102 | AC78: 93 | AD78: 8.44% | AE78: 0 | AF78: 0.00% | AG78: 1163 | AH78: 104 | AI78: 8.94% | AJ78: 0 | AK78: 0.00% | AL78: 983 | AM78: 101 | AN78: 10.27% | AO78: 0 | AP78: 0.00% | AQ78: 869 | AR78: 134 | AS78: 15.42% | AT78: 0 | AU78: 0.00% | AV78: 844 | AW78: 127 | AX78: 15.05% | AY78: 0 | AZ78: 0.00% | BA78: 693 | BB78: 203 | BC78: 29.29% | BD78: 3 | BE78: 0.43% | BF78: 532 | BG78: 213 | BH78: 40.04% | BI78: 5 | BJ78: 0.94% | BK78: 403 | BL78: 163 | BM78: 40.45% | BN78: 4 | BO78: 0.99% | BP78: 240 | BQ78: 119 | BR78: 49.58% | BS78: 3 | BT78: 1.25% | BU78: 292 | BV78: 127 | BW78: 43.49% | BX78: 8 | BY78: 2.74% | CA78: Vila Valério | CB78: 11635 | CC78: 1626 | CD78: 0.139750752 | CE78: 23 | CF78: 0.001976794156
A79: Regional Metropolitana | B79: Vila Velha | C79: 33559 | D79: 221 | E79: 0.66% | F79: 4 | G79: 0.01% | H79: 11690 | I79: 1245 | J79: 10.65% | K79: 5 | L79: 0.04% | M79: 34117 | N79: 4578 | O79: 13.42% | P79: 110 | Q79: 0.32% | R79: 35678 | S79: 5382 | T79: 15.08% | U79: 152 | V79: 0.43% | W79: 37276 | X79: 5509 | Y79: 14.78% | Z79: 153 | AA79: 0.41% | AB79: 39602 | AC79: 6071 | AD79: 15.33% | AE79: 179 | AF79: 0.45% | AG79: 39329 | AH79: 6783 | AI79: 17.25% | AJ79: 252 | AK79: 0.64% | AL79: 31720 | AM79: 6363 | AN79: 20.06% | AO79: 222 | AP79: 0.70% | AQ79: 30013 | AR79: 5992 | AS79: 19.96% | AT79: 210 | AU79: 0.70% | AV79: 28733 | AW79: 6953 | AX79: 24.20% | AY79: 253 | AZ79: 0.88% | BA79: 25601 | BB79: 8931 | BC79: 34.89% | BD79: 1457 | BE79: 5.69% | BF79: 20643 | BG79: 9099 | BH79: 44.08% | BI79: 1751 | BJ79: 8.48% | BK79: 14310 | BL79: 7128 | BM79: 49.81% | BN79: 1300 | BO79: 9.08% | BP79: 9116 | BQ79: 4753 | BR79: 52.14% | BS79: 829 | BT79: 9.09% | BU79: 11379 | BV79: 6105 | BW79: 53.65% | BX79: 906 | BY79: 7.96% | CA79: Vila Velha | CB79: 402766 | CC79: 85113 | CD79: 0.2113212138 | CE79: 7783 | CF79: 0.0193238754
A80: Regional Metropolitana | B80: Vitória | C80: 21536 | D80: 379 | E80: 1.76% | F80: 6 | G80: 0.03% | H80: 7743 | I80: 1085 | J80: 14.01% | K80: 8 | L80: 0.10% | M80: 22666 | N80: 3925 | O80: 17.32% | P80: 48 | Q80: 0.21% | R80: 23212 | S80: 4946 | T80: 21.31% | U80: 78 | V80: 0.34% | W80: 23980 | X80: 4806 | Y80: 20.04% | Z80: 91 | AA80: 0.38% | AB80: 26637 | AC80: 5919 | AD80: 22.22% | AE80: 129 | AF80: 0.48% | AG80: 26887 | AH80: 6920 | AI80: 25.74% | AJ80: 152 | AK80: 0.57% | AL80: 22069 | AM80: 6528 | AN80: 29.58% | AO80: 151 | AP80: 0.68% | AQ80: 20112 | AR80: 5914 | AS80: 29.41% | AT80: 169 | AU80: 0.84% | AV80: 20532 | AW80: 6921 | AX80: 33.71% | AY80: 241 | AZ80: 1.17% | BA80: 19349 | BB80: 8933 | BC80: 46.17% | BD80: 1758 | BE80: 9.09% | BF80: 16196 | BG80: 9150 | BH80: 56.50% | BI80: 2146 | BJ80: 13.25% | BK80: 11644 | BL80: 7055 | BM80: 60.59% | BN80: 1728 | BO80: 14.84% | BP80: 7493 | BQ80: 4771 | BR80: 63.67% | BS80: 1128 | BT80: 15.05% | BU80: 10123 | BV80: 6866 | BW80: 67.83% | BX80: 1588 | BY80: 15.69% | CA80: Vitória | CB80: 280179 | CC80: 84118 | CD80: 0.3002294961 | CE80: 9421 | CF80: 0.03362493263
B81: TOTAL ESPÍRITO SANTO | C81: =SUM(C3:C80) -> 300898 | D81: =SUM(D3:D80) -> 3073 | E81: =D81/C81 -> 0.01021276313 | F81: =SUM(F3:F80) -> 64 | G81: =F81/C81 -> 0.0002126966613 | H81: =SUM(H3:H80) -> 103299 | I81: =SUM(I3:I80) -> 9794 | J81: =I81/H81 -> 0.09481214726 | K81: =SUM(K3:K80) -> 66 | L81: =K81/H81 -> 0.0006389219644 | M81: =SUM(M3:M80) -> 276033 | N81: =SUM(N3:N80) -> 32507 | O81: =N81/M81 -> 0.1177649049 | P81: =SUM(P3:P80) -> 405 | Q81: =P81/M81 -> 0.001467215876 | R81: =SUM(R3:R80) -> 279424 | S81: =SUM(S3:S80) -> 37709 | T81: =S81/R81 -> 0.1349526168 | U81: =SUM(U3:U80) -> 563 | V81: =U81/R81 -> 0.002014859139 | W81: =SUM(W3:W80) -> 291550 | X81: =SUM(X3:X80) -> 37694 | Y81: =X81/W81 -> 0.1292882867 | Z81: =SUM(Z3:Z80) -> 559 | AA81: =Z81/W81 -> 0.001917338364 | AB81: =SUM(AB3:AB80) -> 313839 | AC81: =SUM(AC3:AC80) -> 43839 | AD81: =AC81/AB81 -> 0.1396862723 | AE81: =SUM(AE3:AE80) -> 680 | AF81: =AE81/AB81 -> 0.002166716055 | AG81: =SUM(AG3:AG80) -> 315396 | AH81: =SUM(AH3:AH80) -> 48378 | AI81: =AH81/AG81 -> 0.1533881216 | AJ81: =SUM(AJ3:AJ80) -> 863 | AK81: =AJ81/AG81 -> 0.002736242692 | AL81: =SUM(AL3:AL80) -> 260955 | AM81: =SUM(AM3:AM80) -> 45547 | AN81: =AM81/AL81 -> 0.1745396716 | AO81: =SUM(AO3:AO80) -> 786 | AP81: =AO81/AL81 -> 0.003012013566 | AQ81: =SUM(AQ3:AQ80) -> 242363 | AR81: =SUM(AR3:AR80) -> 43792 | AS81: =AR81/AQ81 -> 0.1806876462 | AT81: =SUM(AT3:AT80) -> 855 | AU81: =AT81/AQ81 -> 0.003527766202 | AV81: =SUM(AV3:AV80) -> 225229 | AW81: =SUM(AW3:AW80) -> 49227 | AX81: =AW81/AV81 -> 0.2185642169 | AY81: =SUM(AY3:AY80) -> 1047 | AZ81: =AY81/AV81 -> 0.004648602089 | BA81: =SUM(BA3:BA80) -> 200415 | BB81: =SUM(BB3:BB80) -> 67384 | BC81: =BB81/BA81 -> 0.3362223386 | BD81: =SUM(BD3:BD80) -> 7762 | BE81: =BD81/BA81 -> 0.03872963601 | BF81: =SUM(BF3:BF80) -> 161788 | BG81: =SUM(BG3:BG80) -> 70792 | BH81: =BG81/BF81 -> 0.437560264 | BI81: =SUM(BI3:BI80) -> 9605 | BJ81: =BI81/BF81 -> 0.05936781467 | BK81: =SUM(BK3:BK80) -> 111235 | BL81: =SUM(BL3:BL80) -> 56460 | BM81: =BL81/BK81 -> 0.5075740549 | BN81: =SUM(BN3:BN80) -> 7887 | BO81: =BN81/BK81 -> 0.0709039421 | BP81: =SUM(BP3:BP80) -> 70070 | BQ81: =SUM(BQ3:BQ80) -> 37475 | BR81: =BQ81/BP81 -> 0.5348223205 | BS81: =SUM(BS3:BS80) -> 4912 | BT81: =BS81/BP81 -> 0.07010132724 | BU81: =SUM(BU3:BU80) -> 87890 | BV81: =SUM(BV3:BV80) -> 47767 | BW81: =BV81/BU81 -> 0.5434861759 | BX81: =SUM(BX3:BX80) -> 5490 | BY81: =BX81/BU81 -> 0.06246444419 | CA81: TOTAL ESPÍRITO SANTO | CB81: 3240384 | CC81: 631438 | CD81: 0.1948651765 | CE81: 41544 | CF81: 0.01282070273
B82: Regional Metropolitana | C82: =SUMIF($A$3:$A$80,$B82,C$3:C$80) -> 176348 | D82: =SUMIF($A$3:$A$80,$B82,D$3:D$80) -> 2210 | E82: =D82/C82 -> 0.01253203892 | F82: =SUMIF($A$3:$A$80,$B82,F$3:F$80) -> 52 | G82: =F82/C82 -> 0.0002948715041 | H82: =SUMIF($A$3:$A$80,$B82,H$3:H$80) -> 60323 | I82: =SUMIF($A$3:$A$80,$B82,I$3:I$80) -> 6511 | J82: =I82/H82 -> 0.1079356133 | K82: =SUMIF($A$3:$A$80,$B82,K$3:K$80) -> 51 | L82: =K82/H82 -> 0.000845448668 | M82: =SUMIF($A$3:$A$80,$B82,M$3:M$80) -> 165481 | N82: =SUMIF($A$3:$A$80,$B82,N$3:N$80) -> 22048 | O82: =N82/M82 -> 0.1332358398 | P82: =SUMIF($A$3:$A$80,$B82,P$3:P$80) -> 332 | Q82: =P82/M82 -> 0.002006272623 | R82: =SUMIF($A$3:$A$80,$B82,R$3:R$80) -> 167614 | S82: =SUMIF($A$3:$A$80,$B82,S$3:S$80) -> 25804 | T82: =S82/R82 -> 0.1539489541 | U82: =SUMIF($A$3:$A$80,$B82,U$3:U$80) -> 465 | V82: =U82/R82 -> 0.002774231269 | W82: =SUMIF($A$3:$A$80,$B82,W$3:W$80) -> 176453 | X82: =SUMIF($A$3:$A$80,$B82,X$3:X$80) -> 25756 | Y82: =X82/W82 -> 0.1459652145 | Z82: =SUMIF($A$3:$A$80,$B82,Z$3:Z$80) -> 468 | AA82: =Z82/W82 -> 0.002652264342 | AB82: =SUMIF($A$3:$A$80,$B82,AB$3:AB$80) -> 191072 | AC82: =SUMIF($A$3:$A$80,$B82,AC$3:AC$80) -> 29865 | AD82: =AC82/AB82 -> 0.1563023363 | AE82: =SUMIF($A$3:$A$80,$B82,AE$3:AE$80) -> 565 | AF82: =AE82/AB82 -> 0.002957000502 | AG82: =SUMIF($A$3:$A$80,$B82,AG$3:AG$80) -> 190456 | AH82: =SUMIF($A$3:$A$80,$B82,AH$3:AH$80) -> 32922 | AI82: =AH82/AG82 -> 0.172858823 | AJ82: =SUMIF($A$3:$A$80,$B82,AJ$3:AJ$80) -> 726 | AK82: =AJ82/AG82 -> 0.003811904062 | AL82: =SUMIF($A$3:$A$80,$B82,AL$3:AL$80) -> 155329 | AM82: =SUMIF($A$3:$A$80,$B82,AM$3:AM$80) -> 30635 | AN82: =AM82/AL82 -> 0.1972265321 | AO82: =SUMIF($A$3:$A$80,$B82,AO$3:AO$80) -> 653 | AP82: =AO82/AL82 -> 0.004203979939 | AQ82: =SUMIF($A$3:$A$80,$B82,AQ$3:AQ$80) -> 142027 | AR82: =SUMIF($A$3:$A$80,$B82,AR$3:AR$80) -> 28659 | AS82: =AR82/AQ82 -> 0.201785576 | AT82: =SUMIF($A$3:$A$80,$B82,AT$3:AT$80) -> 692 | AU82: =AT82/AQ82 -> 0.004872313011 | AV82: =SUMIF($A$3:$A$80,$B82,AV$3:AV$80) -> 131470 | AW82: =SUMIF($A$3:$A$80,$B82,AW$3:AW$80) -> 31750 | AX82: =AW82/AV82 -> 0.241499962 | AY82: =SUMIF($A$3:$A$80,$B82,AY$3:AY$80) -> 823 | AZ82: =AY82/AV82 -> 0.006259983266 | BA82: =SUMIF($A$3:$A$80,$B82,BA$3:BA$80) -> 117912 | BB82: =SUMIF($A$3:$A$80,$B82,BB$3:BB$80) -> 42269 | BC82: =BB82/BA82 -> 0.3584792048 | BD82: =SUMIF($A$3:$A$80,$B82,BD$3:BD$80) -> 6026 | BE82: =BD82/BA82 -> 0.05110590949 | BF82: =SUMIF($A$3:$A$80,$B82,BF$3:BF$80) -> 95017 | BG82: =SUMIF($A$3:$A$80,$B82,BG$3:BG$80) -> 43723 | BH82: =BG82/BF82 -> 0.4601597609 | BI82: =SUMIF($A$3:$A$80,$B82,BI$3:BI$80) -> 7482 | BJ82: =BI82/BF82 -> 0.07874380374 | BK82: =SUMIF($A$3:$A$80,$B82,BK$3:BK$80) -> 64819 | BL82: =SUMIF($A$3:$A$80,$B82,BL$3:BL$80) -> 34383 | BM82: =BL82/BK82 -> 0.5304463198 | BN82: =SUMIF($A$3:$A$80,$B82,BN$3:BN$80) -> 6021 | BO82: =BN82/BK82 -> 0.09288943057 | BP82: =SUMIF($A$3:$A$80,$B82,BP$3:BP$80) -> 40078 | BQ82: =SUMIF($A$3:$A$80,$B82,BQ$3:BQ$80) -> 22233 | BR82: =BQ82/BP82 -> 0.5547432507 | BS82: =SUMIF($A$3:$A$80,$B82,BS$3:BS$80) -> 3738 | BT82: =BS82/BP82 -> 0.09326812715 | BU82: =SUMIF($A$3:$A$80,$B82,BU$3:BU$80) -> 49239 | BV82: =SUMIF($A$3:$A$80,$B82,BV$3:BV$80) -> 28040 | BW82: =BV82/BU82 -> 0.5694672922 | BX82: =SUMIF($A$3:$A$80,$B82,BX$3:BX$80) -> 4169 | BY82: =BX82/BU82 -> 0.08466865696 | CA82: Regional Metropolitana | CB82: 1923638 | CC82: 406808 | CD82: 0.211478459 | CE82: 32263 | CF82: 0.01677186664
B83: Regional Norte | C83: =SUMIF($A$3:$A$80,$B83,C$3:C$80) -> 34282 | D83: 300 | E83: =D83/C83 -> 0.008750948019 | F83: 3 | G83: =F83/C83 -> 8.750948019e-05 | H83: =SUMIF($A$3:$A$80,$B83,H$3:H$80) -> 11775 | I83: 834 | J83: =I83/H83 -> 0.07082802548 | K83: 2 | L83: =K83/H83 -> 0.00016985138 | M83: =SUMIF($A$3:$A$80,$B83,M$3:M$80) -> 29086 | N83: 2783 | O83: =N83/M83 -> 0.0956817713 | P83: 20 | Q83: =P83/M83 -> 0.0006876160352 | R83: =SUMIF($A$3:$A$80,$B83,R$3:R$80) -> 28983 | S83: 3236 | T83: =S83/R83 -> 0.1116516579 | U83: 30 | V83: =U83/R83 -> 0.001035089535 | W83: =SUMIF($A$3:$A$80,$B83,W$3:W$80) -> 28695 | X83: 3067 | Y83: =X83/W83 -> 0.1068827322 | Z83: 25 | AA83: =Z83/W83 -> 0.0008712319219 | AB83: =SUMIF($A$3:$A$80,$B83,AB$3:AB$80) -> 31444 | AC83: 3677 | AD83: =AC83/AB83 -> 0.1169380486 | AE83: 25 | AF83: =AE83/AB83 -> 0.0007950642412 | AG83: =SUMIF($A$3:$A$80,$B83,AG$3:AG$80) -> 31855 | AH83: 4094 | AI83: =AH83/AG83 -> 0.1285198556 | AJ83: 34 | AK83: =AJ83/AG83 -> 0.001067336368 | AL83: =SUMIF($A$3:$A$80,$B83,AL$3:AL$80) -> 27954 | AM83: 3959 | AN83: =AM83/AL83 -> 0.1416255277 | AO83: 37 | AP83: =AO83/AL83 -> 0.001323603062 | AQ83: =SUMIF($A$3:$A$80,$B83,AQ$3:AQ$80) -> 25808 | AR83: 3907 | AS83: =AR83/AQ83 -> 0.1513871668 | AT83: 53 | AU83: =AT83/AQ83 -> 0.002053626782 | AV83: =SUMIF($A$3:$A$80,$B83,AV$3:AV$80) -> 23724 | AW83: 4142 | AX83: =AW83/AV83 -> 0.1745911313 | AY83: 71 | AZ83: =AY83/AV83 -> 0.002992749958 | BA83: =SUMIF($A$3:$A$80,$B83,BA$3:BA$80) -> 20472 | BB83: 6066 | BC83: =BB83/BA83 -> 0.2963071512 | BD83: 509 | BE83: =BD83/BA83 -> 0.02486322782 | BF83: =SUMIF($A$3:$A$80,$B83,BF$3:BF$80) -> 16295 | BG83: 6279 | BH83: =BG83/BF83 -> 0.3853329242 | BI83: 590 | BJ83: =BI83/BF83 -> 0.03620742559 | BK83: =SUMIF($A$3:$A$80,$B83,BK$3:BK$80) -> 11297 | BL83: 5072 | BM83: =BL83/BK83 -> 0.4489687528 | BN83: 546 | BO83: =BN83/BK83 -> 0.04833141542 | BP83: =SUMIF($A$3:$A$80,$B83,BP$3:BP$80) -> 7308 | BQ83: 3488 | BR83: =BQ83/BP83 -> 0.4772851669 | BS83: 320 | BT83: =BS83/BP83 -> 0.04378762999 | BU83: =SUMIF($A$3:$A$80,$B83,BU$3:BU$80) -> 9254 | BV83: 4487 | BW83: =BV83/BU83 -> 0.484871407 | BX83: 349 | BY83: =BX83/BU83 -> 0.03771342122 | CA83: Regional Norte | CB83: 338232 | CC83: 55391 | CD83: 0.1637662906 | CE83: 2614 | CF83: 0.007728423094
B84: Regional Central | C84: 39856 | D84: 155 | E84: =D84/C84 -> 0.003889000401 | F84: 1 | G84: =F84/C84 -> 2.509032517e-05 | H84: 13805 | I84: 874 | J84: =I84/H84 -> 0.06331039478 | K84: 5 | L84: =K84/H84 -> 0.0003621876132 | M84: 36486 | N84: 2905 | O84: =N84/M84 -> 0.07961958011 | P84: 18 | Q84: =P84/M84 -> 0.0004933399112 | R84: 37160 | S84: 3373 | T84: =S84/R84 -> 0.09076964478 | U84: 24 | V84: =U84/R84 -> 0.0006458557589 | W84: 38246 | X84: 3307 | Y84: =X84/W84 -> 0.08646655859 | Z84: 25 | AA84: =Z84/W84 -> 0.0006536631282 | AB84: 40255 | AC84: 3790 | AD84: =AC84/AB84 -> 0.09414979506 | AE84: 34 | AF84: =AE84/AB84 -> 0.0008446155757 | AG84: 40954 | AH84: 4115 | AI84: =AH84/AG84 -> 0.1004785857 | AJ84: 38 | AK84: =AJ84/AG84 -> 0.0009278702935 | AL84: 33797 | AM84: 3900 | AN84: =AM84/AL84 -> 0.1153948575 | AO84: 33 | AP84: =AO84/AL84 -> 0.0009764180253 | AQ84: 32113 | AR84: 4236 | AS84: =AR84/AQ84 -> 0.1319091957 | AT84: 39 | AU84: =AT84/AQ84 -> 0.001214461433 | AV84: 28983 | AW84: 4941 | AX84: =AW84/AV84 -> 0.1704792465 | AY84: 42 | AZ84: =AY84/AV84 -> 0.001449125349 | BA84: 25194 | BB84: 7179 | BC84: =BB84/BA84 -> 0.2849487973 | BD84: 374 | BE84: =BD84/BA84 -> 0.01484480432 | BF84: 20238 | BG84: 7971 | BH84: =BG84/BF84 -> 0.3938630299 | BI84: 434 | BJ84: =BI84/BF84 -> 0.0214448068 | BK84: 13909 | BL84: 6619 | BM84: =BL84/BK84 -> 0.4758789273 | BN84: 347 | BO84: =BN84/BK84 -> 0.02494787548 | BP84: 9300 | BQ84: 4643 | BR84: =BQ84/BP84 -> 0.4992473118 | BS84: 243 | BT84: =BS84/BP84 -> 0.02612903226 | BU84: 11836 | BV84: 5660 | BW84: =BV84/BU84 -> 0.4782020953 | BX84: 265 | BY84: =BX84/BU84 -> 0.02238932072 | CA84: Regional Central | CB84: 422132 | CC84: 63668 | CD84: 0.1508248605 | CE84: 1922 | CF84: 0.004553078184
B85: Regional Sul | C85: 50412 | D85: 408 | E85: =D85/C85 -> 0.008093311116 | F85: 8 | G85: =F85/C85 -> 0.0001586923748 | H85: 17396 | I85: 1575 | J85: =I85/H85 -> 0.09053805473 | K85: 8 | L85: =K85/H85 -> 0.0004598758335 | M85: 44980 | N85: 4771 | O85: =N85/M85 -> 0.1060693642 | P85: 35 | Q85: =P85/M85 -> 0.0007781236105 | R85: 45667 | S85: 5296 | T85: =S85/R85 -> 0.1159699564 | U85: 44 | V85: =U85/R85 -> 0.0009634966168 | W85: 48156 | X85: 5564 | Y85: =X85/W85 -> 0.1155411579 | Z85: 41 | AA85: =Z85/W85 -> 0.0008513996179 | AB85: 51068 | AC85: 6507 | AD85: =AC85/AB85 -> 0.1274183442 | AE85: 56 | AF85: =AE85/AB85 -> 0.001096577113 | AG85: 52131 | AH85: 7247 | AI85: =AH85/AG85 -> 0.1390151733 | AJ85: 65 | AK85: =AJ85/AG85 -> 0.001246858875 | AL85: 43875 | AM85: 7053 | AN85: =AM85/AL85 -> 0.1607521368 | AO85: 63 | AP85: =AO85/AL85 -> 0.001435897436 | AQ85: 42415 | AR85: 6990 | AS85: =AR85/AQ85 -> 0.1648001886 | AT85: 71 | AU85: =AT85/AQ85 -> 0.001673936108 | AV85: 41052 | AW85: 8394 | AX85: =AW85/AV85 -> 0.2044723765 | AY85: 111 | AZ85: =AY85/AV85 -> 0.002703887752 | BA85: 36837 | BB85: 11870 | BC85: =BB85/BA85 -> 0.3222303662 | BD85: 853 | BE85: =BD85/BA85 -> 0.02315606591 | BF85: 30238 | BG85: 12819 | BH85: =BG85/BF85 -> 0.4239367683 | BI85: 1099 | BJ85: =BI85/BF85 -> 0.03634499636 | BK85: 21210 | BL85: 10386 | BM85: =BL85/BK85 -> 0.4896746818 | BN85: 973 | BO85: =BN85/BK85 -> 0.04587458746 | BP85: 13384 | BQ85: 7111 | BR85: =BQ85/BP85 -> 0.5313060371 | BS85: 611 | BT85: =BS85/BP85 -> 0.04565152421 | BU85: 17561 | BV85: 9580 | BW85: =BV85/BU85 -> 0.5455270201 | BX85: 707 | BY85: =BX85/BU85 -> 0.04025966631 | CA85: Regional Sul | CB85: 556382 | CC85: 105571 | CD85: 0.1897455345 | CE85: 4745 | CF85: 0.008528313281
C90: ='Bivalente - resid'!E2 -> COBERTURA VACINAL REFORÇO BIVALENTE | D90: ='Bivalente - resid'!G2 -> 2º COBERTURA VACINAL REFORÇO BIVALENTE | E90: ='Bivalente - resid'!J2 -> COBERTURA VACINAL REFORÇO BIVALENTE | F90: ='Bivalente - resid'!L2 -> 2º COBERTURA VACINAL REFORÇO BIVALENTE | G90: ='Bivalente - resid'!O2 -> COBERTURA VACINAL REFORÇO BIVALENTE | H90: ='Bivalente - resid'!Q2 -> 2º COBERTURA VACINAL REFORÇO BIVALENTE | I90: ='Bivalente - resid'!T2 -> COBERTURA VACINAL REFORÇO BIVALENTE | J90: ='Bivalente - resid'!V2 -> 2º COBERTURA VACINAL REFORÇO BIVALENTE | K90: ='Bivalente - resid'!Y2 -> COBERTURA VACINAL REFORÇO BIVALENTE | L90: ='Bivalente - resid'!AA2 -> 2º COBERTURA VACINAL REFORÇO BIVALENTE | M90: ='Bivalente - resid'!AD2 -> COBERTURA VACINAL REFORÇO BIVALENTE | N90: ='Bivalente - resid'!AF2 -> 2º COBERTURA VACINAL REFORÇO BIVALENTE | O90: ='Bivalente - resid'!AI2 -> COBERTURA VACINAL REFORÇO BIVALENTE | P90: ='Bivalente - resid'!AK2 -> 2º COBERTURA VACINAL REFORÇO BIVALENTE | Q90: ='Bivalente - resid'!AN2 -> COBERTURA VACINAL REFORÇO BIVALENTE | R90: ='Bivalente - resid'!AP2 -> 2º COBERTURA VACINAL REFORÇO BIVALENTE | S90: ='Bivalente - resid'!AS2 -> COBERTURA VACINAL REFORÇO BIVALENTE | T90: ='Bivalente - resid'!AU2 -> 2º COBERTURA VACINAL REFORÇO BIVALENTE | U90: ='Bivalente - resid'!AX2 -> COBERTURA VACINAL REFORÇO BIVALENTE | V90: ='Bivalente - resid'!AZ2 -> 2º COBERTURA VACINAL REFORÇO BIVALENTE | W90: ='Bivalente - resid'!BC2 -> COBERTURA VACINAL REFORÇO BIVALENTE | X90: ='Bivalente - resid'!BE2 -> 2º COBERTURA VACINAL REFORÇO BIVALENTE | Y90: ='Bivalente - resid'!BH2 -> COBERTURA VACINAL REFORÇO BIVALENTE | Z90: ='Bivalente - resid'!BJ2 -> 2º COBERTURA VACINAL REFORÇO BIVALENTE | AA90: ='Bivalente - resid'!BM2 -> COBERTURA VACINAL REFORÇO BIVALENTE | AB90: ='Bivalente - resid'!BO2 -> 2º COBERTURA VACINAL REFORÇO BIVALENTE | AC90: ='Bivalente - resid'!BR2 -> COBERTURA VACINAL REFORÇO BIVALENTE | AD90: ='Bivalente - resid'!BT2 -> 2º COBERTURA VACINAL REFORÇO BIVALENTE | AE90: ='Bivalente - resid'!BW2 -> COBERTURA VACINAL REFORÇO BIVALENTE | AF90: ='Bivalente - resid'!BY2 -> 2º COBERTURA VACINAL REFORÇO BIVALENTE
C91: 12 A 17 ANOS | D91: 12 A 17 ANOS | E91: 18 A 19 ANOS | F91: 18 A 19 ANOS | G91: 20 A 24 ANOS | H91: 20 A 24 ANOS | I91: 25 A 29 ANOS | J91: 25 A 29 ANOS | K91: 30 A 34 ANOS | L91: 30 A 34 ANOS | M91: 35 A 39 ANOS | N91: 35 A 39 ANOS | O91: 40 A 44 ANOS | P91: 40 A 44 ANOS | Q91: 45 A 49 ANOS | R91: 45 A 49 ANOS | S91: 50 A 54 ANOS | T91: 50 A 54 ANOS | U91: 55 A 59 ANOS | V91: 55 A 59 ANOS | W91: 60 A 64 ANOS | X91: 60 A 64 ANOS | Y91: 65 A 69 ANOS | Z91: 65 A 69 ANOS | AA91: 70 A 74 ANOS | AB91: 70 A 74 ANOS | AC91: 75 A 79 ANOS | AD91: 75 A 79 ANOS | AE91: 80 ANOS OU MAIS | AF91: 80 ANOS OU MAIS
B92: ='Bivalente - resid'!B81 -> TOTAL ESPÍRITO SANTO | C92: ='Bivalente - resid'!E81 -> 0.01021276313 | D92: ='Bivalente - resid'!G81 -> 0.0002126966613 | E92: ='Bivalente - resid'!J81 -> 0.09481214726 | F92: ='Bivalente - resid'!L81 -> 0.0006389219644 | G92: ='Bivalente - resid'!O81 -> 0.1177649049 | H92: ='Bivalente - resid'!Q81 -> 0.001467215876 | I92: ='Bivalente - resid'!T81 -> 0.1349526168 | J92: ='Bivalente - resid'!V81 -> 0.002014859139 | K92: ='Bivalente - resid'!Y81 -> 0.1292882867 | L92: ='Bivalente - resid'!AA81 -> 0.001917338364 | M92: ='Bivalente - resid'!AD81 -> 0.1396862723 | N92: ='Bivalente - resid'!AF81 -> 0.002166716055 | O92: ='Bivalente - resid'!AI81 -> 0.1533881216 | P92: ='Bivalente - resid'!AK81 -> 0.002736242692 | Q92: ='Bivalente - resid'!AN81 -> 0.1745396716 | R92: ='Bivalente - resid'!AP81 -> 0.003012013566 | S92: ='Bivalente - resid'!AS81 -> 0.1806876462 | T92: ='Bivalente - resid'!AU81 -> 0.003527766202 | U92: ='Bivalente - resid'!AX81 -> 0.2185642169 | V92: ='Bivalente - resid'!AZ81 -> 0.004648602089 | W92: ='Bivalente - resid'!BC81 -> 0.3362223386 | X92: ='Bivalente - resid'!BE81 -> 0.03872963601 | Y92: ='Bivalente - resid'!BH81 -> 0.437560264 | Z92: ='Bivalente - resid'!BJ81 -> 0.05936781467 | AA92: ='Bivalente - resid'!BM81 -> 0.5075740549 | AB92: ='Bivalente - resid'!BO81 -> 0.0709039421 | AC92: ='Bivalente - resid'!BR81 -> 0.5348223205 | AD92: ='Bivalente - resid'!BT81 -> 0.07010132724 | AE92: ='Bivalente - resid'!BW81 -> 0.5434861759 | AF92: ='Bivalente - resid'!BY81 -> 0.06246444419
B93: ='Bivalente - resid'!B82 -> Regional Metropolitana | C93: ='Bivalente - resid'!E82 -> 0.01253203892 | D93: ='Bivalente - resid'!G82 -> 0.0002948715041 | E93: ='Bivalente - resid'!J82 -> 0.1079356133 | F93: ='Bivalente - resid'!L82 -> 0.000845448668 | G93: ='Bivalente - resid'!O82 -> 0.1332358398 | H93: ='Bivalente - resid'!Q82 -> 0.002006272623 | I93: ='Bivalente - resid'!T82 -> 0.1539489541 | J93: ='Bivalente - resid'!V82 -> 0.002774231269 | K93: ='Bivalente - resid'!Y82 -> 0.1459652145 | L93: ='Bivalente - resid'!AA82 -> 0.002652264342 | M93: ='Bivalente - resid'!AD82 -> 0.1563023363 | N93: ='Bivalente - resid'!AF82 -> 0.002957000502 | O93: ='Bivalente - resid'!AI82 -> 0.172858823 | P93: ='Bivalente - resid'!AK82 -> 0.003811904062 | Q93: ='Bivalente - resid'!AN82 -> 0.1972265321 | R93: ='Bivalente - resid'!AP82 -> 0.004203979939 | S93: ='Bivalente - resid'!AS82 -> 0.201785576 | T93: ='Bivalente - resid'!AU82 -> 0.004872313011 | U93: ='Bivalente - resid'!AX82 -> 0.241499962 | V93: ='Bivalente - resid'!AZ82 -> 0.006259983266 | W93: ='Bivalente - resid'!BC82 -> 0.3584792048 | X93: ='Bivalente - resid'!BE82 -> 0.05110590949 | Y93: ='Bivalente - resid'!BH82 -> 0.4601597609 | Z93: ='Bivalente - resid'!BJ82 -> 0.07874380374 | AA93: ='Bivalente - resid'!BM82 -> 0.5304463198 | AB93: ='Bivalente - resid'!BO82 -> 0.09288943057 | AC93: ='Bivalente - resid'!BR82 -> 0.5547432507 | AD93: ='Bivalente - resid'!BT82 -> 0.09326812715 | AE93: ='Bivalente - resid'!BW82 -> 0.5694672922 | AF93: ='Bivalente - resid'!BY82 -> 0.08466865696
B94: ='Bivalente - resid'!B83 -> Regional Norte | C94: ='Bivalente - resid'!E83 -> 0.008750948019 | D94: ='Bivalente - resid'!G83 -> 8.750948019e-05 | E94: ='Bivalente - resid'!J83 -> 0.07082802548 | F94: ='Bivalente - resid'!L83 -> 0.00016985138 | G94: ='Bivalente - resid'!O83 -> 0.0956817713 | H94: ='Bivalente - resid'!Q83 -> 0.0006876160352 | I94: ='Bivalente - resid'!T83 -> 0.1116516579 | J94: ='Bivalente - resid'!V83 -> 0.001035089535 | K94: ='Bivalente - resid'!Y83 -> 0.1068827322 | L94: ='Bivalente - resid'!AA83 -> 0.0008712319219 | M94: ='Bivalente - resid'!AD83 -> 0.1169380486 | N94: ='Bivalente - resid'!AF83 -> 0.0007950642412 | O94: ='Bivalente - resid'!AI83 -> 0.1285198556 | P94: ='Bivalente - resid'!AK83 -> 0.001067336368 | Q94: ='Bivalente - resid'!AN83 -> 0.1416255277 | R94: ='Bivalente - resid'!AP83 -> 0.001323603062 | S94: ='Bivalente - resid'!AS83 -> 0.1513871668 | T94: ='Bivalente - resid'!AU83 -> 0.002053626782 | U94: ='Bivalente - resid'!AX83 -> 0.1745911313 | V94: ='Bivalente - resid'!AZ83 -> 0.002992749958 | W94: ='Bivalente - resid'!BC83 -> 0.2963071512 | X94: ='Bivalente - resid'!BE83 -> 0.02486322782 | Y94: ='Bivalente - resid'!BH83 -> 0.3853329242 | Z94: ='Bivalente - resid'!BJ83 -> 0.03620742559 | AA94: ='Bivalente - resid'!BM83 -> 0.4489687528 | AB94: ='Bivalente - resid'!BO83 -> 0.04833141542 | AC94: ='Bivalente - resid'!BR83 -> 0.4772851669 | AD94: ='Bivalente - resid'!BT83 -> 0.04378762999 | AE94: ='Bivalente - resid'!BW83 -> 0.484871407 | AF94: ='Bivalente - resid'!BY83 -> 0.03771342122
B95: ='Bivalente - resid'!B84 -> Regional Central | C95: ='Bivalente - resid'!E84 -> 0.003889000401 | D95: ='Bivalente - resid'!G84 -> 2.509032517e-05 | E95: ='Bivalente - resid'!J84 -> 0.06331039478 | F95: ='Bivalente - resid'!L84 -> 0.0003621876132 | G95: ='Bivalente - resid'!O84 -> 0.07961958011 | H95: ='Bivalente - resid'!Q84 -> 0.0004933399112 | I95: ='Bivalente - resid'!T84 -> 0.09076964478 | J95: ='Bivalente - resid'!V84 -> 0.0006458557589 | K95: ='Bivalente - resid'!Y84 -> 0.08646655859 | L95: ='Bivalente - resid'!AA84 -> 0.0006536631282 | M95: ='Bivalente - resid'!AD84 -> 0.09414979506 | N95: ='Bivalente - resid'!AF84 -> 0.0008446155757 | O95: ='Bivalente - resid'!AI84 -> 0.1004785857 | P95: ='Bivalente - resid'!AK84 -> 0.0009278702935 | Q95: ='Bivalente - resid'!AN84 -> 0.1153948575 | R95: ='Bivalente - resid'!AP84 -> 0.0009764180253 | S95: ='Bivalente - resid'!AS84 -> 0.1319091957 | T95: ='Bivalente - resid'!AU84 -> 0.001214461433 | U95: ='Bivalente - resid'!AX84 -> 0.1704792465 | V95: ='Bivalente - resid'!AZ84 -> 0.001449125349 | W95: ='Bivalente - resid'!BC84 -> 0.2849487973 | X95: ='Bivalente - resid'!BE84 -> 0.01484480432 | Y95: ='Bivalente - resid'!BH84 -> 0.3938630299 | Z95: ='Bivalente - resid'!BJ84 -> 0.0214448068 | AA95: ='Bivalente - resid'!BM84 -> 0.4758789273 | AB95: ='Bivalente - resid'!BO84 -> 0.02494787548 | AC95: ='Bivalente - resid'!BR84 -> 0.4992473118 | AD95: ='Bivalente - resid'!BT84 -> 0.02612903226 | AE95: ='Bivalente - resid'!BW84 -> 0.4782020953 | AF95: ='Bivalente - resid'!BY84 -> 0.02238932072
B96: ='Bivalente - resid'!B85 -> Regional Sul | C96: ='Bivalente - resid'!E85 -> 0.008093311116 | D96: ='Bivalente - resid'!G85 -> 0.0001586923748 | E96: ='Bivalente - resid'!J85 -> 0.09053805473 | F96: ='Bivalente - resid'!L85 -> 0.0004598758335 | G96: ='Bivalente - resid'!O85 -> 0.1060693642 | H96: ='Bivalente - resid'!Q85 -> 0.0007781236105 | I96: ='Bivalente - resid'!T85 -> 0.1159699564 | J96: ='Bivalente - resid'!V85 -> 0.0009634966168 | K96: ='Bivalente - resid'!Y85 -> 0.1155411579 | L96: ='Bivalente - resid'!AA85 -> 0.0008513996179 | M96: ='Bivalente - resid'!AD85 -> 0.1274183442 | N96: ='Bivalente - resid'!AF85 -> 0.001096577113 | O96: ='Bivalente - resid'!AI85 -> 0.1390151733 | P96: ='Bivalente - resid'!AK85 -> 0.001246858875 | Q96: ='Bivalente - resid'!AN85 -> 0.1607521368 | R96: ='Bivalente - resid'!AP85 -> 0.001435897436 | S96: ='Bivalente - resid'!AS85 -> 0.1648001886 | T96: ='Bivalente - resid'!AU85 -> 0.001673936108 | U96: ='Bivalente - resid'!AX85 -> 0.2044723765 | V96: ='Bivalente - resid'!AZ85 -> 0.002703887752 | W96: ='Bivalente - resid'!BC85 -> 0.3222303662 | X96: ='Bivalente - resid'!BE85 -> 0.02315606591 | Y96: ='Bivalente - resid'!BH85 -> 0.4239367683 | Z96: ='Bivalente - resid'!BJ85 -> 0.03634499636 | AA96: ='Bivalente - resid'!BM85 -> 0.4896746818 | AB96: ='Bivalente - resid'!BO85 -> 0.04587458746 | AC96: ='Bivalente - resid'!BR85 -> 0.5313060371 | AD96: ='Bivalente - resid'!BT85 -> 0.04565152421 | AE96: ='Bivalente - resid'!BW85 -> 0.5455270201 | AF96: ='Bivalente - resid'!BY85 -> 0.04025966631
B97: META | C97: 0.9 | D97: 0.9 | E97: 0.9 | F97: 0.9 | G97: 0.9 | H97: 0.9 | I97: 0.9 | J97: 0.9 | K97: 0.9 | L97: 0.9 | M97: 0.9 | N97: 0.9 | O97: 0.9 | P97: 0.9 | Q97: 0.9 | R97: 0.9 | S97: 0.9 | T97: 0.9 | U97: 0.9 | V97: 0.9 | W97: 0.9 | X97: 0.9 | Y97: 0.9 | Z97: 0.9 | AA97: 0.9 | AB97: 0.9 | AC97: 0.9 | AD97: 0.9 | AE97: 0.9 | AF97: 0.9

Sheet Bivalente - proced
A1: REGIONAL | B1: MUNICÍPIO | C1: 12 A 17 ANOS | H1: 18 A 19 ANOS | M1: 20 A 24 ANOS | R1: 25 A 29 ANOS | W1: 30 A 34 ANOS | AB1: 35 A 39 ANOS | AG1: 40 A 44 ANOS | AL1: 45 A 49 ANOS | AQ1: 50 A 54 ANOS | AV1: 55 A 59 ANOS | BA1: 60 A 64 ANOS | BF1: 65 A 69 ANOS | BK1: 70 A 74 ANOS | BP1: 75 A 79 ANOS | BU1: 80 ANOS OU MAIS | CA1: MUNICÍPIO | CB1: GERAL
C2: ESTIMATIVA POPULACIONAL | D2: REFORÇO BIVALENTE (1 dose) | E2: COBERTURA VACINAL REFORÇO BIVALENTE | F2: 2º REFORÇO BIVALENTE (2 doses) | G2: 2º COBERTURA VACINAL REFORÇO BIVALENTE | H2: ESTIMATIVA POPULACIONAL | I2: REFORÇO BIVALENTE (1 dose) | J2: COBERTURA VACINAL REFORÇO BIVALENTE | K2: 2º REFORÇO BIVALENTE (2 doses) | L2: 2º COBERTURA VACINAL REFORÇO BIVALENTE | M2: ESTIMATIVA POPULACIONAL | N2: REFORÇO BIVALENTE (1 dose) | O2: COBERTURA VACINAL REFORÇO BIVALENTE | P2: 2º REFORÇO BIVALENTE (2 doses) | Q2: 2º COBERTURA VACINAL REFORÇO BIVALENTE | R2: ESTIMATIVA POPULACIONAL | S2: REFORÇO BIVALENTE (1 dose) | T2: COBERTURA VACINAL REFORÇO BIVALENTE | U2: 2º REFORÇO BIVALENTE (2 doses) | V2: 2º COBERTURA VACINAL REFORÇO BIVALENTE | W2: ESTIMATIVA POPULACIONAL | X2: REFORÇO BIVALENTE (1 dose) | Y2: COBERTURA VACINAL REFORÇO BIVALENTE | Z2: 2º REFORÇO BIVALENTE (2 doses) | AA2: 2º COBERTURA VACINAL REFORÇO BIVALENTE | AB2: ESTIMATIVA POPULACIONAL | AC2: REFORÇO BIVALENTE (1 dose) | AD2: COBERTURA VACINAL REFORÇO BIVALENTE | AE2: 2º REFORÇO BIVALENTE (2 doses) | AF2: 2º COBERTURA VACINAL REFORÇO BIVALENTE | AG2: ESTIMATIVA POPULACIONAL | AH2: REFORÇO BIVALENTE (1 dose) | AI2: COBERTURA VACINAL REFORÇO BIVALENTE | AJ2: 2º REFORÇO BIVALENTE (2 doses) | AK2: 2º COBERTURA VACINAL REFORÇO BIVALENTE | AL2: ESTIMATIVA POPULACIONAL | AM2: REFORÇO BIVALENTE (1 dose) | AN2: COBERTURA VACINAL REFORÇO BIVALENTE | AO2: 2º REFORÇO BIVALENTE (2 doses) | AP2: 2º COBERTURA VACINAL REFORÇO BIVALENTE | AQ2: ESTIMATIVA POPULACIONAL | AR2: REFORÇO BIVALENTE (1 dose) | AS2: COBERTURA VACINAL REFORÇO BIVALENTE | AT2: 2º REFORÇO BIVALENTE (2 doses) | AU2: 2º COBERTURA VACINAL REFORÇO BIVALENTE | AV2: ESTIMATIVA POPULACIONAL | AW2: REFORÇO BIVALENTE (1 dose) | AX2: COBERTURA VACINAL REFORÇO BIVALENTE | AY2: 2º REFORÇO BIVALENTE (2 doses) | AZ2: 2º COBERTURA VACINAL REFORÇO BIVALENTE | BA2: ESTIMATIVA POPULACIONAL | BB2: REFORÇO BIVALENTE (1 dose) | BC2: COBERTURA VACINAL REFORÇO BIVALENTE | BD2: 2º REFORÇO BIVALENTE (2 doses) | BE2: 2º COBERTURA VACINAL REFORÇO BIVALENTE | BF2: ESTIMATIVA POPULACIONAL | BG2: REFORÇO BIVALENTE (1 dose) | BH2: COBERTURA VACINAL REFORÇO BIVALENTE | BI2: 2º REFORÇO BIVALENTE (2 doses) | BJ2: 2º COBERTURA VACINAL REFORÇO BIVALENTE | BK2: ESTIMATIVA POPULACIONAL | BL2: REFORÇO BIVALENTE (1 dose) | BM2: COBERTURA VACINAL REFORÇO BIVALENTE | BN2: 2º REFORÇO BIVALENTE (2 doses) | BO2: 2º COBERTURA VACINAL REFORÇO BIVALENTE | BP2: ESTIMATIVA POPULACIONAL | BQ2: REFORÇO BIVALENTE (1 dose) | BR2: COBERTURA VACINAL REFORÇO BIVALENTE | BS2: 2º REFORÇO BIVALENTE (2 doses) | BT2: 2º COBERTURA VACINAL REFORÇO BIVALENTE | BU2: ESTIMATIVA POPULACIONAL | BV2: REFORÇO BIVALENTE (1 dose) | BW2: COBERTURA VACINAL REFORÇO BIVALENTE | BX2: 2º REFORÇO BIVALENTE (2 doses) | BY2: 2º COBERTURA VACINAL REFORÇO BIVALENTE | CB2: ESTIMATIVA POPULACIONAL | CC2: REFORÇO BIVALENTE (1 dose) | CD2: COBERTURA VACINAL REFORÇO BIVALENTE | CE2: 2º REFORÇO BIVALENTE (2 doses) | CF2: 2º COBERTURA VACINAL REFORÇO BIVALENTE
A3: Regional Metropolitana | B3: Afonso Cláudio | C3: 2476 | D3: 2 | E3: 0.08% | F3: 0 | G3: 0.00% | H3: 799 | I3: 52 | J3: 6.51% | K3: 0 | L3: 0.00% | M3: 1946 | N3: 103 | O3: 5.29% | P3: 0 | Q3: 0.00% | R3: 1960 | S3: 124 | T3: 6.33% | U3: 0 | V3: 0.00% | W3: 2107 | X3: 142 | Y3: 6.74% | Z3: 0 | AA3: 0.00% | AB3: 2257 | AC3: 163 | AD3: 7.22% | AE3: 0 | AF3: 0.00% | AG3: 2550 | AH3: 262 | AI3: 10.27% | AJ3: 0 | AK3: 0.00% | AL3: 2210 | AM3: 279 | AN3: 12.62% | AO3: 0 | AP3: 0.00% | AQ3: 1972 | AR3: 261 | AS3: 13.24% | AT3: 1 | AU3: 0.05% | AV3: 1928 | AW3: 332 | AX3: 17.22% | AY3: 1 | AZ3: 0.05% | BA3: 1679 | BB3: 492 | BC3: 29.30% | BD3: 15 | BE3: 0.89% | BF3: 1450 | BG3: 558 | BH3: 38.48% | BI3: 26 | BJ3: 1.79% | BK3: 1113 | BL3: 493 | BM3: 44.29% | BN3: 17 | BO3: 1.53% | BP3: 726 | BQ3: 333 | BR3: 45.87% | BS3: 12 | BT3: 1.65% | BU3: 937 | BV3: 427 | BW3: 45.57% | BX3: 5 | BY3: 0.53% | CA3: Afonso Cláudio | CB3: =SUM(C3,H3,M3,R3,W3,AB3,AG3,AL3,AQ3,AV3,BA3,BF3,BK3,BP3,BU3) -> 26110 | CC3: =SUM(D3,I3,N3,S3,X3,AC3,AH3,AM3,AR3,AW3,BB3,BG3,BL3,BQ3,BV3) -> 4023 | CD3: =CC3/CB3 -> 0.154078897 | CE3: =SUM(F3,K3,P3,U3,Z3,AE3,AJ3,AO3,AT3,AY3,BD3,BI3,BN3,BS3,BX3) -> 77 | CF3: =CE3/CB3 -> 0.002949061662
A4: Regional Norte | B4: Água Doce do Norte | C4: 1021 | D4: 3 | E4: 0.29% | F4: 0 | G4: 0.00% | H4: 315 | I4: 31 | J4: 9.84% | K4: 0 | L4: 0.00% | M4: 785 | N4: 87 | O4: 11.08% | P4: 0 | Q4: 0.00% | R4: 750 | S4: 114 | T4: 15.20% | U4: 1 | V4: 0.13% | W4: 713 | X4: 103 | Y4: 14.45% | Z4: 1 | AA4: 0.14% | AB4: 836 | AC4: 119 | AD4: 14.23% | AE4: 1 | AF4: 0.12% | AG4: 913 | AH4: 145 | AI4: 15.88% | AJ4: 4 | AK4: 0.44% | AL4: 883 | AM4: 171 | AN4: 19.37% | AO4: 3 | AP4: 0.34% | AQ4: 833 | AR4: 185 | AS4: 22.21% | AT4: 4 | AU4: 0.48% | AV4: 774 | AW4: 195 | AX4: 25.19% | AY4: 4 | AZ4: 0.52% | BA4: 696 | BB4: 224 | BC4: 32.18% | BD4: 10 | BE4: 1.44% | BF4: 601 | BG4: 252 | BH4: 41.93% | BI4: 16 | BJ4: 2.66% | BK4: 397 | BL4: 195 | BM4: 49.12% | BN4: 12 | BO4: 3.02% | BP4: 281 | BQ4: 128 | BR4: 45.55% | BS4: 9 | BT4: 3.20% | BU4: 382 | BV4: 190 | BW4: 49.74% | BX4: 9 | BY4: 2.36% | CA4: Água Doce do Norte | CB4: =SUM(C4,H4,M4,R4,W4,AB4,AG4,AL4,AQ4,AV4,BA4,BF4,BK4,BP4,BU4) -> 10180 | CC4: =SUM(D4,I4,N4,S4,X4,AC4,AH4,AM4,AR4,AW4,BB4,BG4,BL4,BQ4,BV4) -> 2142 | CD4: =CC4/CB4 -> 0.2104125737 | CE4: =SUM(F4,K4,P4,U4,Z4,AE4,AJ4,AO4,AT4,AY4,BD4,BI4,BN4,BS4,BX4) -> 74 | CF4: =CE4/CB4 -> 0.007269155206
A5: Regional Central | B5: Águia Branca | C5: 787 | D5: 4 | E5: 0.51% | F5: 0 | G5: 0.00% | H5: 271 | I5: 16 | J5: 5.90% | K5: 0 | L5: 0.00% | M5: 631 | N5: 39 | O5: 6.18% | P5: 0 | Q5: 0.00% | R5: 653 | S5: 59 | T5: 9.04% | U5: 0 | V5: 0.00% | W5: 682 | X5: 61 | Y5: 8.94% | Z5: 0 | AA5: 0.00% | AB5: 702 | AC5: 82 | AD5: 11.68% | AE5: 1 | AF5: 0.14% | AG5: 713 | AH5: 81 | AI5: 11.36% | AJ5: 0 | AK5: 0.00% | AL5: 683 | AM5: 80 | AN5: 11.71% | AO5: 1 | AP5: 0.15% | AQ5: 742 | AR5: 104 | AS5: 14.02% | AT5: 2 | AU5: 0.27% | AV5: 608 | AW5: 119 | AX5: 19.57% | AY5: 0 | AZ5: 0.00% | BA5: 572 | BB5: 225 | BC5: 39.34% | BD5: 25 | BE5: 4.37% | BF5: 432 | BG5: 252 | BH5: 58.33% | BI5: 19 | BJ5: 4.40% | BK5: 331 | BL5: 196 | BM5: 59.21% | BN5: 18 | BO5: 5.44% | BP5: 206 | BQ5: 112 | BR5: 54.37% | BS5: 12 | BT5: 5.83% | BU5: 234 | BV5: 150 | BW5: 64.10% | BX5: 11 | BY5: 4.70% | CA5: Águia Branca | CB5: 8247 | CC5: 1580 | CD5: 0.1915848187 | CE5: 89 | CF5: 0.01079180308
A6: Regional Sul | B6: Alegre | C6: 2030 | D6: 7 | E6: 0.34% | F6: 0 | G6: 0.00% | H6: 819 | I6: 71 | J6: 8.67% | K6: 0 | L6: 0.00% | M6: 2206 | N6: 272 | O6: 12.33% | P6: 0 | Q6: 0.00% | R6: 2017 | S6: 226 | T6: 11.20% | U6: 2 | V6: 0.10% | W6: 2063 | X6: 211 | Y6: 10.23% | Z6: 0 | AA6: 0.00% | AB6: 2096 | AC6: 272 | AD6: 12.98% | AE6: 1 | AF6: 0.05% | AG6: 2244 | AH6: 290 | AI6: 12.92% | AJ6: 1 | AK6: 0.04% | AL6: 1867 | AM6: 327 | AN6: 17.51% | AO6: 0 | AP6: 0.00% | AQ6: 1917 | AR6: 304 | AS6: 15.86% | AT6: 5 | AU6: 0.26% | AV6: 1843 | AW6: 365 | AX6: 19.80% | AY6: 1 | AZ6: 0.05% | BA6: 1719 | BB6: 672 | BC6: 39.09% | BD6: 20 | BE6: 1.16% | BF6: 1457 | BG6: 766 | BH6: 52.57% | BI6: 47 | BJ6: 3.23% | BK6: 1093 | BL6: 664 | BM6: 60.75% | BN6: 40 | BO6: 3.66% | BP6: 694 | BQ6: 457 | BR6: 65.85% | BS6: 19 | BT6: 2.74% | BU6: 986 | BV6: 641 | BW6: 65.01% | BX6: 30 | BY6: 3.04% | CA6: Alegre | CB6: 25051 | CC6: 5545 | CD6: 0.2213484492 | CE6: 166 | CF6: 0.006626481977
A7: Regional Sul | B7: Alfredo Chaves | C7: 1022 | D7: 0 | E7: 0.00% | F7: 0 | G7: 0.00% | H7: 298 | I7: 24 | J7: 8.05% | K7: 0 | L7: 0.00% | M7: 806 | N7: 49 | O7: 6.08% | P7: 1 | Q7: 0.12% | R7: 857 | S7: 53 | T7: 6.18% | U7: 1 | V7: 0.12% | W7: 898 | X7: 55 | Y7: 6.12% | Z7: 0 | AA7: 0.00% | AB7: 1058 | AC7: 69 | AD7: 6.52% | AE7: 1 | AF7: 0.09% | AG7: 1111 | AH7: 96 | AI7: 8.64% | AJ7: 0 | AK7: 0.00% | AL7: 1046 | AM7: 96 | AN7: 9.18% | AO7: 1 | AP7: 0.10% | AQ7: 945 | AR7: 119 | AS7: 12.59% | AT7: 0 | AU7: 0.00% | AV7: 963 | AW7: 146 | AX7: 15.16% | AY7: 4 | AZ7: 0.42% | BA7: 882 | BB7: 291 | BC7: 32.99% | BD7: 18 | BE7: 2.04% | BF7: 727 | BG7: 352 | BH7: 48.42% | BI7: 32 | BJ7: 4.40% | BK7: 548 | BL7: 296 | BM7: 54.01% | BN7: 35 | BO7: 6.39% | BP7: 368 | BQ7: 203 | BR7: 55.16% | BS7: 25 | BT7: 6.79% | BU7: 515 | BV7: 269 | BW7: 52.23% | BX7: 27 | BY7: 5.24% | CA7: Alfredo Chaves | CB7: 12044 | CC7: 2118 | CD7: 0.1758551976 | CE7: 145 | CF7: 0.01203918964
A8: Regional Central | B8: Alto Rio Novo | C8: 634 | D8: 0 | E8: 0.00% | F8: 0 | G8: 0.00% | H8: 204 | I8: 14 | J8: 6.86% | K8: 0 | L8: 0.00% | M8: 453 | N8: 37 | O8: 8.17% | P8: 0 | Q8: 0.00% | R8: 408 | S8: 35 | T8: 8.58% | U8: 1 | V8: 0.25% | W8: 477 | X8: 44 | Y8: 9.22% | Z8: 0 | AA8: 0.00% | AB8: 557 | AC8: 66 | AD8: 11.85% | AE8: 0 | AF8: 0.00% | AG8: 595 | AH8: 71 | AI8: 11.93% | AJ8: 1 | AK8: 0.17% | AL8: 553 | AM8: 98 | AN8: 17.72% | AO8: 3 | AP8: 0.54% | AQ8: 527 | AR8: 93 | AS8: 17.65% | AT8: 4 | AU8: 0.76% | AV8: 474 | AW8: 105 | AX8: 22.15% | AY8: 1 | AZ8: 0.21% | BA8: 435 | BB8: 159 | BC8: 36.55% | BD8: 21 | BE8: 4.83% | BF8: 366 | BG8: 168 | BH8: 45.90% | BI8: 17 | BJ8: 4.64% | BK8: 246 | BL8: 137 | BM8: 55.69% | BN8: 14 | BO8: 5.69% | BP8: 171 | BQ8: 90 | BR8: 52.63% | BS8: 5 | BT8: 2.92% | BU8: 199 | BV8: 97 | BW8: 48.74% | BX8: 13 | BY8: 6.53% | CA8: Alto Rio Novo | CB8: 6299 | CC8: 1214 | CD8: 0.1927290046 | CE8: 80 | CF8: 0.01270042864
A9: Regional Sul | B9: Anchieta | C9: 2371 | D9: 18 | E9: 0.76% | F9: 2 | G9: 0.08% | H9: 812 | I9: 108 | J9: 13.30% | K9: 0 | L9: 0.00% | M9: 1886 | N9: 332 | O9: 17.60% | P9: 1 | Q9: 0.05% | R9: 1990 | S9: 332 | T9: 16.68% | U9: 5 | V9: 0.25% | W9: 2260 | X9: 372 | Y9: 16.46% | Z9: 3 | AA9: 0.13% | AB9: 2624 | AC9: 501 | AD9: 19.09% | AE9: 6 | AF9: 0.23% | AG9: 2607 | AH9: 573 | AI9: 21.98% | AJ9: 12 | AK9: 0.46% | AL9: 2035 | AM9: 494 | AN9: 24.28% | AO9: 11 | AP9: 0.54% | AQ9: 1869 | AR9: 440 | AS9: 23.54% | AT9: 5 | AU9: 0.27% | AV9: 1719 | AW9: 450 | AX9: 26.18% | AY9: 15 | AZ9: 0.87% | BA9: 1608 | BB9: 625 | BC9: 38.87% | BD9: 50 | BE9: 3.11% | BF9: 1331 | BG9: 675 | BH9: 50.71% | BI9: 64 | BJ9: 4.81% | BK9: 874 | BL9: 549 | BM9: 62.81% | BN9: 84 | BO9: 9.61% | BP9: 569 | BQ9: 380 | BR9: 66.78% | BS9: 45 | BT9: 7.91% | BU9: 698 | BV9: 469 | BW9: 67.19% | BX9: 48 | BY9: 6.88% | CA9: Anchieta | CB9: 25253 | CC9: 6318 | CD9: 0.2501880965 | CE9: 351 | CF9: 0.01389933869
A10: Regional Sul | B10: Apiacá | C10: 568 | D10: 0 | E10: 0.00% | F10: 0 | G10: 0.00% | H10: 183 | I10: 9 | J10: 4.92% | K10: 0 | L10: 0.00% | M10: 468 | N10: 25 | O10: 5.34% | P10: 0 | Q10: 0.00% | R10: 498 | S10: 28 | T10: 5.62% | U10: 0 | V10: 0.00% | W10: 467 | X10: 26 | Y10: 5.57% | Z10: 0 | AA10: 0.00% | AB10: 537 | AC10: 36 | AD10: 6.70% | AE10: 0 | AF10: 0.00% | AG10: 533 | AH10: 45 | AI10: 8.44% | AJ10: 2 | AK10: 0.38% | AL10: 471 | AM10: 69 | AN10: 14.65% | AO10: 1 | AP10: 0.21% | AQ10: 495 | AR10: 57 | AS10: 11.52% | AT10: 0 | AU10: 0.00% | AV10: 466 | AW10: 63 | AX10: 13.52% | AY10: 0 | AZ10: 0.00% | BA10: 422 | BB10: 124 | BC10: 29.38% | BD10: 2 | BE10: 0.47% | BF10: 396 | BG10: 150 | BH10: 37.88% | BI10: 4 | BJ10: 1.01% | BK10: 282 | BL10: 129 | BM10: 45.74% | BN10: 4 | BO10: 1.42% | BP10: 184 | BQ10: 96 | BR10: 52.17% | BS10: 2 | BT10: 1.09% | BU10: 252 | BV10: 115 | BW10: 45.63% | BX10: 1 | BY10: 0.40% | CA10: Apiacá | CB10: 6222 | CC10: 972 | CD10: 0.156219865 | CE10: 16 | CF10: 0.002571520411
A11: Regional Metropolitana | B11: Aracruz | C11: 8266 | D11: 324 | E11: 3.92% | F11: 23 | G11: 0.28% | H11: 2607 | I11: 481 | J11: 18.45% | K11: 18 | L11: 0.69% | M11: 6996 | N11: 1378 | O11: 19.70% | P11: 60 | Q11: 0.86% | R11: 7010 | S11: 1455 | T11: 20.76% | U11: 52 | V11: 0.74% | W11: 7439 | X11: 1544 | Y11: 20.76% | Z11: 71 | AA11: 0.95% | AB11: 8029 | AC11: 1641 | AD11: 20.44% | AE11: 64 | AF11: 0.80% | AG11: 7786 | AH11: 1610 | AI11: 20.68% | AJ11: 70 | AK11: 0.90% | AL11: 6548 | AM11: 1627 | AN11: 24.85% | AO11: 54 | AP11: 0.82% | AQ11: 5631 | AR11: 1437 | AS11: 25.52% | AT11: 78 | AU11: 1.39% | AV11: 4949 | AW11: 1462 | AX11: 29.54% | AY11: 76 | AZ11: 1.54% | BA11: 4417 | BB11: 1824 | BC11: 41.29% | BD11: 305 | BE11: 6.91% | BF11: 3470 | BG11: 1859 | BH11: 53.57% | BI11: 412 | BJ11: 11.87% | BK11: 2261 | BL11: 1435 | BM11: 63.47% | BN11: 304 | BO11: 13.45% | BP11: 1325 | BQ11: 864 | BR11: 65.21% | BS11: 160 | BT11: 12.08% | BU11: 1574 | BV11: 1116 | BW11: 70.90% | BX11: 184 | BY11: 11.69% | CA11: Aracruz | CB11: 78308 | CC11: 20057 | CD11: 0.2561296419 | CE11: 1931 | CF11: 0.02465903867
A12: Regional Sul | B12: Atílio Vivacqua | C12: 856 | D12: 3 | E12: 0.35% | F12: 0 | G12: 0.00% | H12: 278 | I12: 28 | J12: 10.07% | K12: 0 | L12: 0.00% | M12: 688 | N12: 66 | O12: 9.59% | P12: 1 | Q12: 0.15% | R12: 696 | S12: 74 | T12: 10.63% | U12: 0 | V12: 0.00% | W12: 798 | X12: 94 | Y12: 11.78% | Z12: 0 | AA12: 0.00% | AB12: 830 | AC12: 115 | AD12: 13.86% | AE12: 0 | AF12: 0.00% | AG12: 836 | AH12: 124 | AI12: 14.83% | AJ12: 0 | AK12: 0.00% | AL12: 684 | AM12: 131 | AN12: 19.15% | AO12: 2 | AP12: 0.29% | AQ12: 684 | AR12: 127 | AS12: 18.57% | AT12: 1 | AU12: 0.15% | AV12: 627 | AW12: 147 | AX12: 23.44% | AY12: 2 | AZ12: 0.32% | BA12: 590 | BB12: 259 | BC12: 43.90% | BD12: 12 | BE12: 2.03% | BF12: 454 | BG12: 227 | BH12: 50.00% | BI12: 14 | BJ12: 3.08% | BK12: 351 | BL12: 200 | BM12: 56.98% | BN12: 20 | BO12: 5.70% | BP12: 212 | BQ12: 132 | BR12: 62.26% | BS12: 10 | BT12: 4.72% | BU12: 236 | BV12: 156 | BW12: 66.10% | BX12: 10 | BY12: 4.24% | CA12: Atílio Vivacqua | CB12: 8820 | CC12: 1883 | CD12: 0.2134920635 | CE12: 72 | CF12: 0.008163265306
A13: Regional Central | B13: Baixo Guandu | C13: 2426 | D13: 8 | E13: 0.33% | F13: 1 | G13: 0.04% | H13: 807 | I13: 48 | J13: 5.95% | K13: 0 | L13: 0.00% | M13: 2105 | N13: 132 | O13: 6.27% | P13: 0 | Q13: 0.00% | R13: 2024 | S13: 149 | T13: 7.36% | U13: 0 | V13: 0.00% | W13: 2152 | X13: 169 | Y13: 7.85% | Z13: 0 | AA13: 0.00% | AB13: 2159 | AC13: 220 | AD13: 10.19% | AE13: 2 | AF13: 0.09% | AG13: 2327 | AH13: 253 | AI13: 10.87% | AJ13: 3 | AK13: 0.13% | AL13: 2122 | AM13: 266 | AN13: 12.54% | AO13: 3 | AP13: 0.14% | AQ13: 2020 | AR13: 331 | AS13: 16.39% | AT13: 2 | AU13: 0.10% | AV13: 2007 | AW13: 358 | AX13: 17.84% | AY13: 2 | AZ13: 0.10% | BA13: 1714 | BB13: 435 | BC13: 25.38% | BD13: 27 | BE13: 1.58% | BF13: 1361 | BG13: 465 | BH13: 34.17% | BI13: 36 | BJ13: 2.65% | BK13: 967 | BL13: 390 | BM13: 40.33% | BN13: 18 | BO13: 1.86% | BP13: 697 | BQ13: 280 | BR13: 40.17% | BS13: 21 | BT13: 3.01% | BU13: 967 | BV13: 388 | BW13: 40.12% | BX13: 10 | BY13: 1.03% | CA13: Baixo Guandu | CB13: 25855 | CC13: 3892 | CD13: 0.150531812 | CE13: 125 | CF13: 0.004834654806
A14: Regional Norte | B14: Barra de São Francisco | C14: 3499 | D14: 9 | E14: 0.26% | F14: 0 | G14: 0.00% | H14: 1126 | I14: 38 | J14: 3.37% | K14: 0 | L14: 0.00% | M14: 2926 | N14: 138 | O14: 4.72% | P14: 0 | Q14: 0.00% | R14: 2931 | S14: 207 | T14: 7.06% | U14: 1 | V14: 0.03% | W14: 2959 | X14: 166 | Y14: 5.61% | Z14: 1 | AA14: 0.03% | AB14: 3237 | AC14: 212 | AD14: 6.55% | AE14: 0 | AF14: 0.00% | AG14: 3253 | AH14: 232 | AI14: 7.13% | AJ14: 0 | AK14: 0.00% | AL14: 2908 | AM14: 252 | AN14: 8.67% | AO14: 1 | AP14: 0.03% | AQ14: 2875 | AR14: 262 | AS14: 9.11% | AT14: 1 | AU14: 0.03% | AV14: 2624 | AW14: 287 | AX14: 10.94% | AY14: 1 | AZ14: 0.04% | BA14: 2221 | BB14: 430 | BC14: 19.36% | BD14: 38 | BE14: 1.71% | BF14: 1761 | BG14: 507 | BH14: 28.79% | BI14: 56 | BJ14: 3.18% | BK14: 1284 | BL14: 424 | BM14: 33.02% | BN14: 56 | BO14: 4.36% | BP14: 878 | BQ14: 275 | BR14: 31.32% | BS14: 29 | BT14: 3.30% | BU14: 1082 | BV14: 307 | BW14: 28.37% | BX14: 20 | BY14: 1.85% | CA14: Barra de São Francisco | CB14: 35564 | CC14: 3746 | CD14: 0.1053312338 | CE14: 204 | CF14: 0.005736137667
A15: Regional Norte | B15: Boa Esperança | C15: 1154 | D15: 5 | E15: 0.43% | F15: 0 | G15: 0.00% | H15: 416 | I15: 36 | J15: 8.65% | K15: 0 | L15: 0.00% | M15: 927 | N15: 103 | O15: 11.11% | P15: 0 | Q15: 0.00% | R15: 936 | S15: 111 | T15: 11.86% | U15: 0 | V15: 0.00% | W15: 944 | X15: 129 | Y15: 13.67% | Z15: 0 | AA15: 0.00% | AB15: 1025 | AC15: 142 | AD15: 13.85% | AE15: 0 | AF15: 0.00% | AG15: 1043 | AH15: 182 | AI15: 17.45% | AJ15: 2 | AK15: 0.19% | AL15: 964 | AM15: 193 | AN15: 20.02% | AO15: 2 | AP15: 0.21% | AQ15: 878 | AR15: 173 | AS15: 19.70% | AT15: 1 | AU15: 0.11% | AV15: 832 | AW15: 206 | AX15: 24.76% | AY15: 1 | AZ15: 0.12% | BA15: 705 | BB15: 311 | BC15: 44.11% | BD15: 13 | BE15: 1.84% | BF15: 592 | BG15: 283 | BH15: 47.80% | BI15: 16 | BJ15: 2.70% | BK15: 402 | BL15: 240 | BM15: 59.70% | BN15: 26 | BO15: 6.47% | BP15: 287 | BQ15: 166 | BR15: 57.84% | BS15: 5 | BT15: 1.74% | BU15: 331 | BV15: 229 | BW15: 69.18% | BX15: 7 | BY15: 2.11% | CA15: Boa Esperança | CB15: 11436 | CC15: 2509 | CD15: 0.2193948933 | CE15: 73 | CF15: 0.006383350822
A16: Regional Sul | B16: Bom Jesus do Norte | C16: 806 | D16: 3 | E16: 0.37% | F16: 0 | G16: 0.00% | H16: 248 | I16: 24 | J16: 9.68% | K16: 0 | L16: 0.00% | M16: 745 | N16: 60 | O16: 8.05% | P16: 1 | Q16: 0.13% | R16: 686 | S16: 82 | T16: 11.95% | U16: 2 | V16: 0.29% | W16: 763 | X16: 80 | Y16: 10.48% | Z16: 2 | AA16: 0.26% | AB16: 738 | AC16: 78 | AD16: 10.57% | AE16: 1 | AF16: 0.14% | AG16: 858 | AH16: 113 | AI16: 13.17% | AJ16: 4 | AK16: 0.47% | AL16: 692 | AM16: 107 | AN16: 15.46% | AO16: 3 | AP16: 0.43% | AQ16: 668 | AR16: 109 | AS16: 16.32% | AT16: 4 | AU16: 0.60% | AV16: 599 | AW16: 133 | AX16: 22.20% | AY16: 4 | AZ16: 0.67% | BA16: 576 | BB16: 182 | BC16: 31.60% | BD16: 30 | BE16: 5.21% | BF16: 534 | BG16: 253 | BH16: 47.38% | BI16: 36 | BJ16: 6.74% | BK16: 342 | BL16: 205 | BM16: 59.94% | BN16: 31 | BO16: 9.06% | BP16: 199 | BQ16: 132 | BR16: 66.33% | BS16: 18 | BT16: 9.05% | BU16: 340 | BV16: 219 | BW16: 64.41% | BX16: 28 | BY16: 8.24% | CA16: Bom Jesus do Norte | CB16: 8794 | CC16: 1780 | CD16: 0.2024107346 | CE16: 164 | CF16: 0.01864907892
A17: Regional Metropolitana | B17: Brejetuba | C17: 1189 | D17: 0 | E17: 0.00% | F17: 0 | G17: 0.00% | H17: 405 | I17: 28 | J17: 6.91% | K17: 0 | L17: 0.00% | M17: 1043 | N17: 50 | O17: 4.79% | P17: 0 | Q17: 0.00% | R17: 928 | S17: 67 | T17: 7.22% | U17: 0 | V17: 0.00% | W17: 944 | X17: 86 | Y17: 9.11% | Z17: 0 | AA17: 0.00% | AB17: 1105 | AC17: 88 | AD17: 7.96% | AE17: 0 | AF17: 0.00% | AG17: 1109 | AH17: 127 | AI17: 11.45% | AJ17: 0 | AK17: 0.00% | AL17: 869 | AM17: 114 | AN17: 13.12% | AO17: 1 | AP17: 0.12% | AQ17: 781 | AR17: 101 | AS17: 12.93% | AT17: 1 | AU17: 0.13% | AV17: 660 | AW17: 110 | AX17: 16.67% | AY17: 0 | AZ17: 0.00% | BA17: 571 | BB17: 168 | BC17: 29.42% | BD17: 9 | BE17: 1.58% | BF17: 433 | BG17: 149 | BH17: 34.41% | BI17: 1 | BJ17: 0.23% | BK17: 279 | BL17: 138 | BM17: 49.46% | BN17: 1 | BO17: 0.36% | BP17: 165 | BQ17: 65 | BR17: 39.39% | BS17: 2 | BT17: 1.21% | BU17: 189 | BV17: 85 | BW17: 44.97% | BX17: 2 | BY17: 1.06% | CA17: Brejetuba | CB17: 10670 | CC17: 1376 | CD17: 0.1289597001 | CE17: 17 | CF17: 0.001593252109
A18: Regional Sul | B18: Cachoeiro de Itapemirim | C18: 13632 | D18: 139 | E18: 1.02% | F18: 5 | G18: 0.04% | H18: 4626 | I18: 509 | J18: 11.00% | K18: 2 | L18: 0.04% | M18: 12452 | N18: 1643 | O18: 13.19% | P18: 7 | Q18: 0.06% | R18: 13666 | S18: 1923 | T18: 14.07% | U18: 9 | V18: 0.07% | W18: 14562 | X18: 1939 | Y18: 13.32% | Z18: 15 | AA18: 0.10% | AB18: 14793 | AC18: 2130 | AD18: 14.40% | AE18: 15 | AF18: 0.10% | AG18: 15106 | AH18: 2412 | AI18: 15.97% | AJ18: 18 | AK18: 0.12% | AL18: 12366 | AM18: 2229 | AN18: 18.03% | AO18: 14 | AP18: 0.11% | AQ18: 12351 | AR18: 2208 | AS18: 17.88% | AT18: 17 | AU18: 0.14% | AV18: 11848 | AW18: 2772 | AX18: 23.40% | AY18: 25 | AZ18: 0.21% | BA18: 10478 | BB18: 3527 | BC18: 33.66% | BD18: 275 | BE18: 2.62% | BF18: 8383 | BG18: 3630 | BH18: 43.30% | BI18: 332 | BJ18: 3.96% | BK18: 5765 | BL18: 2935 | BM18: 50.91% | BN18: 299 | BO18: 5.19% | BP18: 3534 | BQ18: 1895 | BR18: 53.62% | BS18: 190 | BT18: 5.38% | BU18: 4746 | BV18: 2638 | BW18: 55.58% | BX18: 231 | BY18: 4.87% | CA18: Cachoeiro de Itapemirim | CB18: 158308 | CC18: 32529 | CD18: 0.2054791925 | CE18: 1454 | CF18: 0.009184627435
A19: Regional Metropolitana | B19: Cariacica | C19: 29716 | D19: 278 | E19: 0.94% | F19: 5 | G19: 0.02% | H19: 9902 | I19: 1179 | J19: 11.91% | K19: 4 | L19: 0.04% | M19: 26053 | N19: 3367 | O19: 12.92% | P19: 29 | Q19: 0.11% | R19: 25148 | S19: 3909 | T19: 15.54% | U19: 45 | V19: 0.18% | W19: 26548 | X19: 4062 | Y19: 15.30% | Z19: 47 | AA19: 0.18% | AB19: 28348 | AC19: 4769 | AD19: 16.82% | AE19: 62 | AF19: 0.22% | AG19: 28814 | AH19: 5167 | AI19: 17.93% | AJ19: 61 | AK19: 0.21% | AL19: 24129 | AM19: 4814 | AN19: 19.95% | AO19: 78 | AP19: 0.32% | AQ19: 22496 | AR19: 4628 | AS19: 20.57% | AT19: 68 | AU19: 0.30% | AV19: 20080 | AW19: 5082 | AX19: 25.31% | AY19: 88 | AZ19: 0.44% | BA19: 17848 | BB19: 6717 | BC19: 37.63% | BD19: 949 | BE19: 5.32% | BF19: 14188 | BG19: 7109 | BH19: 50.11% | BI19: 1198 | BJ19: 8.44% | BK19: 9488 | BL19: 5475 | BM19: 57.70% | BN19: 1023 | BO19: 10.78% | BP19: 5811 | BQ19: 3409 | BR19: 58.66% | BS19: 640 | BT19: 11.01% | BU19: 6670 | BV19: 3655 | BW19: 54.80% | BX19: 483 | BY19: 7.24% | CA19: Cariacica | CB19: 295239 | CC19: 63620 | CD19: 0.2154864364 | CE19: 4780 | CF19: 0.01619027297
A20: Regional Sul | B20: Castelo | C20: 2533 | D20: 7 | E20: 0.28% | F20: 0 | G20: 0.00% | H20: 907 | I20: 57 | J20: 6.28% | K20: 0 | L20: 0.00% | M20: 2489 | N20: 190 | O20: 7.63% | P20: 1 | Q20: 0.04% | R20: 2494 | S20: 215 | T20: 8.62% | U20: 2 | V20: 0.08% | W20: 2747 | X20: 218 | Y20: 7.94% | Z20: 0 | AA20: 0.00% | AB20: 2993 | AC20: 308 | AD20: 10.29% | AE20: 1 | AF20: 0.03% | AG20: 3061 | AH20: 392 | AI20: 12.81% | AJ20: 1 | AK20: 0.03% | AL20: 2517 | AM20: 344 | AN20: 13.67% | AO20: 1 | AP20: 0.04% | AQ20: 2497 | AR20: 368 | AS20: 14.74% | AT20: 4 | AU20: 0.16% | AV20: 2463 | AW20: 461 | AX20: 18.72% | AY20: 0 | AZ20: 0.00% | BA20: 2183 | BB20: 712 | BC20: 32.62% | BD20: 36 | BE20: 1.65% | BF20: 1707 | BG20: 751 | BH20: 44.00% | BI20: 49 | BJ20: 2.87% | BK20: 1240 | BL20: 629 | BM20: 50.73% | BN20: 36 | BO20: 2.90% | BP20: 864 | BQ20: 473 | BR20: 54.75% | BS20: 38 | BT20: 4.40% | BU20: 1177 | BV20: 646 | BW20: 54.89% | BX20: 31 | BY20: 2.63% | CA20: Castelo | CB20: 31872 | CC20: 5771 | CD20: 0.1810680221 | CE20: 200 | CF20: 0.006275100402
A21: Regional Central | B21: Colatina | C21: 8293 | D21: 29 | E21: 0.35% | F21: 0 | G21: 0.00% | H21: 3034 | I21: 239 | J21: 7.88% | K21: 0 | L21: 0.00% | M21: 8455 | N21: 851 | O21: 10.07% | P21: 3 | Q21: 0.04% | R21: 8813 | S21: 1041 | T21: 11.81% | U21: 4 | V21: 0.05% | W21: 9183 | X21: 965 | Y21: 10.51% | Z21: 6 | AA21: 0.07% | AB21: 9662 | AC21: 1111 | AD21: 11.50% | AE21: 6 | AF21: 0.06% | AG21: 9799 | AH21: 1183 | AI21: 12.07% | AJ21: 8 | AK21: 0.08% | AL21: 8251 | AM21: 1085 | AN21: 13.15% | AO21: 6 | AP21: 0.07% | AQ21: 8261 | AR21: 1198 | AS21: 14.50% | AT21: 2 | AU21: 0.02% | AV21: 7584 | AW21: 1438 | AX21: 18.96% | AY21: 5 | AZ21: 0.07% | BA21: 6687 | BB21: 1964 | BC21: 29.37% | BD21: 78 | BE21: 1.17% | BF21: 5306 | BG21: 2226 | BH21: 41.95% | BI21: 86 | BJ21: 1.62% | BK21: 3744 | BL21: 1815 | BM21: 48.48% | BN21: 73 | BO21: 1.95% | BP21: 2455 | BQ21: 1235 | BR21: 50.31% | BS21: 61 | BT21: 2.48% | BU21: 3299 | BV21: 1501 | BW21: 45.50% | BX21: 56 | BY21: 1.70% | CA21: Colatina | CB21: 102826 | CC21: 17881 | CD21: 0.1738957073 | CE21: 394 | CF21: 0.003831715714
A22: Regional Norte | B22: Conceição da Barra | C22: 2506 | D22: 80 | E22: 3.19% | F22: 0 | G22: 0.00% | H22: 832 | I22: 71 | J22: 8.53% | K22: 0 | L22: 0.00% | M22: 1816 | N22: 204 | O22: 11.23% | P22: 4 | Q22: 0.22% | R22: 1859 | S22: 265 | T22: 14.25% | U22: 2 | V22: 0.11% | W22: 1794 | X22: 234 | Y22: 13.04% | Z22: 5 | AA22: 0.28% | AB22: 2107 | AC22: 309 | AD22: 14.67% | AE22: 0 | AF22: 0.00% | AG22: 2191 | AH22: 366 | AI22: 16.70% | AJ22: 5 | AK22: 0.23% | AL22: 1817 | AM22: 323 | AN22: 17.78% | AO22: 2 | AP22: 0.11% | AQ22: 1721 | AR22: 324 | AS22: 18.83% | AT22: 5 | AU22: 0.29% | AV22: 1585 | AW22: 380 | AX22: 23.97% | AY22: 11 | AZ22: 0.69% | BA22: 1458 | BB22: 531 | BC22: 36.42% | BD22: 67 | BE22: 4.60% | BF22: 1137 | BG22: 519 | BH22: 45.65% | BI22: 65 | BJ22: 5.72% | BK22: 801 | BL22: 408 | BM22: 50.94% | BN22: 55 | BO22: 6.87% | BP22: 495 | BQ22: 293 | BR22: 59.19% | BS22: 41 | BT22: 8.28% | BU22: 577 | BV22: 345 | BW22: 59.79% | BX22: 25 | BY22: 4.33% | CA22: Conceição da Barra | CB22: 22696 | CC22: 4652 | CD22: 0.2049700388 | CE22: 287 | CF22: 0.01264540007
A23: Regional Metropolitana | B23: Conceição do Castelo | C23: 956 | D23: 2 | E23: 0.21% | F23: 0 | G23: 0.00% | H23: 335 | I23: 12 | J23: 3.58% | K23: 0 | L23: 0.00% | M23: 812 | N23: 17 | O23: 2.09% | P23: 0 | Q23: 0.00% | R23: 801 | S23: 13 | T23: 1.62% | U23: 0 | V23: 0.00% | W23: 883 | X23: 19 | Y23: 2.15% | Z23: 0 | AA23: 0.00% | AB23: 965 | AC23: 41 | AD23: 4.25% | AE23: 0 | AF23: 0.00% | AG23: 979 | AH23: 49 | AI23: 5.01% | AJ23: 0 | AK23: 0.00% | AL23: 818 | AM23: 47 | AN23: 5.75% | AO23: 0 | AP23: 0.00% | AQ23: 731 | AR23: 52 | AS23: 7.11% | AT23: 0 | AU23: 0.00% | AV23: 659 | AW23: 69 | AX23: 10.47% | AY23: 1 | AZ23: 0.15% | BA23: 663 | BB23: 144 | BC23: 21.72% | BD23: 8 | BE23: 1.21% | BF23: 527 | BG23: 178 | BH23: 33.78% | BI23: 13 | BJ23: 2.47% | BK23: 400 | BL23: 139 | BM23: 34.75% | BN23: 11 | BO23: 2.75% | BP23: 248 | BQ23: 100 | BR23: 40.32% | BS23: 8 | BT23: 3.23% | BU23: 338 | BV23: 113 | BW23: 33.43% | BX23: 4 | BY23: 1.18% | CA23: Conceição do Castelo | CB23: 10115 | CC23: 995 | CD23: 0.09836875927 | CE23: 45 | CF23: 0.004448838359
A24: Regional Sul | B24: Divino de São Lourenço | C24: 417 | D24: 1 | E24: 0.24% | F24: 0 | G24: 0.00% | H24: 153 | I24: 16 | J24: 10.46% | K24: 0 | L24: 0.00% | M24: 368 | N24: 38 | O24: 10.33% | P24: 0 | Q24: 0.00% | R24: 359 | S24: 47 | T24: 13.09% | U24: 0 | V24: 0.00% | W24: 384 | X24: 65 | Y24: 16.93% | Z24: 0 | AA24: 0.00% | AB24: 429 | AC24: 75 | AD24: 17.48% | AE24: 0 | AF24: 0.00% | AG24: 346 | AH24: 85 | AI24: 24.57% | AJ24: 0 | AK24: 0.00% | AL24: 338 | AM24: 72 | AN24: 21.30% | AO24: 0 | AP24: 0.00% | AQ24: 327 | AR24: 76 | AS24: 23.24% | AT24: 0 | AU24: 0.00% | AV24: 327 | AW24: 77 | AX24: 23.55% | AY24: 1 | AZ24: 0.31% | BA24: 280 | BB24: 138 | BC24: 49.29% | BD24: 28 | BE24: 10.00% | BF24: 227 | BG24: 109 | BH24: 48.02% | BI24: 23 | BJ24: 10.13% | BK24: 150 | BL24: 96 | BM24: 64.00% | BN24: 22 | BO24: 14.67% | BP24: 90 | BQ24: 63 | BR24: 70.00% | BS24: 19 | BT24: 21.11% | BU24: 100 | BV24: 70 | BW24: 70.00% | BX24: 20 | BY24: 20.00% | CA24: Divino de São Lourenço | CB24: 4295 | CC24: 1028 | CD24: 0.2393480792 | CE24: 113 | CF24: 0.0263096624
A25: Regional Metropolitana | B25: Domingos Martins | C25: 2643 | D25: 15 | E25: 0.57% | F25: 2 | G25: 0.08% | H25: 903 | I25: 90 | J25: 9.97% | K25: 1 | L25: 0.11% | M25: 2261 | N25: 220 | O25: 9.73% | P25: 0 | Q25: 0.00% | R25: 2426 | S25: 309 | T25: 12.74% | U25: 6 | V25: 0.25% | W25: 2544 | X25: 361 | Y25: 14.19% | Z25: 1 | AA25: 0.04% | AB25: 2821 | AC25: 437 | AD25: 15.49% | AE25: 4 | AF25: 0.14% | AG25: 3050 | AH25: 501 | AI25: 16.43% | AJ25: 7 | AK25: 0.23% | AL25: 2600 | AM25: 523 | AN25: 20.12% | AO25: 6 | AP25: 0.23% | AQ25: 2446 | AR25: 506 | AS25: 20.69% | AT25: 8 | AU25: 0.33% | AV25: 2318 | AW25: 591 | AX25: 25.50% | AY25: 4 | AZ25: 0.17% | BA25: 2066 | BB25: 883 | BC25: 42.74% | BD25: 121 | BE25: 5.86% | BF25: 1522 | BG25: 846 | BH25: 55.58% | BI25: 139 | BJ25: 9.13% | BK25: 1143 | BL25: 681 | BM25: 59.58% | BN25: 104 | BO25: 9.10% | BP25: 711 | BQ25: 467 | BR25: 65.68% | BS25: 79 | BT25: 11.11% | BU25: 916 | BV25: 595 | BW25: 64.96% | BX25: 73 | BY25: 7.97% | CA25: Domingos Martins | CB25: 30370 | CC25: 7025 | CD25: 0.2313137965 | CE25: 555 | CF25: 0.01827461311
A26: Regional Sul | B26: Dores do Rio Preto | C26: 545 | D26: 5 | E26: 0.92% | F26: 0 | G26: 0.00% | H26: 206 | I26: 15 | J26: 7.28% | K26: 0 | L26: 0.00% | M26: 489 | N26: 64 | O26: 13.09% | P26: 1 | Q26: 0.20% | R26: 432 | S26: 58 | T26: 13.43% | U26: 0 | V26: 0.00% | W26: 479 | X26: 80 | Y26: 16.70% | Z26: 0 | AA26: 0.00% | AB26: 512 | AC26: 83 | AD26: 16.21% | AE26: 1 | AF26: 0.20% | AG26: 492 | AH26: 83 | AI26: 16.87% | AJ26: 0 | AK26: 0.00% | AL26: 482 | AM26: 97 | AN26: 20.12% | AO26: 3 | AP26: 0.62% | AQ26: 425 | AR26: 72 | AS26: 16.94% | AT26: 3 | AU26: 0.71% | AV26: 405 | AW26: 97 | AX26: 23.95% | AY26: 8 | AZ26: 1.98% | BA26: 367 | BB26: 121 | BC26: 32.97% | BD26: 20 | BE26: 5.45% | BF26: 278 | BG26: 139 | BH26: 50.00% | BI26: 23 | BJ26: 8.27% | BK26: 214 | BL26: 127 | BM26: 59.35% | BN26: 21 | BO26: 9.81% | BP26: 116 | BQ26: 82 | BR26: 70.69% | BS26: 19 | BT26: 16.38% | BU26: 170 | BV26: 100 | BW26: 58.82% | BX26: 17 | BY26: 10.00% | CA26: Dores do Rio Preto | CB26: 5612 | CC26: 1223 | CD26: 0.2179258731 | CE26: 116 | CF26: 0.02066999287
A27: Regional Norte | B27: Ecoporanga | C27: 1788 | D27: 12 | E27: 0.67% | F27: 0 | G27: 0.00% | H27: 575 | I27: 72 | J27: 12.52% | K27: 0 | L27: 0.00% | M27: 1434 | N27: 159 | O27: 11.09% | P27: 4 | Q27: 0.28% | R27: 1306 | S27: 169 | T27: 12.94% | U27: 1 | V27: 0.08% | W27: 1379 | X27: 199 | Y27: 14.43% | Z27: 2 | AA27: 0.15% | AB27: 1646 | AC27: 241 | AD27: 14.64% | AE27: 5 | AF27: 0.30% | AG27: 1773 | AH27: 304 | AI27: 17.15% | AJ27: 8 | AK27: 0.45% | AL27: 1586 | AM27: 353 | AN27: 22.26% | AO27: 8 | AP27: 0.50% | AQ27: 1536 | AR27: 348 | AS27: 22.66% | AT27: 11 | AU27: 0.72% | AV27: 1426 | AW27: 374 | AX27: 26.23% | AY27: 13 | AZ27: 0.91% | BA27: 1291 | BB27: 457 | BC27: 35.40% | BD27: 39 | BE27: 3.02% | BF27: 1094 | BG27: 443 | BH27: 40.49% | BI27: 31 | BJ27: 2.83% | BK27: 770 | BL27: 353 | BM27: 45.84% | BN27: 32 | BO27: 4.16% | BP27: 490 | BQ27: 247 | BR27: 50.41% | BS27: 20 | BT27: 4.08% | BU27: 629 | BV27: 321 | BW27: 51.03% | BX27: 14 | BY27: 2.23% | CA27: Ecoporanga | CB27: 18723 | CC27: 4052 | CD27: 0.216418309 | CE27: 188 | CF27: 0.01004112589
A28: Regional Metropolitana | B28: Fundão | C28: 1417 | D28: 2 | E28: 0.14% | F28: 0 | G28: 0.00% | H28: 450 | I28: 68 | J28: 15.11% | K28: 0 | L28: 0.00% | M28: 1205 | N28: 175 | O28: 14.52% | P28: 2 | Q28: 0.17% | R28: 1151 | S28: 175 | T28: 15.20% | U28: 0 | V28: 0.00% | W28: 1307 | X28: 198 | Y28: 15.15% | Z28: 0 | AA28: 0.00% | AB28: 1278 | AC28: 229 | AD28: 17.92% | AE28: 1 | AF28: 0.08% | AG28: 1387 | AH28: 252 | AI28: 18.17% | AJ28: 2 | AK28: 0.14% | AL28: 1238 | AM28: 242 | AN28: 19.55% | AO28: 0 | AP28: 0.00% | AQ28: 1237 | AR28: 246 | AS28: 19.89% | AT28: 3 | AU28: 0.24% | AV28: 1187 | AW28: 280 | AX28: 23.59% | AY28: 3 | AZ28: 0.25% | BA28: 1103 | BB28: 390 | BC28: 35.36% | BD28: 26 | BE28: 2.36% | BF28: 865 | BG28: 462 | BH28: 53.41% | BI28: 50 | BJ28: 5.78% | BK28: 594 | BL28: 342 | BM28: 57.58% | BN28: 27 | BO28: 4.55% | BP28: 333 | BQ28: 234 | BR28: 70.27% | BS28: 17 | BT28: 5.11% | BU28: 537 | BV28: 308 | BW28: 57.36% | BX28: 19 | BY28: 3.54% | CA28: Fundão | CB28: 15289 | CC28: 3603 | CD28: 0.2356596246 | CE28: 150 | CF28: 0.009810975211
A29: Regional Central | B29: Governador Lindenberg | C29: 875 | D29: 1 | E29: 0.11% | F29: 0 | G29: 0.00% | H29: 292 | I29: 11 | J29: 3.77% | K29: 0 | L29: 0.00% | M29: 755 | N29: 53 | O29: 7.02% | P29: 0 | Q29: 0.00% | R29: 740 | S29: 80 | T29: 10.81% | U29: 1 | V29: 0.14% | W29: 787 | X29: 101 | Y29: 12.83% | Z29: 0 | AA29: 0.00% | AB29: 871 | AC29: 70 | AD29: 8.04% | AE29: 1 | AF29: 0.11% | AG29: 862 | AH29: 121 | AI29: 14.04% | AJ29: 1 | AK29: 0.12% | AL29: 727 | AM29: 106 | AN29: 14.58% | AO29: 0 | AP29: 0.00% | AQ29: 771 | AR29: 112 | AS29: 14.53% | AT29: 1 | AU29: 0.13% | AV29: 717 | AW29: 149 | AX29: 20.78% | AY29: 1 | AZ29: 0.14% | BA29: 650 | BB29: 241 | BC29: 37.08% | BD29: 6 | BE29: 0.92% | BF29: 476 | BG29: 237 | BH29: 49.79% | BI29: 8 | BJ29: 1.68% | BK29: 319 | BL29: 220 | BM29: 68.97% | BN29: 8 | BO29: 2.51% | BP29: 238 | BQ29: 150 | BR29: 63.03% | BS29: 9 | BT29: 3.78% | BU29: 304 | BV29: 206 | BW29: 67.76% | BX29: 3 | BY29: 0.99% | CA29: Governador Lindenberg | CB29: 9384 | CC29: 1858 | CD29: 0.1979965899 | CE29: 39 | CF29: 0.00415601023
A30: Regional Sul | B30: Guaçuí | C30: 2243 | D30: 16 | E30: 0.71% | F30: 0 | G30: 0.00% | H30: 820 | I30: 72 | J30: 8.78% | K30: 0 | L30: 0.00% | M30: 2146 | N30: 177 | O30: 8.25% | P30: 0 | Q30: 0.00% | R30: 2100 | S30: 147 | T30: 7.00% | U30: 0 | V30: 0.00% | W30: 2097 | X30: 186 | Y30: 8.87% | Z30: 0 | AA30: 0.00% | AB30: 2164 | AC30: 226 | AD30: 10.44% | AE30: 0 | AF30: 0.00% | AG30: 2126 | AH30: 266 | AI30: 12.51% | AJ30: 1 | AK30: 0.05% | AL30: 1896 | AM30: 270 | AN30: 14.24% | AO30: 3 | AP30: 0.16% | AQ30: 1744 | AR30: 308 | AS30: 17.66% | AT30: 2 | AU30: 0.11% | AV30: 1748 | AW30: 344 | AX30: 19.68% | AY30: 2 | AZ30: 0.11% | BA30: 1571 | BB30: 521 | BC30: 33.16% | BD30: 29 | BE30: 1.85% | BF30: 1438 | BG30: 536 | BH30: 37.27% | BI30: 32 | BJ30: 2.23% | BK30: 1029 | BL30: 535 | BM30: 51.99% | BN30: 45 | BO30: 4.37% | BP30: 600 | BQ30: 319 | BR30: 53.17% | BS30: 18 | BT30: 3.00% | BU30: 866 | BV30: 450 | BW30: 51.96% | BX30: 24 | BY30: 2.77% | CA30: Guaçuí | CB30: 24588 | CC30: 4373 | CD30: 0.1778509842 | CE30: 156 | CF30: 0.006344558321
A31: Regional Metropolitana | B31: Guarapari | C31: 9825 | D31: 23 | E31: 0.23% | F31: 0 | G31: 0.00% | H31: 3349 | I31: 135 | J31: 4.03% | K31: 0 | L31: 0.00% | M31: 8558 | N31: 378 | O31: 4.42% | P31: 2 | Q31: 0.02% | R31: 8664 | S31: 497 | T31: 5.74% | U31: 3 | V31: 0.03% | W31: 8786 | X31: 532 | Y31: 6.06% | Z31: 4 | AA31: 0.05% | AB31: 9693 | AC31: 718 | AD31: 7.41% | AE31: 2 | AF31: 0.02% | AG31: 10536 | AH31: 936 | AI31: 8.88% | AJ31: 3 | AK31: 0.03% | AL31: 8546 | AM31: 860 | AN31: 10.06% | AO31: 7 | AP31: 0.08% | AQ31: 8314 | AR31: 967 | AS31: 11.63% | AT31: 3 | AU31: 0.04% | AV31: 7624 | AW31: 1114 | AX31: 14.61% | AY31: 18 | AZ31: 0.24% | BA31: 7167 | BB31: 1747 | BC31: 24.38% | BD31: 136 | BE31: 1.90% | BF31: 5657 | BG31: 1906 | BH31: 33.69% | BI31: 188 | BJ31: 3.32% | BK31: 3910 | BL31: 1702 | BM31: 43.53% | BN31: 182 | BO31: 4.65% | BP31: 2336 | BQ31: 1107 | BR31: 47.39% | BS31: 90 | BT31: 3.85% | BU31: 2685 | BV31: 1210 | BW31: 45.07% | BX31: 96 | BY31: 3.58% | CA31: Guarapari | CB31: 105650 | CC31: 13832 | CD31: 0.1309228585 | CE31: 734 | CF31: 0.006947468055
A32: Regional Metropolitana | B32: Ibatiba | C32: 2143 | D32: 4 | E32: 0.19% | F32: 0 | G32: 0.00% | H32: 765 | I32: 62 | J32: 8.10% | K32: 0 | L32: 0.00% | M32: 1971 | N32: 168 | O32: 8.52% | P32: 0 | Q32: 0.00% | R32: 1898 | S32: 200 | T32: 10.54% | U32: 1 | V32: 0.05% | W32: 1912 | X32: 187 | Y32: 9.78% | Z32: 0 | AA32: 0.00% | AB32: 1953 | AC32: 265 | AD32: 13.57% | AE32: 1 | AF32: 0.05% | AG32: 2106 | AH32: 306 | AI32: 14.53% | AJ32: 1 | AK32: 0.05% | AL32: 1732 | AM32: 279 | AN32: 16.11% | AO32: 2 | AP32: 0.12% | AQ32: 1562 | AR32: 266 | AS32: 17.03% | AT32: 2 | AU32: 0.13% | AV32: 1288 | AW32: 295 | AX32: 22.90% | AY32: 0 | AZ32: 0.00% | BA32: 1140 | BB32: 426 | BC32: 37.37% | BD32: 4 | BE32: 0.35% | BF32: 981 | BG32: 472 | BH32: 48.11% | BI32: 16 | BJ32: 1.63% | BK32: 724 | BL32: 377 | BM32: 52.07% | BN32: 6 | BO32: 0.83% | BP32: 444 | BQ32: 261 | BR32: 58.78% | BS32: 9 | BT32: 2.03% | BU32: 563 | BV32: 384 | BW32: 68.21% | BX32: 6 | BY32: 1.07% | CA32: Ibatiba | CB32: 21182 | CC32: 3952 | CD32: 0.1865735058 | CE32: 48 | CF32: 0.002266074969
A33: Regional Metropolitana | B33: Ibiraçu | C33: 835 | D33: 48 | E33: 5.75% | F33: 0 | G33: 0.00% | H33: 312 | I33: 69 | J33: 22.12% | K33: 0 | L33: 0.00% | M33: 794 | N33: 175 | O33: 22.04% | P33: 0 | Q33: 0.00% | R33: 803 | S33: 172 | T33: 21.42% | U33: 2 | V33: 0.25% | W33: 893 | X33: 205 | Y33: 22.96% | Z33: 1 | AA33: 0.11% | AB33: 905 | AC33: 237 | AD33: 26.19% | AE33: 1 | AF33: 0.11% | AG33: 952 | AH33: 230 | AI33: 24.16% | AJ33: 2 | AK33: 0.21% | AL33: 763 | AM33: 231 | AN33: 30.28% | AO33: 2 | AP33: 0.26% | AQ33: 771 | AR33: 230 | AS33: 29.83% | AT33: 1 | AU33: 0.13% | AV33: 734 | AW33: 222 | AX33: 30.25% | AY33: 1 | AZ33: 0.14% | BA33: 637 | BB33: 288 | BC33: 45.21% | BD33: 10 | BE33: 1.57% | BF33: 549 | BG33: 298 | BH33: 54.28% | BI33: 6 | BJ33: 1.09% | BK33: 375 | BL33: 222 | BM33: 59.20% | BN33: 9 | BO33: 2.40% | BP33: 229 | BQ33: 194 | BR33: 84.72% | BS33: 5 | BT33: 2.18% | BU33: 331 | BV33: 242 | BW33: 73.11% | BX33: 5 | BY33: 1.51% | CA33: Ibiraçu | CB33: 9883 | CC33: 3063 | CD33: 0.3099261358 | CE33: 45 | CF33: 0.004553273298
A34: Regional Sul | B34: Ibitirama | C34: 848 | D34: 1 | E34: 0.12% | F34: 0 | G34: 0.00% | H34: 310 | I34: 12 | J34: 3.87% | K34: 0 | L34: 0.00% | M34: 747 | N34: 30 | O34: 4.02% | P34: 0 | Q34: 0.00% | R34: 641 | S34: 30 | T34: 4.68% | U34: 0 | V34: 0.00% | W34: 694 | X34: 39 | Y34: 5.62% | Z34: 1 | AA34: 0.14% | AB34: 728 | AC34: 49 | AD34: 6.73% | AE34: 1 | AF34: 0.14% | AG34: 736 | AH34: 55 | AI34: 7.47% | AJ34: 0 | AK34: 0.00% | AL34: 598 | AM34: 36 | AN34: 6.02% | AO34: 1 | AP34: 0.17% | AQ34: 540 | AR34: 46 | AS34: 8.52% | AT34: 0 | AU34: 0.00% | AV34: 555 | AW34: 54 | AX34: 9.73% | AY34: 2 | AZ34: 0.36% | BA34: 471 | BB34: 100 | BC34: 21.23% | BD34: 3 | BE34: 0.64% | BF34: 372 | BG34: 118 | BH34: 31.72% | BI34: 1 | BJ34: 0.27% | BK34: 222 | BL34: 85 | BM34: 38.29% | BN34: 0 | BO34: 0.00% | BP34: 156 | BQ34: 42 | BR34: 26.92% | BS34: 0 | BT34: 0.00% | BU34: 179 | BV34: 46 | BW34: 25.70% | BX34: 0 | BY34: 0.00% | CA34: Ibitirama | CB34: 7797 | CC34: 743 | CD34: 0.09529306143 | CE34: 9 | CF34: 0.001154290112
A35: Regional Sul | B35: Iconha | C35: 802 | D35: 7 | E35: 0.87% | F35: 0 | G35: 0.00% | H35: 271 | I35: 47 | J35: 17.34% | K35: 0 | L35: 0.00% | M35: 752 | N35: 141 | O35: 18.75% | P35: 0 | Q35: 0.00% | R35: 804 | S35: 124 | T35: 15.42% | U35: 1 | V35: 0.12% | W35: 865 | X35: 149 | Y35: 17.23% | Z35: 2 | AA35: 0.23% | AB35: 1061 | AC35: 238 | AD35: 22.43% | AE35: 1 | AF35: 0.09% | AG35: 1046 | AH35: 228 | AI35: 21.80% | AJ35: 2 | AK35: 0.19% | AL35: 860 | AM35: 220 | AN35: 25.58% | AO35: 2 | AP35: 0.23% | AQ35: 856 | AR35: 203 | AS35: 23.71% | AT35: 0 | AU35: 0.00% | AV35: 886 | AW35: 246 | AX35: 27.77% | AY35: 3 | AZ35: 0.34% | BA35: 791 | BB35: 342 | BC35: 43.24% | BD35: 46 | BE35: 5.82% | BF35: 673 | BG35: 370 | BH35: 54.98% | BI35: 51 | BJ35: 7.58% | BK35: 413 | BL35: 290 | BM35: 70.22% | BN35: 41 | BO35: 9.93% | BP35: 267 | BQ35: 195 | BR35: 73.03% | BS35: 18 | BT35: 6.74% | BU35: 416 | BV35: 326 | BW35: 78.37% | BX35: 31 | BY35: 7.45% | CA35: Iconha | CB35: 10763 | CC35: 3126 | CD35: 0.2904394685 | CE35: 198 | CF35: 0.01839635789
A36: Regional Sul | B36: Irupi | C36: 1198 | D36: 56 | E36: 4.67% | F36: 0 | G36: 0.00% | H36: 441 | I36: 65 | J36: 14.74% | K36: 3 | L36: 0.68% | M36: 1044 | N36: 166 | O36: 15.90% | P36: 3 | Q36: 0.29% | R36: 952 | S36: 187 | T36: 19.64% | U36: 3 | V36: 0.32% | W36: 990 | X36: 165 | Y36: 16.67% | Z36: 2 | AA36: 0.20% | AB36: 1143 | AC36: 202 | AD36: 17.67% | AE36: 1 | AF36: 0.09% | AG36: 1115 | AH36: 193 | AI36: 17.31% | AJ36: 8 | AK36: 0.72% | AL36: 940 | AM36: 193 | AN36: 20.53% | AO36: 7 | AP36: 0.74% | AQ36: 846 | AR36: 199 | AS36: 23.52% | AT36: 3 | AU36: 0.35% | AV36: 731 | AW36: 190 | AX36: 25.99% | AY36: 9 | AZ36: 1.23% | BA36: 595 | BB36: 254 | BC36: 42.69% | BD36: 28 | BE36: 4.71% | BF36: 495 | BG36: 240 | BH36: 48.48% | BI36: 33 | BJ36: 6.67% | BK36: 382 | BL36: 213 | BM36: 55.76% | BN36: 21 | BO36: 5.50% | BP36: 250 | BQ36: 133 | BR36: 53.20% | BS36: 12 | BT36: 4.80% | BU36: 284 | BV36: 154 | BW36: 54.23% | BX36: 13 | BY36: 4.58% | CA36: Irupi | CB36: 11406 | CC36: 2610 | CD36: 0.2288269332 | CE36: 146 | CF36: 0.01280028055
A37: Regional Metropolitana | B37: Itaguaçu | C37: 913 | D37: 4 | E37: 0.44% | F37: 0 | G37: 0.00% | H37: 352 | I37: 37 | J37: 10.51% | K37: 0 | L37: 0.00% | M37: 836 | N37: 89 | O37: 10.65% | P37: 1 | Q37: 0.12% | R37: 735 | S37: 115 | T37: 15.65% | U37: 0 | V37: 0.00% | W37: 887 | X37: 109 | Y37: 12.29% | Z37: 1 | AA37: 0.11% | AB37: 990 | AC37: 156 | AD37: 15.76% | AE37: 3 | AF37: 0.30% | AG37: 1036 | AH37: 173 | AI37: 16.70% | AJ37: 1 | AK37: 0.10% | AL37: 959 | AM37: 174 | AN37: 18.14% | AO37: 2 | AP37: 0.21% | AQ37: 979 | AR37: 187 | AS37: 19.10% | AT37: 6 | AU37: 0.61% | AV37: 945 | AW37: 247 | AX37: 26.14% | AY37: 4 | AZ37: 0.42% | BA37: 907 | BB37: 397 | BC37: 43.77% | BD37: 31 | BE37: 3.42% | BF37: 787 | BG37: 461 | BH37: 58.58% | BI37: 52 | BJ37: 6.61% | BK37: 558 | BL37: 412 | BM37: 73.84% | BN37: 35 | BO37: 6.27% | BP37: 376 | BQ37: 255 | BR37: 67.82% | BS37: 24 | BT37: 6.38% | BU37: 586 | BV37: 400 | BW37: 68.26% | BX37: 31 | BY37: 5.29% | CA37: Itaguaçu | CB37: 11846 | CC37: 3216 | CD37: 0.2714840452 | CE37: 191 | CF37: 0.01612358602
A38: Regional Sul | B38: Itapemirim | C38: 3500 | D38: 30 | E38: 0.86% | F38: 1 | G38: 0.03% | H38: 1159 | I38: 40 | J38: 3.45% | K38: 0 | L38: 0.00% | M38: 2820 | N38: 107 | O38: 3.79% | P38: 1 | Q38: 0.04% | R38: 2672 | S38: 135 | T38: 5.05% | U38: 2 | V38: 0.07% | W38: 2808 | X38: 142 | Y38: 5.06% | Z38: 1 | AA38: 0.04% | AB38: 3046 | AC38: 181 | AD38: 5.94% | AE38: 2 | AF38: 0.07% | AG38: 3139 | AH38: 199 | AI38: 6.34% | AJ38: 1 | AK38: 0.03% | AL38: 2668 | AM38: 203 | AN38: 7.61% | AO38: 4 | AP38: 0.15% | AQ38: 2404 | AR38: 194 | AS38: 8.07% | AT38: 4 | AU38: 0.17% | AV38: 2353 | AW38: 256 | AX38: 10.88% | AY38: 3 | AZ38: 0.13% | BA38: 2101 | BB38: 403 | BC38: 19.18% | BD38: 20 | BE38: 0.95% | BF38: 1709 | BG38: 485 | BH38: 28.38% | BI38: 37 | BJ38: 2.17% | BK38: 1215 | BL38: 348 | BM38: 28.64% | BN38: 18 | BO38: 1.48% | BP38: 702 | BQ38: 280 | BR38: 39.89% | BS38: 14 | BT38: 1.99% | BU38: 822 | BV38: 265 | BW38: 32.24% | BX38: 15 | BY38: 1.82% | CA38: Itapemirim | CB38: 33118 | CC38: 3268 | CD38: 0.09867745637 | CE38: 123 | CF38: 0.003713992391
A39: Regional Metropolitana | B39: Itarana | C39: 658 | D39: 0 | E39: 0.00% | F39: 0 | G39: 0.00% | H39: 261 | I39: 11 | J39: 4.21% | K39: 0 | L39: 0.00% | M39: 722 | N39: 38 | O39: 5.26% | P39: 0 | Q39: 0.00% | R39: 686 | S39: 67 | T39: 9.77% | U39: 0 | V39: 0.00% | W39: 685 | X39: 50 | Y39: 7.30% | Z39: 0 | AA39: 0.00% | AB39: 794 | AC39: 66 | AD39: 8.31% | AE39: 0 | AF39: 0.00% | AG39: 849 | AH39: 92 | AI39: 10.84% | AJ39: 0 | AK39: 0.00% | AL39: 730 | AM39: 86 | AN39: 11.78% | AO39: 0 | AP39: 0.00% | AQ39: 752 | AR39: 130 | AS39: 17.29% | AT39: 1 | AU39: 0.13% | AV39: 724 | AW39: 139 | AX39: 19.20% | AY39: 1 | AZ39: 0.14% | BA39: 640 | BB39: 224 | BC39: 35.00% | BD39: 58 | BE39: 9.06% | BF39: 580 | BG39: 265 | BH39: 45.69% | BI39: 67 | BJ39: 11.55% | BK39: 434 | BL39: 241 | BM39: 55.53% | BN39: 87 | BO39: 20.05% | BP39: 306 | BQ39: 185 | BR39: 60.46% | BS39: 46 | BT39: 15.03% | BU39: 429 | BV39: 265 | BW39: 61.77% | BX39: 61 | BY39: 14.22% | CA39: Itarana | CB39: 9250 | CC39: 1859 | CD39: 0.200972973 | CE39: 321 | CF39: 0.0347027027
A40: Regional Sul | B40: Iúna | C40: 2413 | D40: 24 | E40: 0.99% | F40: 0 | G40: 0.00% | H40: 806 | I40: 36 | J40: 4.47% | K40: 0 | L40: 0.00% | M40: 2163 | N40: 133 | O40: 6.15% | P40: 1 | Q40: 0.05% | R40: 2049 | S40: 136 | T40: 6.64% | U40: 1 | V40: 0.05% | W40: 2147 | X40: 149 | Y40: 6.94% | Z40: 1 | AA40: 0.05% | AB40: 2283 | AC40: 207 | AD40: 9.07% | AE40: 2 | AF40: 0.09% | AG40: 2274 | AH40: 218 | AI40: 9.59% | AJ40: 0 | AK40: 0.00% | AL40: 1879 | AM40: 233 | AN40: 12.40% | AO40: 1 | AP40: 0.05% | AQ40: 1691 | AR40: 245 | AS40: 14.49% | AT40: 6 | AU40: 0.35% | AV40: 1644 | AW40: 283 | AX40: 17.21% | AY40: 2 | AZ40: 0.12% | BA40: 1415 | BB40: 368 | BC40: 26.01% | BD40: 8 | BE40: 0.57% | BF40: 1117 | BG40: 411 | BH40: 36.79% | BI40: 12 | BJ40: 1.07% | BK40: 767 | BL40: 285 | BM40: 37.16% | BN40: 6 | BO40: 0.78% | BP40: 524 | BQ40: 214 | BR40: 40.84% | BS40: 3 | BT40: 0.57% | BU40: 594 | BV40: 271 | BW40: 45.62% | BX40: 7 | BY40: 1.18% | CA40: Iúna | CB40: 23766 | CC40: 3213 | CD40: 0.135193133 | CE40: 50 | CF40: 0.00210384583
A41: Regional Norte | B41: Jaguaré | C41: 2688 | D41: 15 | E41: 0.56% | F41: 0 | G41: 0.00% | H41: 873 | I41: 66 | J41: 7.56% | K41: 1 | L41: 0.11% | M41: 2202 | N41: 167 | O41: 7.58% | P41: 0 | Q41: 0.00% | R41: 2164 | S41: 195 | T41: 9.01% | U41: 1 | V41: 0.05% | W41: 2244 | X41: 194 | Y41: 8.65% | Z41: 3 | AA41: 0.13% | AB41: 2391 | AC41: 292 | AD41: 12.21% | AE41: 4 | AF41: 0.17% | AG41: 2307 | AH41: 301 | AI41: 13.05% | AJ41: 0 | AK41: 0.00% | AL41: 1862 | AM41: 284 | AN41: 15.25% | AO41: 1 | AP41: 0.05% | AQ41: 1649 | AR41: 293 | AS41: 17.77% | AT41: 2 | AU41: 0.12% | AV41: 1482 | AW41: 272 | AX41: 18.35% | AY41: 2 | AZ41: 0.13% | BA41: 1202 | BB41: 474 | BC41: 39.43% | BD41: 54 | BE41: 4.49% | BF41: 986 | BG41: 514 | BH41: 52.13% | BI41: 65 | BJ41: 6.59% | BK41: 653 | BL41: 398 | BM41: 60.95% | BN41: 68 | BO41: 10.41% | BP41: 405 | BQ41: 266 | BR41: 65.68% | BS41: 38 | BT41: 9.38% | BU41: 488 | BV41: 355 | BW41: 72.75% | BX41: 67 | BY41: 13.73% | CA41: Jaguaré | CB41: 23596 | CC41: 4086 | CD41: 0.1731649432 | CE41: 306 | CF41: 0.01296829971
A42: Regional Sul | B42: Jerônimo Monteiro | C42: 856 | D42: 11 | E42: 1.29% | F42: 0 | G42: 0.00% | H42: 314 | I42: 50 | J42: 15.92% | K42: 1 | L42: 0.32% | M42: 809 | N42: 137 | O42: 16.93% | P42: 1 | Q42: 0.12% | R42: 781 | S42: 144 | T42: 18.44% | U42: 1 | V42: 0.13% | W42: 827 | X42: 167 | Y42: 20.19% | Z42: 2 | AA42: 0.24% | AB42: 792 | AC42: 151 | AD42: 19.07% | AE42: 2 | AF42: 0.25% | AG42: 816 | AH42: 173 | AI42: 21.20% | AJ42: 1 | AK42: 0.12% | AL42: 762 | AM42: 183 | AN42: 24.02% | AO42: 1 | AP42: 0.13% | AQ42: 762 | AR42: 164 | AS42: 21.52% | AT42: 0 | AU42: 0.00% | AV42: 787 | AW42: 215 | AX42: 27.32% | AY42: 4 | AZ42: 0.51% | BA42: 648 | BB42: 250 | BC42: 38.58% | BD42: 44 | BE42: 6.79% | BF42: 560 | BG42: 259 | BH42: 46.25% | BI42: 26 | BJ42: 4.64% | BK42: 404 | BL42: 243 | BM42: 60.15% | BN42: 24 | BO42: 5.94% | BP42: 318 | BQ42: 181 | BR42: 56.92% | BS42: 23 | BT42: 7.23% | BU42: 426 | BV42: 292 | BW42: 68.54% | BX42: 16 | BY42: 3.76% | CA42: Jerônimo Monteiro | CB42: 9862 | CC42: 2620 | CD42: 0.2656661935 | CE42: 146 | CF42: 0.01480429933
A43: Regional Metropolitana | B43: João Neiva | C43: 1004 | D43: 1 | E43: 0.10% | F43: 0 | G43: 0.00% | H43: 317 | I43: 44 | J43: 13.88% | K43: 0 | L43: 0.00% | M43: 896 | N43: 91 | O43: 10.16% | P43: 0 | Q43: 0.00% | R43: 866 | S43: 101 | T43: 11.66% | U43: 0 | V43: 0.00% | W43: 939 | X43: 103 | Y43: 10.97% | Z43: 0 | AA43: 0.00% | AB43: 994 | AC43: 148 | AD43: 14.89% | AE43: 0 | AF43: 0.00% | AG43: 1133 | AH43: 173 | AI43: 15.27% | AJ43: 0 | AK43: 0.00% | AL43: 1044 | AM43: 211 | AN43: 20.21% | AO43: 1 | AP43: 0.10% | AQ43: 922 | AR43: 177 | AS43: 19.20% | AT43: 1 | AU43: 0.11% | AV43: 998 | AW43: 221 | AX43: 22.14% | AY43: 2 | AZ43: 0.20% | BA43: 877 | BB43: 395 | BC43: 45.04% | BD43: 6 | BE43: 0.68% | BF43: 739 | BG43: 441 | BH43: 59.68% | BI43: 17 | BJ43: 2.30% | BK43: 515 | BL43: 354 | BM43: 68.74% | BN43: 12 | BO43: 2.33% | BP43: 366 | BQ43: 253 | BR43: 69.13% | BS43: 3 | BT43: 0.82% | BU43: 515 | BV43: 314 | BW43: 60.97% | BX43: 4 | BY43: 0.78% | CA43: João Neiva | CB43: 12125 | CC43: 3027 | CD43: 0.2496494845 | CE43: 46 | CF43: 0.003793814433
A44: Regional Metropolitana | B44: Laranja da Terra | C44: 699 | D44: 27 | E44: 3.86% | F44: 1 | G44: 0.14% | H44: 248 | I44: 28 | J44: 11.29% | K44: 1 | L44: 0.40% | M44: 651 | N44: 78 | O44: 11.98% | P44: 2 | Q44: 0.31% | R44: 689 | S44: 95 | T44: 13.79% | U44: 6 | V44: 0.87% | W44: 746 | X44: 129 | Y44: 17.29% | Z44: 4 | AA44: 0.54% | AB44: 789 | AC44: 161 | AD44: 20.41% | AE44: 4 | AF44: 0.51% | AG44: 871 | AH44: 156 | AI44: 17.91% | AJ44: 6 | AK44: 0.69% | AL44: 805 | AM44: 165 | AN44: 20.50% | AO44: 4 | AP44: 0.50% | AQ44: 902 | AR44: 177 | AS44: 19.62% | AT44: 13 | AU44: 1.44% | AV44: 824 | AW44: 207 | AX44: 25.12% | AY44: 16 | AZ44: 1.94% | BA44: 676 | BB44: 259 | BC44: 38.31% | BD44: 45 | BE44: 6.66% | BF44: 600 | BG44: 284 | BH44: 47.33% | BI44: 51 | BJ44: 8.50% | BK44: 457 | BL44: 251 | BM44: 54.92% | BN44: 45 | BO44: 9.85% | BP44: 371 | BQ44: 207 | BR44: 55.80% | BS44: 40 | BT44: 10.78% | BU44: 367 | BV44: 231 | BW44: 62.94% | BX44: 31 | BY44: 8.45% | CA44: Laranja da Terra | CB44: 9695 | CC44: 2455 | CD44: 0.253223311 | CE44: 269 | CF44: 0.02774626096
A45: Regional Central | B45: Linhares | C45: 14437 | D45: 61 | E45: 0.42% | F45: 0 | G45: 0.00% | H45: 4933 | I45: 209 | J45: 4.24% | K45: 2 | L45: 0.04% | M45: 13238 | N45: 939 | O45: 7.09% | P45: 8 | Q45: 0.06% | R45: 13493 | S45: 1094 | T45: 8.11% | U45: 12 | V45: 0.09% | W45: 13785 | X45: 1073 | Y45: 7.78% | Z45: 9 | AA45: 0.07% | AB45: 14112 | AC45: 1166 | AD45: 8.26% | AE45: 14 | AF45: 0.10% | AG45: 14130 | AH45: 1277 | AI45: 9.04% | AJ45: 18 | AK45: 0.13% | AL45: 10688 | AM45: 1178 | AN45: 11.02% | AO45: 13 | AP45: 0.12% | AQ45: 9616 | AR45: 1155 | AS45: 12.01% | AT45: 14 | AU45: 0.15% | AV45: 8135 | AW45: 1394 | AX45: 17.14% | AY45: 17 | AZ45: 0.21% | BA45: 7008 | BB45: 1903 | BC45: 27.15% | BD45: 86 | BE45: 1.23% | BF45: 5664 | BG45: 2180 | BH45: 38.49% | BI45: 107 | BJ45: 1.89% | BK45: 3728 | BL45: 1778 | BM45: 47.69% | BN45: 96 | BO45: 2.58% | BP45: 2414 | BQ45: 1223 | BR45: 50.66% | BS45: 44 | BT45: 1.82% | BU45: 2926 | BV45: 1400 | BW45: 47.85% | BX45: 46 | BY45: 1.57% | CA45: Linhares | CB45: 138307 | CC45: 18030 | CD45: 0.1303621653 | CE45: 486 | CF45: 0.003513921927
A46: Regional Central | B46: Mantenópolis | C46: 1020 | D46: 0 | E46: 0.00% | F46: 0 | G46: 0.00% | H46: 339 | I46: 16 | J46: 4.72% | K46: 0 | L46: 0.00% | M46: 751 | N46: 39 | O46: 5.19% | P46: 0 | Q46: 0.00% | R46: 758 | S46: 58 | T46: 7.65% | U46: 0 | V46: 0.00% | W46: 780 | X46: 39 | Y46: 5.00% | Z46: 0 | AA46: 0.00% | AB46: 912 | AC46: 59 | AD46: 6.47% | AE46: 0 | AF46: 0.00% | AG46: 965 | AH46: 85 | AI46: 8.81% | AJ46: 0 | AK46: 0.00% | AL46: 901 | AM46: 84 | AN46: 9.32% | AO46: 0 | AP46: 0.00% | AQ46: 906 | AR46: 111 | AS46: 12.25% | AT46: 0 | AU46: 0.00% | AV46: 908 | AW46: 156 | AX46: 17.18% | AY46: 0 | AZ46: 0.00% | BA46: 782 | BB46: 211 | BC46: 26.98% | BD46: 1 | BE46: 0.13% | BF46: 629 | BG46: 263 | BH46: 41.81% | BI46: 1 | BJ46: 0.16% | BK46: 419 | BL46: 195 | BM46: 46.54% | BN46: 0 | BO46: 0.00% | BP46: 295 | BQ46: 151 | BR46: 51.19% | BS46: 0 | BT46: 0.00% | BU46: 399 | BV46: 179 | BW46: 44.86% | BX46: 0 | BY46: 0.00% | CA46: Mantenópolis | CB46: 10764 | CC46: 1646 | CD46: 0.1529171312 | CE46: 2 | CF46: 0.0001858045336
A47: Regional Sul | B47: Marataízes | C47: 3459 | D47: 7 | E47: 0.20% | F47: 0 | G47: 0.00% | H47: 1235 | I47: 78 | J47: 6.32% | K47: 1 | L47: 0.08% | M47: 2948 | N47: 212 | O47: 7.19% | P47: 7 | Q47: 0.24% | R47: 2813 | S47: 232 | T47: 8.25% | U47: 4 | V47: 0.14% | W47: 2934 | X47: 216 | Y47: 7.36% | Z47: 5 | AA47: 0.17% | AB47: 3085 | AC47: 272 | AD47: 8.82% | AE47: 9 | AF47: 0.29% | AG47: 3342 | AH47: 330 | AI47: 9.87% | AJ47: 11 | AK47: 0.33% | AL47: 2847 | AM47: 372 | AN47: 13.07% | AO47: 10 | AP47: 0.35% | AQ47: 2582 | AR47: 351 | AS47: 13.59% | AT47: 7 | AU47: 0.27% | AV47: 2455 | AW47: 393 | AX47: 16.01% | AY47: 18 | AZ47: 0.73% | BA47: 2375 | BB47: 639 | BC47: 26.91% | BD47: 95 | BE47: 4.00% | BF47: 2022 | BG47: 759 | BH47: 37.54% | BI47: 105 | BJ47: 5.19% | BK47: 1407 | BL47: 577 | BM47: 41.01% | BN47: 92 | BO47: 6.54% | BP47: 863 | BQ47: 405 | BR47: 46.93% | BS47: 52 | BT47: 6.03% | BU47: 944 | BV47: 470 | BW47: 49.79% | BX47: 64 | BY47: 6.78% | CA47: Marataízes | CB47: 35311 | CC47: 5313 | CD47: 0.1504630285 | CE47: 480 | CF47: 0.01359349778
A48: Regional Metropolitana | B48: Marechal Floriano | C48: 1421 | D48: 5 | E48: 0.35% | F48: 0 | G48: 0.00% | H48: 439 | I48: 52 | J48: 11.85% | K48: 0 | L48: 0.00% | M48: 1245 | N48: 160 | O48: 12.85% | P48: 0 | Q48: 0.00% | R48: 1297 | S48: 149 | T48: 11.49% | U48: 1 | V48: 0.08% | W48: 1260 | X48: 170 | Y48: 13.49% | Z48: 3 | AA48: 0.24% | AB48: 1471 | AC48: 228 | AD48: 15.50% | AE48: 3 | AF48: 0.20% | AG48: 1446 | AH48: 250 | AI48: 17.29% | AJ48: 1 | AK48: 0.07% | AL48: 1320 | AM48: 237 | AN48: 17.95% | AO48: 2 | AP48: 0.15% | AQ48: 1133 | AR48: 245 | AS48: 21.62% | AT48: 4 | AU48: 0.35% | AV48: 987 | AW48: 262 | AX48: 26.55% | AY48: 2 | AZ48: 0.20% | BA48: 893 | BB48: 350 | BC48: 39.19% | BD48: 49 | BE48: 5.49% | BF48: 743 | BG48: 356 | BH48: 47.91% | BI48: 52 | BJ48: 7.00% | BK48: 511 | BL48: 312 | BM48: 61.06% | BN48: 67 | BO48: 13.11% | BP48: 318 | BQ48: 233 | BR48: 73.27% | BS48: 41 | BT48: 12.89% | BU48: 414 | BV48: 313 | BW48: 75.60% | BX48: 66 | BY48: 15.94% | CA48: Marechal Floriano | CB48: 14898 | CC48: 3322 | CD48: 0.2229829507 | CE48: 291 | CF48: 0.0195328232
A49: Regional Central | B49: Marilândia | C49: 847 | D49: 5 | E49: 0.59% | F49: 0 | G49: 0.00% | H49: 317 | I49: 34 | J49: 10.73% | K49: 0 | L49: 0.00% | M49: 834 | N49: 85 | O49: 10.19% | P49: 0 | Q49: 0.00% | R49: 842 | S49: 88 | T49: 10.45% | U49: 0 | V49: 0.00% | W49: 869 | X49: 65 | Y49: 7.48% | Z49: 0 | AA49: 0.00% | AB49: 956 | AC49: 59 | AD49: 6.17% | AE49: 0 | AF49: 0.00% | AG49: 981 | AH49: 76 | AI49: 7.75% | AJ49: 0 | AK49: 0.00% | AL49: 851 | AM49: 82 | AN49: 9.64% | AO49: 1 | AP49: 0.12% | AQ49: 912 | AR49: 94 | AS49: 10.31% | AT49: 0 | AU49: 0.00% | AV49: 846 | AW49: 98 | AX49: 11.58% | AY49: 0 | AZ49: 0.00% | BA49: 735 | BB49: 181 | BC49: 24.63% | BD49: 5 | BE49: 0.68% | BF49: 584 | BG49: 219 | BH49: 37.50% | BI49: 10 | BJ49: 1.71% | BK49: 403 | BL49: 190 | BM49: 47.15% | BN49: 6 | BO49: 1.49% | BP49: 339 | BQ49: 148 | BR49: 43.66% | BS49: 2 | BT49: 0.59% | BU49: 415 | BV49: 211 | BW49: 50.84% | BX49: 1 | BY49: 0.24% | CA49: Marilândia | CB49: 10731 | CC49: 1635 | CD49: 0.1523623148 | CE49: 25 | CF49: 0.002329699003
A50: Regional Sul | B50: Mimoso do Sul | C50: 1828 | D50: 11 | E50: 0.60% | F50: 0 | G50: 0.00% | H50: 600 | I50: 45 | J50: 7.50% | K50: 0 | L50: 0.00% | M50: 1550 | N50: 133 | O50: 8.58% | P50: 0 | Q50: 0.00% | R50: 1579 | S50: 145 | T50: 9.18% | U50: 1 | V50: 0.06% | W50: 1698 | X50: 121 | Y50: 7.13% | Z50: 1 | AA50: 0.06% | AB50: 1863 | AC50: 182 | AD50: 9.77% | AE50: 1 | AF50: 0.05% | AG50: 1837 | AH50: 189 | AI50: 10.29% | AJ50: 1 | AK50: 0.05% | AL50: 1753 | AM50: 211 | AN50: 12.04% | AO50: 1 | AP50: 0.06% | AQ50: 1598 | AR50: 233 | AS50: 14.58% | AT50: 1 | AU50: 0.06% | AV50: 1789 | AW50: 274 | AX50: 15.32% | AY50: 2 | AZ50: 0.11% | BA50: 1576 | BB50: 521 | BC50: 33.06% | BD50: 11 | BE50: 0.70% | BF50: 1280 | BG50: 621 | BH50: 48.52% | BI50: 13 | BJ50: 1.02% | BK50: 925 | BL50: 481 | BM50: 52.00% | BN50: 18 | BO50: 1.95% | BP50: 554 | BQ50: 348 | BR50: 62.82% | BS50: 8 | BT50: 1.44% | BU50: 742 | BV50: 426 | BW50: 57.41% | BX50: 7 | BY50: 0.94% | CA50: Mimoso do Sul | CB50: 21172 | CC50: 3941 | CD50: 0.1861420744 | CE50: 65 | CF50: 0.003070092575
A51: Regional Norte | B51: Montanha | C51: 1593 | D51: 7 | E51: 0.44% | F51: 0 | G51: 0.00% | H51: 567 | I51: 43 | J51: 7.58% | K51: 0 | L51: 0.00% | M51: 1241 | N51: 78 | O51: 6.29% | P51: 0 | Q51: 0.00% | R51: 1305 | S51: 136 | T51: 10.42% | U51: 0 | V51: 0.00% | W51: 1299 | X51: 144 | Y51: 11.09% | Z51: 2 | AA51: 0.15% | AB51: 1461 | AC51: 159 | AD51: 10.88% | AE51: 1 | AF51: 0.07% | AG51: 1401 | AH51: 200 | AI51: 14.28% | AJ51: 5 | AK51: 0.36% | AL51: 1304 | AM51: 202 | AN51: 15.49% | AO51: 3 | AP51: 0.23% | AQ51: 1185 | AR51: 177 | AS51: 14.94% | AT51: 5 | AU51: 0.42% | AV51: 1132 | AW51: 225 | AX51: 19.88% | AY51: 3 | AZ51: 0.27% | BA51: 966 | BB51: 306 | BC51: 31.68% | BD51: 40 | BE51: 4.14% | BF51: 763 | BG51: 309 | BH51: 40.50% | BI51: 50 | BJ51: 6.55% | BK51: 575 | BL51: 253 | BM51: 44.00% | BN51: 32 | BO51: 5.57% | BP51: 412 | BQ51: 215 | BR51: 52.18% | BS51: 24 | BT51: 5.83% | BU51: 588 | BV51: 301 | BW51: 51.19% | BX51: 54 | BY51: 9.18% | CA51: Montanha | CB51: 15792 | CC51: 2755 | CD51: 0.1744554205 | CE51: 219 | CF51: 0.01386778116
A52: Regional Norte | B52: Mucurici | C52: 410 | D52: 1 | E52: 0.24% | F52: 0 | G52: 0.00% | H52: 154 | I52: 11 | J52: 7.14% | K52: 0 | L52: 0.00% | M52: 333 | N52: 20 | O52: 6.01% | P52: 0 | Q52: 0.00% | R52: 325 | S52: 33 | T52: 10.15% | U52: 0 | V52: 0.00% | W52: 368 | X52: 47 | Y52: 12.77% | Z52: 0 | AA52: 0.00% | AB52: 389 | AC52: 51 | AD52: 13.11% | AE52: 1 | AF52: 0.26% | AG52: 431 | AH52: 63 | AI52: 14.62% | AJ52: 0 | AK52: 0.00% | AL52: 369 | AM52: 64 | AN52: 17.34% | AO52: 0 | AP52: 0.00% | AQ52: 395 | AR52: 80 | AS52: 20.25% | AT52: 0 | AU52: 0.00% | AV52: 379 | AW52: 91 | AX52: 24.01% | AY52: 2 | AZ52: 0.53% | BA52: 330 | BB52: 123 | BC52: 37.27% | BD52: 12 | BE52: 3.64% | BF52: 261 | BG52: 127 | BH52: 48.66% | BI52: 8 | BJ52: 3.07% | BK52: 171 | BL52: 98 | BM52: 57.31% | BN52: 8 | BO52: 4.68% | BP52: 145 | BQ52: 87 | BR52: 60.00% | BS52: 8 | BT52: 5.52% | BU52: 183 | BV52: 127 | BW52: 69.40% | BX52: 12 | BY52: 6.56% | CA52: Mucurici | CB52: 4643 | CC52: 1023 | CD52: 0.2203316821 | CE52: 51 | CF52: 0.01098427741
A53: Regional Sul | B53: Muniz Freire | C53: 1468 | D53: 12 | E53: 0.82% | F53: 0 | G53: 0.00% | H53: 509 | I53: 50 | J53: 9.82% | K53: 0 | L53: 0.00% | M53: 1219 | N53: 134 | O53: 10.99% | P53: 0 | Q53: 0.00% | R53: 1253 | S53: 189 | T53: 15.08% | U53: 0 | V53: 0.00% | W53: 1268 | X53: 219 | Y53: 17.27% | Z53: 0 | AA53: 0.00% | AB53: 1348 | AC53: 285 | AD53: 21.14% | AE53: 0 | AF53: 0.00% | AG53: 1388 | AH53: 273 | AI53: 19.67% | AJ53: 1 | AK53: 0.07% | AL53: 1213 | AM53: 338 | AN53: 27.86% | AO53: 1 | AP53: 0.08% | AQ53: 1226 | AR53: 317 | AS53: 25.86% | AT53: 2 | AU53: 0.16% | AV53: 1098 | AW53: 385 | AX53: 35.06% | AY53: 2 | AZ53: 0.18% | BA53: 985 | BB53: 488 | BC53: 49.54% | BD53: 13 | BE53: 1.32% | BF53: 824 | BG53: 494 | BH53: 59.95% | BI53: 12 | BJ53: 1.46% | BK53: 559 | BL53: 377 | BM53: 67.44% | BN53: 5 | BO53: 0.89% | BP53: 404 | BQ53: 285 | BR53: 70.54% | BS53: 6 | BT53: 1.49% | BU53: 537 | BV53: 383 | BW53: 71.32% | BX53: 7 | BY53: 1.30% | CA53: Muniz Freire | CB53: 15299 | CC53: 4229 | CD53: 0.2764232956 | CE53: 49 | CF53: 0.003202823714
A54: Regional Sul | B54: Muqui | C54: 1019 | D54: 4 | E54: 0.39% | F54: 0 | G54: 0.00% | H54: 358 | I54: 49 | J54: 13.69% | K54: 0 | L54: 0.00% | M54: 856 | N54: 135 | O54: 15.77% | P54: 1 | Q54: 0.12% | R54: 893 | S54: 141 | T54: 15.79% | U54: 1 | V54: 0.11% | W54: 998 | X54: 158 | Y54: 15.83% | Z54: 0 | AA54: 0.00% | AB54: 1062 | AC54: 185 | AD54: 17.42% | AE54: 0 | AF54: 0.00% | AG54: 1016 | AH54: 215 | AI54: 21.16% | AJ54: 0 | AK54: 0.00% | AL54: 929 | AM54: 233 | AN54: 25.08% | AO54: 2 | AP54: 0.22% | AQ54: 921 | AR54: 244 | AS54: 26.49% | AT54: 4 | AU54: 0.43% | AV54: 911 | AW54: 288 | AX54: 31.61% | AY54: 2 | AZ54: 0.22% | BA54: 838 | BB54: 387 | BC54: 46.18% | BD54: 26 | BE54: 3.10% | BF54: 655 | BG54: 387 | BH54: 59.08% | BI54: 42 | BJ54: 6.41% | BK54: 496 | BL54: 303 | BM54: 61.09% | BN54: 29 | BO54: 5.85% | BP54: 302 | BQ54: 237 | BR54: 78.48% | BS54: 18 | BT54: 5.96% | BU54: 489 | BV54: 321 | BW54: 65.64% | BX54: 15 | BY54: 3.07% | CA54: Muqui | CB54: 11743 | CC54: 3287 | CD54: 0.2799114366 | CE54: 140 | CF54: 0.01192199608
A55: Regional Norte | B55: Nova Venécia | C55: 3770 | D55: 4 | E55: 0.11% | F55: 0 | G55: 0.00% | H55: 1298 | I55: 56 | J55: 4.31% | K55: 0 | L55: 0.00% | M55: 3500 | N55: 162 | O55: 4.63% | P55: 1 | Q55: 0.03% | R55: 3760 | S55: 240 | T55: 6.38% | U55: 0 | V55: 0.00% | W55: 3710 | X55: 273 | Y55: 7.36% | Z55: 2 | AA55: 0.05% | AB55: 3758 | AC55: 349 | AD55: 9.29% | AE55: 1 | AF55: 0.03% | AG55: 3780 | AH55: 395 | AI55: 10.45% | AJ55: 1 | AK55: 0.03% | AL55: 3387 | AM55: 362 | AN55: 10.69% | AO55: 0 | AP55: 0.00% | AQ55: 3303 | AR55: 410 | AS55: 12.41% | AT55: 0 | AU55: 0.00% | AV55: 3043 | AW55: 475 | AX55: 15.61% | AY55: 2 | AZ55: 0.07% | BA55: 2686 | BB55: 721 | BC55: 26.84% | BD55: 43 | BE55: 1.60% | BF55: 2115 | BG55: 800 | BH55: 37.83% | BI55: 60 | BJ55: 2.84% | BK55: 1415 | BL55: 626 | BM55: 44.24% | BN55: 45 | BO55: 3.18% | BP55: 890 | BQ55: 391 | BR55: 43.93% | BS55: 34 | BT55: 3.82% | BU55: 1246 | BV55: 547 | BW55: 43.90% | BX55: 31 | BY55: 2.49% | CA55: Nova Venécia | CB55: 41661 | CC55: 5811 | CD55: 0.1394829697 | CE55: 220 | CF55: 0.005280718178
A56: Regional Central | B56: Pancas | C56: 1487 | D56: 6 | E56: 0.40% | F56: 0 | G56: 0.00% | H56: 543 | I56: 51 | J56: 9.39% | K56: 0 | L56: 0.00% | M56: 1171 | N56: 127 | O56: 10.85% | P56: 2 | Q56: 0.17% | R56: 1202 | S56: 139 | T56: 11.56% | U56: 1 | V56: 0.08% | W56: 1275 | X56: 156 | Y56: 12.24% | Z56: 2 | AA56: 0.16% | AB56: 1368 | AC56: 158 | AD56: 11.55% | AE56: 0 | AF56: 0.00% | AG56: 1462 | AH56: 184 | AI56: 12.59% | AJ56: 0 | AK56: 0.00% | AL56: 1341 | AM56: 198 | AN56: 14.77% | AO56: 0 | AP56: 0.00% | AQ56: 1335 | AR56: 221 | AS56: 16.55% | AT56: 0 | AU56: 0.00% | AV56: 1245 | AW56: 265 | AX56: 21.29% | AY56: 0 | AZ56: 0.00% | BA56: 1120 | BB56: 414 | BC56: 36.96% | BD56: 15 | BE56: 1.34% | BF56: 903 | BG56: 439 | BH56: 48.62% | BI56: 23 | BJ56: 2.55% | BK56: 672 | BL56: 342 | BM56: 50.89% | BN56: 7 | BO56: 1.04% | BP56: 454 | BQ56: 280 | BR56: 61.67% | BS56: 12 | BT56: 2.64% | BU56: 538 | BV56: 349 | BW56: 64.87% | BX56: 4 | BY56: 0.74% | CA56: Pancas | CB56: 16116 | CC56: 3329 | CD56: 0.2065649044 | CE56: 66 | CF56: 0.00409530901
A57: Regional Norte | B57: Pedro Canário | C57: 2005 | D57: 29 | E57: 1.45% | F57: 1 | G57: 0.05% | H57: 606 | I57: 49 | J57: 8.09% | K57: 0 | L57: 0.00% | M57: 1501 | N57: 179 | O57: 11.93% | P57: 1 | Q57: 0.07% | R57: 1510 | S57: 231 | T57: 15.30% | U57: 2 | V57: 0.13% | W57: 1449 | X57: 210 | Y57: 14.49% | Z57: 2 | AA57: 0.14% | AB57: 1644 | AC57: 243 | AD57: 14.78% | AE57: 0 | AF57: 0.00% | AG57: 1702 | AH57: 230 | AI57: 13.51% | AJ57: 2 | AK57: 0.12% | AL57: 1493 | AM57: 212 | AN57: 14.20% | AO57: 0 | AP57: 0.00% | AQ57: 1276 | AR57: 211 | AS57: 16.54% | AT57: 0 | AU57: 0.00% | AV57: 1216 | AW57: 209 | AX57: 17.19% | AY57: 2 | AZ57: 0.16% | BA57: 1065 | BB57: 329 | BC57: 30.89% | BD57: 17 | BE57: 1.60% | BF57: 799 | BG57: 372 | BH57: 46.56% | BI57: 24 | BJ57: 3.00% | BK57: 563 | BL57: 254 | BM57: 45.12% | BN57: 15 | BO57: 2.66% | BP57: 390 | BQ57: 201 | BR57: 51.54% | BS57: 9 | BT57: 2.31% | BU57: 436 | BV57: 217 | BW57: 49.77% | BX57: 10 | BY57: 2.29% | CA57: Pedro Canário | CB57: 17655 | CC57: 3176 | CD57: 0.1798923818 | CE57: 85 | CF57: 0.004814500142
A58: Regional Norte | B58: Pinheiros | C58: 2185 | D58: 2 | E58: 0.09% | F58: 0 | G58: 0.00% | H58: 706 | I58: 34 | J58: 4.82% | K58: 0 | L58: 0.00% | M58: 1744 | N58: 114 | O58: 6.54% | P58: 0 | Q58: 0.00% | R58: 1606 | S58: 128 | T58: 7.97% | U58: 2 | V58: 0.12% | W58: 1614 | X58: 119 | Y58: 7.37% | Z58: 3 | AA58: 0.19% | AB58: 1852 | AC58: 186 | AD58: 10.04% | AE58: 3 | AF58: 0.16% | AG58: 1920 | AH58: 250 | AI58: 13.02% | AJ58: 1 | AK58: 0.05% | AL58: 1649 | AM58: 239 | AN58: 14.49% | AO58: 1 | AP58: 0.06% | AQ58: 1445 | AR58: 209 | AS58: 14.46% | AT58: 3 | AU58: 0.21% | AV58: 1350 | AW58: 220 | AX58: 16.30% | AY58: 2 | AZ58: 0.15% | BA58: 1127 | BB58: 346 | BC58: 30.70% | BD58: 25 | BE58: 2.22% | BF58: 922 | BG58: 370 | BH58: 40.13% | BI58: 33 | BJ58: 3.58% | BK58: 652 | BL58: 320 | BM58: 49.08% | BN58: 34 | BO58: 5.21% | BP58: 480 | BQ58: 243 | BR58: 50.62% | BS58: 17 | BT58: 3.54% | BU58: 581 | BV58: 317 | BW58: 54.56% | BX58: 23 | BY58: 3.96% | CA58: Pinheiros | CB58: 19833 | CC58: 3097 | CD58: 0.1561538849 | CE58: 147 | CF58: 0.007411889275
A59: Regional Sul | B59: Piúma | C59: 1660 | D59: 6 | E59: 0.36% | F59: 0 | G59: 0.00% | H59: 593 | I59: 52 | J59: 8.77% | K59: 0 | L59: 0.00% | M59: 1504 | N59: 95 | O59: 6.32% | P59: 0 | Q59: 0.00% | R59: 1610 | S59: 111 | T59: 6.89% | U59: 2 | V59: 0.12% | W59: 1562 | X59: 130 | Y59: 8.32% | Z59: 2 | AA59: 0.13% | AB59: 1698 | AC59: 161 | AD59: 9.48% | AE59: 1 | AF59: 0.06% | AG59: 1851 | AH59: 187 | AI59: 10.10% | AJ59: 3 | AK59: 0.16% | AL59: 1503 | AM59: 185 | AN59: 12.31% | AO59: 1 | AP59: 0.07% | AQ59: 1491 | AR59: 227 | AS59: 15.22% | AT59: 3 | AU59: 0.20% | AV59: 1316 | AW59: 242 | AX59: 18.39% | AY59: 3 | AZ59: 0.23% | BA59: 1262 | BB59: 368 | BC59: 29.16% | BD59: 36 | BE59: 2.85% | BF59: 1045 | BG59: 419 | BH59: 40.10% | BI59: 57 | BJ59: 5.45% | BK59: 664 | BL59: 319 | BM59: 48.04% | BN59: 44 | BO59: 6.63% | BP59: 423 | BQ59: 226 | BR59: 53.43% | BS59: 27 | BT59: 6.38% | BU59: 492 | BV59: 259 | BW59: 52.64% | BX59: 24 | BY59: 4.88% | CA59: Piúma | CB59: 18674 | CC59: 2987 | CD59: 0.1599550177 | CE59: 203 | CF59: 0.01087072936
A60: Regional Norte | B60: Ponto Belo | C60: 548 | D60: 2 | E60: 0.36% | F60: 0 | G60: 0.00% | H60: 187 | I60: 10 | J60: 5.35% | K60: 0 | L60: 0.00% | M60: 400 | N60: 16 | O60: 4.00% | P60: 0 | Q60: 0.00% | R60: 385 | S60: 12 | T60: 3.12% | U60: 1 | V60: 0.26% | W60: 390 | X60: 32 | Y60: 8.21% | Z60: 0 | AA60: 0.00% | AB60: 380 | AC60: 31 | AD60: 8.16% | AE60: 0 | AF60: 0.00% | AG60: 492 | AH60: 50 | AI60: 10.16% | AJ60: 0 | AK60: 0.00% | AL60: 443 | AM60: 50 | AN60: 11.29% | AO60: 0 | AP60: 0.00% | AQ60: 470 | AR60: 49 | AS60: 10.43% | AT60: 1 | AU60: 0.21% | AV60: 436 | AW60: 71 | AX60: 16.28% | AY60: 2 | AZ60: 0.46% | BA60: 349 | BB60: 104 | BC60: 29.80% | BD60: 0 | BE60: 0.00% | BF60: 325 | BG60: 115 | BH60: 35.38% | BI60: 3 | BJ60: 0.92% | BK60: 240 | BL60: 132 | BM60: 55.00% | BN60: 1 | BO60: 0.42% | BP60: 182 | BQ60: 90 | BR60: 49.45% | BS60: 0 | BT60: 0.00% | BU60: 234 | BV60: 133 | BW60: 56.84% | BX60: 1 | BY60: 0.43% | CA60: Ponto Belo | CB60: 5461 | CC60: 897 | CD60: 0.1642556308 | CE60: 9 | CF60: 0.001648049808
A61: Regional Sul | B61: Presidente Kennedy | C61: 1153 | D61: 34 | E61: 2.95% | F61: 0 | G61: 0.00% | H61: 392 | I61: 36 | J61: 9.18% | K61: 0 | L61: 0.00% | M61: 955 | N61: 95 | O61: 9.95% | P61: 0 | Q61: 0.00% | R61: 997 | S61: 137 | T61: 13.74% | U61: 0 | V61: 0.00% | W61: 984 | X61: 143 | Y61: 14.53% | Z61: 0 | AA61: 0.00% | AB61: 1083 | AC61: 160 | AD61: 14.77% | AE61: 0 | AF61: 0.00% | AG61: 1052 | AH61: 213 | AI61: 20.25% | AJ61: 0 | AK61: 0.00% | AL61: 893 | AM61: 184 | AN61: 20.60% | AO61: 1 | AP61: 0.11% | AQ61: 786 | AR61: 166 | AS61: 21.12% | AT61: 0 | AU61: 0.00% | AV61: 755 | AW61: 201 | AX61: 26.62% | AY61: 0 | AZ61: 0.00% | BA61: 677 | BB61: 210 | BC61: 31.02% | BD61: 2 | BE61: 0.30% | BF61: 575 | BG61: 216 | BH61: 37.57% | BI61: 4 | BJ61: 0.70% | BK61: 399 | BL61: 181 | BM61: 45.36% | BN61: 2 | BO61: 0.50% | BP61: 283 | BQ61: 97 | BR61: 34.28% | BS61: 1 | BT61: 0.35% | BU61: 280 | BV61: 128 | BW61: 45.71% | BX61: 1 | BY61: 0.36% | CA61: Presidente Kennedy | CB61: 11264 | CC61: 2201 | CD61: 0.1954012784 | CE61: 11 | CF61: 0.0009765625
A62: Regional Central | B62: Rio Bananal | C62: 1482 | D62: 8 | E62: 0.54% | F62: 0 | G62: 0.00% | H62: 536 | I62: 44 | J62: 8.21% | K62: 0 | L62: 0.00% | M62: 1366 | N62: 98 | O62: 7.17% | P62: 0 | Q62: 0.00% | R62: 1401 | S62: 122 | T62: 8.71% | U62: 0 | V62: 0.00% | W62: 1456 | X62: 130 | Y62: 8.93% | Z62: 0 | AA62: 0.00% | AB62: 1564 | AC62: 181 | AD62: 11.57% | AE62: 3 | AF62: 0.19% | AG62: 1557 | AH62: 193 | AI62: 12.40% | AJ62: 1 | AK62: 0.06% | AL62: 1306 | AM62: 180 | AN62: 13.78% | AO62: 2 | AP62: 0.15% | AQ62: 1228 | AR62: 205 | AS62: 16.69% | AT62: 4 | AU62: 0.33% | AV62: 1179 | AW62: 211 | AX62: 17.90% | AY62: 1 | AZ62: 0.08% | BA62: 944 | BB62: 310 | BC62: 32.84% | BD62: 24 | BE62: 2.54% | BF62: 790 | BG62: 337 | BH62: 42.66% | BI62: 30 | BJ62: 3.80% | BK62: 537 | BL62: 290 | BM62: 54.00% | BN62: 24 | BO62: 4.47% | BP62: 357 | BQ62: 232 | BR62: 64.99% | BS62: 18 | BT62: 5.04% | BU62: 443 | BV62: 306 | BW62: 69.07% | BX62: 40 | BY62: 9.03% | CA62: Rio Bananal | CB62: 16146 | CC62: 2847 | CD62: 0.1763285024 | CE62: 147 | CF62: 0.009104422148
A63: Regional Sul | B63: Rio Novo do Sul | C63: 786 | D63: 3 | E63: 0.38% | F63: 0 | G63: 0.00% | H63: 271 | I63: 28 | J63: 10.33% | K63: 0 | L63: 0.00% | M63: 708 | N63: 50 | O63: 7.06% | P63: 0 | Q63: 0.00% | R63: 695 | S63: 62 | T63: 8.92% | U63: 0 | V63: 0.00% | W63: 788 | X63: 74 | Y63: 9.39% | Z63: 0 | AA63: 0.00% | AB63: 890 | AC63: 90 | AD63: 10.11% | AE63: 2 | AF63: 0.22% | AG63: 882 | AH63: 103 | AI63: 11.68% | AJ63: 1 | AK63: 0.11% | AL63: 730 | AM63: 96 | AN63: 13.15% | AO63: 0 | AP63: 0.00% | AQ63: 736 | AR63: 105 | AS63: 14.27% | AT63: 1 | AU63: 0.14% | AV63: 718 | AW63: 145 | AX63: 20.19% | AY63: 0 | AZ63: 0.00% | BA63: 662 | BB63: 209 | BC63: 31.57% | BD63: 9 | BE63: 1.36% | BF63: 577 | BG63: 246 | BH63: 42.63% | BI63: 21 | BJ63: 3.64% | BK63: 396 | BL63: 191 | BM63: 48.23% | BN63: 19 | BO63: 4.80% | BP63: 249 | BQ63: 128 | BR63: 51.41% | BS63: 17 | BT63: 6.83% | BU63: 348 | BV63: 177 | BW63: 50.86% | BX63: 7 | BY63: 2.01% | CA63: Rio Novo do Sul | CB63: 9436 | CC63: 1707 | CD63: 0.180902925 | CE63: 77 | CF63: 0.008160237389
A64: Regional Metropolitana | B64: Santa Leopoldina | C64: 997 | D64: 0 | E64: 0.00% | F64: 0 | G64: 0.00% | H64: 331 | I64: 35 | J64: 10.57% | K64: 0 | L64: 0.00% | M64: 825 | N64: 100 | O64: 12.12% | P64: 0 | Q64: 0.00% | R64: 801 | S64: 106 | T64: 13.23% | U64: 0 | V64: 0.00% | W64: 864 | X64: 133 | Y64: 15.39% | Z64: 0 | AA64: 0.00% | AB64: 941 | AC64: 143 | AD64: 15.20% | AE64: 1 | AF64: 0.11% | AG64: 1013 | AH64: 176 | AI64: 17.37% | AJ64: 0 | AK64: 0.00% | AL64: 931 | AM64: 190 | AN64: 20.41% | AO64: 1 | AP64: 0.11% | AQ64: 972 | AR64: 217 | AS64: 22.33% | AT64: 3 | AU64: 0.31% | AV64: 920 | AW64: 231 | AX64: 25.11% | AY64: 1 | AZ64: 0.11% | BA64: 846 | BB64: 364 | BC64: 43.03% | BD64: 37 | BE64: 4.37% | BF64: 646 | BG64: 345 | BH64: 53.41% | BI64: 37 | BJ64: 5.73% | BK64: 488 | BL64: 294 | BM64: 60.25% | BN64: 27 | BO64: 5.53% | BP64: 276 | BQ64: 168 | BR64: 60.87% | BS64: 18 | BT64: 6.52% | BU64: 378 | BV64: 228 | BW64: 60.32% | BX64: 16 | BY64: 4.23% | CA64: Santa Leopoldina | CB64: 11229 | CC64: 2730 | CD64: 0.2431204916 | CE64: 141 | CF64: 0.01255677264
A65: Regional Metropolitana | B65: Santa Maria de Jetibá | C65: 3202 | D65: 376 | E65: 11.74% | F65: 1 | G65: 0.03% | H65: 1199 | I65: 112 | J65: 9.34% | K65: 1 | L65: 0.08% | M65: 3375 | N65: 186 | O65: 5.51% | P65: 0 | Q65: 0.00% | R65: 3413 | S65: 266 | T65: 7.79% | U65: 1 | V65: 0.03% | W65: 3529 | X65: 266 | Y65: 7.54% | Z65: 2 | AA65: 0.06% | AB65: 3680 | AC65: 324 | AD65: 8.80% | AE65: 2 | AF65: 0.05% | AG65: 3496 | AH65: 346 | AI65: 9.90% | AJ65: 4 | AK65: 0.11% | AL65: 2809 | AM65: 362 | AN65: 12.89% | AO65: 7 | AP65: 0.25% | AQ65: 2501 | AR65: 280 | AS65: 11.20% | AT65: 4 | AU65: 0.16% | AV65: 2085 | AW65: 325 | AX65: 15.59% | AY65: 6 | AZ65: 0.29% | BA65: 1731 | BB65: 424 | BC65: 24.49% | BD65: 44 | BE65: 2.54% | BF65: 1496 | BG65: 406 | BH65: 27.14% | BI65: 35 | BJ65: 2.34% | BK65: 977 | BL65: 320 | BM65: 32.75% | BN65: 28 | BO65: 2.87% | BP65: 695 | BQ65: 236 | BR65: 33.96% | BS65: 19 | BT65: 2.73% | BU65: 653 | BV65: 252 | BW65: 38.59% | BX65: 9 | BY65: 1.38% | CA65: Santa Maria de Jetibá | CB65: 34841 | CC65: 4481 | CD65: 0.1286128412 | CE65: 163 | CF65: 0.004678396142
A66: Regional Metropolitana | B66: Santa Teresa | C66: 1606 | D66: 9 | E66: 0.56% | F66: 0 | G66: 0.00% | H66: 563 | I66: 84 | J66: 14.92% | K66: 1 | L66: 0.18% | M66: 1397 | N66: 204 | O66: 14.60% | P66: 0 | Q66: 0.00% | R66: 1464 | S66: 222 | T66: 15.16% | U66: 4 | V66: 0.27% | W66: 1661 | X66: 231 | Y66: 13.91% | Z66: 2 | AA66: 0.12% | AB66: 1830 | AC66: 284 | AD66: 15.52% | AE66: 1 | AF66: 0.05% | AG66: 1799 | AH66: 323 | AI66: 17.95% | AJ66: 2 | AK66: 0.11% | AL66: 1559 | AM66: 305 | AN66: 19.56% | AO66: 3 | AP66: 0.19% | AQ66: 1591 | AR66: 312 | AS66: 19.61% | AT66: 6 | AU66: 0.38% | AV66: 1560 | AW66: 363 | AX66: 23.27% | AY66: 5 | AZ66: 0.32% | BA66: 1375 | BB66: 533 | BC66: 38.76% | BD66: 52 | BE66: 3.78% | BF66: 1131 | BG66: 592 | BH66: 52.34% | BI66: 85 | BJ66: 7.52% | BK66: 871 | BL66: 506 | BM66: 58.09% | BN66: 80 | BO66: 9.18% | BP66: 606 | BQ66: 364 | BR66: 60.07% | BS66: 55 | BT66: 9.08% | BU66: 784 | BV66: 530 | BW66: 67.60% | BX66: 77 | BY66: 9.82% | CA66: Santa Teresa | CB66: 19797 | CC66: 4862 | CD66: 0.2455927666 | CE66: 373 | CF66: 0.01884123857
A67: Regional Central | B67: São Domingos do Norte | C67: 619 | D67: 0 | E67: 0.00% | F67: 0 | G67: 0.00% | H67: 224 | I67: 17 | J67: 7.59% | K67: 0 | L67: 0.00% | M67: 661 | N67: 46 | O67: 6.96% | P67: 1 | Q67: 0.15% | R67: 634 | S67: 54 | T67: 8.52% | U67: 0 | V67: 0.00% | W67: 641 | X67: 66 | Y67: 10.30% | Z67: 0 | AA67: 0.00% | AB67: 668 | AC67: 83 | AD67: 12.43% | AE67: 0 | AF67: 0.00% | AG67: 689 | AH67: 86 | AI67: 12.48% | AJ67: 0 | AK67: 0.00% | AL67: 590 | AM67: 58 | AN67: 9.83% | AO67: 0 | AP67: 0.00% | AQ67: 579 | AR67: 80 | AS67: 13.82% | AT67: 0 | AU67: 0.00% | AV67: 527 | AW67: 81 | AX67: 15.37% | AY67: 0 | AZ67: 0.00% | BA67: 469 | BB67: 152 | BC67: 32.41% | BD67: 25 | BE67: 5.33% | BF67: 409 | BG67: 150 | BH67: 36.67% | BI67: 22 | BJ67: 5.38% | BK67: 244 | BL67: 95 | BM67: 38.93% | BN67: 14 | BO67: 5.74% | BP67: 182 | BQ67: 81 | BR67: 44.51% | BS67: 11 | BT67: 6.04% | BU67: 216 | BV67: 90 | BW67: 41.67% | BX67: 11 | BY67: 5.09% | CA67: São Domingos do Norte | CB67: 7352 | CC67: 1139 | CD67: 0.1549238303 | CE67: 84 | CF67: 0.01142546246
A68: Regional Central | B68: São Gabriel da Palha | C68: 2474 | D68: 7 | E68: 0.28% | F68: 0 | G68: 0.00% | H68: 807 | I68: 12 | J68: 1.49% | K68: 0 | L68: 0.00% | M68: 2139 | N68: 56 | O68: 2.62% | P68: 0 | Q68: 0.00% | R68: 2379 | S68: 57 | T68: 2.40% | U68: 0 | V68: 0.00% | W68: 2433 | X68: 71 | Y68: 2.92% | Z68: 1 | AA68: 0.04% | AB68: 2731 | AC68: 101 | AD68: 3.70% | AE68: 3 | AF68: 0.11% | AG68: 2843 | AH68: 116 | AI68: 4.08% | AJ68: 1 | AK68: 0.04% | AL68: 2248 | AM68: 125 | AN68: 5.56% | AO68: 0 | AP68: 0.00% | AQ68: 2076 | AR68: 124 | AS68: 5.97% | AT68: 3 | AU68: 0.14% | AV68: 1921 | AW68: 180 | AX68: 9.37% | AY68: 1 | AZ68: 0.05% | BA68: 1693 | BB68: 354 | BC68: 20.91% | BD68: 7 | BE68: 0.41% | BF68: 1404 | BG68: 413 | BH68: 29.42% | BI68: 16 | BJ68: 1.14% | BK68: 927 | BL68: 399 | BM68: 43.04% | BN68: 16 | BO68: 1.73% | BP68: 626 | BQ68: 266 | BR68: 42.49% | BS68: 10 | BT68: 1.60% | BU68: 806 | BV68: 330 | BW68: 40.94% | BX68: 12 | BY68: 1.49% | CA68: São Gabriel da Palha | CB68: =SUM(C68,H68,M68,R68,W68,AB68,AG68,AL68,AQ68,AV68,BA68,BF68,BK68,BP68,BU68) -> 27507 | CC68: =SUM(D68,I68,N68,S68,X68,AC68,AH68,AM68,AR68,AW68,BB68,BG68,BL68,BQ68,BV68) -> 2611 | CD68: =CC68/CB68 -> 0.09492129276 | CE68: =SUM(F68,K68,P68,U68,Z68,AE68,AJ68,AO68,AT68,AY68,BD68,BI68,BN68,BS68,BX68) -> 70 | CF68: =CE68/CB68 -> 0.002544806776
A69: Regional Sul | B69: São José do Calçado | C69: 798 | D69: 0 | E69: 0.00% | F69: 0 | G69: 0.00% | H69: 288 | I69: 10 | J69: 3.47% | K69: 0 | L69: 0.00% | M69: 707 | N69: 34 | O69: 4.81% | P69: 0 | Q69: 0.00% | R69: 742 | S69: 39 | T69: 5.26% | U69: 0 | V69: 0.00% | W69: 699 | X69: 40 | Y69: 5.72% | Z69: 0 | AA69: 0.00% | AB69: 695 | AC69: 57 | AD69: 8.20% | AE69: 0 | AF69: 0.00% | AG69: 735 | AH69: 52 | AI69: 7.07% | AJ69: 0 | AK69: 0.00% | AL69: 663 | AM69: 63 | AN69: 9.50% | AO69: 0 | AP69: 0.00% | AQ69: 755 | AR69: 86 | AS69: 11.39% | AT69: 0 | AU69: 0.00% | AV69: 757 | AW69: 123 | AX69: 16.25% | AY69: 2 | AZ69: 0.26% | BA69: 692 | BB69: 201 | BC69: 29.05% | BD69: 9 | BE69: 1.30% | BF69: 596 | BG69: 243 | BH69: 40.77% | BI69: 14 | BJ69: 2.35% | BK69: 466 | BL69: 240 | BM69: 51.50% | BN69: 21 | BO69: 4.51% | BP69: 312 | BQ69: 149 | BR69: 47.76% | BS69: 12 | BT69: 3.85% | BU69: 390 | BV69: 175 | BW69: 44.87% | BX69: 13 | BY69: 3.33% | CA69: São José do Calçado | CB69: 9295 | CC69: 1512 | CD69: 0.1626681011 | CE69: 71 | CF69: 0.007638515331
A70: Regional Norte | B70: São Mateus | C70: 10454 | D70: 133 | E70: 1.27% | F70: 2 | G70: 0.02% | H70: 3870 | I70: 332 | J70: 8.58% | K70: 1 | L70: 0.03% | M70: 9749 | N70: 1343 | O70: 13.78% | P70: 8 | Q70: 0.08% | R70: 9496 | S70: 1312 | T70: 13.82% | U70: 10 | V70: 0.11% | W70: 9200 | X70: 1191 | Y70: 12.95% | Z70: 5 | AA70: 0.05% | AB70: 10015 | AC70: 1416 | AD70: 14.14% | AE70: 5 | AF70: 0.05% | AG70: 9939 | AH70: 1449 | AI70: 14.58% | AJ70: 8 | AK70: 0.08% | AL70: 8604 | AM70: 1326 | AN70: 15.41% | AO70: 8 | AP70: 0.09% | AQ70: 7593 | AR70: 1287 | AS70: 16.95% | AT70: 14 | AU70: 0.18% | AV70: 6871 | AW70: 1270 | AX70: 18.48% | AY70: 22 | AZ70: 0.32% | BA70: 5876 | BB70: 1880 | BC70: 31.99% | BD70: 159 | BE70: 2.71% | BF70: 4566 | BG70: 1877 | BH70: 41.11% | BI70: 182 | BJ70: 3.99% | BK70: 3125 | BL70: 1482 | BM70: 47.42% | BN70: 171 | BO70: 5.47% | BP70: 1788 | BQ70: 934 | BR70: 52.24% | BS70: 100 | BT70: 5.59% | BU70: 2294 | BV70: 1177 | BW70: 51.31% | BX70: 75 | BY70: 3.27% | CA70: São Mateus | CB70: 103440 | CC70: 18409 | CD70: 0.1779679041 | CE70: 770 | CF70: 0.007443928848
A71: Regional Central | B71: São Roque do Canaã | C71: 783 | D71: 2 | E71: 0.26% | F71: 0 | G71: 0.00% | H71: 271 | I71: 23 | J71: 8.49% | K71: 0 | L71: 0.00% | M71: 718 | N71: 69 | O71: 9.61% | P71: 1 | Q71: 0.14% | R71: 691 | S71: 71 | T71: 10.27% | U71: 1 | V71: 0.14% | W71: 700 | X71: 80 | Y71: 11.43% | Z71: 1 | AA71: 0.14% | AB71: 774 | AC71: 91 | AD71: 11.76% | AE71: 2 | AF71: 0.26% | AG71: 828 | AH71: 112 | AI71: 13.53% | AJ71: 4 | AK71: 0.48% | AL71: 817 | AM71: 115 | AN71: 14.08% | AO71: 2 | AP71: 0.24% | AQ71: 861 | AR71: 129 | AS71: 14.98% | AT71: 7 | AU71: 0.81% | AV71: 766 | AW71: 143 | AX71: 18.67% | AY71: 3 | AZ71: 0.39% | BA71: 672 | BB71: 225 | BC71: 33.48% | BD71: 29 | BE71: 4.32% | BF71: 571 | BG71: 250 | BH71: 43.78% | BI71: 38 | BJ71: 6.65% | BK71: 412 | BL71: 229 | BM71: 55.58% | BN71: 27 | BO71: 6.55% | BP71: 283 | BQ71: 167 | BR71: 59.01% | BS71: 22 | BT71: 7.77% | BU71: 432 | BV71: 222 | BW71: 51.39% | BX71: 21 | BY71: 4.86% | CA71: São Roque do Canaã | CB71: 9579 | CC71: 1928 | CD71: 0.2012736194 | CE71: 158 | CF71: 0.01649441487
A72: Regional Metropolitana | B72: Serra | C72: 43428 | D72: 452 | E72: 1.04% | F72: 7 | G72: 0.02% | H72: 14664 | I72: 1048 | J72: 7.15% | K72: 7 | L72: 0.05% | M72: 39738 | N72: 3716 | O72: 9.35% | P72: 18 | Q72: 0.05% | R72: 40291 | S72: 4561 | T72: 11.32% | U72: 25 | V72: 0.06% | W72: 43267 | X72: 4784 | Y72: 11.06% | Z72: 28 | AA72: 0.06% | AB72: 47524 | AC72: 5696 | AD72: 11.99% | AE72: 31 | AF72: 0.07% | AG72: 45103 | AH72: 6303 | AI72: 13.97% | AJ72: 49 | AK72: 0.11% | AL72: 35226 | AM72: 5601 | AN72: 15.90% | AO72: 42 | AP72: 0.12% | AQ72: 30278 | AR72: 4928 | AS72: 16.28% | AT72: 50 | AU72: 0.17% | AV72: 26431 | AW72: 5275 | AX72: 19.96% | AY72: 65 | AZ72: 0.25% | BA72: 23125 | BB72: 7188 | BC72: 31.08% | BD72: 791 | BE72: 3.42% | BF72: 18306 | BG72: 7586 | BH72: 41.44% | BI72: 1057 | BJ72: 5.77% | BK72: 11385 | BL72: 5786 | BM72: 50.82% | BN72: 863 | BO72: 7.58% | BP72: 6462 | BQ72: 3324 | BR72: 51.44% | BS72: 459 | BT72: 7.10% | BU72: 7203 | BV72: 3780 | BW72: 52.48% | BX72: 405 | BY72: 5.62% | CA72: Serra | CB72: 432431 | CC72: 70028 | CD72: 0.1619402864 | CE72: 3897 | CF72: 0.009011842352
A73: Regional Central | B73: Sooretama | C73: 2601 | D73: 4 | E73: 0.15% | F73: 0 | G73: 0.00% | H73: 875 | I73: 41 | J73: 4.69% | K73: 0 | L73: 0.00% | M73: 2216 | N73: 124 | O73: 5.60% | P73: 0 | Q73: 0.00% | R73: 2086 | S73: 152 | T73: 7.29% | U73: 0 | V73: 0.00% | W73: 1984 | X73: 133 | Y73: 6.70% | Z73: 0 | AA73: 0.00% | AB73: 2117 | AC73: 164 | AD73: 7.75% | AE73: 1 | AF73: 0.05% | AG73: 2040 | AH73: 186 | AI73: 9.12% | AJ73: 0 | AK73: 0.00% | AL73: 1736 | AM73: 159 | AN73: 9.16% | AO73: 0 | AP73: 0.00% | AQ73: 1410 | AR73: 180 | AS73: 12.77% | AT73: 0 | AU73: 0.00% | AV73: 1222 | AW73: 205 | AX73: 16.78% | AY73: 2 | AZ73: 0.16% | BA73: 1020 | BB73: 292 | BC73: 28.63% | BD73: 5 | BE73: 0.49% | BF73: 811 | BG73: 342 | BH73: 42.17% | BI73: 11 | BJ73: 1.36% | BK73: 557 | BL73: 273 | BM73: 49.01% | BN73: 8 | BO73: 1.44% | BP73: 343 | BQ73: 187 | BR73: 54.52% | BS73: 4 | BT73: 1.17% | BU73: 366 | BV73: 173 | BW73: 47.27% | BX73: 1 | BY73: 0.27% | CA73: Sooretama | CB73: 21384 | CC73: 2615 | CD73: 0.1222876917 | CE73: 32 | CF73: 0.001496445941
A74: Regional Sul | B74: Vargem Alta | C74: 1601 | D74: 23 | E74: 1.44% | F74: 0 | G74: 0.00% | H74: 499 | I74: 51 | J74: 10.22% | K74: 1 | L74: 0.20% | M74: 1455 | N74: 153 | O74: 10.52% | P74: 1 | Q74: 0.07% | R74: 1391 | S74: 180 | T74: 12.94% | U74: 2 | V74: 0.14% | W74: 1376 | X74: 181 | Y74: 13.15% | Z74: 1 | AA74: 0.07% | AB74: 1517 | AC74: 216 | AD74: 14.24% | AE74: 4 | AF74: 0.26% | AG74: 1582 | AH74: 264 | AI74: 16.69% | AJ74: 1 | AK74: 0.06% | AL74: 1243 | AM74: 208 | AN74: 16.73% | AO74: 1 | AP74: 0.08% | AQ74: 1299 | AR74: 227 | AS74: 17.47% | AT74: 5 | AU74: 0.38% | AV74: 1289 | AW74: 315 | AX74: 24.44% | AY74: 4 | AZ74: 0.31% | BA74: 1073 | BB74: 429 | BC74: 39.98% | BD74: 28 | BE74: 2.61% | BF74: 806 | BG74: 457 | BH74: 56.70% | BI74: 52 | BJ74: 6.45% | BK74: 607 | BL74: 371 | BM74: 61.12% | BN74: 51 | BO74: 8.40% | BP74: 347 | BQ74: 241 | BR74: 69.45% | BS74: 22 | BT74: 6.34% | BU74: 532 | BV74: 351 | BW74: 65.98% | BX74: 30 | BY74: 5.64% | CA74: Vargem Alta | CB74: 16617 | CC74: 3667 | CD74: 0.2206776193 | CE74: 203 | CF74: 0.01221640489
A75: Regional Metropolitana | B75: Venda Nova do Imigrante | C75: 1772 | D75: 8 | E75: 0.45% | F75: 0 | G75: 0.00% | H75: 636 | I75: 67 | J75: 10.53% | K75: 0 | L75: 0.00% | M75: 1745 | N75: 150 | O75: 8.60% | P75: 0 | Q75: 0.00% | R75: 1826 | S75: 178 | T75: 9.75% | U75: 4 | V75: 0.22% | W75: 1922 | X75: 225 | Y75: 11.71% | Z75: 0 | AA75: 0.00% | AB75: 2063 | AC75: 252 | AD75: 12.22% | AE75: 2 | AF75: 0.10% | AG75: 1925 | AH75: 261 | AI75: 13.56% | AJ75: 0 | AK75: 0.00% | AL75: 1698 | AM75: 281 | AN75: 16.55% | AO75: 2 | AP75: 0.12% | AQ75: 1582 | AR75: 282 | AS75: 17.83% | AT75: 7 | AU75: 0.44% | AV75: 1448 | AW75: 289 | AX75: 19.96% | AY75: 6 | AZ75: 0.41% | BA75: 1148 | BB75: 446 | BC75: 38.85% | BD75: 54 | BE75: 4.70% | BF75: 910 | BG75: 437 | BH75: 48.02% | BI75: 70 | BJ75: 7.69% | BK75: 670 | BL75: 356 | BM75: 53.13% | BN75: 66 | BO75: 9.85% | BP75: 446 | BQ75: 237 | BR75: 53.14% | BS75: 55 | BT75: 12.33% | BU75: 592 | BV75: 356 | BW75: 60.14% | BX75: 77 | BY75: 13.01% | CA75: Venda Nova do Imigrante | CB75: 20383 | CC75: 3825 | CD75: 0.1876563803 | CE75: 343 | CF75: 0.01682774861
A76: Regional Metropolitana | B76: Viana | C76: 6087 | D76: 35 | E76: 0.57% | F76: 0 | G76: 0.00% | H76: 2053 | I76: 183 | J76: 8.91% | K76: 0 | L76: 0.00% | M76: 5629 | N76: 562 | O76: 9.98% | P76: 2 | Q76: 0.04% | R76: 5867 | S76: 879 | T76: 14.98% | U76: 4 | V76: 0.07% | W76: 6074 | X76: 876 | Y76: 14.42% | Z76: 1 | AA76: 0.02% | AB76: 6403 | AC76: 973 | AD76: 15.20% | AE76: 5 | AF76: 0.08% | AG76: 6300 | AH76: 967 | AI76: 15.35% | AJ76: 4 | AK76: 0.06% | AL76: 5006 | AM76: 939 | AN76: 18.76% | AO76: 5 | AP76: 0.10% | AQ76: 4349 | AR76: 873 | AS76: 20.07% | AT76: 10 | AU76: 0.23% | AV76: 3856 | AW76: 899 | AX76: 23.31% | AY76: 11 | AZ76: 0.29% | BA76: 3453 | BB76: 1372 | BC76: 39.73% | BD76: 107 | BE76: 3.10% | BF76: 2598 | BG76: 1474 | BH76: 56.74% | BI76: 131 | BJ76: 5.04% | BK76: 1712 | BL76: 1118 | BM76: 65.30% | BN76: 102 | BO76: 5.96% | BP76: 919 | BQ76: 688 | BR76: 74.86% | BS76: 56 | BT76: 6.09% | BU76: 1076 | BV76: 788 | BW76: 73.23% | BX76: 36 | BY76: 3.35% | CA76: Viana | CB76: 61382 | CC76: 12626 | CD76: 0.2056954808 | CE76: 474 | CF76: 0.007722133524
A77: Regional Norte | B77: Vila Pavão | C77: 661 | D77: 3 | E77: 0.45% | F77: 0 | G77: 0.00% | H77: 250 | I77: 23 | J77: 9.20% | K77: 0 | L77: 0.00% | M77: 528 | N77: 64 | O77: 12.12% | P77: 0 | Q77: 0.00% | R77: 650 | S77: 71 | T77: 10.92% | U77: 2 | V77: 0.31% | W77: 632 | X77: 96 | Y77: 15.19% | Z77: 0 | AA77: 0.00% | AB77: 703 | AC77: 117 | AD77: 16.64% | AE77: 2 | AF77: 0.28% | AG77: 710 | AH77: 143 | AI77: 20.14% | AJ77: 1 | AK77: 0.14% | AL77: 685 | AM77: 130 | AN77: 18.98% | AO77: 5 | AP77: 0.73% | AQ77: 649 | AR77: 110 | AS77: 16.95% | AT77: 3 | AU77: 0.46% | AV77: 574 | AW77: 152 | AX77: 26.48% | AY77: 10 | AZ77: 1.74% | BA77: 500 | BB77: 193 | BC77: 38.60% | BD77: 23 | BE77: 4.60% | BF77: 373 | BG77: 202 | BH77: 54.16% | BI77: 24 | BJ77: 6.43% | BK77: 249 | BL77: 173 | BM77: 69.48% | BN77: 21 | BO77: 8.43% | BP77: 185 | BQ77: 116 | BR77: 62.70% | BS77: 11 | BT77: 5.95% | BU77: 203 | BV77: 136 | BW77: 67.00% | BX77: 9 | BY77: 4.43% | CA77: Vila Pavão | CB77: 7552 | CC77: 1729 | CD77: 0.2289459746 | CE77: 111 | CF77: 0.01469809322
A78: Regional Central | B78: Vila Valério | C78: 1091 | D78: 3 | E78: 0.27% | F78: 0 | G78: 0.00% | H78: 352 | I78: 15 | J78: 4.26% | K78: 0 | L78: 0.00% | M78: 993 | N78: 57 | O78: 5.74% | P78: 0 | Q78: 0.00% | R78: 1036 | S78: 82 | T78: 7.92% | U78: 0 | V78: 0.00% | W78: 1042 | X78: 73 | Y78: 7.01% | Z78: 0 | AA78: 0.00% | AB78: 1102 | AC78: 90 | AD78: 8.17% | AE78: 0 | AF78: 0.00% | AG78: 1163 | AH78: 118 | AI78: 10.15% | AJ78: 0 | AK78: 0.00% | AL78: 983 | AM78: 117 | AN78: 11.90% | AO78: 0 | AP78: 0.00% | AQ78: 869 | AR78: 141 | AS78: 16.23% | AT78: 0 | AU78: 0.00% | AV78: 844 | AW78: 138 | AX78: 16.35% | AY78: 0 | AZ78: 0.00% | BA78: 693 | BB78: 220 | BC78: 31.75% | BD78: 2 | BE78: 0.29% | BF78: 532 | BG78: 230 | BH78: 43.23% | BI78: 4 | BJ78: 0.75% | BK78: 403 | BL78: 180 | BM78: 44.67% | BN78: 2 | BO78: 0.50% | BP78: 240 | BQ78: 127 | BR78: 52.92% | BS78: 1 | BT78: 0.42% | BU78: 292 | BV78: 134 | BW78: 45.89% | BX78: 3 | BY78: 1.03% | CA78: Vila Valério | CB78: 11635 | CC78: 1725 | CD78: 0.1482595617 | CE78: 12 | CF78: 0.001031370864
A79: Regional Metropolitana | B79: Vila Velha | C79: 33559 | D79: 223 | E79: 0.66% | F79: 2 | G79: 0.01% | H79: 11690 | I79: 1396 | J79: 11.94% | K79: 11 | L79: 0.09% | M79: 34117 | N79: 6054 | O79: 17.74% | P79: 201 | Q79: 0.59% | R79: 35678 | S79: 7673 | T79: 21.51% | U79: 300 | V79: 0.84% | W79: 37276 | X79: 7422 | Y79: 19.91% | Z79: 272 | AA79: 0.73% | AB79: 39602 | AC79: 7773 | AD79: 19.63% | AE79: 301 | AF79: 0.76% | AG79: 39329 | AH79: 8015 | AI79: 20.38% | AJ79: 406 | AK79: 1.03% | AL79: 31720 | AM79: 7073 | AN79: 22.30% | AO79: 334 | AP79: 1.05% | AQ79: 30013 | AR79: 6461 | AS79: 21.53% | AT79: 284 | AU79: 0.95% | AV79: 28733 | AW79: 7219 | AX79: 25.12% | AY79: 307 | AZ79: 1.07% | BA79: 25601 | BB79: 9324 | BC79: 36.42% | BD79: 1560 | BE79: 6.09% | BF79: 20643 | BG79: 9466 | BH79: 45.86% | BI79: 1858 | BJ79: 9.00% | BK79: 14310 | BL79: 7336 | BM79: 51.26% | BN79: 1359 | BO79: 9.50% | BP79: 9116 | BQ79: 4938 | BR79: 54.17% | BS79: 854 | BT79: 9.37% | BU79: 11379 | BV79: 6515 | BW79: 57.25% | BX79: 970 | BY79: 8.52% | CA79: Vila Velha | CB79: 402766 | CC79: 96888 | CD79: 0.2405565514 | CE79: 9019 | CF79: 0.02239265479
A80: Regional Metropolitana | B80: Vitória | C80: 21536 | D80: 439 | E80: 2.04% | F80: 11 | G80: 0.05% | H80: 7743 | I80: 1575 | J80: 20.34% | K80: 11 | L80: 0.14% | M80: 22666 | N80: 6117 | O80: 26.99% | P80: 46 | Q80: 0.20% | R80: 23212 | S80: 6525 | T80: 28.11% | U80: 57 | V80: 0.25% | W80: 23980 | X80: 6138 | Y80: 25.60% | Z80: 71 | AA80: 0.30% | AB80: 26637 | AC80: 7559 | AD80: 28.38% | AE80: 120 | AF80: 0.45% | AG80: 26887 | AH80: 8510 | AI80: 31.65% | AJ80: 153 | AK80: 0.57% | AL80: 22069 | AM80: 7673 | AN80: 34.77% | AO80: 133 | AP80: 0.60% | AQ80: 20112 | AR80: 6871 | AS80: 34.16% | AT80: 170 | AU80: 0.85% | AV80: 20532 | AW80: 7526 | AX80: 36.65% | AY80: 235 | AZ80: 1.14% | BA80: 19349 | BB80: 9166 | BC80: 47.37% | BD80: 1821 | BE80: 9.41% | BF80: 16196 | BG80: 9013 | BH80: 55.65% | BI80: 2164 | BJ80: 13.36% | BK80: 11644 | BL80: 7080 | BM80: 60.80% | BN80: 1735 | BO80: 14.90% | BP80: 7493 | BQ80: 4787 | BR80: 63.89% | BS80: 1164 | BT80: 15.53% | BU80: 10123 | BV80: 6985 | BW80: 69.00% | BX80: 1680 | BY80: 16.60% | CA80: Vitória | CB80: 280179 | CC80: 95964 | CD80: 0.3425096099 | CE80: 9571 | CF80: 0.03416030466
B81: TOTAL ESPÍRITO SANTO | C81: =SUM(C3:C80) -> 300898 | D81: =SUM(D3:D80) -> 3148 | E81: =D81/C81 -> 0.01046201703 | F81: =SUM(F3:F80) -> 64 | G81: =F81/C81 -> 0.0002126966613 | H81: =SUM(H3:H80) -> 103299 | I81: =SUM(I3:I80) -> 10092 | J81: =I81/H81 -> 0.09769697674 | K81: =SUM(K3:K80) -> 67 | L81: =K81/H81 -> 0.0006486026002 | M81: =SUM(M3:M80) -> 276033 | N81: =SUM(N3:N80) -> 33833 | O81: =N81/M81 -> 0.1225686784 | P81: =SUM(P3:P80) -> 424 | Q81: =P81/M81 -> 0.001536048226 | R81: =SUM(R3:R80) -> 279424 | S81: =SUM(S3:S80) -> 39540 | T81: =S81/R81 -> 0.1415053825 | U81: =SUM(U3:U80) -> 593 | V81: =U81/R81 -> 0.002122222858 | W81: =SUM(W3:W80) -> 291550 | X81: =SUM(X3:X80) -> 39754 | Y81: =X81/W81 -> 0.1363539702 | Z81: =SUM(Z3:Z80) -> 591 | AA81: =Z81/W81 -> 0.002027096553 | AB81: =SUM(AB3:AB80) -> 313839 | AC81: =SUM(AC3:AC80) -> 46448 | AD81: =AC81/AB81 -> 0.1479994519 | AE81: =SUM(AE3:AE80) -> 716 | AF81: =AE81/AB81 -> 0.002281424552 | AG81: =SUM(AG3:AG80) -> 315396 | AH81: =SUM(AH3:AH80) -> 51008 | AI81: =AH81/AG81 -> 0.161726845 | AJ81: =SUM(AJ3:AJ80) -> 915 | AK81: =AJ81/AG81 -> 0.002901114789 | AL81: =SUM(AL3:AL80) -> 260955 | AM81: =SUM(AM3:AM80) -> 47599 | AN81: =AM81/AL81 -> 0.1824030963 | AO81: =SUM(AO3:AO80) -> 823 | AP81: =AO81/AL81 -> 0.003153800464 | AQ81: =SUM(AQ3:AQ80) -> 242363 | AR81: =SUM(AR3:AR80) -> 45425 | AS81: =AR81/AQ81 -> 0.1874254734 | AT81: =SUM(AT3:AT80) -> 890 | AU81: =AT81/AQ81 -> 0.003672177684 | AV81: =SUM(AV3:AV80) -> 225229 | AW81: =SUM(AW3:AW80) -> 50892 | AX81: =AW81/AV81 -> 0.225956693 | AY81: =SUM(AY3:AY80) -> 1081 | AZ81: =AY81/AV81 -> 0.004799559559 | BA81: =SUM(BA3:BA80) -> 200415 | BB81: =SUM(BB3:BB80) -> 69577 | BC81: =BB81/BA81 -> 0.3471646334 | BD81: =SUM(BD3:BD80) -> 8032 | BE81: =BD81/BA81 -> 0.04007684056 | BF81: =SUM(BF3:BF80) -> 161788 | BG81: =SUM(BG3:BG80) -> 73137 | BH81: =BG81/BF81 -> 0.4520545405 | BI81: =SUM(BI3:BI80) -> 9922 | BJ81: =BI81/BF81 -> 0.06132716889 | BK81: =SUM(BK3:BK80) -> 111235 | BL81: =SUM(BL3:BL80) -> 58324 | BM81: =BL81/BK81 -> 0.5243313705 | BN81: =SUM(BN3:BN80) -> 8125 | BO81: =BN81/BK81 -> 0.07304355643 | BP81: =SUM(BP3:BP80) -> 70070 | BQ81: =SUM(BQ3:BQ80) -> 38683 | BR81: =BQ81/BP81 -> 0.5520622235 | BS81: =SUM(BS3:BS80) -> 5069 | BT81: =BS81/BP81 -> 0.07234194377 | BU81: =SUM(BU3:BU80) -> 87890 | BV81: =SUM(BV3:BV80) -> 49347 | BW81: =BV81/BU81 -> 0.5614631926 | BX81: =SUM(BX3:BX80) -> 5646 | BY81: =BX81/BU81 -> 0.06423939015 | CA81: TOTAL ESPÍRITO SANTO | CB81: 3240384 | CC81: 656807 | CD81: 0.2026941869 | CE81: 42958 | CF81: 0.01325707077
B82: Regional Metropolitana | C82: =SUMIF($A$3:$A$80,$B82,C$3:C$80) -> 176348 | D82: =SUMIF($A$3:$A$80,$B82,D$3:D$80) -> 2277 | E82: =D82/C82 -> 0.01291196951 | F82: =SUMIF($A$3:$A$80,$B82,F$3:F$80) -> 52 | G82: =F82/C82 -> 0.0002948715041 | H82: =SUMIF($A$3:$A$80,$B82,H$3:H$80) -> 60323 | I82: =SUMIF($A$3:$A$80,$B82,I$3:I$80) -> 6848 | J82: =I82/H82 -> 0.1135222055 | K82: =SUMIF($A$3:$A$80,$B82,K$3:K$80) -> 55 | L82: =K82/H82 -> 0.0009117583675 | M82: =SUMIF($A$3:$A$80,$B82,M$3:M$80) -> 165481 | N82: =SUMIF($A$3:$A$80,$B82,N$3:N$80) -> 23576 | O82: =N82/M82 -> 0.1424695282 | P82: =SUMIF($A$3:$A$80,$B82,P$3:P$80) -> 363 | Q82: =P82/M82 -> 0.002193605308 | R82: =SUMIF($A$3:$A$80,$B82,R$3:R$80) -> 167614 | S82: =SUMIF($A$3:$A$80,$B82,S$3:S$80) -> 27858 | T82: =S82/R82 -> 0.1662033004 | U82: =SUMIF($A$3:$A$80,$B82,U$3:U$80) -> 511 | V82: =U82/R82 -> 0.003048671352 | W82: =SUMIF($A$3:$A$80,$B82,W$3:W$80) -> 176453 | X82: =SUMIF($A$3:$A$80,$B82,X$3:X$80) -> 27972 | Y82: =X82/W82 -> 0.1585237995 | Z82: =SUMIF($A$3:$A$80,$B82,Z$3:Z$80) -> 508 | AA82: =Z82/W82 -> 0.002878953602 | AB82: =SUMIF($A$3:$A$80,$B82,AB$3:AB$80) -> 191072 | AC82: =SUMIF($A$3:$A$80,$B82,AC$3:AC$80) -> 32351 | AD82: =AC82/AB82 -> 0.1693131385 | AE82: =SUMIF($A$3:$A$80,$B82,AE$3:AE$80) -> 608 | AF82: =AE82/AB82 -> 0.003182046558 | AG82: =SUMIF($A$3:$A$80,$B82,AG$3:AG$80) -> 190456 | AH82: =SUMIF($A$3:$A$80,$B82,AH$3:AH$80) -> 35185 | AI82: =AH82/AG82 -> 0.1847408325 | AJ82: =SUMIF($A$3:$A$80,$B82,AJ$3:AJ$80) -> 772 | AK82: =AJ82/AG82 -> 0.004053429664 | AL82: =SUMIF($A$3:$A$80,$B82,AL$3:AL$80) -> 155329 | AM82: =SUMIF($A$3:$A$80,$B82,AM$3:AM$80) -> 32313 | AN82: =AM82/AL82 -> 0.2080294085 | AO82: =SUMIF($A$3:$A$80,$B82,AO$3:AO$80) -> 686 | AP82: =AO82/AL82 -> 0.004416432218 | AQ82: =SUMIF($A$3:$A$80,$B82,AQ$3:AQ$80) -> 142027 | AR82: =SUMIF($A$3:$A$80,$B82,AR$3:AR$80) -> 29834 | AS82: =AR82/AQ82 -> 0.2100586508 | AT82: =SUMIF($A$3:$A$80,$B82,AT$3:AT$80) -> 724 | AU82: =AT82/AQ82 -> 0.005097622283 | AV82: =SUMIF($A$3:$A$80,$B82,AV$3:AV$80) -> 131470 | AW82: =SUMIF($A$3:$A$80,$B82,AW$3:AW$80) -> 32760 | AX82: =AW82/AV82 -> 0.249182323 | AY82: =SUMIF($A$3:$A$80,$B82,AY$3:AY$80) -> 853 | AZ82: =AY82/AV82 -> 0.006488172207 | BA82: =SUMIF($A$3:$A$80,$B82,BA$3:BA$80) -> 117912 | BB82: =SUMIF($A$3:$A$80,$B82,BB$3:BB$80) -> 43521 | BC82: =BB82/BA82 -> 0.3690972929 | BD82: =SUMIF($A$3:$A$80,$B82,BD$3:BD$80) -> 6238 | BE82: =BD82/BA82 -> 0.05290386051 | BF82: =SUMIF($A$3:$A$80,$B82,BF$3:BF$80) -> 95017 | BG82: =SUMIF($A$3:$A$80,$B82,BG$3:BG$80) -> 44963 | BH82: =BG82/BF82 -> 0.4732100571 | BI82: =SUMIF($A$3:$A$80,$B82,BI$3:BI$80) -> 7725 | BJ82: =BI82/BF82 -> 0.08130124083 | BK82: =SUMIF($A$3:$A$80,$B82,BK$3:BK$80) -> 64819 | BL82: =SUMIF($A$3:$A$80,$B82,BL$3:BL$80) -> 35370 | BM82: =BL82/BK82 -> 0.5456733365 | BN82: =SUMIF($A$3:$A$80,$B82,BN$3:BN$80) -> 6190 | BO82: =BN82/BK82 -> 0.09549669079 | BP82: =SUMIF($A$3:$A$80,$B82,BP$3:BP$80) -> 40078 | BQ82: =SUMIF($A$3:$A$80,$B82,BQ$3:BQ$80) -> 22909 | BR82: =BQ82/BP82 -> 0.5716103598 | BS82: =SUMIF($A$3:$A$80,$B82,BS$3:BS$80) -> 3856 | BT82: =BS82/BP82 -> 0.09621238585 | BU82: =SUMIF($A$3:$A$80,$B82,BU$3:BU$80) -> 49239 | BV82: =SUMIF($A$3:$A$80,$B82,BV$3:BV$80) -> 29092 | BW82: =BV82/BU82 -> 0.5908324702 | BX82: =SUMIF($A$3:$A$80,$B82,BX$3:BX$80) -> 4340 | BY82: =BX82/BU82 -> 0.08814151384 | CA82: Regional Metropolitana | CB82: 1923638 | CC82: 426829 | CD82: 0.2218863424 | CE82: 33481 | CF82: 0.0174050419
B83: Regional Norte | C83: =SUMIF($A$3:$A$80,$B83,C$3:C$80) -> 34282 | D83: 305 | E83: =D83/C83 -> 0.008896797153 | F83: 3 | G83: =F83/C83 -> 8.750948019e-05 | H83: =SUMIF($A$3:$A$80,$B83,H$3:H$80) -> 11775 | I83: 872 | J83: =I83/H83 -> 0.0740552017 | K83: 2 | L83: =K83/H83 -> 0.00016985138 | M83: =SUMIF($A$3:$A$80,$B83,M$3:M$80) -> 29086 | N83: 2834 | O83: =N83/M83 -> 0.09743519219 | P83: 18 | Q83: =P83/M83 -> 0.0006188544317 | R83: =SUMIF($A$3:$A$80,$B83,R$3:R$80) -> 28983 | S83: 3224 | T83: =S83/R83 -> 0.1112376221 | U83: 23 | V83: =U83/R83 -> 0.0007935686437 | W83: =SUMIF($A$3:$A$80,$B83,W$3:W$80) -> 28695 | X83: 3137 | Y83: =X83/W83 -> 0.1093221816 | Z83: 26 | AA83: =Z83/W83 -> 0.0009060811988 | AB83: =SUMIF($A$3:$A$80,$B83,AB$3:AB$80) -> 31444 | AC83: 3867 | AD83: =AC83/AB83 -> 0.1229805368 | AE83: 23 | AF83: =AE83/AB83 -> 0.0007314591019 | AG83: =SUMIF($A$3:$A$80,$B83,AG$3:AG$80) -> 31855 | AH83: 4310 | AI83: =AH83/AG83 -> 0.1353005808 | AJ83: 37 | AK83: =AJ83/AG83 -> 0.001161513106 | AL83: =SUMIF($A$3:$A$80,$B83,AL$3:AL$80) -> 27954 | AM83: 4161 | AN83: =AM83/AL83 -> 0.1488516849 | AO83: 34 | AP83: =AO83/AL83 -> 0.001216283895 | AQ83: =SUMIF($A$3:$A$80,$B83,AQ$3:AQ$80) -> 25808 | AR83: 4118 | AS83: =AR83/AQ83 -> 0.1595629262 | AT83: 50 | AU83: =AT83/AQ83 -> 0.001937383757 | AV83: =SUMIF($A$3:$A$80,$B83,AV$3:AV$80) -> 23724 | AW83: 4427 | AX83: =AW83/AV83 -> 0.1866042826 | AY83: 77 | AZ83: =AY83/AV83 -> 0.003245658405 | BA83: =SUMIF($A$3:$A$80,$B83,BA$3:BA$80) -> 20472 | BB83: 6429 | BC83: =BB83/BA83 -> 0.314038687 | BD83: 540 | BE83: =BD83/BA83 -> 0.02637749121 | BF83: =SUMIF($A$3:$A$80,$B83,BF$3:BF$80) -> 16295 | BG83: 6690 | BH83: =BG83/BF83 -> 0.4105553851 | BI83: 633 | BJ83: =BI83/BF83 -> 0.03884627186 | BK83: =SUMIF($A$3:$A$80,$B83,BK$3:BK$80) -> 11297 | BL83: 5356 | BM83: =BL83/BK83 -> 0.4741081703 | BN83: 576 | BO83: =BN83/BK83 -> 0.0509869877 | BP83: =SUMIF($A$3:$A$80,$B83,BP$3:BP$80) -> 7308 | BQ83: 3652 | BR83: =BQ83/BP83 -> 0.4997263273 | BS83: 345 | BT83: =BS83/BP83 -> 0.04720853859 | BU83: =SUMIF($A$3:$A$80,$B83,BU$3:BU$80) -> 9254 | BV83: 4702 | BW83: =BV83/BU83 -> 0.5081046034 | BX83: 357 | BY83: =BX83/BU83 -> 0.03857791225 | CA83: Regional Norte | CB83: 338232 | CC83: 58084 | CD83: 0.1717282812 | CE83: 2744 | CF83: 0.008112774664
B84: Regional Central | C84: 39856 | D84: 138 | E84: =D84/C84 -> 0.003462464874 | F84: 1 | G84: =F84/C84 -> 2.509032517e-05 | H84: 13805 | I84: 790 | J84: =I84/H84 -> 0.05722564288 | K84: 2 | L84: =K84/H84 -> 0.0001448750453 | M84: 36486 | N84: 2752 | O84: =N84/M84 -> 0.07542619087 | P84: 15 | Q84: =P84/M84 -> 0.0004111165927 | R84: 37160 | S84: 3281 | T84: =S84/R84 -> 0.08829386437 | U84: 20 | V84: =U84/R84 -> 0.0005382131324 | W84: 38246 | X84: 3226 | Y84: =X84/W84 -> 0.08434869006 | Z84: 19 | AA84: =Z84/W84 -> 0.0004967839774 | AB84: 40255 | AC84: 3701 | AD84: =AC84/AB84 -> 0.09193888958 | AE84: 33 | AF84: =AE84/AB84 -> 0.0008197739411 | AG84: 40954 | AH84: 4142 | AI84: =AH84/AG84 -> 0.101137862 | AJ84: 37 | AK84: =AJ84/AG84 -> 0.0009034526542 | AL84: 33797 | AM84: 3931 | AN84: =AM84/AL84 -> 0.1163120987 | AO84: 31 | AP84: =AO84/AL84 -> 0.0009172411753 | AQ84: 32113 | AR84: 4278 | AS84: =AR84/AQ84 -> 0.1332170772 | AT84: 39 | AU84: =AT84/AQ84 -> 0.001214461433 | AV84: 28983 | AW84: 5040 | AX84: =AW84/AV84 -> 0.1738950419 | AY84: 33 | AZ84: =AY84/AV84 -> 0.001138598489 | BA84: 25194 | BB84: 7286 | BC84: =BB84/BA84 -> 0.2891958403 | BD84: 356 | BE84: =BD84/BA84 -> 0.0141303485 | BF84: 20238 | BG84: 8171 | BH84: =BG84/BF84 -> 0.4037454294 | BI84: 428 | BJ84: =BI84/BF84 -> 0.02114833482 | BK84: 13909 | BL84: 6729 | BM84: =BL84/BK84 -> 0.4837874757 | BN84: 331 | BO84: =BN84/BK84 -> 0.02379754116 | BP84: 9300 | BQ84: 4729 | BR84: =BQ84/BP84 -> 0.5084946237 | BS84: 232 | BT84: =BS84/BP84 -> 0.02494623656 | BU84: 11836 | BV84: 5736 | BW84: =BV84/BU84 -> 0.4846231835 | BX84: 232 | BY84: =BX84/BU84 -> 0.01960121663 | CA84: Regional Central | CB84: 422132 | CC84: 63930 | CD84: 0.1514455194 | CE84: 1809 | CF84: 0.004285389404
B85: Regional Sul | C85: 50412 | D85: 428 | E85: =D85/C85 -> 0.008490042053 | F85: 8 | G85: =F85/C85 -> 0.0001586923748 | H85: 17396 | I85: 1582 | J85: =I85/H85 -> 0.09094044608 | K85: 8 | L85: =K85/H85 -> 0.0004598758335 | M85: 44980 | N85: 4671 | O85: =N85/M85 -> 0.1038461538 | P85: 28 | Q85: =P85/M85 -> 0.0006224988884 | R85: 45667 | S85: 5177 | T85: =S85/R85 -> 0.113364136 | U85: 39 | V85: =U85/R85 -> 0.0008540083649 | W85: 48156 | X85: 5419 | Y85: =X85/W85 -> 0.1125301105 | Z85: 38 | AA85: =Z85/W85 -> 0.0007891020849 | AB85: 51068 | AC85: 6529 | AD85: =AC85/AB85 -> 0.1278491423 | AE85: 52 | AF85: =AE85/AB85 -> 0.001018250176 | AG85: 52131 | AH85: 7371 | AI85: =AH85/AG85 -> 0.1413937964 | AJ85: 69 | AK85: =AJ85/AG85 -> 0.001323588652 | AL85: 43875 | AM85: 7194 | AN85: =AM85/AL85 -> 0.163965812 | AO85: 72 | AP85: =AO85/AL85 -> 0.001641025641 | AQ85: 42415 | AR85: 7195 | AS85: =AR85/AQ85 -> 0.1696333844 | AT85: 77 | AU85: =AT85/AQ85 -> 0.001815395497 | AV85: 41052 | AW85: 8665 | AX85: =AW85/AV85 -> 0.2110737601 | AY85: 118 | AZ85: =AY85/AV85 -> 0.002874403196 | BA85: 36837 | BB85: 12341 | BC85: =BB85/BA85 -> 0.3350164237 | BD85: 898 | BE85: =BD85/BA85 -> 0.02437766376 | BF85: 30238 | BG85: 13313 | BH85: =BG85/BF85 -> 0.4402738276 | BI85: 1136 | BJ85: =BI85/BF85 -> 0.03756862226 | BK85: 21210 | BL85: 10869 | BM85: =BL85/BK85 -> 0.512446959 | BN85: 1028 | BO85: =BN85/BK85 -> 0.04846770391 | BP85: 13384 | BQ85: 7393 | BR85: =BQ85/BP85 -> 0.5523759713 | BS85: 636 | BT85: =BS85/BP85 -> 0.04751942618 | BU85: 17561 | BV85: 9817 | BW85: =BV85/BU85 -> 0.5590228347 | BX85: 717 | BY85: =BX85/BU85 -> 0.04082910996 | CA85: Regional Sul | CB85: 556382 | CC85: 107964 | CD85: 0.1940465364 | CE85: 4924 | CF85: 0.008850034688
C90: ='Bivalente - proced'!E2 -> COBERTURA VACINAL REFORÇO BIVALENTE | D90: ='Bivalente - proced'!G2 -> 2º COBERTURA VACINAL REFORÇO BIVALENTE | E90: ='Bivalente - proced'!J2 -> COBERTURA VACINAL REFORÇO BIVALENTE | F90: ='Bivalente - proced'!L2 -> 2º COBERTURA VACINAL REFORÇO BIVALENTE | G90: ='Bivalente - proced'!O2 -> COBERTURA VACINAL REFORÇO BIVALENTE | H90: ='Bivalente - proced'!Q2 -> 2º COBERTURA VACINAL REFORÇO BIVALENTE | I90: ='Bivalente - proced'!T2 -> COBERTURA VACINAL REFORÇO BIVALENTE | J90: ='Bivalente - proced'!V2 -> 2º COBERTURA VACINAL REFORÇO BIVALENTE | K90: ='Bivalente - proced'!Y2 -> COBERTURA VACINAL REFORÇO BIVALENTE | L90: ='Bivalente - proced'!AA2 -> 2º COBERTURA VACINAL REFORÇO BIVALENTE | M90: ='Bivalente - proced'!AD2 -> COBERTURA VACINAL REFORÇO BIVALENTE | N90: ='Bivalente - proced'!AF2 -> 2º COBERTURA VACINAL REFORÇO BIVALENTE | O90: ='Bivalente - proced'!AI2 -> COBERTURA VACINAL REFORÇO BIVALENTE | P90: ='Bivalente - proced'!AK2 -> 2º COBERTURA VACINAL REFORÇO BIVALENTE | Q90: ='Bivalente - proced'!AN2 -> COBERTURA VACINAL REFORÇO BIVALENTE | R90: ='Bivalente - proced'!AP2 -> 2º COBERTURA VACINAL REFORÇO BIVALENTE | S90: ='Bivalente - proced'!AS2 -> COBERTURA VACINAL REFORÇO BIVALENTE | T90: ='Bivalente - proced'!AU2 -> 2º COBERTURA VACINAL REFORÇO BIVALENTE | U90: ='Bivalente - proced'!AX2 -> COBERTURA VACINAL REFORÇO BIVALENTE | V90: ='Bivalente - proced'!AZ2 -> 2º COBERTURA VACINAL REFORÇO BIVALENTE | W90: ='Bivalente - proced'!BC2 -> COBERTURA VACINAL REFORÇO BIVALENTE | X90: ='Bivalente - proced'!BE2 -> 2º COBERTURA VACINAL REFORÇO BIVALENTE | Y90: ='Bivalente - proced'!BH2 -> COBERTURA VACINAL REFORÇO BIVALENTE | Z90: ='Bivalente - proced'!BJ2 -> 2º COBERTURA VACINAL REFORÇO BIVALENTE | AA90: ='Bivalente - proced'!BM2 -> COBERTURA VACINAL REFORÇO BIVALENTE | AB90: ='Bivalente - proced'!BO2 -> 2º COBERTURA VACINAL REFORÇO BIVALENTE | AC90: ='Bivalente - proced'!BR2 -> COBERTURA VACINAL REFORÇO BIVALENTE | AD90: ='Bivalente - proced'!BT2 -> 2º COBERTURA VACINAL REFORÇO BIVALENTE | AE90: ='Bivalente - proced'!BW2 -> COBERTURA VACINAL REFORÇO BIVALENTE | AF90: ='Bivalente - proced'!BY2 -> 2º COBERTURA VACINAL REFORÇO BIVALENTE
C91: 12 A 17 ANOS | D91: 12 A 17 ANOS | E91: 18 A 19 ANOS | F91: 18 A 19 ANOS | G91: 20 A 24 ANOS | H91: 20 A 24 ANOS | I91: 25 A 29 ANOS | J91: 25 A 29 ANOS | K91: 30 A 34 ANOS | L91: 30 A 34 ANOS | M91: 35 A 39 ANOS | N91: 35 A 39 ANOS | O91: 40 A 44 ANOS | P91: 40 A 44 ANOS | Q91: 45 A 49 ANOS | R91: 45 A 49 ANOS | S91: 50 A 54 ANOS | T91: 50 A 54 ANOS | U91: 55 A 59 ANOS | V91: 55 A 59 ANOS | W91: 60 A 64 ANOS | X91: 60 A 64 ANOS | Y91: 65 A 69 ANOS | Z91: 65 A 69 ANOS | AA91: 70 A 74 ANOS | AB91: 70 A 74 ANOS | AC91: 75 A 79 ANOS | AD91: 75 A 79 ANOS | AE91: 80 ANOS OU MAIS | AF91: 80 ANOS OU MAIS
B92: ='Bivalente - proced'!B81 -> TOTAL ESPÍRITO SANTO | C92: ='Bivalente - proced'!E81 -> 0.01046201703 | D92: ='Bivalente - proced'!G81 -> 0.0002126966613 | E92: ='Bivalente - proced'!J81 -> 0.09769697674 | F92: ='Bivalente - proced'!L81 -> 0.0006486026002 | G92: ='Bivalente - proced'!O81 -> 0.1225686784 | H92: ='Bivalente - proced'!Q81 -> 0.001536048226 | I92: ='Bivalente - proced'!T81 -> 0.1415053825 | J92: ='Bivalente - proced'!V81 -> 0.002122222858 | K92: ='Bivalente - proced'!Y81 -> 0.1363539702 | L92: ='Bivalente - proced'!AA81 -> 0.002027096553 | M92: ='Bivalente - proced'!AD81 -> 0.1479994519 | N92: ='Bivalente - proced'!AF81 -> 0.002281424552 | O92: ='Bivalente - proced'!AI81 -> 0.161726845 | P92: ='Bivalente - proced'!AK81 -> 0.002901114789 | Q92: ='Bivalente - proced'!AN81 -> 0.1824030963 | R92: ='Bivalente - proced'!AP81 -> 0.003153800464 | S92: ='Bivalente - proced'!AS81 -> 0.1874254734 | T92: ='Bivalente - proced'!AU81 -> 0.003672177684 | U92: ='Bivalente - proced'!AX81 -> 0.225956693 | V92: ='Bivalente - proced'!AZ81 -> 0.004799559559 | W92: ='Bivalente - proced'!BC81 -> 0.3471646334 | X92: ='Bivalente - proced'!BE81 -> 0.04007684056 | Y92: ='Bivalente - proced'!BH81 -> 0.4520545405 | Z92: ='Bivalente - proced'!BJ81 -> 0.06132716889 | AA92: ='Bivalente - proced'!BM81 -> 0.5243313705 | AB92: ='Bivalente - proced'!BO81 -> 0.07304355643 | AC92: ='Bivalente - proced'!BR81 -> 0.5520622235 | AD92: ='Bivalente - proced'!BT81 -> 0.07234194377 | AE92: ='Bivalente - proced'!BW81 -> 0.5614631926 | AF92: ='Bivalente - proced'!BY81 -> 0.06423939015
B93: ='Bivalente - proced'!B82 -> Regional Metropolitana | C93: ='Bivalente - proced'!E82 -> 0.01291196951 | D93: ='Bivalente - proced'!G82 -> 0.0002948715041 | E93: ='Bivalente - proced'!J82 -> 0.1135222055 | F93: ='Bivalente - proced'!L82 -> 0.0009117583675 | G93: ='Bivalente - proced'!O82 -> 0.1424695282 | H93: ='Bivalente - proced'!Q82 -> 0.002193605308 | I93: ='Bivalente - proced'!T82 -> 0.1662033004 | J93: ='Bivalente - proced'!V82 -> 0.003048671352 | K93: ='Bivalente - proced'!Y82 -> 0.1585237995 | L93: ='Bivalente - proced'!AA82 -> 0.002878953602 | M93: ='Bivalente - proced'!AD82 -> 0.1693131385 | N93: ='Bivalente - proced'!AF82 -> 0.003182046558 | O93: ='Bivalente - proced'!AI82 -> 0.1847408325 | P93: ='Bivalente - proced'!AK82 -> 0.004053429664 | Q93: ='Bivalente - proced'!AN82 -> 0.2080294085 | R93: ='Bivalente - proced'!AP82 -> 0.004416432218 | S93: ='Bivalente - proced'!AS82 -> 0.2100586508 | T93: ='Bivalente - proced'!AU82 -> 0.005097622283 | U93: ='Bivalente - proced'!AX82 -> 0.249182323 | V93: ='Bivalente - proced'!AZ82 -> 0.006488172207 | W93: ='Bivalente - proced'!BC82 -> 0.3690972929 | X93: ='Bivalente - proced'!BE82 -> 0.05290386051 | Y93: ='Bivalente - proced'!BH82 -> 0.4732100571 | Z93: ='Bivalente - proced'!BJ82 -> 0.08130124083 | AA93: ='Bivalente - proced'!BM82 -> 0.5456733365 | AB93: ='Bivalente - proced'!BO82 -> 0.09549669079 | AC93: ='Bivalente - proced'!BR82 -> 0.5716103598 | AD93: ='Bivalente - proced'!BT82 -> 0.09621238585 | AE93: ='Bivalente - proced'!BW82 -> 0.5908324702 | AF93: ='Bivalente - proced'!BY82 -> 0.08814151384
B94: ='Bivalente - proced'!B83 -> Regional Norte | C94: ='Bivalente - proced'!E83 -> 0.008896797153 | D94: ='Bivalente - proced'!G83 -> 8.750948019e-05 | E94: ='Bivalente - proced'!J83 -> 0.0740552017 | F94: ='Bivalente - proced'!L83 -> 0.00016985138 | G94: ='Bivalente - proced'!O83 -> 0.09743519219 | H94: ='Bivalente - proced'!Q83 -> 0.0006188544317 | I94: ='Bivalente - proced'!T83 -> 0.1112376221 | J94: ='Bivalente - proced'!V83 -> 0.0007935686437 | K94: ='Bivalente - proced'!Y83 -> 0.1093221816 | L94: ='Bivalente - proced'!AA83 -> 0.0009060811988 | M94: ='Bivalente - proced'!AD83 -> 0.1229805368 | N94: ='Bivalente - proced'!AF83 -> 0.0007314591019 | O94: ='Bivalente - proced'!AI83 -> 0.1353005808 | P94: ='Bivalente - proced'!AK83 -> 0.001161513106 | Q94: ='Bivalente - proced'!AN83 -> 0.1488516849 | R94: ='Bivalente - proced'!AP83 -> 0.001216283895 | S94: ='Bivalente - proced'!AS83 -> 0.1595629262 | T94: ='Bivalente - proced'!AU83 -> 0.001937383757 | U94: ='Bivalente - proced'!AX83 -> 0.1866042826 | V94: ='Bivalente - proced'!AZ83 -> 0.003245658405 | W94: ='Bivalente - proced'!BC83 -> 0.314038687 | X94: ='Bivalente - proced'!BE83 -> 0.02637749121 | Y94: ='Bivalente - proced'!BH83 -> 0.4105553851 | Z94: ='Bivalente - proced'!BJ83 -> 0.03884627186 | AA94: ='Bivalente - proced'!BM83 -> 0.4741081703 | AB94: ='Bivalente - proced'!BO83 -> 0.0509869877 | AC94: ='Bivalente - proced'!BR83 -> 0.4997263273 | AD94: ='Bivalente - proced'!BT83 -> 0.04720853859 | AE94: ='Bivalente - proced'!BW83 -> 0.5081046034 | AF94: ='Bivalente - proced'!BY83 -> 0.03857791225
B95: ='Bivalente - proced'!B84 -> Regional Central | C95: ='Bivalente - proced'!E84 -> 0.003462464874 | D95: ='Bivalente - proced'!G84 -> 2.509032517e-05 | E95: ='Bivalente - proced'!J84 -> 0.05722564288 | F95: ='Bivalente - proced'!L84 -> 0.0001448750453 | G95: ='Bivalente - proced'!O84 -> 0.07542619087 | H95: ='Bivalente - proced'!Q84 -> 0.0004111165927 | I95: ='Bivalente - proced'!T84 -> 0.08829386437 | J95: ='Bivalente - proced'!V84 -> 0.0005382131324 | K95: ='Bivalente - proced'!Y84 -> 0.08434869006 | L95: ='Bivalente - proced'!AA84 -> 0.0004967839774 | M95: ='Bivalente - proced'!AD84 -> 0.09193888958 | N95: ='Bivalente - proced'!AF84 -> 0.0008197739411 | O95: ='Bivalente - proced'!AI84 -> 0.101137862 | P95: ='Bivalente - proced'!AK84 -> 0.0009034526542 | Q95: ='Bivalente - proced'!AN84 -> 0.1163120987 | R95: ='Bivalente - proced'!AP84 -> 0.0009172411753 | S95: ='Bivalente - proced'!AS84 -> 0.1332170772 | T95: ='Bivalente - proced'!AU84 -> 0.001214461433 | U95: ='Bivalente - proced'!AX84 -> 0.1738950419 | V95: ='Bivalente - proced'!AZ84 -> 0.001138598489 | W95: ='Bivalente - proced'!BC84 -> 0.2891958403 | X95: ='Bivalente - proced'!BE84 -> 0.0141303485 | Y95: ='Bivalente - proced'!BH84 -> 0.4037454294 | Z95: ='Bivalente - proced'!BJ84 -> 0.02114833482 | AA95: ='Bivalente - proced'!BM84 -> 0.4837874757 | AB95: ='Bivalente - proced'!BO84 -> 0.02379754116 | AC95: ='Bivalente - proced'!BR84 -> 0.5084946237 | AD95: ='Bivalente - proced'!BT84 -> 0.02494623656 | AE95: ='Bivalente - proced'!BW84 -> 0.4846231835 | AF95: ='Bivalente - proced'!BY84 -> 0.01960121663
B96: ='Bivalente - proced'!B85 -> Regional Sul | C96: ='Bivalente - proced'!E85 -> 0.008490042053 | D96: ='Bivalente - proced'!G85 -> 0.0001586923748 | E96: ='Bivalente - proced'!J85 -> 0.09094044608 | F96: ='Bivalente - proced'!L85 -> 0.0004598758335 | G96: ='Bivalente - proced'!O85 -> 0.1038461538 | H96: ='Bivalente - proced'!Q85 -> 0.0006224988884 | I96: ='Bivalente - proced'!T85 -> 0.113364136 | J96: ='Bivalente - proced'!V85 -> 0.0008540083649 | K96: ='Bivalente - proced'!Y85 -> 0.1125301105 | L96: ='Bivalente - proced'!AA85 -> 0.0007891020849 | M96: ='Bivalente - proced'!AD85 -> 0.1278491423 | N96: ='Bivalente - proced'!AF85 -> 0.001018250176 | O96: ='Bivalente - proced'!AI85 -> 0.1413937964 | P96: ='Bivalente - proced'!AK85 -> 0.001323588652 | Q96: ='Bivalente - proced'!AN85 -> 0.163965812 | R96: ='Bivalente - proced'!AP85 -> 0.001641025641 | S96: ='Bivalente - proced'!AS85 -> 0.1696333844 | T96: ='Bivalente - proced'!AU85 -> 0.001815395497 | U96: ='Bivalente - proced'!AX85 -> 0.2110737601 | V96: ='Bivalente - proced'!AZ85 -> 0.002874403196 | W96: ='Bivalente - proced'!BC85 -> 0.3350164237 | X96: ='Bivalente - proced'!BE85 -> 0.02437766376 | Y96: ='Bivalente - proced'!BH85 -> 0.4402738276 | Z96: ='Bivalente - proced'!BJ85 -> 0.03756862226 | AA96: ='Bivalente - proced'!BM85 -> 0.512446959 | AB96: ='Bivalente - proced'!BO85 -> 0.04846770391 | AC96: ='Bivalente - proced'!BR85 -> 0.5523759713 | AD96: ='Bivalente - proced'!BT85 -> 0.04751942618 | AE96: ='Bivalente - proced'!BW85 -> 0.5590228347 | AF96: ='Bivalente - proced'!BY85 -> 0.04082910996
B97: META | C97: 0.9 | D97: 0.9 | E97: 0.9 | F97: 0.9 | G97: 0.9 | H97: 0.9 | I97: 0.9 | J97: 0.9 | K97: 0.9 | L97: 0.9 | M97: 0.9 | N97: 0.9 | O97: 0.9 | P97: 0.9 | Q97: 0.9 | R97: 0.9 | S97: 0.9 | T97: 0.9 | U97: 0.9 | V97: 0.9 | W97: 0.9 | X97: 0.9 | Y97: 0.9 | Z97: 0.9 | AA97: 0.9 | AB97: 0.9 | AC97: 0.9 | AD97: 0.9 | AE97: 0.9 | AF97: 0.9

Sheet Monovalente - resid
A1: REGIONAL | B1: MUNICÍPIO | C1: 6 MESES A 2 ANOS | J1: 3 A 4 ANOS | Q1: 5 A 11 ANOS | X1: 12 A 17 ANOS | AE1: 18 A 19 ANOS | AL1: 20 A 24 ANOS | AS1: 25 A 29 ANOS | AZ1: 30 A 34 ANOS | BG1: 35 A 39 ANOS | BN1: 40 A 44 ANOS | BU1: 45 A 49 ANOS | CB1: 50 A 54 ANOS | CI1: 55 A 59 ANOS | CP1: 60 A 64 ANOS | CW1: 65 A 69 ANOS | DD1: 70 A 74 ANOS | DK1: 75 A 79 ANOS | DR1: 80 ANOS OU MAIS | DZ1: MUNICÍPIO | EA1: GERAL
C2: ESTIMATIVA POPULACIONAL | D2: ESQUEMA PRIMÁRIO (3 doses) | E2: COBERTURA VACINAL ESQUEMA PRIMÁRIO | F2: 1º REFORÇO MONOVALENTE | G2: COBERTURA VACINAL 1° REFORÇO MONOVALENTE (4 doses) | H2: 2º REFORÇO MONOVALENTE | I2: COBERTURA VACINAL 2º REFORÇO MONOVALENTE (5 doses) | J2: ESTIMATIVA POPULACIONAL | K2: ESQUEMA PRIMÁRIO (3 doses) | L2: COBERTURA VACINAL ESQUEMA PRIMÁRIO | M2: 1º REFORÇO MONOVALENTE | N2: COBERTURA VACINAL 1° REFORÇO MONOVALENTE (4 doses) | O2: 2º REFORÇO MONOVALENTE | P2: COBERTURA VACINAL 2º REFORÇO MONOVALENTE (5 doses) | Q2: ESTIMATIVA POPULACIONAL | R2: ESQUEMA PRIMÁRIO (2 doses) | S2: COBERTURA VACINAL ESQUEMA PRIMÁRIO | T2: 1º REFORÇO MONOVALENTE | U2: COBERTURA VACINAL 1° REFORÇO MONOVALENTE (3 doses) | V2: 2º REFORÇO MONOVALENTE | W2: COBERTURA VACINAL 2º REFORÇO MONOVALENTE (4 doses) | X2: ESTIMATIVA POPULACIONAL | Y2: ESQUEMA PRIMÁRIO (2 doses) | Z2: COBERTURA VACINAL ESQUEMA PRIMÁRIO | AA2: 1º REFORÇO MONOVALENTE | AB2: COBERTURA VACINAL 1° REFORÇO MONOVALENTE (3 doses) | AC2: 2º REFORÇO MONOVALENTE | AD2: COBERTURA VACINAL 2º REFORÇO MONOVALENTE (4 doses) | AE2: ESTIMATIVA POPULACIONAL | AF2: ESQUEMA PRIMÁRIO (2 doses) | AG2: COBERTURA VACINAL ESQUEMA PRIMÁRIO | AH2: 1º REFORÇO MONOVALENTE | AI2: COBERTURA VACINAL 1° REFORÇO MONOVALENTE (3 doses) | AJ2: 2º REFORÇO MONOVALENTE | AK2: COBERTURA VACINAL 2º REFORÇO MONOVALENTE (4 doses) | AL2: ESTIMATIVA POPULACIONAL | AM2: ESQUEMA PRIMÁRIO (2 doses) | AN2: COBERTURA VACINAL ESQUEMA PRIMÁRIO | AO2: 1º REFORÇO MONOVALENTE | AP2: COBERTURA VACINAL 1° REFORÇO MONOVALENTE (3 doses) | AQ2: 2º REFORÇO MONOVALENTE | AR2: COBERTURA VACINAL 2º REFORÇO MONOVALENTE (4 doses) | AS2: ESTIMATIVA POPULACIONAL | AT2: ESQUEMA PRIMÁRIO (2 doses) | AU2: COBERTURA VACINAL ESQUEMA PRIMÁRIO | AV2: 1º REFORÇO MONOVALENTE | AW2: COBERTURA VACINAL 1° REFORÇO MONOVALENTE (3 doses) | AX2: 2º REFORÇO MONOVALENTE | AY2: COBERTURA VACINAL 2º REFORÇO MONOVALENTE (4 doses) | AZ2: ESTIMATIVA POPULACIONAL | BA2: ESQUEMA PRIMÁRIO (2 doses) | BB2: COBERTURA VACINAL ESQUEMA PRIMÁRIO | BC2: 1º REFORÇO MONOVALENTE | BD2: COBERTURA VACINAL 1° REFORÇO MONOVALENTE (3 doses) | BE2: 2º REFORÇO MONOVALENTE | BF2: COBERTURA VACINAL 2º REFORÇO MONOVALENTE (4 doses) | BG2: ESTIMATIVA POPULACIONAL | BH2: ESQUEMA PRIMÁRIO (2 doses) | BI2: COBERTURA VACINAL ESQUEMA PRIMÁRIO | BJ2: 1º REFORÇO MONOVALENTE | BK2: COBERTURA VACINAL 1° REFORÇO MONOVALENTE (3 doses) | BL2: 2º REFORÇO MONOVALENTE | BM2: COBERTURA VACINAL 2º REFORÇO MONOVALENTE (4 doses) | BN2: ESTIMATIVA POPULACIONAL | BO2: ESQUEMA PRIMÁRIO (2 doses) | BP2: COBERTURA VACINAL ESQUEMA PRIMÁRIO | BQ2: 1º REFORÇO MONOVALENTE | BR2: COBERTURA VACINAL 1° REFORÇO MONOVALENTE (3 doses) | BS2: 2º REFORÇO MONOVALENTE | BT2: COBERTURA VACINAL 2º REFORÇO MONOVALENTE (4 doses) | BU2: ESTIMATIVA POPULACIONAL | BV2: ESQUEMA PRIMÁRIO (2 doses) | BW2: COBERTURA VACINAL ESQUEMA PRIMÁRIO | BX2: 1º REFORÇO MONOVALENTE | BY2: COBERTURA VACINAL 1° REFORÇO MONOVALENTE (3 doses) | BZ2: 2º REFORÇO MONOVALENTE | CA2: COBERTURA VACINAL 2º REFORÇO MONOVALENTE (4 doses) | CB2: ESTIMATIVA POPULACIONAL | CC2: ESQUEMA PRIMÁRIO (2 doses) | CD2: COBERTURA VACINAL ESQUEMA PRIMÁRIO | CE2: 1º REFORÇO MONOVALENTE | CF2: COBERTURA VACINAL 1° REFORÇO MONOVALENTE (3 doses) | CG2: 2º REFORÇO MONOVALENTE | CH2: COBERTURA VACINAL 2º REFORÇO MONOVALENTE (4 doses) | CI2: ESTIMATIVA POPULACIONAL | CJ2: ESQUEMA PRIMÁRIO (2 doses) | CK2: COBERTURA VACINAL ESQUEMA PRIMÁRIO | CL2: 1º REFORÇO MONOVALENTE | CM2: COBERTURA VACINAL 1° REFORÇO MONOVALENTE (3 doses) | CN2: 2º REFORÇO MONOVALENTE | CO2: COBERTURA VACINAL 2º REFORÇO MONOVALENTE (4 doses) | CP2: ESTIMATIVA POPULACIONAL | CQ2: ESQUEMA PRIMÁRIO (2 doses) | CR2: COBERTURA VACINAL ESQUEMA PRIMÁRIO | CS2: 1º REFORÇO MONOVALENTE | CT2: COBERTURA VACINAL 1° REFORÇO MONOVALENTE (3 doses) | CU2: 2º REFORÇO MONOVALENTE | CV2: COBERTURA VACINAL 2º REFORÇO MONOVALENTE (4 doses) | CW2: ESTIMATIVA POPULACIONAL | CX2: ESQUEMA PRIMÁRIO (2 doses) | CY2: COBERTURA VACINAL ESQUEMA PRIMÁRIO | CZ2: 1º REFORÇO MONOVALENTE | DA2: COBERTURA VACINAL 1° REFORÇO MONOVALENTE (3 doses) | DB2: 2º REFORÇO MONOVALENTE | DC2: COBERTURA VACINAL 2º REFORÇO MONOVALENTE (4 doses) | DD2: ESTIMATIVA POPULACIONAL | DE2: ESQUEMA PRIMÁRIO (2 doses) | DF2: COBERTURA VACINAL ESQUEMA PRIMÁRIO | DG2: 1º REFORÇO MONOVALENTE | DH2: COBERTURA VACINAL 1° REFORÇO MONOVALENTE (3 doses) | DI2: 2º REFORÇO MONOVALENTE | DJ2: COBERTURA VACINAL 2º REFORÇO MONOVALENTE (4 doses) | DK2: ESTIMATIVA POPULACIONAL | DL2: ESQUEMA PRIMÁRIO (2 doses) | DM2: COBERTURA VACINAL ESQUEMA PRIMÁRIO | DN2: 1º REFORÇO MONOVALENTE | DO2: COBERTURA VACINAL 1° REFORÇO MONOVALENTE (3 doses) | DP2: 2º REFORÇO MONOVALENTE | DQ2: COBERTURA VACINAL 2º REFORÇO MONOVALENTE (4 doses) | DR2: ESTIMATIVA POPULACIONAL | DS2: ESQUEMA PRIMÁRIO (2 doses) | DT2: COBERTURA VACINAL ESQUEMA PRIMÁRIO | DU2: 1º REFORÇO MONOVALENTE | DV2: COBERTURA VACINAL 1° REFORÇO MONOVALENTE (3 doses) | DW2: 2º REFORÇO MONOVALENTE | DX2: COBERTURA VACINAL 2º REFORÇO MONOVALENTE (4 doses) | EA2: ESTIMATIVA POPULACIONAL | EB2: ESQUEMA PRIMÁRIO (2 doses) | EC2: COBERTURA VACINAL ESQUEMA PRIMÁRIO | ED2: 1º REFORÇO MONOVALENTE | EE2: COBERTURA VACINAL 1° REFORÇO MONOVALENTE (3 doses) | EF2: 2º REFORÇO MONOVALENTE | EG2: COBERTURA VACINAL 2º REFORÇO MONOVALENTE (4 doses)
A3: Regional Metropolitana | B3: Afonso Cláudio | C3: 1181 | D3: 23 | E3: 1.95% | F3: 0 | G3: 0.00% | H3: 0 | I3: 0.00% | J3: 815 | K3: 15 | L3: 1.84% | M3: 0 | N3: 0.00% | O3: 0 | P3: 0.00% | Q3: 2641 | R3: 1118 | S3: 42.33% | T3: 141 | U3: 5.34% | V3: 0 | W3: 0.00% | X3: 2476 | Y3: 1859 | Z3: 75.08% | AA3: 772 | AB3: 31.18% | AC3: 8 | AD3: 0.32% | AE3: 799 | AF3: 669 | AG3: 83.73% | AH3: 293 | AI3: 36.67% | AJ3: 31 | AK3: 3.88% | AL3: 1946 | AM3: 1734 | AN3: 89.11% | AO3: 749 | AP3: 38.49% | AQ3: 216 | AR3: 11.10% | AS3: 1960 | AT3: 1784 | AU3: 91.02% | AV3: 835 | AW3: 42.60% | AX3: 244 | AY3: 12.45% | AZ3: 2107 | BA3: 1792 | BB3: 85.05% | BC3: 929 | BD3: 44.09% | BE3: 322 | BF3: 15.28% | BG3: 2257 | BH3: 1975 | BI3: 87.51% | BJ3: 1108 | BK3: 49.09% | BL3: 399 | BM3: 17.68% | BN3: 2550 | BO3: 2247 | BP3: 88.12% | BQ3: 1333 | BR3: 52.27% | BS3: 531 | BT3: 20.82% | BU3: 2210 | BV3: 2126 | BW3: 96.20% | BX3: 1335 | BY3: 60.41% | BZ3: 595 | CA3: 26.92% | CB3: 1972 | CC3: 1923 | CD3: 97.52% | CE3: 1255 | CF3: 63.64% | CG3: 613 | CH3: 31.09% | CI3: 1928 | CJ3: 1837 | CK3: 95.28% | CL3: 1337 | CM3: 69.35% | CN3: 674 | CO3: 34.96% | CP3: 1679 | CQ3: 1676 | CR3: 99.82% | CS3: 1296 | CT3: 77.19% | CU3: 798 | CV3: 47.53% | CW3: 1450 | CX3: 1509 | CY3: 104.07% | CZ3: 1334 | DA3: 92.00% | DB3: 921 | DC3: 63.52% | DD3: 1113 | DE3: 1220 | DF3: 109.61% | DG3: 1088 | DH3: 97.75% | DI3: 797 | DJ3: 71.61% | DK3: 726 | DL3: 876 | DM3: 120.66% | DN3: 775 | DO3: 106.75% | DP3: 568 | DQ3: 78.24% | DR3: 937 | DS3: 1260 | DT3: 134.47% | DU3: 1083 | DV3: 115.58% | DW3: 727 | DX3: 77.59% | DZ3: Afonso Cláudio | EA3: =SUM(C3,J3,Q3,X3,AE3,AL3,AS3,AZ3,BG3,BN3,BU3,CB3,CI3,CP3,CW3,DD3,DK3,DR3) -> 30747 | EB3: =SUM(D3,K3,R3,Y3,AF3,AM3,AT3,BA3,BH3,BO3,BV3,CC3,CJ3,CQ3,CX3,DE3,DL3,DS3) -> 25643 | EC3: =EB3/EA3 -> 0.834000065 | ED3: =SUM(F3,M3,T3,AA3,AH3,AO3,AV3,BC3,BJ3,BQ3,BX3,CE3,CL3,CS3,CZ3,DG3,DN3,DU3) -> 15663 | EE3: =ED3/EA3 -> 0.5094155527 | EF3: =SUM(H3,O3,V3,AC3,AJ3,AQ3,AX3,BE3,BL3,BS3,BZ3,CG3,CN3,CU3,DB3,DI3,DP3,DW3) -> 7444 | EG3: =EF3/EA3 -> 0.2421049208
A4: Regional Norte | B4: Água Doce do Norte | C4: 463 | D4: 23 | E4: 4.97% | F4: 0 | G4: 0.00% | H4: 0 | I4: 0.00% | J4: 305 | K4: 33 | L4: 10.82% | M4: 0 | N4: 0.00% | O4: 0 | P4: 0.00% | Q4: 1102 | R4: 543 | S4: 49.27% | T4: 193 | U4: 17.51% | V4: 4 | W4: 0.36% | X4: 1021 | Y4: 707 | Z4: 69.25% | AA4: 287 | AB4: 28.11% | AC4: 2 | AD4: 0.20% | AE4: 315 | AF4: 266 | AG4: 84.44% | AH4: 86 | AI4: 27.30% | AJ4: 7 | AK4: 2.22% | AL4: 785 | AM4: 629 | AN4: 80.13% | AO4: 290 | AP4: 36.94% | AQ4: 57 | AR4: 7.26% | AS4: 750 | AT4: 638 | AU4: 85.07% | AV4: 305 | AW4: 40.67% | AX4: 64 | AY4: 8.53% | AZ4: 713 | BA4: 569 | BB4: 79.80% | BC4: 294 | BD4: 41.23% | BE4: 92 | BF4: 12.90% | BG4: 836 | BH4: 661 | BI4: 79.07% | BJ4: 346 | BK4: 41.39% | BL4: 112 | BM4: 13.40% | BN4: 913 | BO4: 756 | BP4: 82.80% | BQ4: 444 | BR4: 48.63% | BS4: 158 | BT4: 17.31% | BU4: 883 | BV4: 747 | BW4: 84.60% | BX4: 469 | BY4: 53.11% | BZ4: 159 | CA4: 18.01% | CB4: 833 | CC4: 725 | CD4: 87.03% | CE4: 490 | CF4: 58.82% | CG4: 185 | CH4: 22.21% | CI4: 774 | CJ4: 643 | CK4: 83.07% | CL4: 422 | CM4: 54.52% | CN4: 178 | CO4: 23.00% | CP4: 696 | CQ4: 599 | CR4: 86.06% | CS4: 450 | CT4: 64.66% | CU4: 233 | CV4: 33.48% | CW4: 601 | CX4: 550 | CY4: 91.51% | CZ4: 471 | DA4: 78.37% | DB4: 292 | DC4: 48.59% | DD4: 397 | DE4: 418 | DF4: 105.29% | DG4: 350 | DH4: 88.16% | DI4: 220 | DJ4: 55.42% | DK4: 281 | DL4: 273 | DM4: 97.15% | DN4: 238 | DO4: 84.70% | DP4: 140 | DQ4: 49.82% | DR4: 382 | DS4: 443 | DT4: 115.97% | DU4: 373 | DV4: 97.64% | DW4: 189 | DX4: 49.48% | DZ4: Água Doce do Norte | EA4: =SUM(C4,J4,Q4,X4,AE4,AL4,AS4,AZ4,BG4,BN4,BU4,CB4,CI4,CP4,CW4,DD4,DK4,DR4) -> 12050 | EB4: 9223 | EC4: =EB4/EA4 -> 0.7653941909 | ED4: =SUM(F4,M4,T4,AA4,AH4,AO4,AV4,BC4,BJ4,BQ4,BX4,CE4,CL4,CS4,CZ4,DG4,DN4,DU4) -> 5508 | EE4: =ED4/EA4 -> 0.4570954357 | EF4: =SUM(H4,O4,V4,AC4,AJ4,AQ4,AX4,BE4,BL4,BS4,BZ4,CG4,CN4,CU4,DB4,DI4,DP4,DW4) -> 2092 | EG4: =EF4/EA4 -> 0.1736099585
A5: Regional Central | B5: Águia Branca | C5: 420 | D5: 19 | E5: 4.52% | F5: 0 | G5: 0.00% | H5: 0 | I5: 0.00% | J5: 264 | K5: 26 | L5: 9.85% | M5: 1 | N5: 0.38% | O5: 0 | P5: 0.00% | Q5: 834 | R5: 522 | S5: 62.59% | T5: 130 | U5: 15.59% | V5: 1 | W5: 0.12% | X5: 787 | Y5: 623 | Z5: 79.16% | AA5: 370 | AB5: 47.01% | AC5: 4 | AD5: 0.51% | AE5: 271 | AF5: 199 | AG5: 73.43% | AH5: 98 | AI5: 36.16% | AJ5: 9 | AK5: 3.32% | AL5: 631 | AM5: 540 | AN5: 85.58% | AO5: 328 | AP5: 51.98% | AQ5: 99 | AR5: 15.69% | AS5: 653 | AT5: 528 | AU5: 80.86% | AV5: 354 | AW5: 54.21% | AX5: 137 | AY5: 20.98% | AZ5: 682 | BA5: 493 | BB5: 72.29% | BC5: 348 | BD5: 51.03% | BE5: 163 | BF5: 23.90% | BG5: 702 | BH5: 584 | BI5: 83.19% | BJ5: 404 | BK5: 57.55% | BL5: 196 | BM5: 27.92% | BN5: 713 | BO5: 549 | BP5: 77.00% | BQ5: 399 | BR5: 55.96% | BS5: 197 | BT5: 27.63% | BU5: 683 | BV5: 556 | BW5: 81.41% | BX5: 447 | BY5: 65.45% | BZ5: 259 | CA5: 37.92% | CB5: 742 | CC5: 625 | CD5: 84.23% | CE5: 524 | CF5: 70.62% | CG5: 332 | CH5: 44.74% | CI5: 608 | CJ5: 535 | CK5: 87.99% | CL5: 463 | CM5: 76.15% | CN5: 297 | CO5: 48.85% | CP5: 572 | CQ5: 506 | CR5: 88.46% | CS5: 462 | CT5: 80.77% | CU5: 346 | CV5: 60.49% | CW5: 432 | CX5: 428 | CY5: 99.07% | CZ5: 406 | DA5: 93.98% | DB5: 324 | DC5: 75.00% | DD5: 331 | DE5: 318 | DF5: 96.07% | DG5: 299 | DH5: 90.33% | DI5: 250 | DJ5: 75.53% | DK5: 206 | DL5: 222 | DM5: 107.77% | DN5: 210 | DO5: 101.94% | DP5: 168 | DQ5: 81.55% | DR5: 234 | DS5: 280 | DT5: 119.66% | DU5: 270 | DV5: 115.38% | DW5: 225 | DX5: 96.15% | DZ5: Águia Branca | EA5: 9765 | EB5: 7553 | EC5: 0.7734767025 | ED5: 5513 | EE5: 0.5645673323 | EF5: 3007 | EG5: 0.3079365079
A6: Regional Sul | B6: Alegre | C6: 1070 | D6: 41 | E6: 3.83% | F6: 0 | G6: 0.00% | H6: 0 | I6: 0.00% | J6: 717 | K6: 82 | L6: 11.44% | M6: 0 | N6: 0.00% | O6: 0 | P6: 0.00% | Q6: 2414 | R6: 1504 | S6: 62.30% | T6: 326 | U6: 13.50% | V6: 2 | W6: 0.08% | X6: 2030 | Y6: 1869 | Z6: 92.07% | AA6: 1004 | AB6: 49.46% | AC6: 4 | AD6: 0.20% | AE6: 819 | AF6: 640 | AG6: 78.14% | AH6: 347 | AI6: 42.37% | AJ6: 34 | AK6: 4.15% | AL6: 2206 | AM6: 2157 | AN6: 97.78% | AO6: 1284 | AP6: 58.20% | AQ6: 374 | AR6: 16.95% | AS6: 2017 | AT6: 2372 | AU6: 117.60% | AV6: 1446 | AW6: 71.69% | AX6: 472 | AY6: 23.40% | AZ6: 2063 | BA6: 2065 | BB6: 100.10% | BC6: 1288 | BD6: 62.43% | BE6: 495 | BF6: 23.99% | BG6: 2096 | BH6: 2015 | BI6: 96.14% | BJ6: 1327 | BK6: 63.31% | BL6: 595 | BM6: 28.39% | BN6: 2244 | BO6: 2059 | BP6: 91.76% | BQ6: 1518 | BR6: 67.65% | BS6: 709 | BT6: 31.60% | BU6: 1867 | BV6: 1945 | BW6: 104.18% | BX6: 1475 | BY6: 79.00% | BZ6: 793 | CA6: 42.47% | CB6: 1917 | CC6: 1816 | CD6: 94.73% | CE6: 1412 | CF6: 73.66% | CG6: 752 | CH6: 39.23% | CI6: 1843 | CJ6: 1857 | CK6: 100.76% | CL6: 1471 | CM6: 79.82% | CN6: 860 | CO6: 46.66% | CP6: 1719 | CQ6: 1702 | CR6: 99.01% | CS6: 1458 | CT6: 84.82% | CU6: 973 | CV6: 56.60% | CW6: 1457 | CX6: 1548 | CY6: 106.25% | CZ6: 1411 | DA6: 96.84% | DB6: 1063 | DC6: 72.96% | DD6: 1093 | DE6: 1197 | DF6: 109.52% | DG6: 1100 | DH6: 100.64% | DI6: 846 | DJ6: 77.40% | DK6: 694 | DL6: 808 | DM6: 116.43% | DN6: 724 | DO6: 104.32% | DP6: 588 | DQ6: 84.73% | DR6: 986 | DS6: 1346 | DT6: 136.51% | DU6: 1183 | DV6: 119.98% | DW6: 915 | DX6: 92.80% | DZ6: Alegre | EA6: 29252 | EB6: 27023 | EC6: 0.923800082 | ED6: 18774 | EE6: 0.6418022699 | EF6: 9475 | EG6: 0.3239094763
A7: Regional Sul | B7: Alfredo Chaves | C7: 458 | D7: 9 | E7: 1.97% | F7: 0 | G7: 0.00% | H7: 0 | I7: 0.00% | J7: 314 | K7: 20 | L7: 6.37% | M7: 1 | N7: 0.32% | O7: 0 | P7: 0.00% | Q7: 1080 | R7: 621 | S7: 57.50% | T7: 70 | U7: 6.48% | V7: 0 | W7: 0.00% | X7: 1022 | Y7: 930 | Z7: 91.00% | AA7: 392 | AB7: 38.36% | AC7: 2 | AD7: 0.20% | AE7: 298 | AF7: 346 | AG7: 116.11% | AH7: 156 | AI7: 52.35% | AJ7: 9 | AK7: 3.02% | AL7: 806 | AM7: 834 | AN7: 103.47% | AO7: 436 | AP7: 54.09% | AQ7: 98 | AR7: 12.16% | AS7: 857 | AT7: 917 | AU7: 107.00% | AV7: 486 | AW7: 56.71% | AX7: 138 | AY7: 16.10% | AZ7: 898 | BA7: 962 | BB7: 107.13% | BC7: 573 | BD7: 63.81% | BE7: 189 | BF7: 21.05% | BG7: 1058 | BH7: 1039 | BI7: 98.20% | BJ7: 583 | BK7: 55.10% | BL7: 189 | BM7: 17.86% | BN7: 1111 | BO7: 1091 | BP7: 98.20% | BQ7: 671 | BR7: 60.40% | BS7: 236 | BT7: 21.24% | BU7: 1046 | BV7: 1073 | BW7: 102.58% | BX7: 734 | BY7: 70.17% | BZ7: 305 | CA7: 29.16% | CB7: 945 | CC7: 949 | CD7: 100.42% | CE7: 694 | CF7: 73.44% | CG7: 325 | CH7: 34.39% | CI7: 963 | CJ7: 1012 | CK7: 105.09% | CL7: 766 | CM7: 79.54% | CN7: 351 | CO7: 36.45% | CP7: 882 | CQ7: 916 | CR7: 103.85% | CS7: 763 | CT7: 86.51% | CU7: 481 | CV7: 54.54% | CW7: 727 | CX7: 789 | CY7: 108.53% | CZ7: 739 | DA7: 101.65% | DB7: 539 | DC7: 74.14% | DD7: 548 | DE7: 591 | DF7: 107.85% | DG7: 557 | DH7: 101.64% | DI7: 449 | DJ7: 81.93% | DK7: 368 | DL7: 440 | DM7: 119.57% | DN7: 410 | DO7: 111.41% | DP7: 331 | DQ7: 89.95% | DR7: 515 | DS7: 694 | DT7: 134.76% | DU7: 647 | DV7: 125.63% | DW7: 506 | DX7: 98.25% | DZ7: Alfredo Chaves | EA7: 13896 | EB7: 13233 | EC7: 0.9522884283 | ED7: 8678 | EE7: 0.6244962579 | EF7: 4148 | EG7: 0.2985031664
A8: Regional Central | B8: Alto Rio Novo | C8: 258 | D8: 6 | E8: 2.33% | F8: 0 | G8: 0.00% | H8: 0 | I8: 0.00% | J8: 197 | K8: 4 | L8: 2.03% | M8: 0 | N8: 0.00% | O8: 0 | P8: 0.00% | Q8: 672 | R8: 372 | S8: 55.36% | T8: 9 | U8: 1.34% | V8: 0 | W8: 0.00% | X8: 634 | Y8: 514 | Z8: 81.07% | AA8: 317 | AB8: 50.00% | AC8: 4 | AD8: 0.63% | AE8: 204 | AF8: 192 | AG8: 94.12% | AH8: 120 | AI8: 58.82% | AJ8: 6 | AK8: 2.94% | AL8: 453 | AM8: 438 | AN8: 96.69% | AO8: 219 | AP8: 48.34% | AQ8: 70 | AR8: 15.45% | AS8: 408 | AT8: 406 | AU8: 99.51% | AV8: 198 | AW8: 48.53% | AX8: 65 | AY8: 15.93% | AZ8: 477 | BA8: 386 | BB8: 80.92% | BC8: 228 | BD8: 47.80% | BE8: 93 | BF8: 19.50% | BG8: 557 | BH8: 475 | BI8: 85.28% | BJ8: 297 | BK8: 53.32% | BL8: 134 | BM8: 24.06% | BN8: 595 | BO8: 470 | BP8: 78.99% | BQ8: 288 | BR8: 48.40% | BS8: 115 | BT8: 19.33% | BU8: 553 | BV8: 494 | BW8: 89.33% | BX8: 345 | BY8: 62.39% | BZ8: 188 | CA8: 34.00% | CB8: 527 | CC8: 456 | CD8: 86.53% | CE8: 346 | CF8: 65.65% | CG8: 190 | CH8: 36.05% | CI8: 474 | CJ8: 448 | CK8: 94.51% | CL8: 350 | CM8: 73.84% | CN8: 194 | CO8: 40.93% | CP8: 435 | CQ8: 396 | CR8: 91.03% | CS8: 332 | CT8: 76.32% | CU8: 224 | CV8: 51.49% | CW8: 366 | CX8: 362 | CY8: 98.91% | CZ8: 310 | DA8: 84.70% | DB8: 226 | DC8: 61.75% | DD8: 246 | DE8: 248 | DF8: 100.81% | DG8: 225 | DH8: 91.46% | DI8: 165 | DJ8: 67.07% | DK8: 171 | DL8: 161 | DM8: 94.15% | DN8: 139 | DO8: 81.29% | DP8: 104 | DQ8: 60.82% | DR8: 199 | DS8: 236 | DT8: 118.59% | DU8: 190 | DV8: 95.48% | DW8: 132 | DX8: 66.33% | DZ8: Alto Rio Novo | EA8: 7426 | EB8: 6064 | EC8: 0.8165903582 | ED8: 3913 | EE8: 0.5269323997 | EF8: 1910 | EG8: 0.2572044169
A9: Regional Sul | B9: Anchieta | C9: 1179 | D9: 133 | E9: 11.28% | F9: 0 | G9: 0.00% | H9: 0 | I9: 0.00% | J9: 782 | K9: 149 | L9: 19.05% | M9: 2 | N9: 0.26% | O9: 0 | P9: 0.00% | Q9: 2859 | R9: 1759 | S9: 61.53% | T9: 813 | U9: 28.44% | V9: 2 | W9: 0.07% | X9: 2371 | Y9: 2044 | Z9: 86.21% | AA9: 1044 | AB9: 44.03% | AC9: 13 | AD9: 0.55% | AE9: 812 | AF9: 719 | AG9: 88.55% | AH9: 301 | AI9: 37.07% | AJ9: 32 | AK9: 3.94% | AL9: 1886 | AM9: 1857 | AN9: 98.46% | AO9: 954 | AP9: 50.58% | AQ9: 264 | AR9: 14.00% | AS9: 1990 | AT9: 1759 | AU9: 88.39% | AV9: 1012 | AW9: 50.85% | AX9: 285 | AY9: 14.32% | AZ9: 2260 | BA9: 1856 | BB9: 82.12% | BC9: 1167 | BD9: 51.64% | BE9: 408 | BF9: 18.05% | BG9: 2624 | BH9: 2335 | BI9: 88.99% | BJ9: 1565 | BK9: 59.64% | BL9: 581 | BM9: 22.14% | BN9: 2607 | BO9: 2368 | BP9: 90.83% | BQ9: 1620 | BR9: 62.14% | BS9: 674 | BT9: 25.85% | BU9: 2035 | BV9: 2049 | BW9: 100.69% | BX9: 1438 | BY9: 70.66% | BZ9: 680 | CA9: 33.42% | CB9: 1869 | CC9: 1883 | CD9: 100.75% | CE9: 1408 | CF9: 75.33% | CG9: 730 | CH9: 39.06% | CI9: 1719 | CJ9: 1750 | CK9: 101.80% | CL9: 1351 | CM9: 78.59% | CN9: 746 | CO9: 43.40% | CP9: 1608 | CQ9: 1556 | CR9: 96.77% | CS9: 1315 | CT9: 81.78% | CU9: 849 | CV9: 52.80% | CW9: 1331 | CX9: 1394 | CY9: 104.73% | CZ9: 1250 | DA9: 93.91% | DB9: 895 | DC9: 67.24% | DD9: 874 | DE9: 1005 | DF9: 114.99% | DG9: 901 | DH9: 103.09% | DI9: 692 | DJ9: 79.18% | DK9: 569 | DL9: 699 | DM9: 122.85% | DN9: 629 | DO9: 110.54% | DP9: 469 | DQ9: 82.43% | DR9: 698 | DS9: 981 | DT9: 140.54% | DU9: 888 | DV9: 127.22% | DW9: 675 | DX9: 96.70% | DZ9: Anchieta | EA9: 30073 | EB9: 26296 | EC9: 0.874405613 | ED9: 17658 | EE9: 0.5871712167 | EF9: 7995 | EG9: 0.2658530908
A10: Regional Sul | B10: Apiacá | C10: 217 | D10: 7 | E10: 3.23% | F10: 0 | G10: 0.00% | H10: 0 | I10: 0.00% | J10: 151 | K10: 5 | L10: 3.31% | M10: 0 | N10: 0.00% | O10: 0 | P10: 0.00% | Q10: 610 | R10: 308 | S10: 50.49% | T10: 15 | U10: 2.46% | V10: 0 | W10: 0.00% | X10: 568 | Y10: 437 | Z10: 76.94% | AA10: 145 | AB10: 25.53% | AC10: 2 | AD10: 0.35% | AE10: 183 | AF10: 149 | AG10: 81.42% | AH10: 52 | AI10: 28.42% | AJ10: 6 | AK10: 3.28% | AL10: 468 | AM10: 422 | AN10: 90.17% | AO10: 234 | AP10: 50.00% | AQ10: 43 | AR10: 9.19% | AS10: 498 | AT10: 458 | AU10: 91.97% | AV10: 256 | AW10: 51.41% | AX10: 77 | AY10: 15.46% | AZ10: 467 | BA10: 447 | BB10: 95.72% | BC10: 259 | BD10: 55.46% | BE10: 77 | BF10: 16.49% | BG10: 537 | BH10: 409 | BI10: 76.16% | BJ10: 249 | BK10: 46.37% | BL10: 85 | BM10: 15.83% | BN10: 533 | BO10: 473 | BP10: 88.74% | BQ10: 338 | BR10: 63.41% | BS10: 123 | BT10: 23.08% | BU10: 471 | BV10: 484 | BW10: 102.76% | BX10: 369 | BY10: 78.34% | BZ10: 164 | CA10: 34.82% | CB10: 495 | CC10: 438 | CD10: 88.48% | CE10: 347 | CF10: 70.10% | CG10: 157 | CH10: 31.72% | CI10: 466 | CJ10: 420 | CK10: 90.13% | CL10: 341 | CM10: 73.18% | CN10: 175 | CO10: 37.55% | CP10: 422 | CQ10: 400 | CR10: 94.79% | CS10: 354 | CT10: 83.89% | CU10: 219 | CV10: 51.90% | CW10: 396 | CX10: 384 | CY10: 96.97% | CZ10: 353 | DA10: 89.14% | DB10: 227 | DC10: 57.32% | DD10: 282 | DE10: 307 | DF10: 108.87% | DG10: 278 | DH10: 98.58% | DI10: 183 | DJ10: 64.89% | DK10: 184 | DL10: 229 | DM10: 124.46% | DN10: 211 | DO10: 114.67% | DP10: 142 | DQ10: 77.17% | DR10: 252 | DS10: 327 | DT10: 129.76% | DU10: 292 | DV10: 115.87% | DW10: 201 | DX10: 79.76% | DZ10: Apiacá | EA10: 7200 | EB10: 6104 | EC10: 0.8477777778 | ED10: 4093 | EE10: 0.5684722222 | EF10: 1881 | EG10: 0.26125
A11: Regional Metropolitana | B11: Aracruz | C11: 4425 | D11: 347 | E11: 7.84% | F11: 1 | G11: 0.02% | H11: 0 | I11: 0.00% | J11: 2840 | K11: 392 | L11: 13.80% | M11: 2 | N11: 0.07% | O11: 0 | P11: 0.00% | Q11: 9698 | R11: 4867 | S11: 50.19% | T11: 2077 | U11: 21.42% | V11: 4 | W11: 0.04% | X11: 8266 | Y11: 6158 | Z11: 74.50% | AA11: 3228 | AB11: 39.05% | AC11: 19 | AD11: 0.23% | AE11: 2607 | AF11: 2445 | AG11: 93.79% | AH11: 1046 | AI11: 40.12% | AJ11: 91 | AK11: 3.49% | AL11: 6996 | AM11: 6213 | AN11: 88.81% | AO11: 3185 | AP11: 45.53% | AQ11: 822 | AR11: 11.75% | AS11: 7010 | AT11: 6512 | AU11: 92.90% | AV11: 3718 | AW11: 53.04% | AX11: 1168 | AY11: 16.66% | AZ11: 7439 | BA11: 6563 | BB11: 88.22% | BC11: 4025 | BD11: 54.11% | BE11: 1408 | BF11: 18.93% | BG11: 8029 | BH11: 6743 | BI11: 83.98% | BJ11: 4182 | BK11: 52.09% | BL11: 1667 | BM11: 20.76% | BN11: 7786 | BO11: 6821 | BP11: 87.61% | BQ11: 4417 | BR11: 56.73% | BS11: 1894 | BT11: 24.33% | BU11: 6548 | BV11: 6257 | BW11: 95.56% | BX11: 4321 | BY11: 65.99% | BZ11: 2079 | CA11: 31.75% | CB11: 5631 | CC11: 5277 | CD11: 93.71% | CE11: 3748 | CF11: 66.56% | CG11: 1926 | CH11: 34.20% | CI11: 4949 | CJ11: 4773 | CK11: 96.44% | CL11: 3643 | CM11: 73.61% | CN11: 2050 | CO11: 41.42% | CP11: 4417 | CQ11: 4348 | CR11: 98.44% | CS11: 3514 | CT11: 79.56% | CU11: 2268 | CV11: 51.35% | CW11: 3470 | CX11: 3643 | CY11: 104.99% | CZ11: 3156 | DA11: 90.95% | DB11: 2252 | DC11: 64.90% | DD11: 2261 | DE11: 2588 | DF11: 114.46% | DG11: 2322 | DH11: 102.70% | DI11: 1719 | DJ11: 76.03% | DK11: 1325 | DL11: 1558 | DM11: 117.58% | DN11: 1397 | DO11: 105.43% | DP11: 1028 | DQ11: 77.58% | DR11: 1574 | DS11: 2104 | DT11: 133.67% | DU11: 1820 | DV11: 115.63% | DW11: 1255 | DX11: 79.73% | DZ11: Aracruz | EA11: 95271 | EB11: 77609 | EC11: 0.8146130512 | ED11: 49802 | EE11: 0.5227403932 | EF11: 21650 | EG11: 0.2272464863
A12: Regional Sul | B12: Atílio Vivacqua | C12: 400 | D12: 15 | E12: 3.75% | F12: 0 | G12: 0.00% | H12: 0 | I12: 0.00% | J12: 322 | K12: 14 | L12: 4.35% | M12: 0 | N12: 0.00% | O12: 0 | P12: 0.00% | Q12: 993 | R12: 475 | S12: 47.83% | T12: 94 | U12: 9.47% | V12: 0 | W12: 0.00% | X12: 856 | Y12: 650 | Z12: 75.93% | AA12: 308 | AB12: 35.98% | AC12: 8 | AD12: 0.93% | AE12: 278 | AF12: 274 | AG12: 98.56% | AH12: 123 | AI12: 44.24% | AJ12: 15 | AK12: 5.40% | AL12: 688 | AM12: 601 | AN12: 87.35% | AO12: 250 | AP12: 36.34% | AQ12: 63 | AR12: 9.16% | AS12: 696 | AT12: 614 | AU12: 88.22% | AV12: 309 | AW12: 44.40% | AX12: 74 | AY12: 10.63% | AZ12: 798 | BA12: 678 | BB12: 84.96% | BC12: 380 | BD12: 47.62% | BE12: 122 | BF12: 15.29% | BG12: 830 | BH12: 790 | BI12: 95.18% | BJ12: 447 | BK12: 53.86% | BL12: 154 | BM12: 18.55% | BN12: 836 | BO12: 770 | BP12: 92.11% | BQ12: 493 | BR12: 58.97% | BS12: 203 | BT12: 24.28% | BU12: 684 | BV12: 694 | BW12: 101.46% | BX12: 433 | BY12: 63.30% | BZ12: 200 | CA12: 29.24% | CB12: 684 | CC12: 629 | CD12: 91.96% | CE12: 434 | CF12: 63.45% | CG12: 195 | CH12: 28.51% | CI12: 627 | CJ12: 667 | CK12: 106.38% | CL12: 481 | CM12: 76.71% | CN12: 260 | CO12: 41.47% | CP12: 590 | CQ12: 650 | CR12: 110.17% | CS12: 538 | CT12: 91.19% | CU12: 342 | CV12: 57.97% | CW12: 454 | CX12: 510 | CY12: 112.33% | CZ12: 432 | DA12: 95.15% | DB12: 310 | DC12: 68.28% | DD12: 351 | DE12: 401 | DF12: 114.25% | DG12: 369 | DH12: 105.13% | DI12: 275 | DJ12: 78.35% | DK12: 212 | DL12: 268 | DM12: 126.42% | DN12: 241 | DO12: 113.68% | DP12: 190 | DQ12: 89.62% | DR12: 236 | DS12: 329 | DT12: 139.41% | DU12: 296 | DV12: 125.42% | DW12: 219 | DX12: 92.80% | DZ12: Atílio Vivacqua | EA12: 10535 | EB12: 9029 | EC12: 0.8570479355 | ED12: 5628 | EE12: 0.5342192691 | EF12: 2630 | EG12: 0.2496440437
A13: Regional Central | B13: Baixo Guandu | C13: 1174 | D13: 16 | E13: 1.36% | F13: 0 | G13: 0.00% | H13: 0 | I13: 0.00% | J13: 841 | K13: 31 | L13: 3.69% | M13: 0 | N13: 0.00% | O13: 0 | P13: 0.00% | Q13: 2770 | R13: 835 | S13: 30.14% | T13: 129 | U13: 4.66% | V13: 2 | W13: 0.07% | X13: 2426 | Y13: 1302 | Z13: 53.67% | AA13: 387 | AB13: 15.95% | AC13: 1 | AD13: 0.04% | AE13: 807 | AF13: 546 | AG13: 67.66% | AH13: 175 | AI13: 21.69% | AJ13: 16 | AK13: 1.98% | AL13: 2105 | AM13: 1418 | AN13: 67.36% | AO13: 577 | AP13: 27.41% | AQ13: 120 | AR13: 5.70% | AS13: 2024 | AT13: 1578 | AU13: 77.96% | AV13: 758 | AW13: 37.45% | AX13: 198 | AY13: 9.78% | AZ13: 2152 | BA13: 1541 | BB13: 71.61% | BC13: 784 | BD13: 36.43% | BE13: 219 | BF13: 10.18% | BG13: 2159 | BH13: 1532 | BI13: 70.96% | BJ13: 810 | BK13: 37.52% | BL13: 241 | BM13: 11.16% | BN13: 2327 | BO13: 1742 | BP13: 74.86% | BQ13: 1050 | BR13: 45.12% | BS13: 416 | BT13: 17.88% | BU13: 2122 | BV13: 1781 | BW13: 83.93% | BX13: 1138 | BY13: 53.63% | BZ13: 454 | CA13: 21.39% | CB13: 2020 | CC13: 1671 | CD13: 82.72% | CE13: 1144 | CF13: 56.63% | CG13: 517 | CH13: 25.59% | CI13: 2007 | CJ13: 1691 | CK13: 84.26% | CL13: 1217 | CM13: 60.64% | CN13: 606 | CO13: 30.19% | CP13: 1714 | CQ13: 1582 | CR13: 92.30% | CS13: 1274 | CT13: 74.33% | CU13: 725 | CV13: 42.30% | CW13: 1361 | CX13: 1262 | CY13: 92.73% | CZ13: 1148 | DA13: 84.35% | DB13: 740 | DC13: 54.37% | DD13: 967 | DE13: 1013 | DF13: 104.76% | DG13: 977 | DH13: 101.03% | DI13: 661 | DJ13: 68.36% | DK13: 697 | DL13: 696 | DM13: 99.86% | DN13: 667 | DO13: 95.70% | DP13: 445 | DQ13: 63.85% | DR13: 967 | DS13: 1096 | DT13: 113.34% | DU13: 1047 | DV13: 108.27% | DW13: 667 | DX13: 68.98% | DZ13: Baixo Guandu | EA13: 30640 | EB13: 21333 | EC13: 0.6962467363 | ED13: 13282 | EE13: 0.4334856397 | EF13: 6028 | EG13: 0.1967362924
A14: Regional Norte | B14: Barra de São Francisco | C14: 1740 | D14: 22 | E14: 1.26% | F14: 0 | G14: 0.00% | H14: 0 | I14: 0.00% | J14: 1204 | K14: 41 | L14: 3.41% | M14: 1 | N14: 0.08% | O14: 0 | P14: 0.00% | Q14: 4063 | R14: 1494 | S14: 36.77% | T14: 275 | U14: 6.77% | V14: 0 | W14: 0.00% | X14: 3499 | Y14: 2281 | Z14: 65.19% | AA14: 748 | AB14: 21.38% | AC14: 5 | AD14: 0.14% | AE14: 1126 | AF14: 909 | AG14: 80.73% | AH14: 270 | AI14: 23.98% | AJ14: 16 | AK14: 1.42% | AL14: 2926 | AM14: 2262 | AN14: 77.31% | AO14: 893 | AP14: 30.52% | AQ14: 197 | AR14: 6.73% | AS14: 2931 | AT14: 2551 | AU14: 87.04% | AV14: 1123 | AW14: 38.31% | AX14: 262 | AY14: 8.94% | AZ14: 2959 | BA14: 2435 | BB14: 82.29% | BC14: 1215 | BD14: 41.06% | BE14: 319 | BF14: 10.78% | BG14: 3237 | BH14: 2635 | BI14: 81.40% | BJ14: 1370 | BK14: 42.32% | BL14: 423 | BM14: 13.07% | BN14: 3253 | BO14: 2642 | BP14: 81.22% | BQ14: 1529 | BR14: 47.00% | BS14: 554 | BT14: 17.03% | BU14: 2908 | BV14: 2600 | BW14: 89.41% | BX14: 1623 | BY14: 55.81% | BZ14: 640 | CA14: 22.01% | CB14: 2875 | CC14: 2427 | CD14: 84.42% | CE14: 1652 | CF14: 57.46% | CG14: 747 | CH14: 25.98% | CI14: 2624 | CJ14: 2411 | CK14: 91.88% | CL14: 1728 | CM14: 65.85% | CN14: 832 | CO14: 31.71% | CP14: 2221 | CQ14: 2091 | CR14: 94.15% | CS14: 1616 | CT14: 72.76% | CU14: 905 | CV14: 40.75% | CW14: 1761 | CX14: 1771 | CY14: 100.57% | CZ14: 1477 | DA14: 83.87% | DB14: 926 | DC14: 52.58% | DD14: 1284 | DE14: 1373 | DF14: 106.93% | DG14: 1196 | DH14: 93.15% | DI14: 786 | DJ14: 61.21% | DK14: 878 | DL14: 893 | DM14: 101.71% | DN14: 772 | DO14: 87.93% | DP14: 532 | DQ14: 60.59% | DR14: 1082 | DS14: 1363 | DT14: 125.97% | DU14: 1124 | DV14: 103.88% | DW14: 697 | DX14: 64.42% | DZ14: Barra de São Francisco | EA14: 42571 | EB14: 32201 | EC14: 0.7564069437 | ED14: 18612 | EE14: 0.4371990322 | EF14: 7841 | EG14: 0.184186418
A15: Regional Norte | B15: Boa Esperança | C15: 600 | D15: 29 | E15: 4.83% | F15: 0 | G15: 0.00% | H15: 0 | I15: 0.00% | J15: 385 | K15: 27 | L15: 7.01% | M15: 1 | N15: 0.26% | O15: 0 | P15: 0.00% | Q15: 1285 | R15: 811 | S15: 63.11% | T15: 267 | U15: 20.78% | V15: 0 | W15: 0.00% | X15: 1154 | Y15: 929 | Z15: 80.50% | AA15: 512 | AB15: 44.37% | AC15: 5 | AD15: 0.43% | AE15: 416 | AF15: 365 | AG15: 87.74% | AH15: 198 | AI15: 47.60% | AJ15: 17 | AK15: 4.09% | AL15: 927 | AM15: 888 | AN15: 95.79% | AO15: 439 | AP15: 47.36% | AQ15: 116 | AR15: 12.51% | AS15: 936 | AT15: 871 | AU15: 93.06% | AV15: 478 | AW15: 51.07% | AX15: 154 | AY15: 16.45% | AZ15: 944 | BA15: 861 | BB15: 91.21% | BC15: 495 | BD15: 52.44% | BE15: 177 | BF15: 18.75% | BG15: 1025 | BH15: 893 | BI15: 87.12% | BJ15: 533 | BK15: 52.00% | BL15: 207 | BM15: 20.20% | BN15: 1043 | BO15: 977 | BP15: 93.67% | BQ15: 629 | BR15: 60.31% | BS15: 272 | BT15: 26.08% | BU15: 964 | BV15: 916 | BW15: 95.02% | BX15: 629 | BY15: 65.25% | BZ15: 320 | CA15: 33.20% | CB15: 878 | CC15: 853 | CD15: 97.15% | CE15: 632 | CF15: 71.98% | CG15: 354 | CH15: 40.32% | CI15: 832 | CJ15: 820 | CK15: 98.56% | CL15: 657 | CM15: 78.97% | CN15: 379 | CO15: 45.55% | CP15: 705 | CQ15: 772 | CR15: 109.50% | CS15: 662 | CT15: 93.90% | CU15: 451 | CV15: 63.97% | CW15: 592 | CX15: 640 | CY15: 108.11% | CZ15: 579 | DA15: 97.80% | DB15: 440 | DC15: 74.32% | DD15: 402 | DE15: 475 | DF15: 118.16% | DG15: 419 | DH15: 104.23% | DI15: 328 | DJ15: 81.59% | DK15: 287 | DL15: 306 | DM15: 106.62% | DN15: 276 | DO15: 96.17% | DP15: 209 | DQ15: 72.82% | DR15: 331 | DS15: 491 | DT15: 148.34% | DU15: 427 | DV15: 129.00% | DW15: 322 | DX15: 97.28% | DZ15: Boa Esperança | EA15: 13706 | EB15: 11924 | EC15: 0.8699839486 | ED15: 7833 | EE15: 0.5715015322 | EF15: 3751 | EG15: 0.2736757624
A16: Regional Sul | B16: Bom Jesus do Norte | C16: 256 | D16: 27 | E16: 10.55% | F16: 0 | G16: 0.00% | H16: 0 | I16: 0.00% | J16: 270 | K16: 21 | L16: 7.78% | M16: 0 | N16: 0.00% | O16: 0 | P16: 0.00% | Q16: 852 | R16: 327 | S16: 38.38% | T16: 110 | U16: 12.91% | V16: 0 | W16: 0.00% | X16: 806 | Y16: 365 | Z16: 45.29% | AA16: 123 | AB16: 15.26% | AC16: 1 | AD16: 0.12% | AE16: 248 | AF16: 127 | AG16: 51.21% | AH16: 50 | AI16: 20.16% | AJ16: 3 | AK16: 1.21% | AL16: 745 | AM16: 368 | AN16: 49.40% | AO16: 172 | AP16: 23.09% | AQ16: 50 | AR16: 6.71% | AS16: 686 | AT16: 392 | AU16: 57.14% | AV16: 206 | AW16: 30.03% | AX16: 80 | AY16: 11.66% | AZ16: 763 | BA16: 373 | BB16: 48.89% | BC16: 190 | BD16: 24.90% | BE16: 66 | BF16: 8.65% | BG16: 738 | BH16: 409 | BI16: 55.42% | BJ16: 219 | BK16: 29.67% | BL16: 76 | BM16: 10.30% | BN16: 858 | BO16: 435 | BP16: 50.70% | BQ16: 276 | BR16: 32.17% | BS16: 117 | BT16: 13.64% | BU16: 692 | BV16: 413 | BW16: 59.68% | BX16: 268 | BY16: 38.73% | BZ16: 118 | CA16: 17.05% | CB16: 668 | CC16: 392 | CD16: 58.68% | CE16: 273 | CF16: 40.87% | CG16: 123 | CH16: 18.41% | CI16: 599 | CJ16: 446 | CK16: 74.46% | CL16: 319 | CM16: 53.26% | CN16: 182 | CO16: 30.38% | CP16: 576 | CQ16: 393 | CR16: 68.23% | CS16: 321 | CT16: 55.73% | CU16: 186 | CV16: 32.29% | CW16: 534 | CX16: 448 | CY16: 83.90% | CZ16: 384 | DA16: 71.91% | DB16: 253 | DC16: 47.38% | DD16: 342 | DE16: 318 | DF16: 92.98% | DG16: 282 | DH16: 82.46% | DI16: 199 | DJ16: 58.19% | DK16: 199 | DL16: 188 | DM16: 94.47% | DN16: 172 | DO16: 86.43% | DP16: 119 | DQ16: 59.80% | DR16: 340 | DS16: 336 | DT16: 98.82% | DU16: 296 | DV16: 87.06% | DW16: 202 | DX16: 59.41% | DZ16: Bom Jesus do Norte | EA16: 10172 | EB16: 5778 | EC16: 0.568029886 | ED16: 3661 | EE16: 0.3599095556 | EF16: 1775 | EG16: 0.1744986237
A17: Regional Metropolitana | B17: Brejetuba | C17: 633 | D17: 19 | E17: 3.00% | F17: 0 | G17: 0.00% | H17: 0 | I17: 0.00% | J17: 395 | K17: 26 | L17: 6.58% | M17: 0 | N17: 0.00% | O17: 0 | P17: 0.00% | Q17: 1303 | R17: 642 | S17: 49.27% | T17: 191 | U17: 14.66% | V17: 0 | W17: 0.00% | X17: 1189 | Y17: 827 | Z17: 69.55% | AA17: 314 | AB17: 26.41% | AC17: 2 | AD17: 0.17% | AE17: 405 | AF17: 301 | AG17: 74.32% | AH17: 103 | AI17: 25.43% | AJ17: 11 | AK17: 2.72% | AL17: 1043 | AM17: 856 | AN17: 82.07% | AO17: 337 | AP17: 32.31% | AQ17: 80 | AR17: 7.67% | AS17: 928 | AT17: 801 | AU17: 86.31% | AV17: 370 | AW17: 39.87% | AX17: 95 | AY17: 10.24% | AZ17: 944 | BA17: 769 | BB17: 81.46% | BC17: 401 | BD17: 42.48% | BE17: 123 | BF17: 13.03% | BG17: 1105 | BH17: 929 | BI17: 84.07% | BJ17: 510 | BK17: 46.15% | BL17: 170 | BM17: 15.38% | BN17: 1109 | BO17: 1013 | BP17: 91.34% | BQ17: 548 | BR17: 49.41% | BS17: 204 | BT17: 18.39% | BU17: 869 | BV17: 885 | BW17: 101.84% | BX17: 531 | BY17: 61.10% | BZ17: 168 | CA17: 19.33% | CB17: 781 | CC17: 728 | CD17: 93.21% | CE17: 465 | CF17: 59.54% | CG17: 191 | CH17: 24.46% | CI17: 660 | CJ17: 648 | CK17: 98.18% | CL17: 471 | CM17: 71.36% | CN17: 209 | CO17: 31.67% | CP17: 571 | CQ17: 562 | CR17: 98.42% | CS17: 478 | CT17: 83.71% | CU17: 256 | CV17: 44.83% | CW17: 433 | CX17: 490 | CY17: 113.16% | CZ17: 427 | DA17: 98.61% | DB17: 280 | DC17: 64.67% | DD17: 279 | DE17: 311 | DF17: 111.47% | DG17: 293 | DH17: 105.02% | DI17: 191 | DJ17: 68.46% | DK17: 165 | DL17: 212 | DM17: 128.48% | DN17: 185 | DO17: 112.12% | DP17: 115 | DQ17: 69.70% | DR17: 189 | DS17: 259 | DT17: 137.04% | DU17: 215 | DV17: 113.76% | DW17: 133 | DX17: 70.37% | DZ17: Brejetuba | EA17: 13001 | EB17: 10278 | EC17: 0.7905545727 | ED17: 5839 | EE17: 0.4491192985 | EF17: 2228 | EG17: 0.171371433
A18: Regional Sul | B18: Cachoeiro de Itapemirim | C18: 7232 | D18: 263 | E18: 3.64% | F18: 0 | G18: 0.00% | H18: 0 | I18: 0.00% | J18: 4696 | K18: 322 | L18: 6.86% | M18: 2 | N18: 0.04% | O18: 0 | P18: 0.00% | Q18: 16445 | R18: 7622 | S18: 46.35% | T18: 2325 | U18: 14.14% | V18: 8 | W18: 0.05% | X18: 13632 | Y18: 10434 | Z18: 76.54% | AA18: 4463 | AB18: 32.74% | AC18: 55 | AD18: 0.40% | AE18: 4626 | AF18: 4007 | AG18: 86.62% | AH18: 1457 | AI18: 31.50% | AJ18: 125 | AK18: 2.70% | AL18: 12452 | AM18: 10416 | AN18: 83.65% | AO18: 4596 | AP18: 36.91% | AQ18: 1251 | AR18: 10.05% | AS18: 13666 | AT18: 11182 | AU18: 81.82% | AV18: 5078 | AW18: 37.16% | AX18: 1523 | AY18: 11.14% | AZ18: 14562 | BA18: 12050 | BB18: 82.75% | BC18: 6077 | BD18: 41.73% | BE18: 2141 | BF18: 14.70% | BG18: 14793 | BH18: 12317 | BI18: 83.26% | BJ18: 6462 | BK18: 43.68% | BL18: 2382 | BM18: 16.10% | BN18: 15106 | BO18: 12874 | BP18: 85.22% | BQ18: 7543 | BR18: 49.93% | BS18: 3135 | BT18: 20.75% | BU18: 12366 | BV18: 11822 | BW18: 95.60% | BX18: 7279 | BY18: 58.86% | BZ18: 3272 | CA18: 26.46% | CB18: 12351 | CC18: 10937 | CD18: 88.55% | CE18: 7287 | CF18: 59.00% | CG18: 3522 | CH18: 28.52% | CI18: 11848 | CJ18: 11651 | CK18: 98.34% | CL18: 8263 | CM18: 69.74% | CN18: 4325 | CO18: 36.50% | CP18: 10478 | CQ18: 10567 | CR18: 100.85% | CS18: 8431 | CT18: 80.46% | CU18: 5357 | CV18: 51.13% | CW18: 8383 | CX18: 8993 | CY18: 107.28% | CZ18: 7784 | DA18: 92.85% | DB18: 5551 | DC18: 66.22% | DD18: 5765 | DE18: 6682 | DF18: 115.91% | DG18: 5961 | DH18: 103.40% | DI18: 4398 | DJ18: 76.29% | DK18: 3534 | DL18: 4272 | DM18: 120.88% | DN18: 3872 | DO18: 109.56% | DP18: 2873 | DQ18: 81.30% | DR18: 4746 | DS18: 6476 | DT18: 136.45% | DU18: 5694 | DV18: 119.97% | DW18: 3971 | DX18: 83.67% | DZ18: Cachoeiro de Itapemirim | EA18: 186681 | EB18: 152887 | EC18: 0.8189746144 | ED18: 92574 | EE18: 0.4958940653 | EF18: 43889 | EG18: 0.2351015904
A19: Regional Metropolitana | B19: Cariacica | C19: 14624 | D19: 586 | E19: 4.01% | F19: 0 | G19: 0.00% | H19: 0 | I19: 0.00% | J19: 9863 | K19: 657 | L19: 6.66% | M19: 3 | N19: 0.03% | O19: 0 | P19: 0.00% | Q19: 35286 | R19: 17627 | S19: 49.95% | T19: 4560 | U19: 12.92% | V19: 6 | W19: 0.02% | X19: 29716 | Y19: 23970 | Z19: 80.66% | AA19: 10184 | AB19: 34.27% | AC19: 73 | AD19: 0.25% | AE19: 9902 | AF19: 8935 | AG19: 90.23% | AH19: 3518 | AI19: 35.53% | AJ19: 290 | AK19: 2.93% | AL19: 26053 | AM19: 25383 | AN19: 97.43% | AO19: 11697 | AP19: 44.90% | AQ19: 3126 | AR19: 12.00% | AS19: 25148 | AT19: 27017 | AU19: 107.43% | AV19: 13461 | AW19: 53.53% | AX19: 4285 | AY19: 17.04% | AZ19: 26548 | BA19: 26871 | BB19: 101.22% | BC19: 14588 | BD19: 54.95% | BE19: 5347 | BF19: 20.14% | BG19: 28348 | BH19: 28008 | BI19: 98.80% | BJ19: 16173 | BK19: 57.05% | BL19: 6599 | BM19: 23.28% | BN19: 28814 | BO19: 27996 | BP19: 97.16% | BQ19: 17146 | BR19: 59.51% | BS19: 7678 | BT19: 26.65% | BU19: 24129 | BV19: 24208 | BW19: 100.33% | BX19: 15422 | BY19: 63.91% | BZ19: 7221 | CA19: 29.93% | CB19: 22496 | CC19: 21645 | CD19: 96.22% | CE19: 14647 | CF19: 65.11% | CG19: 7527 | CH19: 33.46% | CI19: 20080 | CJ19: 20220 | CK19: 100.70% | CL19: 14611 | CM19: 72.76% | CN19: 8064 | CO19: 40.16% | CP19: 17848 | CQ19: 17737 | CR19: 99.38% | CS19: 14135 | CT19: 79.20% | CU19: 9065 | CV19: 50.79% | CW19: 14188 | CX19: 15095 | CY19: 106.39% | CZ19: 12985 | DA19: 91.52% | DB19: 9267 | DC19: 65.32% | DD19: 9488 | DE19: 10580 | DF19: 111.51% | DG19: 9381 | DH19: 98.87% | DI19: 6966 | DJ19: 73.42% | DK19: 5811 | DL19: 6744 | DM19: 116.06% | DN19: 6004 | DO19: 103.32% | DP19: 4432 | DQ19: 76.27% | DR19: 6670 | DS19: 8575 | DT19: 128.56% | DU19: 7155 | DV19: 107.27% | DW19: 4904 | DX19: 73.52% | DZ19: Cariacica | EA19: 355012 | EB19: 311854 | EC19: 0.8784322783 | ED19: 185670 | EE19: 0.5229964058 | EF19: 84850 | EG19: 0.2390060054
A20: Regional Sul | B20: Castelo | C20: 1343 | D20: 45 | E20: 3.35% | F20: 1 | G20: 0.07% | H20: 0 | I20: 0.00% | J20: 870 | K20: 38 | L20: 4.37% | M20: 1 | N20: 0.11% | O20: 0 | P20: 0.00% | Q20: 2930 | R20: 1189 | S20: 40.58% | T20: 128 | U20: 4.37% | V20: 1 | W20: 0.03% | X20: 2533 | Y20: 1964 | Z20: 77.54% | AA20: 798 | AB20: 31.50% | AC20: 4 | AD20: 0.16% | AE20: 907 | AF20: 897 | AG20: 98.90% | AH20: 356 | AI20: 39.25% | AJ20: 21 | AK20: 2.32% | AL20: 2489 | AM20: 2389 | AN20: 95.98% | AO20: 1131 | AP20: 45.44% | AQ20: 252 | AR20: 10.12% | AS20: 2494 | AT20: 2588 | AU20: 103.77% | AV20: 1230 | AW20: 49.32% | AX20: 313 | AY20: 12.55% | AZ20: 2747 | BA20: 2651 | BB20: 96.51% | BC20: 1420 | BD20: 51.69% | BE20: 440 | BF20: 16.02% | BG20: 2993 | BH20: 2929 | BI20: 97.86% | BJ20: 1653 | BK20: 55.23% | BL20: 581 | BM20: 19.41% | BN20: 3061 | BO20: 2936 | BP20: 95.92% | BQ20: 1738 | BR20: 56.78% | BS20: 661 | BT20: 21.59% | BU20: 2517 | BV20: 2497 | BW20: 99.21% | BX20: 1589 | BY20: 63.13% | BZ20: 620 | CA20: 24.63% | CB20: 2497 | CC20: 2445 | CD20: 97.92% | CE20: 1742 | CF20: 69.76% | CG20: 815 | CH20: 32.64% | CI20: 2463 | CJ20: 2557 | CK20: 103.82% | CL20: 1964 | CM20: 79.74% | CN20: 1017 | CO20: 41.29% | CP20: 2183 | CQ20: 2352 | CR20: 107.74% | CS20: 1966 | CT20: 90.06% | CU20: 1182 | CV20: 54.15% | CW20: 1707 | CX20: 1938 | CY20: 113.53% | CZ20: 1725 | DA20: 101.05% | DB20: 1152 | DC20: 67.49% | DD20: 1240 | DE20: 1412 | DF20: 113.87% | DG20: 1314 | DH20: 105.97% | DI20: 937 | DJ20: 75.56% | DK20: 864 | DL20: 1064 | DM20: 123.15% | DN20: 970 | DO20: 112.27% | DP20: 707 | DQ20: 81.83% | DR20: 1177 | DS20: 1655 | DT20: 140.61% | DU20: 1484 | DV20: 126.08% | DW20: 1035 | DX20: 87.94% | DZ20: Castelo | EA20: 37015 | EB20: 33546 | EC20: 0.9062812373 | ED20: 21210 | EE20: 0.5730109415 | EF20: 9738 | EG20: 0.2630825341
A21: Regional Central | B21: Colatina | C21: 4600 | D21: 93 | E21: 2.02% | F21: 0 | G21: 0.00% | H21: 0 | I21: 0.00% | J21: 3037 | K21: 128 | L21: 4.21% | M21: 1 | N21: 0.03% | O21: 0 | P21: 0.00% | Q21: 10109 | R21: 3600 | S21: 35.61% | T21: 735 | U21: 7.27% | V21: 6 | W21: 0.06% | X21: 8293 | Y21: 5548 | Z21: 66.90% | AA21: 2061 | AB21: 24.85% | AC21: 33 | AD21: 0.40% | AE21: 3034 | AF21: 2226 | AG21: 73.37% | AH21: 735 | AI21: 24.23% | AJ21: 56 | AK21: 1.85% | AL21: 8455 | AM21: 6507 | AN21: 76.96% | AO21: 2875 | AP21: 34.00% | AQ21: 756 | AR21: 8.94% | AS21: 8813 | AT21: 7320 | AU21: 83.06% | AV21: 3687 | AW21: 41.84% | AX21: 1081 | AY21: 12.27% | AZ21: 9183 | BA21: 7269 | BB21: 79.16% | BC21: 3564 | BD21: 38.81% | BE21: 1051 | BF21: 11.45% | BG21: 9662 | BH21: 8100 | BI21: 83.83% | BJ21: 4501 | BK21: 46.58% | BL21: 1552 | BM21: 16.06% | BN21: 9799 | BO21: 8719 | BP21: 88.98% | BQ21: 5377 | BR21: 54.87% | BS21: 2156 | BT21: 22.00% | BU21: 8251 | BV21: 7775 | BW21: 94.23% | BX21: 4941 | BY21: 59.88% | BZ21: 2050 | CA21: 24.85% | CB21: 8261 | CC21: 7723 | CD21: 93.49% | CE21: 5233 | CF21: 63.35% | CG21: 2403 | CH21: 29.09% | CI21: 7584 | CJ21: 7702 | CK21: 101.56% | CL21: 5562 | CM21: 73.34% | CN21: 2854 | CO21: 37.63% | CP21: 6687 | CQ21: 6912 | CR21: 103.36% | CS21: 5470 | CT21: 81.80% | CU21: 3371 | CV21: 50.41% | CW21: 5306 | CX21: 5896 | CY21: 111.12% | CZ21: 5104 | DA21: 96.19% | DB21: 3498 | DC21: 65.93% | DD21: 3744 | DE21: 4240 | DF21: 113.25% | DG21: 3793 | DH21: 101.31% | DI21: 2701 | DJ21: 72.14% | DK21: 2455 | DL21: 2852 | DM21: 116.17% | DN21: 2577 | DO21: 104.97% | DP21: 1865 | DQ21: 75.97% | DR21: 3299 | DS21: 4323 | DT21: 131.04% | DU21: 3764 | DV21: 114.10% | DW21: 2535 | DX21: 76.84% | DZ21: Colatina | EA21: 120572 | EB21: 96933 | EC21: 0.8039428723 | ED21: 59980 | EE21: 0.4974620973 | EF21: 27968 | EG21: 0.231960986
A22: Regional Norte | B22: Conceição da Barra | C22: 1164 | D22: 56 | E22: 4.81% | F22: 0 | G22: 0.00% | H22: 0 | I22: 0.00% | J22: 781 | K22: 82 | L22: 10.50% | M22: 1 | N22: 0.13% | O22: 0 | P22: 0.00% | Q22: 2829 | R22: 1459 | S22: 51.57% | T22: 409 | U22: 14.46% | V22: 8 | W22: 0.28% | X22: 2506 | Y22: 1835 | Z22: 73.22% | AA22: 666 | AB22: 26.58% | AC22: 30 | AD22: 1.20% | AE22: 832 | AF22: 591 | AG22: 71.03% | AH22: 189 | AI22: 22.72% | AJ22: 17 | AK22: 2.04% | AL22: 1816 | AM22: 1587 | AN22: 87.39% | AO22: 676 | AP22: 37.22% | AQ22: 169 | AR22: 9.31% | AS22: 1859 | AT22: 1638 | AU22: 88.11% | AV22: 785 | AW22: 42.23% | AX22: 231 | AY22: 12.43% | AZ22: 1794 | BA22: 1534 | BB22: 85.51% | BC22: 769 | BD22: 42.87% | BE22: 245 | BF22: 13.66% | BG22: 2107 | BH22: 1597 | BI22: 75.79% | BJ22: 844 | BK22: 40.06% | BL22: 290 | BM22: 13.76% | BN22: 2191 | BO22: 1847 | BP22: 84.30% | BQ22: 1087 | BR22: 49.61% | BS22: 433 | BT22: 19.76% | BU22: 1817 | BV22: 1546 | BW22: 85.09% | BX22: 989 | BY22: 54.43% | BZ22: 398 | CA22: 21.90% | CB22: 1721 | CC22: 1400 | CD22: 81.35% | CE22: 919 | CF22: 53.40% | CG22: 405 | CH22: 23.53% | CI22: 1585 | CJ22: 1387 | CK22: 87.51% | CL22: 1015 | CM22: 64.04% | CN22: 500 | CO22: 31.55% | CP22: 1458 | CQ22: 1251 | CR22: 85.80% | CS22: 997 | CT22: 68.38% | CU22: 573 | CV22: 39.30% | CW22: 1137 | CX22: 1021 | CY22: 89.80% | CZ22: 905 | DA22: 79.60% | DB22: 613 | DC22: 53.91% | DD22: 801 | DE22: 738 | DF22: 92.13% | DG22: 668 | DH22: 83.40% | DI22: 483 | DJ22: 60.30% | DK22: 495 | DL22: 525 | DM22: 106.06% | DN22: 498 | DO22: 100.61% | DP22: 341 | DQ22: 68.89% | DR22: 577 | DS22: 671 | DT22: 116.29% | DU22: 649 | DV22: 112.48% | DW22: 412 | DX22: 71.40% | DZ22: Conceição da Barra | EA22: 27470 | EB22: 20765 | EC22: 0.7559155442 | ED22: 12066 | EE22: 0.4392428103 | EF22: 5148 | EG22: 0.1874044412
A23: Regional Metropolitana | B23: Conceição do Castelo | C23: 489 | D23: 5 | E23: 1.02% | F23: 0 | G23: 0.00% | H23: 0 | I23: 0.00% | J23: 298 | K23: 8 | L23: 2.68% | M23: 0 | N23: 0.00% | O23: 0 | P23: 0.00% | Q23: 1087 | R23: 573 | S23: 52.71% | T23: 68 | U23: 6.26% | V23: 1 | W23: 0.09% | X23: 956 | Y23: 831 | Z23: 86.92% | AA23: 255 | AB23: 26.67% | AC23: 1 | AD23: 0.10% | AE23: 335 | AF23: 332 | AG23: 99.10% | AH23: 135 | AI23: 40.30% | AJ23: 4 | AK23: 1.19% | AL23: 812 | AM23: 730 | AN23: 89.90% | AO23: 293 | AP23: 36.08% | AQ23: 55 | AR23: 6.77% | AS23: 801 | AT23: 755 | AU23: 94.26% | AV23: 360 | AW23: 44.94% | AX23: 75 | AY23: 9.36% | AZ23: 883 | BA23: 750 | BB23: 84.94% | BC23: 366 | BD23: 41.45% | BE23: 108 | BF23: 12.23% | BG23: 965 | BH23: 882 | BI23: 91.40% | BJ23: 458 | BK23: 47.46% | BL23: 142 | BM23: 14.72% | BN23: 979 | BO23: 1021 | BP23: 104.29% | BQ23: 592 | BR23: 60.47% | BS23: 219 | BT23: 22.37% | BU23: 818 | BV23: 903 | BW23: 110.39% | BX23: 550 | BY23: 67.24% | BZ23: 202 | CA23: 24.69% | CB23: 731 | CC23: 827 | CD23: 113.13% | CE23: 543 | CF23: 74.28% | CG23: 230 | CH23: 31.46% | CI23: 659 | CJ23: 734 | CK23: 111.38% | CL23: 520 | CM23: 78.91% | CN23: 247 | CO23: 37.48% | CP23: 663 | CQ23: 700 | CR23: 105.58% | CS23: 569 | CT23: 85.82% | CU23: 309 | CV23: 46.61% | CW23: 527 | CX23: 633 | CY23: 120.11% | CZ23: 549 | DA23: 104.17% | DB23: 378 | DC23: 71.73% | DD23: 400 | DE23: 462 | DF23: 115.50% | DG23: 422 | DH23: 105.50% | DI23: 282 | DJ23: 70.50% | DK23: 248 | DL23: 328 | DM23: 132.26% | DN23: 294 | DO23: 118.55% | DP23: 191 | DQ23: 77.02% | DR23: 338 | DS23: 456 | DT23: 134.91% | DU23: 389 | DV23: 115.09% | DW23: 267 | DX23: 78.99% | DZ23: Conceição do Castelo | EA23: 11989 | EB23: 10930 | EC23: 0.9116690299 | ED23: 6363 | EE23: 0.5307365085 | EF23: 2711 | EG23: 0.226123947
A24: Regional Sul | B24: Divino de São Lourenço | C24: 207 | D24: 14 | E24: 6.76% | F24: 0 | G24: 0.00% | H24: 0 | I24: 0.00% | J24: 146 | K24: 25 | L24: 17.12% | M24: 0 | N24: 0.00% | O24: 0 | P24: 0.00% | Q24: 441 | R24: 286 | S24: 64.85% | T24: 82 | U24: 18.59% | V24: 0 | W24: 0.00% | X24: 417 | Y24: 401 | Z24: 96.16% | AA24: 218 | AB24: 52.28% | AC24: 1 | AD24: 0.24% | AE24: 153 | AF24: 157 | AG24: 102.61% | AH24: 76 | AI24: 49.67% | AJ24: 10 | AK24: 6.54% | AL24: 368 | AM24: 368 | AN24: 100.00% | AO24: 195 | AP24: 52.99% | AQ24: 45 | AR24: 12.23% | AS24: 359 | AT24: 388 | AU24: 108.08% | AV24: 189 | AW24: 52.65% | AX24: 48 | AY24: 13.37% | AZ24: 384 | BA24: 372 | BB24: 96.88% | BC24: 218 | BD24: 56.77% | BE24: 71 | BF24: 18.49% | BG24: 429 | BH24: 409 | BI24: 95.34% | BJ24: 242 | BK24: 56.41% | BL24: 99 | BM24: 23.08% | BN24: 346 | BO24: 368 | BP24: 106.36% | BQ24: 237 | BR24: 68.50% | BS24: 100 | BT24: 28.90% | BU24: 338 | BV24: 294 | BW24: 86.98% | BX24: 208 | BY24: 61.54% | BZ24: 93 | CA24: 27.51% | CB24: 327 | CC24: 302 | CD24: 92.35% | CE24: 210 | CF24: 64.22% | CG24: 92 | CH24: 28.13% | CI24: 327 | CJ24: 261 | CK24: 79.82% | CL24: 204 | CM24: 62.39% | CN24: 99 | CO24: 30.28% | CP24: 280 | CQ24: 278 | CR24: 99.29% | CS24: 237 | CT24: 84.64% | CU24: 149 | CV24: 53.21% | CW24: 227 | CX24: 220 | CY24: 96.92% | CZ24: 201 | DA24: 88.55% | DB24: 142 | DC24: 62.56% | DD24: 150 | DE24: 177 | DF24: 118.00% | DG24: 166 | DH24: 110.67% | DI24: 117 | DJ24: 78.00% | DK24: 90 | DL24: 101 | DM24: 112.22% | DN24: 96 | DO24: 106.67% | DP24: 74 | DQ24: 82.22% | DR24: 100 | DS24: 137 | DT24: 137.00% | DU24: 122 | DV24: 122.00% | DW24: 77 | DX24: 77.00% | DZ24: Divino de São Lourenço | EA24: 5089 | EB24: 4558 | EC24: 0.8956573001 | ED24: 2901 | EE24: 0.5700530556 | EF24: 1217 | EG24: 0.2391432501
A25: Regional Metropolitana | B25: Domingos Martins | C25: 1287 | D25: 89 | E25: 6.92% | F25: 1 | G25: 0.08% | H25: 0 | I25: 0.00% | J25: 856 | K25: 137 | L25: 16.00% | M25: 5 | N25: 0.58% | O25: 0 | P25: 0.00% | Q25: 3031 | R25: 1993 | S25: 65.75% | T25: 722 | U25: 23.82% | V25: 2 | W25: 0.07% | X25: 2643 | Y25: 2474 | Z25: 93.61% | AA25: 1328 | AB25: 50.25% | AC25: 14 | AD25: 0.53% | AE25: 903 | AF25: 939 | AG25: 103.99% | AH25: 428 | AI25: 47.40% | AJ25: 40 | AK25: 4.43% | AL25: 2261 | AM25: 2480 | AN25: 109.69% | AO25: 1264 | AP25: 55.90% | AQ25: 346 | AR25: 15.30% | AS25: 2426 | AT25: 2617 | AU25: 107.87% | AV25: 1360 | AW25: 56.06% | AX25: 427 | AY25: 17.60% | AZ25: 2544 | BA25: 2694 | BB25: 105.90% | BC25: 1532 | BD25: 60.22% | BE25: 588 | BF25: 23.11% | BG25: 2821 | BH25: 2963 | BI25: 105.03% | BJ25: 1774 | BK25: 62.89% | BL25: 694 | BM25: 24.60% | BN25: 3050 | BO25: 3078 | BP25: 100.92% | BQ25: 1889 | BR25: 61.93% | BS25: 805 | BT25: 26.39% | BU25: 2600 | BV25: 2888 | BW25: 111.08% | BX25: 1922 | BY25: 73.92% | BZ25: 849 | CA25: 32.65% | CB25: 2446 | CC25: 2651 | CD25: 108.38% | CE25: 1855 | CF25: 75.84% | CG25: 924 | CH25: 37.78% | CI25: 2318 | CJ25: 2486 | CK25: 107.25% | CL25: 1911 | CM25: 82.44% | CN25: 1007 | CO25: 43.44% | CP25: 2066 | CQ25: 2325 | CR25: 112.54% | CS25: 1937 | CT25: 93.76% | CU25: 1258 | CV25: 60.89% | CW25: 1522 | CX25: 1858 | CY25: 122.08% | CZ25: 1693 | DA25: 111.24% | DB25: 1218 | DC25: 80.03% | DD25: 1143 | DE25: 1409 | DF25: 123.27% | DG25: 1303 | DH25: 114.00% | DI25: 1011 | DJ25: 88.45% | DK25: 711 | DL25: 963 | DM25: 135.44% | DN25: 904 | DO25: 127.14% | DP25: 713 | DQ25: 100.28% | DR25: 916 | DS25: 1342 | DT25: 146.51% | DU25: 1221 | DV25: 133.30% | DW25: 920 | DX25: 100.44% | DZ25: Domingos Martins | EA25: 35544 | EB25: 35386 | EC25: 0.9955548053 | ED25: 23049 | EE25: 0.6484638758 | EF25: 10816 | EG25: 0.3042988971
A26: Regional Sul | B26: Dores do Rio Preto | C26: 281 | D26: 10 | E26: 3.56% | F26: 1 | G26: 0.36% | H26: 0 | I26: 0.00% | J26: 172 | K26: 15 | L26: 8.72% | M26: 1 | N26: 0.58% | O26: 0 | P26: 0.00% | Q26: 585 | R26: 282 | S26: 48.21% | T26: 64 | U26: 10.94% | V26: 2 | W26: 0.34% | X26: 545 | Y26: 376 | Z26: 68.99% | AA26: 131 | AB26: 24.04% | AC26: 8 | AD26: 1.47% | AE26: 206 | AF26: 142 | AG26: 68.93% | AH26: 45 | AI26: 21.84% | AJ26: 6 | AK26: 2.91% | AL26: 489 | AM26: 376 | AN26: 76.89% | AO26: 161 | AP26: 32.92% | AQ26: 35 | AR26: 7.16% | AS26: 432 | AT26: 371 | AU26: 85.88% | AV26: 187 | AW26: 43.29% | AX26: 56 | AY26: 12.96% | AZ26: 479 | BA26: 341 | BB26: 71.19% | BC26: 184 | BD26: 38.41% | BE26: 62 | BF26: 12.94% | BG26: 512 | BH26: 388 | BI26: 75.78% | BJ26: 222 | BK26: 43.36% | BL26: 82 | BM26: 16.02% | BN26: 492 | BO26: 400 | BP26: 81.30% | BQ26: 240 | BR26: 48.78% | BS26: 88 | BT26: 17.89% | BU26: 482 | BV26: 406 | BW26: 84.23% | BX26: 262 | BY26: 54.36% | BZ26: 113 | CA26: 23.44% | CB26: 425 | CC26: 342 | CD26: 80.47% | CE26: 214 | CF26: 50.35% | CG26: 86 | CH26: 20.24% | CI26: 405 | CJ26: 377 | CK26: 93.09% | CL26: 273 | CM26: 67.41% | CN26: 109 | CO26: 26.91% | CP26: 367 | CQ26: 340 | CR26: 92.64% | CS26: 269 | CT26: 73.30% | CU26: 129 | CV26: 35.15% | CW26: 278 | CX26: 274 | CY26: 98.56% | CZ26: 243 | DA26: 87.41% | DB26: 143 | DC26: 51.44% | DD26: 214 | DE26: 215 | DF26: 100.47% | DG26: 188 | DH26: 87.85% | DI26: 119 | DJ26: 55.61% | DK26: 116 | DL26: 142 | DM26: 122.41% | DN26: 122 | DO26: 105.17% | DP26: 68 | DQ26: 58.62% | DR26: 170 | DS26: 177 | DT26: 104.12% | DU26: 154 | DV26: 90.59% | DW26: 101 | DX26: 59.41% | DZ26: Dores do Rio Preto | EA26: 6650 | EB26: 4974 | EC26: 0.7479699248 | ED26: 2961 | EE26: 0.4452631579 | EF26: 1207 | EG26: 0.1815037594
A27: Regional Norte | B27: Ecoporanga | C27: 822 | D27: 39 | E27: 4.74% | F27: 0 | G27: 0.00% | H27: 0 | I27: 0.00% | J27: 595 | K27: 60 | L27: 10.08% | M27: 0 | N27: 0.00% | O27: 0 | P27: 0.00% | Q27: 1863 | R27: 895 | S27: 48.04% | T27: 351 | U27: 18.84% | V27: 2 | W27: 0.11% | X27: 1788 | Y27: 1406 | Z27: 78.64% | AA27: 759 | AB27: 42.45% | AC27: 18 | AD27: 1.01% | AE27: 575 | AF27: 534 | AG27: 92.87% | AH27: 209 | AI27: 36.35% | AJ27: 26 | AK27: 4.52% | AL27: 1434 | AM27: 1286 | AN27: 89.68% | AO27: 526 | AP27: 36.68% | AQ27: 147 | AR27: 10.25% | AS27: 1306 | AT27: 1289 | AU27: 98.70% | AV27: 564 | AW27: 43.19% | AX27: 175 | AY27: 13.40% | AZ27: 1379 | BA27: 1225 | BB27: 88.83% | BC27: 621 | BD27: 45.03% | BE27: 223 | BF27: 16.17% | BG27: 1646 | BH27: 1326 | BI27: 80.56% | BJ27: 715 | BK27: 43.44% | BL27: 269 | BM27: 16.34% | BN27: 1773 | BO27: 1551 | BP27: 87.48% | BQ27: 891 | BR27: 50.25% | BS27: 347 | BT27: 19.57% | BU27: 1586 | BV27: 1507 | BW27: 95.02% | BX27: 947 | BY27: 59.71% | BZ27: 402 | CA27: 25.35% | CB27: 1536 | CC27: 1389 | CD27: 90.43% | CE27: 913 | CF27: 59.44% | CG27: 445 | CH27: 28.97% | CI27: 1426 | CJ27: 1273 | CK27: 89.27% | CL27: 904 | CM27: 63.39% | CN27: 475 | CO27: 33.31% | CP27: 1291 | CQ27: 1244 | CR27: 96.36% | CS27: 989 | CT27: 76.61% | CU27: 588 | CV27: 45.55% | CW27: 1094 | CX27: 1064 | CY27: 97.26% | CZ27: 919 | DA27: 84.00% | DB27: 617 | DC27: 56.40% | DD27: 770 | DE27: 834 | DF27: 108.31% | DG27: 737 | DH27: 95.71% | DI27: 517 | DJ27: 67.14% | DK27: 490 | DL27: 550 | DM27: 112.24% | DN27: 477 | DO27: 97.35% | DP27: 344 | DQ27: 70.20% | DR27: 629 | DS27: 777 | DT27: 123.53% | DU27: 665 | DV27: 105.72% | DW27: 446 | DX27: 70.91% | DZ27: Ecoporanga | EA27: 22003 | EB27: 18249 | EC27: 0.8293869018 | ED27: 11187 | EE27: 0.5084306685 | EF27: 5041 | EG27: 0.229105122
A28: Regional Metropolitana | B28: Fundão | C28: 625 | D28: 42 | E28: 6.72% | F28: 0 | G28: 0.00% | H28: 0 | I28: 0.00% | J28: 451 | K28: 66 | L28: 14.63% | M28: 0 | N28: 0.00% | O28: 0 | P28: 0.00% | Q28: 1638 | R28: 942 | S28: 57.51% | T28: 252 | U28: 15.38% | V28: 2 | W28: 0.12% | X28: 1417 | Y28: 1210 | Z28: 85.39% | AA28: 541 | AB28: 38.18% | AC28: 4 | AD28: 0.28% | AE28: 450 | AF28: 417 | AG28: 92.67% | AH28: 212 | AI28: 47.11% | AJ28: 25 | AK28: 5.56% | AL28: 1205 | AM28: 1170 | AN28: 97.10% | AO28: 597 | AP28: 49.54% | AQ28: 157 | AR28: 13.03% | AS28: 1151 | AT28: 1193 | AU28: 103.65% | AV28: 629 | AW28: 54.65% | AX28: 193 | AY28: 16.77% | AZ28: 1307 | BA28: 1116 | BB28: 85.39% | BC28: 649 | BD28: 49.66% | BE28: 234 | BF28: 17.90% | BG28: 1278 | BH28: 1208 | BI28: 94.52% | BJ28: 704 | BK28: 55.09% | BL28: 285 | BM28: 22.30% | BN28: 1387 | BO28: 1199 | BP28: 86.45% | BQ28: 745 | BR28: 53.71% | BS28: 324 | BT28: 23.36% | BU28: 1238 | BV28: 1160 | BW28: 93.70% | BX28: 806 | BY28: 65.11% | BZ28: 404 | CA28: 32.63% | CB28: 1237 | CC28: 1024 | CD28: 82.78% | CE28: 729 | CF28: 58.93% | CG28: 391 | CH28: 31.61% | CI28: 1187 | CJ28: 1008 | CK28: 84.92% | CL28: 760 | CM28: 64.03% | CN28: 429 | CO28: 36.14% | CP28: 1103 | CQ28: 897 | CR28: 81.32% | CS28: 751 | CT28: 68.09% | CU28: 490 | CV28: 44.42% | CW28: 865 | CX28: 822 | CY28: 95.03% | CZ28: 728 | DA28: 84.16% | DB28: 555 | DC28: 64.16% | DD28: 594 | DE28: 575 | DF28: 96.80% | DG28: 520 | DH28: 87.54% | DI28: 404 | DJ28: 68.01% | DK28: 333 | DL28: 355 | DM28: 106.61% | DN28: 320 | DO28: 96.10% | DP28: 247 | DQ28: 74.17% | DR28: 537 | DS28: 620 | DT28: 115.46% | DU28: 570 | DV28: 106.15% | DW28: 437 | DX28: 81.38% | DZ28: Fundão | EA28: 18003 | EB28: 15024 | EC28: 0.8345275787 | ED28: 9513 | EE28: 0.5284119313 | EF28: 4581 | EG28: 0.2544575904
A29: Regional Central | B29: Governador Lindenberg | C29: 433 | D29: 34 | E29: 7.85% | F29: 0 | G29: 0.00% | H29: 0 | I29: 0.00% | J29: 285 | K29: 41 | L29: 14.39% | M29: 0 | N29: 0.00% | O29: 0 | P29: 0.00% | Q29: 918 | R29: 678 | S29: 73.86% | T29: 225 | U29: 24.51% | V29: 1 | W29: 0.11% | X29: 875 | Y29: 829 | Z29: 94.74% | AA29: 441 | AB29: 50.40% | AC29: 2 | AD29: 0.23% | AE29: 292 | AF29: 309 | AG29: 105.82% | AH29: 155 | AI29: 53.08% | AJ29: 24 | AK29: 8.22% | AL29: 755 | AM29: 809 | AN29: 107.15% | AO29: 476 | AP29: 63.05% | AQ29: 118 | AR29: 15.63% | AS29: 740 | AT29: 876 | AU29: 118.38% | AV29: 523 | AW29: 70.68% | AX29: 158 | AY29: 21.35% | AZ29: 787 | BA29: 891 | BB29: 113.21% | BC29: 574 | BD29: 72.94% | BE29: 232 | BF29: 29.48% | BG29: 871 | BH29: 884 | BI29: 101.49% | BJ29: 569 | BK29: 65.33% | BL29: 240 | BM29: 27.55% | BN29: 862 | BO29: 943 | BP29: 109.40% | BQ29: 652 | BR29: 75.64% | BS29: 281 | BT29: 32.60% | BU29: 727 | BV29: 896 | BW29: 123.25% | BX29: 679 | BY29: 93.40% | BZ29: 332 | CA29: 45.67% | CB29: 771 | CC29: 877 | CD29: 113.75% | CE29: 703 | CF29: 91.18% | CG29: 367 | CH29: 47.60% | CI29: 717 | CJ29: 779 | CK29: 108.65% | CL29: 646 | CM29: 90.10% | CN29: 375 | CO29: 52.30% | CP29: 650 | CQ29: 701 | CR29: 107.85% | CS29: 639 | CT29: 98.31% | CU29: 446 | CV29: 68.62% | CW29: 476 | CX29: 557 | CY29: 117.02% | CZ29: 528 | DA29: 110.92% | DB29: 430 | DC29: 90.34% | DD29: 319 | DE29: 435 | DF29: 136.36% | DG29: 418 | DH29: 131.03% | DI29: 347 | DJ29: 108.78% | DK29: 238 | DL29: 292 | DM29: 122.69% | DN29: 278 | DO29: 116.81% | DP29: 229 | DQ29: 96.22% | DR29: 304 | DS29: 438 | DT29: 144.08% | DU29: 400 | DV29: 131.58% | DW29: 328 | DX29: 107.89% | DZ29: Governador Lindenberg | EA29: 11020 | EB29: 11269 | EC29: 1.022595281 | ED29: 7906 | EE29: 0.7174228675 | EF29: 3910 | EG29: 0.3548094374
A30: Regional Sul | B30: Guaçuí | C30: 1225 | D30: 72 | E30: 5.88% | F30: 0 | G30: 0.00% | H30: 0 | I30: 0.00% | J30: 792 | K30: 68 | L30: 8.59% | M30: 0 | N30: 0.00% | O30: 0 | P30: 0.00% | Q30: 2799 | R30: 1177 | S30: 42.05% | T30: 293 | U30: 10.47% | V30: 0 | W30: 0.00% | X30: 2243 | Y30: 1522 | Z30: 67.86% | AA30: 568 | AB30: 25.32% | AC30: 5 | AD30: 0.22% | AE30: 820 | AF30: 583 | AG30: 71.10% | AH30: 197 | AI30: 24.02% | AJ30: 19 | AK30: 2.32% | AL30: 2146 | AM30: 1508 | AN30: 70.27% | AO30: 635 | AP30: 29.59% | AQ30: 157 | AR30: 7.32% | AS30: 2100 | AT30: 1599 | AU30: 76.14% | AV30: 695 | AW30: 33.10% | AX30: 192 | AY30: 9.14% | AZ30: 2097 | BA30: 1551 | BB30: 73.96% | BC30: 773 | BD30: 36.86% | BE30: 250 | BF30: 11.92% | BG30: 2164 | BH30: 1572 | BI30: 72.64% | BJ30: 826 | BK30: 38.17% | BL30: 305 | BM30: 14.09% | BN30: 2126 | BO30: 1694 | BP30: 79.68% | BQ30: 973 | BR30: 45.77% | BS30: 367 | BT30: 17.26% | BU30: 1896 | BV30: 1620 | BW30: 85.44% | BX30: 1003 | BY30: 52.90% | BZ30: 442 | CA30: 23.31% | CB30: 1744 | CC30: 1488 | CD30: 85.32% | CE30: 970 | CF30: 55.62% | CG30: 468 | CH30: 26.83% | CI30: 1748 | CJ30: 1454 | CK30: 83.18% | CL30: 1029 | CM30: 58.87% | CN30: 523 | CO30: 29.92% | CP30: 1571 | CQ30: 1427 | CR30: 90.83% | CS30: 1118 | CT30: 71.16% | CU30: 672 | CV30: 42.78% | CW30: 1438 | CX30: 1331 | CY30: 92.56% | CZ30: 1141 | DA30: 79.35% | DB30: 741 | DC30: 51.53% | DD30: 1029 | DE30: 1066 | DF30: 103.60% | DG30: 942 | DH30: 91.55% | DI30: 659 | DJ30: 64.04% | DK30: 600 | DL30: 670 | DM30: 111.67% | DN30: 594 | DO30: 99.00% | DP30: 411 | DQ30: 68.50% | DR30: 866 | DS30: 1116 | DT30: 128.87% | DU30: 967 | DV30: 111.66% | DW30: 647 | DX30: 74.71% | DZ30: Guaçuí | EA30: 29404 | EB30: 21518 | EC30: 0.7318051966 | ED30: 12724 | EE30: 0.4327302408 | EF30: 5858 | EG30: 0.1992245953
A31: Regional Metropolitana | B31: Guarapari | C31: 5071 | D31: 61 | E31: 1.20% | F31: 2 | G31: 0.04% | H31: 0 | I31: 0.00% | J31: 3126 | K31: 54 | L31: 1.73% | M31: 1 | N31: 0.03% | O31: 0 | P31: 0.00% | Q31: 11586 | R31: 3189 | S31: 27.52% | T31: 386 | U31: 3.33% | V31: 3 | W31: 0.03% | X31: 9825 | Y31: 6144 | Z31: 62.53% | AA31: 1882 | AB31: 19.16% | AC31: 17 | AD31: 0.17% | AE31: 3349 | AF31: 2544 | AG31: 75.96% | AH31: 684 | AI31: 20.42% | AJ31: 38 | AK31: 1.13% | AL31: 8558 | AM31: 6921 | AN31: 80.87% | AO31: 2400 | AP31: 28.04% | AQ31: 444 | AR31: 5.19% | AS31: 8664 | AT31: 7234 | AU31: 83.49% | AV31: 2842 | AW31: 32.80% | AX31: 669 | AY31: 7.72% | AZ31: 8786 | BA31: 6543 | BB31: 74.47% | BC31: 2823 | BD31: 32.13% | BE31: 786 | BF31: 8.95% | BG31: 9693 | BH31: 6857 | BI31: 70.74% | BJ31: 3209 | BK31: 33.11% | BL31: 1007 | BM31: 10.39% | BN31: 10536 | BO31: 7855 | BP31: 74.55% | BQ31: 4137 | BR31: 39.27% | BS31: 1494 | BT31: 14.18% | BU31: 8546 | BV31: 7005 | BW31: 81.97% | BX31: 3738 | BY31: 43.74% | BZ31: 1374 | CA31: 16.08% | CB31: 8314 | CC31: 6689 | CD31: 80.45% | CE31: 3792 | CF31: 45.61% | CG31: 1584 | CH31: 19.05% | CI31: 7624 | CJ31: 6359 | CK31: 83.41% | CL31: 3975 | CM31: 52.14% | CN31: 1814 | CO31: 23.79% | CP31: 7167 | CQ31: 5729 | CR31: 79.94% | CS31: 4026 | CT31: 56.17% | CU31: 2242 | CV31: 31.28% | CW31: 5657 | CX31: 4958 | CY31: 87.64% | CZ31: 3945 | DA31: 69.74% | DB31: 2427 | DC31: 42.90% | DD31: 3910 | DE31: 3779 | DF31: 96.65% | DG31: 3109 | DH31: 79.51% | DI31: 1965 | DJ31: 50.26% | DK31: 2336 | DL31: 2416 | DM31: 103.42% | DN31: 2022 | DO31: 86.56% | DP31: 1286 | DQ31: 55.05% | DR31: 2685 | DS31: 3156 | DT31: 117.54% | DU31: 2531 | DV31: 94.26% | DW31: 1537 | DX31: 57.24% | DZ31: Guarapari | EA31: 125433 | EB31: 87493 | EC31: 0.6975277638 | ED31: 45504 | EE31: 0.3627753462 | EF31: 18687 | EG31: 0.1489799335
A32: Regional Metropolitana | B32: Ibatiba | C32: 1081 | D32: 67 | E32: 6.20% | F32: 0 | G32: 0.00% | H32: 0 | I32: 0.00% | J32: 718 | K32: 83 | L32: 11.56% | M32: 1 | N32: 0.14% | O32: 1 | P32: 0.14% | Q32: 2406 | R32: 1273 | S32: 52.91% | T32: 400 | U32: 16.63% | V32: 1 | W32: 0.04% | X32: 2143 | Y32: 1799 | Z32: 83.95% | AA32: 1023 | AB32: 47.74% | AC32: 6 | AD32: 0.28% | AE32: 765 | AF32: 662 | AG32: 86.54% | AH32: 307 | AI32: 40.13% | AJ32: 37 | AK32: 4.84% | AL32: 1971 | AM32: 1838 | AN32: 93.25% | AO32: 809 | AP32: 41.05% | AQ32: 235 | AR32: 11.92% | AS32: 1898 | AT32: 1731 | AU32: 91.20% | AV32: 827 | AW32: 43.57% | AX32: 290 | AY32: 15.28% | AZ32: 1912 | BA32: 1668 | BB32: 87.24% | BC32: 794 | BD32: 41.53% | BE32: 286 | BF32: 14.96% | BG32: 1953 | BH32: 1749 | BI32: 89.55% | BJ32: 916 | BK32: 46.90% | BL32: 330 | BM32: 16.90% | BN32: 2106 | BO32: 1784 | BP32: 84.71% | BQ32: 952 | BR32: 45.20% | BS32: 356 | BT32: 16.90% | BU32: 1732 | BV32: 1536 | BW32: 88.68% | BX32: 937 | BY32: 54.10% | BZ32: 376 | CA32: 21.71% | CB32: 1562 | CC32: 1425 | CD32: 91.23% | CE32: 916 | CF32: 58.64% | CG32: 408 | CH32: 26.12% | CI32: 1288 | CJ32: 1204 | CK32: 93.48% | CL32: 825 | CM32: 64.05% | CN32: 400 | CO32: 31.06% | CP32: 1140 | CQ32: 1101 | CR32: 96.58% | CS32: 908 | CT32: 79.65% | CU32: 541 | CV32: 47.46% | CW32: 981 | CX32: 952 | CY32: 97.04% | CZ32: 833 | DA32: 84.91% | DB32: 577 | DC32: 58.82% | DD32: 724 | DE32: 732 | DF32: 101.10% | DG32: 649 | DH32: 89.64% | DI32: 489 | DJ32: 67.54% | DK32: 444 | DL32: 454 | DM32: 102.25% | DN32: 412 | DO32: 92.79% | DP32: 316 | DQ32: 71.17% | DR32: 563 | DS32: 711 | DT32: 126.29% | DU32: 619 | DV32: 109.95% | DW32: 476 | DX32: 84.55% | DZ32: Ibatiba | EA32: 25387 | EB32: 20769 | EC32: 0.8180958758 | ED32: 12128 | EE32: 0.4777248198 | EF32: 5125 | EG32: 0.2018749754
A33: Regional Metropolitana | B33: Ibiraçu | C33: 437 | D33: 62 | E33: 14.19% | F33: 0 | G33: 0.00% | H33: 0 | I33: 0.00% | J33: 320 | K33: 110 | L33: 34.38% | M33: 0 | N33: 0.00% | O33: 0 | P33: 0.00% | Q33: 1102 | R33: 836 | S33: 75.86% | T33: 535 | U33: 48.55% | V33: 0 | W33: 0.00% | X33: 835 | Y33: 815 | Z33: 97.60% | AA33: 572 | AB33: 68.50% | AC33: 3 | AD33: 0.36% | AE33: 312 | AF33: 276 | AG33: 88.46% | AH33: 164 | AI33: 52.56% | AJ33: 17 | AK33: 5.45% | AL33: 794 | AM33: 741 | AN33: 93.32% | AO33: 425 | AP33: 53.53% | AQ33: 115 | AR33: 14.48% | AS33: 803 | AT33: 835 | AU33: 103.99% | AV33: 463 | AW33: 57.66% | AX33: 126 | AY33: 15.69% | AZ33: 893 | BA33: 858 | BB33: 96.08% | BC33: 568 | BD33: 63.61% | BE33: 205 | BF33: 22.96% | BG33: 905 | BH33: 906 | BI33: 100.11% | BJ33: 575 | BK33: 63.54% | BL33: 231 | BM33: 25.52% | BN33: 952 | BO33: 943 | BP33: 99.05% | BQ33: 654 | BR33: 68.70% | BS33: 309 | BT33: 32.46% | BU33: 763 | BV33: 868 | BW33: 113.76% | BX33: 653 | BY33: 85.58% | BZ33: 336 | CA33: 44.04% | CB33: 771 | CC33: 763 | CD33: 98.96% | CE33: 598 | CF33: 77.56% | CG33: 349 | CH33: 45.27% | CI33: 734 | CJ33: 756 | CK33: 103.00% | CL33: 629 | CM33: 85.69% | CN33: 377 | CO33: 51.36% | CP33: 637 | CQ33: 671 | CR33: 105.34% | CS33: 574 | CT33: 90.11% | CU33: 402 | CV33: 63.11% | CW33: 549 | CX33: 603 | CY33: 109.84% | CZ33: 539 | DA33: 98.18% | DB33: 436 | DC33: 79.42% | DD33: 375 | DE33: 423 | DF33: 112.80% | DG33: 398 | DH33: 106.13% | DI33: 314 | DJ33: 83.73% | DK33: 229 | DL33: 320 | DM33: 139.74% | DN33: 313 | DO33: 136.68% | DP33: 263 | DQ33: 114.85% | DR33: 331 | DS33: 434 | DT33: 131.12% | DU33: 413 | DV33: 124.77% | DW33: 329 | DX33: 99.40% | DZ33: Ibiraçu | EA33: 11742 | EB33: 11220 | EC33: 0.9555442003 | ED33: 8073 | EE33: 0.6875319366 | EF33: 3812 | EG33: 0.3246465679
A34: Regional Sul | B34: Ibitirama | C34: 427 | D34: 1 | E34: 0.23% | F34: 0 | G34: 0.00% | H34: 0 | I34: 0.00% | J34: 307 | K34: 6 | L34: 1.95% | M34: 0 | N34: 0.00% | O34: 0 | P34: 0.00% | Q34: 999 | R34: 404 | S34: 40.44% | T34: 24 | U34: 2.40% | V34: 1 | W34: 0.10% | X34: 848 | Y34: 680 | Z34: 80.19% | AA34: 250 | AB34: 29.48% | AC34: 8 | AD34: 0.94% | AE34: 310 | AF34: 219 | AG34: 70.65% | AH34: 72 | AI34: 23.23% | AJ34: 6 | AK34: 1.94% | AL34: 747 | AM34: 639 | AN34: 85.54% | AO34: 239 | AP34: 31.99% | AQ34: 53 | AR34: 7.10% | AS34: 641 | AT34: 556 | AU34: 86.74% | AV34: 231 | AW34: 36.04% | AX34: 59 | AY34: 9.20% | AZ34: 694 | BA34: 525 | BB34: 75.65% | BC34: 246 | BD34: 35.45% | BE34: 79 | BF34: 11.38% | BG34: 728 | BH34: 600 | BI34: 82.42% | BJ34: 310 | BK34: 42.58% | BL34: 114 | BM34: 15.66% | BN34: 736 | BO34: 619 | BP34: 84.10% | BQ34: 321 | BR34: 43.61% | BS34: 87 | BT34: 11.82% | BU34: 598 | BV34: 557 | BW34: 93.14% | BX34: 309 | BY34: 51.67% | BZ34: 113 | CA34: 18.90% | CB34: 540 | CC34: 497 | CD34: 92.04% | CE34: 285 | CF34: 52.78% | CG34: 118 | CH34: 21.85% | CI34: 555 | CJ34: 502 | CK34: 90.45% | CL34: 321 | CM34: 57.84% | CN34: 124 | CO34: 22.34% | CP34: 471 | CQ34: 437 | CR34: 92.78% | CS34: 342 | CT34: 72.61% | CU34: 172 | CV34: 36.52% | CW34: 372 | CX34: 415 | CY34: 111.56% | CZ34: 372 | DA34: 100.00% | DB34: 204 | DC34: 54.84% | DD34: 222 | DE34: 253 | DF34: 113.96% | DG34: 229 | DH34: 103.15% | DI34: 128 | DJ34: 57.66% | DK34: 156 | DL34: 172 | DM34: 110.26% | DN34: 157 | DO34: 100.64% | DP34: 108 | DQ34: 69.23% | DR34: 179 | DS34: 261 | DT34: 145.81% | DU34: 221 | DV34: 123.46% | DW34: 128 | DX34: 71.51% | DZ34: Ibitirama | EA34: 9530 | EB34: 7343 | EC34: 0.7705141658 | ED34: 3929 | EE34: 0.4122770199 | EF34: 1502 | EG34: 0.1576075551
A35: Regional Sul | B35: Iconha | C35: 374 | D35: 30 | E35: 8.02% | F35: 0 | G35: 0.00% | H35: 0 | I35: 0.00% | J35: 279 | K35: 55 | L35: 19.71% | M35: 0 | N35: 0.00% | O35: 0 | P35: 0.00% | Q35: 924 | R35: 573 | S35: 62.01% | T35: 213 | U35: 23.05% | V35: 2 | W35: 0.22% | X35: 802 | Y35: 706 | Z35: 88.03% | AA35: 394 | AB35: 49.13% | AC35: 6 | AD35: 0.75% | AE35: 271 | AF35: 271 | AG35: 100.00% | AH35: 136 | AI35: 50.18% | AJ35: 10 | AK35: 3.69% | AL35: 752 | AM35: 769 | AN35: 102.26% | AO35: 411 | AP35: 54.65% | AQ35: 139 | AR35: 18.48% | AS35: 804 | AT35: 879 | AU35: 109.33% | AV35: 470 | AW35: 58.46% | AX35: 142 | AY35: 17.66% | AZ35: 865 | BA35: 977 | BB35: 112.95% | BC35: 610 | BD35: 70.52% | BE35: 229 | BF35: 26.47% | BG35: 1061 | BH35: 1058 | BI35: 99.72% | BJ35: 652 | BK35: 61.45% | BL35: 273 | BM35: 25.73% | BN35: 1046 | BO35: 1146 | BP35: 109.56% | BQ35: 741 | BR35: 70.84% | BS35: 362 | BT35: 34.61% | BU35: 860 | BV35: 1055 | BW35: 122.67% | BX35: 745 | BY35: 86.63% | BZ35: 375 | CA35: 43.60% | CB35: 856 | CC35: 905 | CD35: 105.72% | CE35: 681 | CF35: 79.56% | CG35: 357 | CH35: 41.71% | CI35: 886 | CJ35: 942 | CK35: 106.32% | CL35: 756 | CM35: 85.33% | CN35: 444 | CO35: 50.11% | CP35: 791 | CQ35: 838 | CR35: 105.94% | CS35: 723 | CT35: 91.40% | CU35: 526 | CV35: 66.50% | CW35: 673 | CX35: 745 | CY35: 110.70% | CZ35: 687 | DA35: 102.08% | DB35: 537 | DC35: 79.79% | DD35: 413 | DE35: 516 | DF35: 124.94% | DG35: 490 | DH35: 118.64% | DI35: 393 | DJ35: 95.16% | DK35: 267 | DL35: 332 | DM35: 124.34% | DN35: 312 | DO35: 116.85% | DP35: 252 | DQ35: 94.38% | DR35: 416 | DS35: 534 | DT35: 128.37% | DU35: 502 | DV35: 120.67% | DW35: 409 | DX35: 98.32% | DZ35: Iconha | EA35: 12340 | EB35: 12331 | EC35: 0.9992706645 | ED35: 8523 | EE35: 0.6906807131 | EF35: 4456 | EG35: 0.361102107
A36: Regional Sul | B36: Irupi | C36: 649 | D36: 38 | E36: 5.86% | F36: 1 | G36: 0.15% | H36: 0 | I36: 0.00% | J36: 414 | K36: 44 | L36: 10.63% | M36: 0 | N36: 0.00% | O36: 0 | P36: 0.00% | Q36: 1289 | R36: 564 | S36: 43.75% | T36: 196 | U36: 15.21% | V36: 2 | W36: 0.16% | X36: 1198 | Y36: 792 | Z36: 66.11% | AA36: 351 | AB36: 29.30% | AC36: 8 | AD36: 0.67% | AE36: 441 | AF36: 342 | AG36: 77.55% | AH36: 136 | AI36: 30.84% | AJ36: 20 | AK36: 4.54% | AL36: 1044 | AM36: 730 | AN36: 69.92% | AO36: 334 | AP36: 31.99% | AQ36: 116 | AR36: 11.11% | AS36: 952 | AT36: 616 | AU36: 64.71% | AV36: 321 | AW36: 33.72% | AX36: 126 | AY36: 13.24% | AZ36: 990 | BA36: 658 | BB36: 66.46% | BC36: 383 | BD36: 38.69% | BE36: 160 | BF36: 16.16% | BG36: 1143 | BH36: 801 | BI36: 70.08% | BJ36: 471 | BK36: 41.21% | BL36: 206 | BM36: 18.02% | BN36: 1115 | BO36: 886 | BP36: 79.46% | BQ36: 525 | BR36: 47.09% | BS36: 201 | BT36: 18.03% | BU36: 940 | BV36: 797 | BW36: 84.79% | BX36: 510 | BY36: 54.26% | BZ36: 207 | CA36: 22.02% | CB36: 846 | CC36: 687 | CD36: 81.21% | CE36: 467 | CF36: 55.20% | CG36: 217 | CH36: 25.65% | CI36: 731 | CJ36: 586 | CK36: 80.16% | CL36: 418 | CM36: 57.18% | CN36: 203 | CO36: 27.77% | CP36: 595 | CQ36: 510 | CR36: 85.71% | CS36: 415 | CT36: 69.75% | CU36: 254 | CV36: 42.69% | CW36: 495 | CX36: 447 | CY36: 90.30% | CZ36: 402 | DA36: 81.21% | DB36: 264 | DC36: 53.33% | DD36: 382 | DE36: 356 | DF36: 93.19% | DG36: 330 | DH36: 86.39% | DI36: 225 | DJ36: 58.90% | DK36: 250 | DL36: 225 | DM36: 90.00% | DN36: 208 | DO36: 83.20% | DP36: 140 | DQ36: 56.00% | DR36: 284 | DS36: 318 | DT36: 111.97% | DU36: 277 | DV36: 97.54% | DW36: 183 | DX36: 64.44% | DZ36: Irupi | EA36: 13758 | EB36: 9397 | EC36: 0.6830207879 | ED36: 5745 | EE36: 0.417575229 | EF36: 2532 | EG36: 0.1840383777
A37: Regional Metropolitana | B37: Itaguaçu | C37: 441 | D37: 51 | E37: 11.56% | F37: 0 | G37: 0.00% | H37: 0 | I37: 0.00% | J37: 307 | K37: 46 | L37: 14.98% | M37: 0 | N37: 0.00% | O37: 0 | P37: 0.00% | Q37: 1014 | R37: 616 | S37: 60.75% | T37: 122 | U37: 12.03% | V37: 0 | W37: 0.00% | X37: 913 | Y37: 777 | Z37: 85.10% | AA37: 394 | AB37: 43.15% | AC37: 1 | AD37: 0.11% | AE37: 352 | AF37: 318 | AG37: 90.34% | AH37: 140 | AI37: 39.77% | AJ37: 11 | AK37: 3.12% | AL37: 836 | AM37: 778 | AN37: 93.06% | AO37: 386 | AP37: 46.17% | AQ37: 98 | AR37: 11.72% | AS37: 735 | AT37: 782 | AU37: 106.39% | AV37: 446 | AW37: 60.68% | AX37: 136 | AY37: 18.50% | AZ37: 887 | BA37: 859 | BB37: 96.84% | BC37: 523 | BD37: 58.96% | BE37: 175 | BF37: 19.73% | BG37: 990 | BH37: 920 | BI37: 92.93% | BJ37: 537 | BK37: 54.24% | BL37: 185 | BM37: 18.69% | BN37: 1036 | BO37: 1010 | BP37: 97.49% | BQ37: 632 | BR37: 61.00% | BS37: 239 | BT37: 23.07% | BU37: 959 | BV37: 956 | BW37: 99.69% | BX37: 705 | BY37: 73.51% | BZ37: 303 | CA37: 31.60% | CB37: 979 | CC37: 908 | CD37: 92.75% | CE37: 709 | CF37: 72.42% | CG37: 317 | CH37: 32.38% | CI37: 945 | CJ37: 951 | CK37: 100.63% | CL37: 749 | CM37: 79.26% | CN37: 402 | CO37: 42.54% | CP37: 907 | CQ37: 877 | CR37: 96.69% | CS37: 764 | CT37: 84.23% | CU37: 530 | CV37: 58.43% | CW37: 787 | CX37: 816 | CY37: 103.68% | CZ37: 773 | DA37: 98.22% | DB37: 628 | DC37: 79.80% | DD37: 558 | DE37: 649 | DF37: 116.31% | DG37: 624 | DH37: 111.83% | DI37: 535 | DJ37: 95.88% | DK37: 376 | DL37: 413 | DM37: 109.84% | DN37: 396 | DO37: 105.32% | DP37: 335 | DQ37: 89.10% | DR37: 586 | DS37: 731 | DT37: 124.74% | DU37: 685 | DV37: 116.89% | DW37: 560 | DX37: 95.56% | DZ37: Itaguaçu | EA37: 13608 | EB37: 12458 | EC37: 0.9154908877 | ED37: 8585 | EE37: 0.6308788948 | EF37: 4455 | EG37: 0.3273809524
A38: Regional Sul | B38: Itapemirim | C38: 1649 | D38: 23 | E38: 1.39% | F38: 0 | G38: 0.00% | H38: 0 | I38: 0.00% | J38: 1095 | K38: 34 | L38: 3.11% | M38: 0 | N38: 0.00% | O38: 0 | P38: 0.00% | Q38: 4074 | R38: 1180 | S38: 28.96% | T38: 164 | U38: 4.03% | V38: 2 | W38: 0.05% | X38: 3500 | Y38: 2209 | Z38: 63.11% | AA38: 713 | AB38: 20.37% | AC38: 12 | AD38: 0.34% | AE38: 1159 | AF38: 864 | AG38: 74.55% | AH38: 262 | AI38: 22.61% | AJ38: 18 | AK38: 1.55% | AL38: 2820 | AM38: 2384 | AN38: 84.54% | AO38: 890 | AP38: 31.56% | AQ38: 158 | AR38: 5.60% | AS38: 2672 | AT38: 2377 | AU38: 88.96% | AV38: 994 | AW38: 37.20% | AX38: 238 | AY38: 8.91% | AZ38: 2808 | BA38: 2283 | BB38: 81.30% | BC38: 1011 | BD38: 36.00% | BE38: 283 | BF38: 10.08% | BG38: 3046 | BH38: 2532 | BI38: 83.13% | BJ38: 1191 | BK38: 39.10% | BL38: 361 | BM38: 11.85% | BN38: 3139 | BO38: 2708 | BP38: 86.27% | BQ38: 1401 | BR38: 44.63% | BS38: 468 | BT38: 14.91% | BU38: 2668 | BV38: 2559 | BW38: 95.91% | BX38: 1406 | BY38: 52.70% | BZ38: 548 | CA38: 20.54% | CB38: 2404 | CC38: 2234 | CD38: 92.93% | CE38: 1283 | CF38: 53.37% | CG38: 499 | CH38: 20.76% | CI38: 2353 | CJ38: 2126 | CK38: 90.35% | CL38: 1356 | CM38: 57.63% | CN38: 623 | CO38: 26.48% | CP38: 2101 | CQ38: 2043 | CR38: 97.24% | CS38: 1469 | CT38: 69.92% | CU38: 814 | CV38: 38.74% | CW38: 1709 | CX38: 1828 | CY38: 106.96% | CZ38: 1492 | DA38: 87.30% | DB38: 932 | DC38: 54.53% | DD38: 1215 | DE38: 1316 | DF38: 108.31% | DG38: 1099 | DH38: 90.45% | DI38: 684 | DJ38: 56.30% | DK38: 702 | DL38: 846 | DM38: 120.51% | DN38: 703 | DO38: 100.14% | DP38: 446 | DQ38: 63.53% | DR38: 822 | DS38: 1057 | DT38: 128.59% | DU38: 874 | DV38: 106.33% | DW38: 521 | DX38: 63.38% | DZ38: Itapemirim | EA38: 39936 | EB38: 30603 | EC38: 0.7663010817 | ED38: 16308 | EE38: 0.4083533654 | EF38: 6607 | EG38: 0.1654397035
A39: Regional Metropolitana | B39: Itarana | C39: 377 | D39: 49 | E39: 13.00% | F39: 0 | G39: 0.00% | H39: 0 | I39: 0.00% | J39: 247 | K39: 34 | L39: 13.77% | M39: 0 | N39: 0.00% | O39: 0 | P39: 0.00% | Q39: 761 | R39: 493 | S39: 64.78% | T39: 175 | U39: 23.00% | V39: 0 | W39: 0.00% | X39: 658 | Y39: 589 | Z39: 89.51% | AA39: 365 | AB39: 55.47% | AC39: 1 | AD39: 0.15% | AE39: 261 | AF39: 211 | AG39: 80.84% | AH39: 122 | AI39: 46.74% | AJ39: 19 | AK39: 7.28% | AL39: 722 | AM39: 713 | AN39: 98.75% | AO39: 438 | AP39: 60.66% | AQ39: 136 | AR39: 18.84% | AS39: 686 | AT39: 698 | AU39: 101.75% | AV39: 425 | AW39: 61.95% | AX39: 145 | AY39: 21.14% | AZ39: 685 | BA39: 638 | BB39: 93.14% | BC39: 407 | BD39: 59.42% | BE39: 160 | BF39: 23.36% | BG39: 794 | BH39: 781 | BI39: 98.36% | BJ39: 547 | BK39: 68.89% | BL39: 242 | BM39: 30.48% | BN39: 849 | BO39: 838 | BP39: 98.70% | BQ39: 591 | BR39: 69.61% | BS39: 269 | BT39: 31.68% | BU39: 730 | BV39: 700 | BW39: 95.89% | BX39: 477 | BY39: 65.34% | BZ39: 211 | CA39: 28.90% | CB39: 752 | CC39: 721 | CD39: 95.88% | CE39: 561 | CF39: 74.60% | CG39: 305 | CH39: 40.56% | CI39: 724 | CJ39: 749 | CK39: 103.45% | CL39: 612 | CM39: 84.53% | CN39: 355 | CO39: 49.03% | CP39: 640 | CQ39: 659 | CR39: 102.97% | CS39: 605 | CT39: 94.53% | CU39: 416 | CV39: 65.00% | CW39: 580 | CX39: 615 | CY39: 106.03% | CZ39: 569 | DA39: 98.10% | DB39: 447 | DC39: 77.07% | DD39: 434 | DE39: 481 | DF39: 110.83% | DG39: 465 | DH39: 107.14% | DI39: 378 | DJ39: 87.10% | DK39: 306 | DL39: 332 | DM39: 108.50% | DN39: 314 | DO39: 102.61% | DP39: 250 | DQ39: 81.70% | DR39: 429 | DS39: 548 | DT39: 127.74% | DU39: 510 | DV39: 118.88% | DW39: 393 | DX39: 91.61% | DZ39: Itarana | EA39: 10635 | EB39: 9849 | EC39: 0.9260930889 | ED39: 7183 | EE39: 0.6754113775 | EF39: 3727 | EG39: 0.3504466385
A40: Regional Sul | B40: Iúna | C40: 1385 | D40: 30 | E40: 2.17% | F40: 0 | G40: 0.00% | H40: 0 | I40: 0.00% | J40: 835 | K40: 32 | L40: 3.83% | M40: 0 | N40: 0.00% | O40: 0 | P40: 0.00% | Q40: 2783 | R40: 1222 | S40: 43.91% | T40: 138 | U40: 4.96% | V40: 0 | W40: 0.00% | X40: 2413 | Y40: 1830 | Z40: 75.84% | AA40: 947 | AB40: 39.25% | AC40: 12 | AD40: 0.50% | AE40: 806 | AF40: 655 | AG40: 81.27% | AH40: 313 | AI40: 38.83% | AJ40: 25 | AK40: 3.10% | AL40: 2163 | AM40: 1724 | AN40: 79.70% | AO40: 715 | AP40: 33.06% | AQ40: 172 | AR40: 7.95% | AS40: 2049 | AT40: 1738 | AU40: 84.82% | AV40: 839 | AW40: 40.95% | AX40: 231 | AY40: 11.27% | AZ40: 2147 | BA40: 1734 | BB40: 80.76% | BC40: 943 | BD40: 43.92% | BE40: 326 | BF40: 15.18% | BG40: 2283 | BH40: 1949 | BI40: 85.37% | BJ40: 1096 | BK40: 48.01% | BL40: 392 | BM40: 17.17% | BN40: 2274 | BO40: 1930 | BP40: 84.87% | BQ40: 1118 | BR40: 49.16% | BS40: 442 | BT40: 19.44% | BU40: 1879 | BV40: 1813 | BW40: 96.49% | BX40: 1087 | BY40: 57.85% | BZ40: 465 | CA40: 24.75% | CB40: 1691 | CC40: 1608 | CD40: 95.09% | CE40: 1039 | CF40: 61.44% | CG40: 462 | CH40: 27.32% | CI40: 1644 | CJ40: 1650 | CK40: 100.36% | CL40: 1118 | CM40: 68.00% | CN40: 578 | CO40: 35.16% | CP40: 1415 | CQ40: 1442 | CR40: 101.91% | CS40: 1087 | CT40: 76.82% | CU40: 654 | CV40: 46.22% | CW40: 1117 | CX40: 1251 | CY40: 112.00% | CZ40: 1076 | DA40: 96.33% | DB40: 750 | DC40: 67.14% | DD40: 767 | DE40: 945 | DF40: 123.21% | DG40: 820 | DH40: 106.91% | DI40: 581 | DJ40: 75.75% | DK40: 524 | DL40: 629 | DM40: 120.04% | DN40: 549 | DO40: 104.77% | DP40: 380 | DQ40: 72.52% | DR40: 594 | DS40: 867 | DT40: 145.96% | DU40: 722 | DV40: 121.55% | DW40: 479 | DX40: 80.64% | DZ40: Iúna | EA40: 28769 | EB40: 23049 | EC40: 0.8011748757 | ED40: 13607 | EE40: 0.4729743821 | EF40: 5949 | EG40: 0.2067850812
A41: Regional Norte | B41: Jaguaré | C41: 1476 | D41: 76 | E41: 5.15% | F41: 0 | G41: 0.00% | H41: 0 | I41: 0.00% | J41: 926 | K41: 76 | L41: 8.21% | M41: 0 | N41: 0.00% | O41: 0 | P41: 0.00% | Q41: 3122 | R41: 1528 | S41: 48.94% | T41: 383 | U41: 12.27% | V41: 0 | W41: 0.00% | X41: 2688 | Y41: 1987 | Z41: 73.92% | AA41: 716 | AB41: 26.64% | AC41: 4 | AD41: 0.15% | AE41: 873 | AF41: 690 | AG41: 79.04% | AH41: 239 | AI41: 27.38% | AJ41: 22 | AK41: 2.52% | AL41: 2202 | AM41: 1910 | AN41: 86.74% | AO41: 819 | AP41: 37.19% | AQ41: 224 | AR41: 10.17% | AS41: 2164 | AT41: 2032 | AU41: 93.90% | AV41: 964 | AW41: 44.55% | AX41: 284 | AY41: 13.12% | AZ41: 2244 | BA41: 1980 | BB41: 88.24% | BC41: 1030 | BD41: 45.90% | BE41: 378 | BF41: 16.84% | BG41: 2391 | BH41: 2274 | BI41: 95.11% | BJ41: 1234 | BK41: 51.61% | BL41: 462 | BM41: 19.32% | BN41: 2307 | BO41: 2132 | BP41: 92.41% | BQ41: 1216 | BR41: 52.71% | BS41: 494 | BT41: 21.41% | BU41: 1862 | BV41: 1831 | BW41: 98.34% | BX41: 1160 | BY41: 62.30% | BZ41: 524 | CA41: 28.14% | CB41: 1649 | CC41: 1575 | CD41: 95.51% | CE41: 1152 | CF41: 69.86% | CG41: 591 | CH41: 35.84% | CI41: 1482 | CJ41: 1474 | CK41: 99.46% | CL41: 1110 | CM41: 74.90% | CN41: 627 | CO41: 42.31% | CP41: 1202 | CQ41: 1271 | CR41: 105.74% | CS41: 1072 | CT41: 89.18% | CU41: 721 | CV41: 59.98% | CW41: 986 | CX41: 1107 | CY41: 112.27% | CZ41: 1001 | DA41: 101.52% | DB41: 718 | DC41: 72.82% | DD41: 653 | DE41: 779 | DF41: 119.30% | DG41: 720 | DH41: 110.26% | DI41: 538 | DJ41: 82.39% | DK41: 405 | DL41: 477 | DM41: 117.78% | DN41: 442 | DO41: 109.14% | DP41: 343 | DQ41: 84.69% | DR41: 488 | DS41: 653 | DT41: 133.81% | DU41: 584 | DV41: 119.67% | DW41: 432 | DX41: 88.52% | DZ41: Jaguaré | EA41: 29120 | EB41: 23852 | EC41: 0.8190934066 | ED41: 13842 | EE41: 0.4753434066 | EF41: 6362 | EG41: 0.2184752747
A42: Regional Sul | B42: Jerônimo Monteiro | C42: 455 | D42: 22 | E42: 4.84% | F42: 0 | G42: 0.00% | H42: 0 | I42: 0.00% | J42: 319 | K42: 35 | L42: 10.97% | M42: 0 | N42: 0.00% | O42: 0 | P42: 0.00% | Q42: 979 | R42: 508 | S42: 51.89% | T42: 141 | U42: 14.40% | V42: 0 | W42: 0.00% | X42: 856 | Y42: 635 | Z42: 74.18% | AA42: 280 | AB42: 32.71% | AC42: 3 | AD42: 0.35% | AE42: 314 | AF42: 251 | AG42: 79.94% | AH42: 100 | AI42: 31.85% | AJ42: 8 | AK42: 2.55% | AL42: 809 | AM42: 707 | AN42: 87.39% | AO42: 355 | AP42: 43.88% | AQ42: 85 | AR42: 10.51% | AS42: 781 | AT42: 776 | AU42: 99.36% | AV42: 437 | AW42: 55.95% | AX42: 122 | AY42: 15.62% | AZ42: 827 | BA42: 811 | BB42: 98.07% | BC42: 483 | BD42: 58.40% | BE42: 174 | BF42: 21.04% | BG42: 792 | BH42: 750 | BI42: 94.70% | BJ42: 432 | BK42: 54.55% | BL42: 156 | BM42: 19.70% | BN42: 816 | BO42: 761 | BP42: 93.26% | BQ42: 465 | BR42: 56.99% | BS42: 182 | BT42: 22.30% | BU42: 762 | BV42: 761 | BW42: 99.87% | BX42: 532 | BY42: 69.82% | BZ42: 232 | CA42: 30.45% | CB42: 762 | CC42: 711 | CD42: 93.31% | CE42: 516 | CF42: 67.72% | CG42: 217 | CH42: 28.48% | CI42: 787 | CJ42: 785 | CK42: 99.75% | CL42: 598 | CM42: 75.98% | CN42: 274 | CO42: 34.82% | CP42: 648 | CQ42: 667 | CR42: 102.93% | CS42: 550 | CT42: 84.88% | CU42: 332 | CV42: 51.23% | CW42: 560 | CX42: 555 | CY42: 99.11% | CZ42: 506 | DA42: 90.36% | DB42: 351 | DC42: 62.68% | DD42: 404 | DE42: 471 | DF42: 116.58% | DG42: 432 | DH42: 106.93% | DI42: 289 | DJ42: 71.53% | DK42: 318 | DL42: 327 | DM42: 102.83% | DN42: 302 | DO42: 94.97% | DP42: 228 | DQ42: 71.70% | DR42: 426 | DS42: 556 | DT42: 130.52% | DU42: 519 | DV42: 121.83% | DW42: 356 | DX42: 83.57% | DZ42: Jerônimo Monteiro | EA42: 11615 | EB42: 10089 | EC42: 0.8686181662 | ED42: 6648 | EE42: 0.5723633233 | EF42: 3009 | EG42: 0.2590615583
